Workbook

Sheet CAPA (hidden)

Sheet DADOS (hidden)
B2: DATA | D2: 2023-05-05
B4: CLIENTE | E4: 1
B6: REVISÃO | D6: R01
B8: PROJETO | D8: REFORMA DA COBERTURA DO CEIM RECANTO FELIZ
B10: BDI TIPO 1 | D10: 0.2652
B12: BDI TIPO 2 | D12: 0.2025
B14: BANCOS DE DADOS | D14: SINAPI: 03/2023 Minas Gerais SETOP: 01/2023 Minas Gerais SICRO : 01/2023 Minas Gerais SUDECAP: 02/2023 Minas Gerais
B16: RESPONSÁVEL | D16: FLÁVIA CRISTINA BARBOSA
B18: CREA | D18: CREA - MG 187.842/D
B20: TIPO | D20: PROJETO EXECUTIVO

Sheet CLIENTES (hidden)
B1: PREFEITURA MUNICIPAL DE POUSO ALEGRE
B2: PREFEITURA MUNICIPAL DE CACHOEIRA DE MINAS
B3: PREFEITURA MUNICIPAL DE ITAJUBÁ
B4: PREFEITURA MUNICIPAL DE SANTA RITA DO SAPUCAÍ
B5: RYZA
B6: FAPEPE
B7: PREFEITURA MUNICIPAL DE DELFIM MOREIRA
B8: PREFEITURA MUNICIPAL DE PIRANGUINHO

Sheet ORC
A3: 1000 | D3: A | E3: ADMINISTRAÇÃO DE OBRA | M3: =SUMIF(A:A,D3,M:M) -> 0 | N3: =SUMIF(A:A,D3,N:N) -> 0
D4: A.B | M4: =IFERROR(SUMIFS(M:M,A:A,LEFT(D4,SEARCH(".",D4)-1),B:B,RIGHT(D4,LEN(D4)-SEARCH(".",D4))),"") -> 0 | N4: =IFERROR(SUMIFS(N:N,A:A,LEFT(D4,SEARCH(".",D4)-1),B:B,RIGHT(D4,LEN(D4)-SEARCH(".",D4))),"") -> 0
D5: A.B.C | M5: =IFERROR(SUMIFS(M:M,A:A,LEFT(D5,SEARCH(".",D5)-1),B:B,LEFT(RIGHT(D5,LEN(D5)-SEARCH(".",D5)),SEARCH(".",RIGHT(D5,LEN(D5)-SEARCH(".",D5)))-1),C:C,RIGHT(D5,LEN(D5)-SEARCH(".",D5,SEARCH(".",D5)+1))),"") -> 0 | N5: =IFERROR(SUMIFS(N:N,A:A,LEFT(D5,SEARCH(".",D5)-1),B:B,LEFT(RIGHT(D5,LEN(D5)-SEARCH(".",D5)),SEARCH(".",RIGHT(D5,LEN(D5)-SEARCH(".",D5)))-1),C:C,RIGHT(D5,LEN(D5)-SEARCH(".",D5,SEARCH(".",D5)+1))),"") -> 0
A6: =IFERROR(LEFT(D6,SEARCH(".",D6)-1),"") -> a | B6: =IFERROR(LEFT(RIGHT(D6,LEN(D6)-SEARCH(".",D6)),SEARCH(".",RIGHT(D6,LEN(D6)-SEARCH(".",D6)))-1),"") -> a/a | C6: =IFERROR(IF(LEN(D6)-LEN(SUBSTITUTE(D6,".",""))<>3,"",MID(D6,SEARCH(".",D6,SEARCH(".",D6)+1)+1,LEN(D6)-SEARCH(".",D6,SEARCH(".",D6)+1)-(LEN(D6)-(SEARCH(".",D6,SEARCH(".",D6,SEARCH(".",D6)+1)+1)-1)))),"") ->  | D6: a.a/a.a.a/a.a.a.a | E6: =IF($G6="SINAPI",VLOOKUP($F6,DADOS_SINAPI,2,0),IF(G6="SETOP",VLOOKUP($F6,DADOS_SETOP,2,0),IF(G6="CPU",VLOOKUP($F6,DADOS_COMPOSICAO,2,0),IF(G6="SICRO",VLOOKUP($F6,DADOS_SICRO,2,0),IF(G6="SUDECAP",VLOOKUP(F6,DADOS_SUDECAP,2,0),IF(G6="COTAÇÃO",VLOOKUP($F6,DADOS_COTACAO,2,0),"")))))) ->  | H6: =IF(G6="SINAPI",VLOOKUP($F6,DADOS_SINAPI,3,0),IF(G6="SETOP",VLOOKUP($F6,DADOS_SETOP,3,0),IF(G6="CPU",VLOOKUP($F6,DADOS_COMPOSICAO,10,0),IF(G6="SICRO",VLOOKUP($F6,DADOS_SICRO,3,0),IF(G6="SUDECAP",VLOOKUP(F6,DADOS_SUDECAP,3,0),IF(G6="COTAÇÃO",VLOOKUP($F6,DADOS_COTACAO,9,0),"")))))) ->  | J6: =TRUNC(IF(G6="SINAPI",VLOOKUP($F6,DADOS_SINAPI,4,0),IF(G6="SETOP",VLOOKUP($F6,DADOS_SETOP,4,0),IF(G6="CPU",VLOOKUP($F6,DADOS_COMPOSICAO,13,0),IF(G6="SICRO",VLOOKUP($F6,DADOS_SICRO,4,0),IF(G6="SUDECAP",VLOOKUP(F6,DADOS_SUDECAP,4,0),IF(G6="COTAÇÃO",VLOOKUP(F6,DADOS_COTACAO,12,0),"")))))),2) ->  | K6: BDI 1 | L6: =TRUNC(J6*(1+$N$17),2) ->  | M6: =IFERROR(TRUNC(I6*J6,2),"") ->  | N6: =IFERROR(TRUNC(L6*I6,2),"") -> 
A7: =IFERROR(LEFT(D7,SEARCH(".",D7)-1),"") -> a | B7: =IFERROR(LEFT(RIGHT(D7,LEN(D7)-SEARCH(".",D7)),SEARCH(".",RIGHT(D7,LEN(D7)-SEARCH(".",D7)))-1),"") -> a/a | C7: =IFERROR(IF(LEN(D7)-LEN(SUBSTITUTE(D7,".",""))<>3,"",MID(D7,SEARCH(".",D7,SEARCH(".",D7)+1)+1,LEN(D7)-SEARCH(".",D7,SEARCH(".",D7)+1)-(LEN(D7)-(SEARCH(".",D7,SEARCH(".",D7,SEARCH(".",D7)+1)+1)-1)))),"") ->  | D7: a.a/a.a.a/a.a.a.a | E7: =VLOOKUP($F7,DADOS_COTACAO,2,0) ->  | G7: COTAÇÃO | H7: =VLOOKUP($F7,DADOS_COTACAO,9,0) ->  | J7: =TRUNC(VLOOKUP($F7,DADOS_COTACAO,12,0),2) ->  | K7: BDI 2 | L7: =TRUNC(J7*(1+$N$18),2) ->  | M7: =IFERROR(TRUNC(I7*J7,2),"") ->  | N7: =IFERROR(TRUNC(L7*I7,2),"") -> 
A8: 2000
E11: PLANILHA ORÇAMENTÁRIA | M11: Revisão: | N11: =DADOS!D6 -> R01 | O11: a
M12: Data: | N12: =DADOS!D2 -> 2023-05-05
D13: Projeto: | E13: =DADOS!D8 -> REFORMA DA COBERTURA DO CEIM RECANTO FELIZ | M13: Bancos:
D14: Responsável: | F14: Cliente: | M14: =DADOS!D14 -> SINAPI: 03/2023 Minas Gerais SETOP: 01/2023 Minas Gerais SICRO : 01/2023 Minas Gerais SUDECAP: 02/2023 Minas Gerais
M17: BDI 1: | N17: =DADOS!D10 -> 0.2652
M18: BDI 2: | N18: =DADOS!D12 -> 0.2025
D20: =E11&" DE "&DADOS!D20&" - "&E13 -> PLANILHA ORÇAMENTÁRIA DE PROJETO EXECUTIVO - REFORMA DA COBERTURA DO CEIM RECANTO FELIZ
D22: Item | E22: Descrição | F22: Código | G22: Banco | H22: Unidade | I22: Quantidade | J22: Valor Unitário | K22: BDI | L22: Valor Unit. com BDI | M22: Total | N22: Total com BDI
M23: =ROUND(I23*J23,2) -> 0 | N23: =ROUND(L23*I23,2) -> 0
A24: 1000 | D24: 1 | E24: CANTEIRO DE OBRA | M24: =SUMIF(A:A,D24,M:M) -> 8618.6 | N24: =SUMIF(A:A,D24,N:N) -> 10903.12
A25: =IFERROR(LEFT(D25,SEARCH(".",D25)-1),"") -> 1 | B25: =IFERROR(LEFT(RIGHT(D25,LEN(D25)-SEARCH(".",D25)),SEARCH(".",RIGHT(D25,LEN(D25)-SEARCH(".",D25)))-1),"") ->  | C25: =IFERROR(IF(LEN(D25)-LEN(SUBSTITUTE(D25,".",""))<>3,"",MID(D25,SEARCH(".",D25,SEARCH(".",D25)+1)+1,LEN(D25)-SEARCH(".",D25,SEARCH(".",D25)+1)-(LEN(D25)-(SEARCH(".",D25,SEARCH(".",D25,SEARCH(".",D25)+1)+1)-1)))),"") ->  | D25: 1.1 | E25: =IF($G25="SINAPI",VLOOKUP($F25,DADOS_SINAPI,2,0),IF(G25="SETOP",VLOOKUP($F25,DADOS_SETOP,2,0),IF(G25="CPU",VLOOKUP($F25,DADOS_COMPOSICAO,2,0),IF(G25="SICRO",VLOOKUP($F25,DADOS_SICRO,2,0),IF(G25="SUDECAP",VLOOKUP(F25,DADOS_SUDECAP,2,0),IF(G25="COTAÇÃO",VLOOKUP($F25,DADOS_COTACAO,2,0),"")))))) -> LOCAÇÃO DE BANHEIRO QUÍMICO, DIMENSÃO (110X120X230)CM, LINHA PADRÃO, CONTENDO UMA (1) PIA/HIGIENIZADOR DE MÃOS, INCLUSIVE MANUTENÇÃO E MOBILIZAÇÃO/DESMOBILIZAÇÃO | F25: ED-50155 | G25: SETOP | H25: =IF(G25="SINAPI",VLOOKUP($F25,DADOS_SINAPI,3,0),IF(G25="SETOP",VLOOKUP($F25,DADOS_SETOP,3,0),IF(G25="CPU",VLOOKUP($F25,DADOS_COMPOSICAO,10,0),IF(G25="SICRO",VLOOKUP($F25,DADOS_SICRO,3,0),IF(G25="SUDECAP",VLOOKUP(F25,DADOS_SUDECAP,3,0),IF(G25="COTAÇÃO",VLOOKUP($F25,DADOS_COTACAO,9,0),"")))))) -> mês | I25: =F28 -> 5 | J25: =TRUNC(IF(G25="SINAPI",VLOOKUP($F25,DADOS_SINAPI,4,0),IF(G25="SETOP",VLOOKUP($F25,DADOS_SETOP,4,0),IF(G25="CPU",VLOOKUP($F25,DADOS_COMPOSICAO,13,0),IF(G25="SICRO",VLOOKUP($F25,DADOS_SICRO,4,0),IF(G25="SUDECAP",VLOOKUP(F25,DADOS_SUDECAP,4,0),IF(G25="COTAÇÃO",VLOOKUP(F25,DADOS_COTACAO,12,0),"")))))),2) -> 820 | K25: BDI 1 | L25: =TRUNC(J25*(1+$N$17),2) -> 1037.46 | M25: =IFERROR(TRUNC(I25*J25,2),"") -> 4100 | N25: =IFERROR(TRUNC(L25*I25,2),"") -> 5187.3
A26: 2000
A27: 2000 | E27: Quantidade de Meses | F27: 5 | G27: meses
A28: 2000 | E28: Total | F28: =F27 -> 5 | G28: meses
A29: 2000
A30: =IFERROR(LEFT(D30,SEARCH(".",D30)-1),"") -> 1 | B30: =IFERROR(LEFT(RIGHT(D30,LEN(D30)-SEARCH(".",D30)),SEARCH(".",RIGHT(D30,LEN(D30)-SEARCH(".",D30)))-1),"") ->  | C30: =IFERROR(IF(LEN(D30)-LEN(SUBSTITUTE(D30,".",""))<>3,"",MID(D30,SEARCH(".",D30,SEARCH(".",D30)+1)+1,LEN(D30)-SEARCH(".",D30,SEARCH(".",D30)+1)-(LEN(D30)-(SEARCH(".",D30,SEARCH(".",D30,SEARCH(".",D30)+1)+1)-1)))),"") ->  | D30: 1.2 | E30: =IF($G30="SINAPI",VLOOKUP($F30,DADOS_SINAPI,2,0),IF(G30="SETOP",VLOOKUP($F30,DADOS_SETOP,2,0),IF(G30="CPU",VLOOKUP($F30,DADOS_COMPOSICAO,2,0),IF(G30="SICRO",VLOOKUP($F30,DADOS_SICRO,2,0),IF(G30="SUDECAP",VLOOKUP(F30,DADOS_SUDECAP,2,0),IF(G30="COTAÇÃO",VLOOKUP($F30,DADOS_COTACAO,2,0),"")))))) -> LOCAÇÃO DE CONTAINER COM ISOLAMENTO TÉRMICO, TIPO 3, PARA DEPÓSITO/FERRAMENTARIA DE OBRA, COM MEDIDAS REFERENCIAIS DE (6) METROS COMPRIMENTO, (2,3) METROS LARGURA E (2,5) METROS ALTURA ÚTIL INTERNA, INCLUSIVE LIGAÇÕES ELÉTRICAS INTERNAS, EXCLUSIVE MOBILIZAÇÃO/DESMOBILIZAÇÃO E LIGAÇÕES PROVISÓRIAS EXTERNAS | F30: ED-16350 | G30: SETOP | H30: =IF(G30="SINAPI",VLOOKUP($F30,DADOS_SINAPI,3,0),IF(G30="SETOP",VLOOKUP($F30,DADOS_SETOP,3,0),IF(G30="CPU",VLOOKUP($F30,DADOS_COMPOSICAO,10,0),IF(G30="SICRO",VLOOKUP($F30,DADOS_SICRO,3,0),IF(G30="SUDECAP",VLOOKUP(F30,DADOS_SUDECAP,3,0),IF(G30="COTAÇÃO",VLOOKUP($F30,DADOS_COTACAO,9,0),"")))))) -> mês | I30: =F33 -> 5 | J30: =TRUNC(IF(G30="SINAPI",VLOOKUP($F30,DADOS_SINAPI,4,0),IF(G30="SETOP",VLOOKUP($F30,DADOS_SETOP,4,0),IF(G30="CPU",VLOOKUP($F30,DADOS_COMPOSICAO,13,0),IF(G30="SICRO",VLOOKUP($F30,DADOS_SICRO,4,0),IF(G30="SUDECAP",VLOOKUP(F30,DADOS_SUDECAP,4,0),IF(G30="COTAÇÃO",VLOOKUP(F30,DADOS_COTACAO,12,0),"")))))),2) -> 689.44 | K30: BDI 1 | L30: =TRUNC(J30*(1+$N$17),2) -> 872.27 | M30: =IFERROR(TRUNC(I30*J30,2),"") -> 3447.2 | N30: =IFERROR(TRUNC(L30*I30,2),"") -> 4361.35
A31: 2000
A32: 2000 | E32: Quantidade de Meses | F32: 5 | G32: meses
A33: 2000 | E33: Total | F33: =F32 -> 5 | G33: meses
A34: 2000
A35: =IFERROR(LEFT(D35,SEARCH(".",D35)-1),"") -> 1 | B35: =IFERROR(LEFT(RIGHT(D35,LEN(D35)-SEARCH(".",D35)),SEARCH(".",RIGHT(D35,LEN(D35)-SEARCH(".",D35)))-1),"") ->  | C35: =IFERROR(IF(LEN(D35)-LEN(SUBSTITUTE(D35,".",""))<>3,"",MID(D35,SEARCH(".",D35,SEARCH(".",D35)+1)+1,LEN(D35)-SEARCH(".",D35,SEARCH(".",D35)+1)-(LEN(D35)-(SEARCH(".",D35,SEARCH(".",D35,SEARCH(".",D35)+1)+1)-1)))),"") ->  | D35: 1.3 | E35: =IF($G35="SINAPI",VLOOKUP($F35,DADOS_SINAPI,2,0),IF(G35="SETOP",VLOOKUP($F35,DADOS_SETOP,2,0),IF(G35="CPU",VLOOKUP($F35,DADOS_COMPOSICAO,2,0),IF(G35="SICRO",VLOOKUP($F35,DADOS_SICRO,2,0),IF(G35="SUDECAP",VLOOKUP(F35,DADOS_SUDECAP,2,0),IF(G35="COTAÇÃO",VLOOKUP($F35,DADOS_COTACAO,2,0),"")))))) -> MOBILIZAÇÃO E DESMOBILIZAÇÃO DE CONTAINER, INCLUSIVE CARGA, DESCARGA E TRANSPORTE EM CAMINHÃO CARROCERIA COM GUINDAUTO (MUNCK), EXCLUSIVE LOCAÇÃO DO CONTAINER | F35: ED-50137 | G35: SETOP | H35: =IF(G35="SINAPI",VLOOKUP($F35,DADOS_SINAPI,3,0),IF(G35="SETOP",VLOOKUP($F35,DADOS_SETOP,3,0),IF(G35="CPU",VLOOKUP($F35,DADOS_COMPOSICAO,10,0),IF(G35="SICRO",VLOOKUP($F35,DADOS_SICRO,3,0),IF(G35="SUDECAP",VLOOKUP(F35,DADOS_SUDECAP,3,0),IF(G35="COTAÇÃO",VLOOKUP($F35,DADOS_COTACAO,9,0),"")))))) -> un | I35: =F38 -> 1 | J35: =TRUNC(IF(G35="SINAPI",VLOOKUP($F35,DADOS_SINAPI,4,0),IF(G35="SETOP",VLOOKUP($F35,DADOS_SETOP,4,0),IF(G35="CPU",VLOOKUP($F35,DADOS_COMPOSICAO,13,0),IF(G35="SICRO",VLOOKUP($F35,DADOS_SICRO,4,0),IF(G35="SUDECAP",VLOOKUP(F35,DADOS_SUDECAP,4,0),IF(G35="COTAÇÃO",VLOOKUP(F35,DADOS_COTACAO,12,0),"")))))),2) -> 631.9 | K35: BDI 1 | L35: =TRUNC(J35*(1+$N$17),2) -> 799.47 | M35: =IFERROR(TRUNC(I35*J35,2),"") -> 631.9 | N35: =IFERROR(TRUNC(L35*I35,2),"") -> 799.47
A36: 2000
A37: 2000 | E37: Quantidade | F37: 1 | G37: un
A38: 2000 | E38: Total | F38: =F37 -> 1 | G38: un
A39: 2000
A40: =IFERROR(LEFT(D40,SEARCH(".",D40)-1),"") -> 1 | B40: =IFERROR(LEFT(RIGHT(D40,LEN(D40)-SEARCH(".",D40)),SEARCH(".",RIGHT(D40,LEN(D40)-SEARCH(".",D40)))-1),"") ->  | C40: =IFERROR(IF(LEN(D40)-LEN(SUBSTITUTE(D40,".",""))<>3,"",MID(D40,SEARCH(".",D40,SEARCH(".",D40)+1)+1,LEN(D40)-SEARCH(".",D40,SEARCH(".",D40)+1)-(LEN(D40)-(SEARCH(".",D40,SEARCH(".",D40,SEARCH(".",D40)+1)+1)-1)))),"") ->  | D40: 1.4 | E40: =IF($G40="SINAPI",VLOOKUP($F40,DADOS_SINAPI,2,0),IF(G40="SETOP",VLOOKUP($F40,DADOS_SETOP,2,0),IF(G40="CPU",VLOOKUP($F40,DADOS_COMPOSICAO,2,0),IF(G40="SICRO",VLOOKUP($F40,DADOS_SICRO,2,0),IF(G40="SUDECAP",VLOOKUP(F40,DADOS_SUDECAP,2,0),IF(G40="COTAÇÃO",VLOOKUP($F40,DADOS_COTACAO,2,0),"")))))) -> FITA ZEBRADA AMARELA PARA SINALIZAÇAO L= 7CM | F40: 01.04.11 | G40: SUDECAP | H40: =IF(G40="SINAPI",VLOOKUP($F40,DADOS_SINAPI,3,0),IF(G40="SETOP",VLOOKUP($F40,DADOS_SETOP,3,0),IF(G40="CPU",VLOOKUP($F40,DADOS_COMPOSICAO,10,0),IF(G40="SICRO",VLOOKUP($F40,DADOS_SICRO,3,0),IF(G40="SUDECAP",VLOOKUP(F40,DADOS_SUDECAP,3,0),IF(G40="COTAÇÃO",VLOOKUP($F40,DADOS_COTACAO,9,0),"")))))) -> M | I40: =TRUNC(F43,2) -> 150 | J40: =TRUNC(IF(G40="SINAPI",VLOOKUP($F40,DADOS_SINAPI,4,0),IF(G40="SETOP",VLOOKUP($F40,DADOS_SETOP,4,0),IF(G40="CPU",VLOOKUP($F40,DADOS_COMPOSICAO,13,0),IF(G40="SICRO",VLOOKUP($F40,DADOS_SICRO,4,0),IF(G40="SUDECAP",VLOOKUP(F40,DADOS_SUDECAP,4,0),IF(G40="COTAÇÃO",VLOOKUP(F40,DADOS_COTACAO,12,0),"")))))),2) -> 2.93 | K40: BDI 1 | L40: =TRUNC(J40*(1+$N$17),2) -> 3.7 | M40: =IFERROR(TRUNC(I40*J40,2),"") -> 439.5 | N40: =IFERROR(TRUNC(L40*I40,2),"") -> 555
A41: 2000
A42: 2000 | E42: Quantidade | F42: 150 | G42: m
A43: 2000 | E43: Total | F43: =F42 -> 150 | G43: m
A44: 2000
A45: 1000 | D45: 2 | E45: SERVIÇOS PRELIMINARES | M45: =SUMIF(A:A,D45,M:M) -> 3707.52 | N45: =SUMIF(A:A,D45,N:N) -> 4690.75
A46: =IFERROR(LEFT(D46,SEARCH(".",D46)-1),"") -> 2 | B46: =IFERROR(LEFT(RIGHT(D46,LEN(D46)-SEARCH(".",D46)),SEARCH(".",RIGHT(D46,LEN(D46)-SEARCH(".",D46)))-1),"") ->  | C46: =IFERROR(IF(LEN(D46)-LEN(SUBSTITUTE(D46,".",""))<>3,"",MID(D46,SEARCH(".",D46,SEARCH(".",D46)+1)+1,LEN(D46)-SEARCH(".",D46,SEARCH(".",D46)+1)-(LEN(D46)-(SEARCH(".",D46,SEARCH(".",D46,SEARCH(".",D46)+1)+1)-1)))),"") ->  | D46: 2.1 | E46: =IF($G46="SINAPI",VLOOKUP($F46,DADOS_SINAPI,2,0),IF(G46="SETOP",VLOOKUP($F46,DADOS_SETOP,2,0),IF(G46="CPU",VLOOKUP($F46,DADOS_COMPOSICAO,2,0),IF(G46="SICRO",VLOOKUP($F46,DADOS_SICRO,2,0),IF(G46="SUDECAP",VLOOKUP(F46,DADOS_SUDECAP,2,0),IF(G46="COTAÇÃO",VLOOKUP($F46,DADOS_COTACAO,2,0),"")))))) -> FORNECIMENTO E COLOCAÇÃO DE PLACA DE OBRA EM CHAPA GALVANIZADA #26, ESP. 0,45MM, DIMENSÃO (4X3)M, PLOTADA COM ADESIVO VINÍLICO, AFIXADA COM REBITES 4,8X40MM, EM ESTRUTURA METÁLICA DE METALON 20X20MM, ESP. 1,25MM, INCLUSIVE SUPORTE EM EUCALIPTO AUTOCLAVADO PINTADO COM TINTA PVA DUAS (2) DEMÃOS | F46: ED-28428 | G46: SETOP | H46: =IF(G46="SINAPI",VLOOKUP($F46,DADOS_SINAPI,3,0),IF(G46="SETOP",VLOOKUP($F46,DADOS_SETOP,3,0),IF(G46="CPU",VLOOKUP($F46,DADOS_COMPOSICAO,10,0),IF(G46="SICRO",VLOOKUP($F46,DADOS_SICRO,3,0),IF(G46="SUDECAP",VLOOKUP(F46,DADOS_SUDECAP,3,0),IF(G46="COTAÇÃO",VLOOKUP($F46,DADOS_COTACAO,9,0),"")))))) -> un | I46: =F49 -> 1 | J46: =TRUNC(IF(G46="SINAPI",VLOOKUP($F46,DADOS_SINAPI,4,0),IF(G46="SETOP",VLOOKUP($F46,DADOS_SETOP,4,0),IF(G46="CPU",VLOOKUP($F46,DADOS_COMPOSICAO,13,0),IF(G46="SICRO",VLOOKUP($F46,DADOS_SICRO,4,0),IF(G46="SUDECAP",VLOOKUP(F46,DADOS_SUDECAP,4,0),IF(G46="COTAÇÃO",VLOOKUP(F46,DADOS_COTACAO,12,0),"")))))),2) -> 3707.52 | K46: BDI 1 | L46: =TRUNC(J46*(1+$N$17),2) -> 4690.75 | M46: =IFERROR(TRUNC(I46*J46,2),"") -> 3707.52 | N46: =IFERROR(TRUNC(L46*I46,2),"") -> 4690.75
A47: 2000
A48: 2000 | E48: Quantidade | F48: 1 | G48: un
A49: 2000 | E49: Total | F49: =F48 -> 1 | G49: un
A50: 2000
A51: 1000 | D51: 3 | E51: ADMINISTRAÇÃO DE OBRA | M51: =SUMIF(A:A,D51,M:M) -> 114607.15 | N51: =SUMIF(A:A,D51,N:N) -> 145000.9
A52: =IFERROR(LEFT(D52,SEARCH(".",D52)-1),"") -> 3 | B52: =IFERROR(LEFT(RIGHT(D52,LEN(D52)-SEARCH(".",D52)),SEARCH(".",RIGHT(D52,LEN(D52)-SEARCH(".",D52)))-1),"") ->  | C52: =IFERROR(IF(LEN(D52)-LEN(SUBSTITUTE(D52,".",""))<>3,"",MID(D52,SEARCH(".",D52,SEARCH(".",D52)+1)+1,LEN(D52)-SEARCH(".",D52,SEARCH(".",D52)+1)-(LEN(D52)-(SEARCH(".",D52,SEARCH(".",D52,SEARCH(".",D52)+1)+1)-1)))),"") ->  | D52: 3.1 | E52: =IF($G52="SINAPI",VLOOKUP($F52,DADOS_SINAPI,2,0),IF(G52="SETOP",VLOOKUP($F52,DADOS_SETOP,2,0),IF(G52="CPU",VLOOKUP($F52,DADOS_COMPOSICAO,2,0),IF(G52="SICRO",VLOOKUP($F52,DADOS_SICRO,2,0),IF(G52="SUDECAP",VLOOKUP(F52,DADOS_SUDECAP,2,0),IF(G52="COTAÇÃO",VLOOKUP($F52,DADOS_COTACAO,2,0),"")))))) -> ENGENHEIRO CIVIL DE OBRA JUNIOR COM ENCARGOS COMPLEMENTARES | F52: 93565 | G52: SINAPI | H52: =IF(G52="SINAPI",VLOOKUP($F52,DADOS_SINAPI,3,0),IF(G52="SETOP",VLOOKUP($F52,DADOS_SETOP,3,0),IF(G52="CPU",VLOOKUP($F52,DADOS_COMPOSICAO,10,0),IF(G52="SICRO",VLOOKUP($F52,DADOS_SICRO,3,0),IF(G52="SUDECAP",VLOOKUP(F52,DADOS_SUDECAP,3,0),IF(G52="COTAÇÃO",VLOOKUP($F52,DADOS_COTACAO,9,0),"")))))) -> MES | I52: =F55 -> 5 | J52: =TRUNC(IF(G52="SINAPI",VLOOKUP($F52,DADOS_SINAPI,4,0),IF(G52="SETOP",VLOOKUP($F52,DADOS_SETOP,4,0),IF(G52="CPU",VLOOKUP($F52,DADOS_COMPOSICAO,13,0),IF(G52="SICRO",VLOOKUP($F52,DADOS_SICRO,4,0),IF(G52="SUDECAP",VLOOKUP(F52,DADOS_SUDECAP,4,0),IF(G52="COTAÇÃO",VLOOKUP(F52,DADOS_COTACAO,12,0),"")))))),2) -> 17112.16 | K52: BDI 1 | L52: =TRUNC(J52*(1+$N$17),2) -> 21650.3 | M52: =IFERROR(TRUNC(I52*J52,2),"") -> 85560.8 | N52: =IFERROR(TRUNC(L52*I52,2),"") -> 108251.5
A53: 2000
A54: 2000 | E54: Quantidade de Meses | F54: 5 | G54: meses
A55: 2000 | E55: Total | F55: =F54 -> 5 | G55: meses
A56: 2000
A57: =IFERROR(LEFT(D57,SEARCH(".",D57)-1),"") -> 3 | B57: =IFERROR(LEFT(RIGHT(D57,LEN(D57)-SEARCH(".",D57)),SEARCH(".",RIGHT(D57,LEN(D57)-SEARCH(".",D57)))-1),"") ->  | C57: =IFERROR(IF(LEN(D57)-LEN(SUBSTITUTE(D57,".",""))<>3,"",MID(D57,SEARCH(".",D57,SEARCH(".",D57)+1)+1,LEN(D57)-SEARCH(".",D57,SEARCH(".",D57)+1)-(LEN(D57)-(SEARCH(".",D57,SEARCH(".",D57,SEARCH(".",D57)+1)+1)-1)))),"") ->  | D57: 3.2 | E57: =IF($G57="SINAPI",VLOOKUP($F57,DADOS_SINAPI,2,0),IF(G57="SETOP",VLOOKUP($F57,DADOS_SETOP,2,0),IF(G57="CPU",VLOOKUP($F57,DADOS_COMPOSICAO,2,0),IF(G57="SICRO",VLOOKUP($F57,DADOS_SICRO,2,0),IF(G57="SUDECAP",VLOOKUP(F57,DADOS_SUDECAP,2,0),IF(G57="COTAÇÃO",VLOOKUP($F57,DADOS_COTACAO,2,0),"")))))) -> TÉCNICO EM SEGURANÇA DO TRABALHO COM ENCARGOS COMPLEMENTARES | F57: 100321 | G57: SINAPI | H57: =IF(G57="SINAPI",VLOOKUP($F57,DADOS_SINAPI,3,0),IF(G57="SETOP",VLOOKUP($F57,DADOS_SETOP,3,0),IF(G57="CPU",VLOOKUP($F57,DADOS_COMPOSICAO,10,0),IF(G57="SICRO",VLOOKUP($F57,DADOS_SICRO,3,0),IF(G57="SUDECAP",VLOOKUP(F57,DADOS_SUDECAP,3,0),IF(G57="COTAÇÃO",VLOOKUP($F57,DADOS_COTACAO,9,0),"")))))) -> MES | I57: =F60 -> 5 | J57: =TRUNC(IF(G57="SINAPI",VLOOKUP($F57,DADOS_SINAPI,4,0),IF(G57="SETOP",VLOOKUP($F57,DADOS_SETOP,4,0),IF(G57="CPU",VLOOKUP($F57,DADOS_COMPOSICAO,13,0),IF(G57="SICRO",VLOOKUP($F57,DADOS_SICRO,4,0),IF(G57="SUDECAP",VLOOKUP(F57,DADOS_SUDECAP,4,0),IF(G57="COTAÇÃO",VLOOKUP(F57,DADOS_COTACAO,12,0),"")))))),2) -> 5809.27 | K57: BDI 1 | L57: =TRUNC(J57*(1+$N$17),2) -> 7349.88 | M57: =IFERROR(TRUNC(I57*J57,2),"") -> 29046.35 | N57: =IFERROR(TRUNC(L57*I57,2),"") -> 36749.4
A58: 2000
A59: 2000 | E59: Quantidade de Meses | F59: =F55 -> 5 | G59: meses
A60: 2000 | E60: Total | F60: =F59 -> 5 | G60: meses
A61: 2000
A62: 1000 | D62: 4 | E62: DEMOLIÇÕES E REMOÇÕES | M62: =SUMIF(A:A,D62,M:M) -> 17342.26 | N62: =SUMIF(A:A,D62,N:N) -> 21932.57
A63: =IFERROR(LEFT(D63,SEARCH(".",D63)-1),"") -> 4 | B63: =IFERROR(LEFT(RIGHT(D63,LEN(D63)-SEARCH(".",D63)),SEARCH(".",RIGHT(D63,LEN(D63)-SEARCH(".",D63)))-1),"") ->  | C63: =IFERROR(IF(LEN(D63)-LEN(SUBSTITUTE(D63,".",""))<>3,"",MID(D63,SEARCH(".",D63,SEARCH(".",D63)+1)+1,LEN(D63)-SEARCH(".",D63,SEARCH(".",D63)+1)-(LEN(D63)-(SEARCH(".",D63,SEARCH(".",D63,SEARCH(".",D63)+1)+1)-1)))),"") ->  | D63: 4.1 | E63: =IF($G63="SINAPI",VLOOKUP($F63,DADOS_SINAPI,2,0),IF(G63="SETOP",VLOOKUP($F63,DADOS_SETOP,2,0),IF(G63="CPU",VLOOKUP($F63,DADOS_COMPOSICAO,2,0),IF(G63="SICRO",VLOOKUP($F63,DADOS_SICRO,2,0),IF(G63="SUDECAP",VLOOKUP(F63,DADOS_SUDECAP,2,0),IF(G63="COTAÇÃO",VLOOKUP($F63,DADOS_COTACAO,2,0),"")))))) -> REMOÇÃO DE TELHAS DE FIBROCIMENTO, METÁLICA E CERÂMICA, DE FORMA MECANIZADA, COM USO DE GUINDASTE, SEM REAPROVEITAMENTO. AF_12/2017 | F63: 97649 | G63: SINAPI | H63: =IF(G63="SINAPI",VLOOKUP($F63,DADOS_SINAPI,3,0),IF(G63="SETOP",VLOOKUP($F63,DADOS_SETOP,3,0),IF(G63="CPU",VLOOKUP($F63,DADOS_COMPOSICAO,10,0),IF(G63="SICRO",VLOOKUP($F63,DADOS_SICRO,3,0),IF(G63="SUDECAP",VLOOKUP(F63,DADOS_SUDECAP,3,0),IF(G63="COTAÇÃO",VLOOKUP($F63,DADOS_COTACAO,9,0),"")))))) -> M2 | I63: =TRUNC(F66,2) -> 720.43 | J63: =TRUNC(IF(G63="SINAPI",VLOOKUP($F63,DADOS_SINAPI,4,0),IF(G63="SETOP",VLOOKUP($F63,DADOS_SETOP,4,0),IF(G63="CPU",VLOOKUP($F63,DADOS_COMPOSICAO,13,0),IF(G63="SICRO",VLOOKUP($F63,DADOS_SICRO,4,0),IF(G63="SUDECAP",VLOOKUP(F63,DADOS_SUDECAP,4,0),IF(G63="COTAÇÃO",VLOOKUP(F63,DADOS_COTACAO,12,0),"")))))),2) -> 3.71 | K63: BDI 1 | L63: =TRUNC(J63*(1+$N$17),2) -> 4.69 | M63: =IFERROR(TRUNC(I63*J63,2),"") -> 2672.79 | N63: =IFERROR(TRUNC(L63*I63,2),"") -> 3378.81
A64: 2000
A65: 2000 | E65: Telhas | F65: =ROUNDUP(222.496+172.0331+262.172+63.72,2) -> 720.43 | G65: m² | H65: (Considerando o beiral)
A66: 2000 | E66: Total | F66: =F65 -> 720.43 | G66: m²
A67: 2000
A68: =IFERROR(LEFT(D68,SEARCH(".",D68)-1),"") -> 4 | B68: =IFERROR(LEFT(RIGHT(D68,LEN(D68)-SEARCH(".",D68)),SEARCH(".",RIGHT(D68,LEN(D68)-SEARCH(".",D68)))-1),"") ->  | C68: =IFERROR(IF(LEN(D68)-LEN(SUBSTITUTE(D68,".",""))<>3,"",MID(D68,SEARCH(".",D68,SEARCH(".",D68)+1)+1,LEN(D68)-SEARCH(".",D68,SEARCH(".",D68)+1)-(LEN(D68)-(SEARCH(".",D68,SEARCH(".",D68,SEARCH(".",D68)+1)+1)-1)))),"") ->  | D68: 4.2 | E68: =IF($G68="SINAPI",VLOOKUP($F68,DADOS_SINAPI,2,0),IF(G68="SETOP",VLOOKUP($F68,DADOS_SETOP,2,0),IF(G68="CPU",VLOOKUP($F68,DADOS_COMPOSICAO,2,0),IF(G68="SICRO",VLOOKUP($F68,DADOS_SICRO,2,0),IF(G68="SUDECAP",VLOOKUP(F68,DADOS_SUDECAP,2,0),IF(G68="COTAÇÃO",VLOOKUP($F68,DADOS_COTACAO,2,0),"")))))) -> REMOÇÃO MANUAL DE RUFO METÁLICO, COM REAPROVEITAMENTO, INCLUSIVE AFASTAMENTO E EMPILHAMENTO, EXCLUSIVE TRANSPORTE E RETIRADA DO MATERIAL REMOVIDO NÃO REAPROVEITÁVEL | F68: ED-48506 | G68: SETOP | H68: =IF(G68="SINAPI",VLOOKUP($F68,DADOS_SINAPI,3,0),IF(G68="SETOP",VLOOKUP($F68,DADOS_SETOP,3,0),IF(G68="CPU",VLOOKUP($F68,DADOS_COMPOSICAO,10,0),IF(G68="SICRO",VLOOKUP($F68,DADOS_SICRO,3,0),IF(G68="SUDECAP",VLOOKUP(F68,DADOS_SUDECAP,3,0),IF(G68="COTAÇÃO",VLOOKUP($F68,DADOS_COTACAO,9,0),"")))))) -> m | I68: =TRUNC(F71,2) -> 91.11 | J68: =TRUNC(IF(G68="SINAPI",VLOOKUP($F68,DADOS_SINAPI,4,0),IF(G68="SETOP",VLOOKUP($F68,DADOS_SETOP,4,0),IF(G68="CPU",VLOOKUP($F68,DADOS_COMPOSICAO,13,0),IF(G68="SICRO",VLOOKUP($F68,DADOS_SICRO,4,0),IF(G68="SUDECAP",VLOOKUP(F68,DADOS_SUDECAP,4,0),IF(G68="COTAÇÃO",VLOOKUP(F68,DADOS_COTACAO,12,0),"")))))),2) -> 6.05 | K68: BDI 1 | L68: =TRUNC(J68*(1+$N$17),2) -> 7.65 | M68: =IFERROR(TRUNC(I68*J68,2),"") -> 551.21 | N68: =IFERROR(TRUNC(L68*I68,2),"") -> 696.99
A69: 2000
A70: 2000 | E70: Rufo | F70: =18+5.1+6.2+12.26+5.81+8.12+35.62 -> 91.11 | G70: m
A71: 2000 | E71: Total | F71: =SUM(F70:F70) -> 91.11 | G71: m²
A72: 2000
A73: =IFERROR(LEFT(D73,SEARCH(".",D73)-1),"") -> 4 | B73: =IFERROR(LEFT(RIGHT(D73,LEN(D73)-SEARCH(".",D73)),SEARCH(".",RIGHT(D73,LEN(D73)-SEARCH(".",D73)))-1),"") ->  | C73: =IFERROR(IF(LEN(D73)-LEN(SUBSTITUTE(D73,".",""))<>3,"",MID(D73,SEARCH(".",D73,SEARCH(".",D73)+1)+1,LEN(D73)-SEARCH(".",D73,SEARCH(".",D73)+1)-(LEN(D73)-(SEARCH(".",D73,SEARCH(".",D73,SEARCH(".",D73)+1)+1)-1)))),"") ->  | D73: 4.3 | E73: =IF($G73="SINAPI",VLOOKUP($F73,DADOS_SINAPI,2,0),IF(G73="SETOP",VLOOKUP($F73,DADOS_SETOP,2,0),IF(G73="CPU",VLOOKUP($F73,DADOS_COMPOSICAO,2,0),IF(G73="SICRO",VLOOKUP($F73,DADOS_SICRO,2,0),IF(G73="SUDECAP",VLOOKUP(F73,DADOS_SUDECAP,2,0),IF(G73="COTAÇÃO",VLOOKUP($F73,DADOS_COTACAO,2,0),"")))))) -> REMOÇÃO DE CALHA EM CHAPA GALVANIZADA OU EM PVC, COM REAPROVEITAMENTO, INCLUSIVE AFASTAMENTO E EMPILHAMENTO, EXCLUSIVE TRANSPORTE E RETIRADA DO MATERIAL REMOVIDO NÃO REAPROVEITÁVEL | F73: ED-48438 | G73: SETOP | H73: =IF(G73="SINAPI",VLOOKUP($F73,DADOS_SINAPI,3,0),IF(G73="SETOP",VLOOKUP($F73,DADOS_SETOP,3,0),IF(G73="CPU",VLOOKUP($F73,DADOS_COMPOSICAO,10,0),IF(G73="SICRO",VLOOKUP($F73,DADOS_SICRO,3,0),IF(G73="SUDECAP",VLOOKUP(F73,DADOS_SUDECAP,3,0),IF(G73="COTAÇÃO",VLOOKUP($F73,DADOS_COTACAO,9,0),"")))))) -> m | I73: =TRUNC(F76,2) -> 66.4 | J73: =TRUNC(IF(G73="SINAPI",VLOOKUP($F73,DADOS_SINAPI,4,0),IF(G73="SETOP",VLOOKUP($F73,DADOS_SETOP,4,0),IF(G73="CPU",VLOOKUP($F73,DADOS_COMPOSICAO,13,0),IF(G73="SICRO",VLOOKUP($F73,DADOS_SICRO,4,0),IF(G73="SUDECAP",VLOOKUP(F73,DADOS_SUDECAP,4,0),IF(G73="COTAÇÃO",VLOOKUP(F73,DADOS_COTACAO,12,0),"")))))),2) -> 4.11 | K73: BDI 1 | L73: =TRUNC(J73*(1+$N$17),2) -> 5.19 | M73: =IFERROR(TRUNC(I73*J73,2),"") -> 272.9 | N73: =IFERROR(TRUNC(L73*I73,2),"") -> 344.61
A74: 2000
A75: 2000 | E75: Calha | F75: =6*9+12.4*1 -> 66.4 | G75: m
A76: 2000 | E76: Total | F76: =SUM(F75) -> 66.4 | G76: m
A77: 2000
A78: =IFERROR(LEFT(D78,SEARCH(".",D78)-1),"") -> 4 | B78: =IFERROR(LEFT(RIGHT(D78,LEN(D78)-SEARCH(".",D78)),SEARCH(".",RIGHT(D78,LEN(D78)-SEARCH(".",D78)))-1),"") ->  | C78: =IFERROR(IF(LEN(D78)-LEN(SUBSTITUTE(D78,".",""))<>3,"",MID(D78,SEARCH(".",D78,SEARCH(".",D78)+1)+1,LEN(D78)-SEARCH(".",D78,SEARCH(".",D78)+1)-(LEN(D78)-(SEARCH(".",D78,SEARCH(".",D78,SEARCH(".",D78)+1)+1)-1)))),"") ->  | D78: 4.4 | E78: =IF($G78="SINAPI",VLOOKUP($F78,DADOS_SINAPI,2,0),IF(G78="SETOP",VLOOKUP($F78,DADOS_SETOP,2,0),IF(G78="CPU",VLOOKUP($F78,DADOS_COMPOSICAO,2,0),IF(G78="SICRO",VLOOKUP($F78,DADOS_SICRO,2,0),IF(G78="SUDECAP",VLOOKUP(F78,DADOS_SUDECAP,2,0),IF(G78="COTAÇÃO",VLOOKUP($F78,DADOS_COTACAO,2,0),"")))))) -> REMOÇÃO DE TRAMA DE MADEIRA PARA COBERTURA, DE FORMA MANUAL, SEM REAPROVEITAMENTO. AF_12/2017 | F78: 97650 | G78: SINAPI | H78: =IF(G78="SINAPI",VLOOKUP($F78,DADOS_SINAPI,3,0),IF(G78="SETOP",VLOOKUP($F78,DADOS_SETOP,3,0),IF(G78="CPU",VLOOKUP($F78,DADOS_COMPOSICAO,10,0),IF(G78="SICRO",VLOOKUP($F78,DADOS_SICRO,3,0),IF(G78="SUDECAP",VLOOKUP(F78,DADOS_SUDECAP,3,0),IF(G78="COTAÇÃO",VLOOKUP($F78,DADOS_COTACAO,9,0),"")))))) -> M2 | I78: =TRUNC(F81,2) -> 720.43 | J78: =TRUNC(IF(G78="SINAPI",VLOOKUP($F78,DADOS_SINAPI,4,0),IF(G78="SETOP",VLOOKUP($F78,DADOS_SETOP,4,0),IF(G78="CPU",VLOOKUP($F78,DADOS_COMPOSICAO,13,0),IF(G78="SICRO",VLOOKUP($F78,DADOS_SICRO,4,0),IF(G78="SUDECAP",VLOOKUP(F78,DADOS_SUDECAP,4,0),IF(G78="COTAÇÃO",VLOOKUP(F78,DADOS_COTACAO,12,0),"")))))),2) -> 6.23 | K78: BDI 1 | L78: =TRUNC(J78*(1+$N$17),2) -> 7.88 | M78: =IFERROR(TRUNC(I78*J78,2),"") -> 4488.27 | N78: =IFERROR(TRUNC(L78*I78,2),"") -> 5676.98
A79: 2000
A80: 2000 | E80: Trama | F80: =F65 -> 720.43 | G80: m²
A81: 2000 | E81: Total | F81: =SUM(F80:F80) -> 720.43 | G81: m²
A82: 2000
A83: =IFERROR(LEFT(D83,SEARCH(".",D83)-1),"") -> 4 | B83: =IFERROR(LEFT(RIGHT(D83,LEN(D83)-SEARCH(".",D83)),SEARCH(".",RIGHT(D83,LEN(D83)-SEARCH(".",D83)))-1),"") ->  | C83: =IFERROR(IF(LEN(D83)-LEN(SUBSTITUTE(D83,".",""))<>3,"",MID(D83,SEARCH(".",D83,SEARCH(".",D83)+1)+1,LEN(D83)-SEARCH(".",D83,SEARCH(".",D83)+1)-(LEN(D83)-(SEARCH(".",D83,SEARCH(".",D83,SEARCH(".",D83)+1)+1)-1)))),"") ->  | D83: 4.5 | E83: =IF($G83="SINAPI",VLOOKUP($F83,DADOS_SINAPI,2,0),IF(G83="SETOP",VLOOKUP($F83,DADOS_SETOP,2,0),IF(G83="CPU",VLOOKUP($F83,DADOS_COMPOSICAO,2,0),IF(G83="SICRO",VLOOKUP($F83,DADOS_SICRO,2,0),IF(G83="SUDECAP",VLOOKUP(F83,DADOS_SUDECAP,2,0),IF(G83="COTAÇÃO",VLOOKUP($F83,DADOS_COTACAO,2,0),"")))))) -> REMOÇÃO DE TESOURAS DE MADEIRA, COM VÃO MENOR QUE 8M, DE FORMA MANUAL, SEM REAPROVEITAMENTO. AF_12/2017 | F83: 97651 | G83: SINAPI | H83: =IF(G83="SINAPI",VLOOKUP($F83,DADOS_SINAPI,3,0),IF(G83="SETOP",VLOOKUP($F83,DADOS_SETOP,3,0),IF(G83="CPU",VLOOKUP($F83,DADOS_COMPOSICAO,10,0),IF(G83="SICRO",VLOOKUP($F83,DADOS_SICRO,3,0),IF(G83="SUDECAP",VLOOKUP(F83,DADOS_SUDECAP,3,0),IF(G83="COTAÇÃO",VLOOKUP($F83,DADOS_COTACAO,9,0),"")))))) -> UN | I83: =TRUNC(F86,2) -> 40 | J83: =TRUNC(IF(G83="SINAPI",VLOOKUP($F83,DADOS_SINAPI,4,0),IF(G83="SETOP",VLOOKUP($F83,DADOS_SETOP,4,0),IF(G83="CPU",VLOOKUP($F83,DADOS_COMPOSICAO,13,0),IF(G83="SICRO",VLOOKUP($F83,DADOS_SICRO,4,0),IF(G83="SUDECAP",VLOOKUP(F83,DADOS_SUDECAP,4,0),IF(G83="COTAÇÃO",VLOOKUP(F83,DADOS_COTACAO,12,0),"")))))),2) -> 68.99 | K83: BDI 1 | L83: =TRUNC(J83*(1+$N$17),2) -> 87.28 | M83: =IFERROR(TRUNC(I83*J83,2),"") -> 2759.6 | N83: =IFERROR(TRUNC(L83*I83,2),"") -> 3491.2
A84: 2000
A85: 2000 | E85: Tesouras | F85: 40 | G85: un
A86: 2000 | E86: Total | F86: =F85 -> 40 | G86: un
A87: 2000
A88: =IFERROR(LEFT(D88,SEARCH(".",D88)-1),"") -> 4 | B88: =IFERROR(LEFT(RIGHT(D88,LEN(D88)-SEARCH(".",D88)),SEARCH(".",RIGHT(D88,LEN(D88)-SEARCH(".",D88)))-1),"") ->  | C88: =IFERROR(IF(LEN(D88)-LEN(SUBSTITUTE(D88,".",""))<>3,"",MID(D88,SEARCH(".",D88,SEARCH(".",D88)+1)+1,LEN(D88)-SEARCH(".",D88,SEARCH(".",D88)+1)-(LEN(D88)-(SEARCH(".",D88,SEARCH(".",D88,SEARCH(".",D88)+1)+1)-1)))),"") ->  | D88: 4.6 | E88: =IF($G88="SINAPI",VLOOKUP($F88,DADOS_SINAPI,2,0),IF(G88="SETOP",VLOOKUP($F88,DADOS_SETOP,2,0),IF(G88="CPU",VLOOKUP($F88,DADOS_COMPOSICAO,2,0),IF(G88="SICRO",VLOOKUP($F88,DADOS_SICRO,2,0),IF(G88="SUDECAP",VLOOKUP(F88,DADOS_SUDECAP,2,0),IF(G88="COTAÇÃO",VLOOKUP($F88,DADOS_COTACAO,2,0),"")))))) -> DEMOLIÇÃO DE ALVENARIA DE TIJOLO MACIÇO, DE FORMA MANUAL, SEM REAPROVEITAMENTO. AF_12/2017 | F88: 97624 | G88: SINAPI | H88: =IF(G88="SINAPI",VLOOKUP($F88,DADOS_SINAPI,3,0),IF(G88="SETOP",VLOOKUP($F88,DADOS_SETOP,3,0),IF(G88="CPU",VLOOKUP($F88,DADOS_COMPOSICAO,10,0),IF(G88="SICRO",VLOOKUP($F88,DADOS_SICRO,3,0),IF(G88="SUDECAP",VLOOKUP(F88,DADOS_SUDECAP,3,0),IF(G88="COTAÇÃO",VLOOKUP($F88,DADOS_COTACAO,9,0),"")))))) -> M3 | I88: =TRUNC(F91,2) -> 3.38 | J88: =TRUNC(IF(G88="SINAPI",VLOOKUP($F88,DADOS_SINAPI,4,0),IF(G88="SETOP",VLOOKUP($F88,DADOS_SETOP,4,0),IF(G88="CPU",VLOOKUP($F88,DADOS_COMPOSICAO,13,0),IF(G88="SICRO",VLOOKUP($F88,DADOS_SICRO,4,0),IF(G88="SUDECAP",VLOOKUP(F88,DADOS_SUDECAP,4,0),IF(G88="COTAÇÃO",VLOOKUP(F88,DADOS_COTACAO,12,0),"")))))),2) -> 87.99 | K88: BDI 1 | L88: =TRUNC(J88*(1+$N$17),2) -> 111.32 | M88: =IFERROR(TRUNC(I88*J88,2),"") -> 297.4 | N88: =IFERROR(TRUNC(L88*I88,2),"") -> 376.26
A89: 2000
A90: 2000 | E90: Alvenaria a demolir | F90: 3.38 | G90: m²
A91: 2000 | E91: Total | F91: =F90 -> 3.38 | G91: m²
A92: 2000
A93: =IFERROR(LEFT(D93,SEARCH(".",D93)-1),"") -> 4 | B93: =IFERROR(LEFT(RIGHT(D93,LEN(D93)-SEARCH(".",D93)),SEARCH(".",RIGHT(D93,LEN(D93)-SEARCH(".",D93)))-1),"") ->  | C93: =IFERROR(IF(LEN(D93)-LEN(SUBSTITUTE(D93,".",""))<>3,"",MID(D93,SEARCH(".",D93,SEARCH(".",D93)+1)+1,LEN(D93)-SEARCH(".",D93,SEARCH(".",D93)+1)-(LEN(D93)-(SEARCH(".",D93,SEARCH(".",D93,SEARCH(".",D93)+1)+1)-1)))),"") ->  | D93: 4.7 | E93: =IF($G93="SINAPI",VLOOKUP($F93,DADOS_SINAPI,2,0),IF(G93="SETOP",VLOOKUP($F93,DADOS_SETOP,2,0),IF(G93="CPU",VLOOKUP($F93,DADOS_COMPOSICAO,2,0),IF(G93="SICRO",VLOOKUP($F93,DADOS_SICRO,2,0),IF(G93="SUDECAP",VLOOKUP(F93,DADOS_SUDECAP,2,0),IF(G93="COTAÇÃO",VLOOKUP($F93,DADOS_COTACAO,2,0),"")))))) -> REMOÇÃO DE PILAR DE MADEIRA | F93: DAC-4.1 | G93: CPU | H93: =IF(G93="SINAPI",VLOOKUP($F93,DADOS_SINAPI,3,0),IF(G93="SETOP",VLOOKUP($F93,DADOS_SETOP,3,0),IF(G93="CPU",VLOOKUP($F93,DADOS_COMPOSICAO,10,0),IF(G93="SICRO",VLOOKUP($F93,DADOS_SICRO,3,0),IF(G93="SUDECAP",VLOOKUP(F93,DADOS_SUDECAP,3,0),IF(G93="COTAÇÃO",VLOOKUP($F93,DADOS_COTACAO,9,0),"")))))) -> UN | I93: =TRUNC(F96,2) -> 13 | J93: =TRUNC(IF(G93="SINAPI",VLOOKUP($F93,DADOS_SINAPI,4,0),IF(G93="SETOP",VLOOKUP($F93,DADOS_SETOP,4,0),IF(G93="CPU",VLOOKUP($F93,DADOS_COMPOSICAO,13,0),IF(G93="SICRO",VLOOKUP($F93,DADOS_SICRO,4,0),IF(G93="SUDECAP",VLOOKUP(F93,DADOS_SUDECAP,4,0),IF(G93="COTAÇÃO",VLOOKUP(F93,DADOS_COTACAO,12,0),"")))))),2) -> 79.7 | K93: BDI 1 | L93: =TRUNC(J93*(1+$N$17),2) -> 100.83 | M93: =IFERROR(TRUNC(I93*J93,2),"") -> 1036.1 | N93: =IFERROR(TRUNC(L93*I93,2),"") -> 1310.79
A94: 2000
A95: 2000 | E95: Quantidade de pilares | F95: 13 | G95: un
A96: 2000 | E96: Total | F96: =F95 -> 13 | G96: un
A97: 2000
A98: =IFERROR(LEFT(D98,SEARCH(".",D98)-1),"") -> 4 | B98: =IFERROR(LEFT(RIGHT(D98,LEN(D98)-SEARCH(".",D98)),SEARCH(".",RIGHT(D98,LEN(D98)-SEARCH(".",D98)))-1),"") ->  | C98: =IFERROR(IF(LEN(D98)-LEN(SUBSTITUTE(D98,".",""))<>3,"",MID(D98,SEARCH(".",D98,SEARCH(".",D98)+1)+1,LEN(D98)-SEARCH(".",D98,SEARCH(".",D98)+1)-(LEN(D98)-(SEARCH(".",D98,SEARCH(".",D98,SEARCH(".",D98)+1)+1)-1)))),"") ->  | D98: 4.8 | E98: =IF($G98="SINAPI",VLOOKUP($F98,DADOS_SINAPI,2,0),IF(G98="SETOP",VLOOKUP($F98,DADOS_SETOP,2,0),IF(G98="CPU",VLOOKUP($F98,DADOS_COMPOSICAO,2,0),IF(G98="SICRO",VLOOKUP($F98,DADOS_SICRO,2,0),IF(G98="SUDECAP",VLOOKUP(F98,DADOS_SUDECAP,2,0),IF(G98="COTAÇÃO",VLOOKUP($F98,DADOS_COTACAO,2,0),"")))))) -> CARGA MANUAL DE MATERIAL DE QUALQUER NATUREZA SOBRE CAMINHÃO, EXCLUSIVE TRANSPORTE | F98: ED-51131 | G98: SETOP | H98: =IF(G98="SINAPI",VLOOKUP($F98,DADOS_SINAPI,3,0),IF(G98="SETOP",VLOOKUP($F98,DADOS_SETOP,3,0),IF(G98="CPU",VLOOKUP($F98,DADOS_COMPOSICAO,10,0),IF(G98="SICRO",VLOOKUP($F98,DADOS_SICRO,3,0),IF(G98="SUDECAP",VLOOKUP(F98,DADOS_SUDECAP,3,0),IF(G98="COTAÇÃO",VLOOKUP($F98,DADOS_COTACAO,9,0),"")))))) -> m3 | I98: =TRUNC(F116) -> 90 | J98: =TRUNC(IF(G98="SINAPI",VLOOKUP($F98,DADOS_SINAPI,4,0),IF(G98="SETOP",VLOOKUP($F98,DADOS_SETOP,4,0),IF(G98="CPU",VLOOKUP($F98,DADOS_COMPOSICAO,13,0),IF(G98="SICRO",VLOOKUP($F98,DADOS_SICRO,4,0),IF(G98="SUDECAP",VLOOKUP(F98,DADOS_SUDECAP,4,0),IF(G98="COTAÇÃO",VLOOKUP(F98,DADOS_COTACAO,12,0),"")))))),2) -> 35.54 | K98: BDI 1 | L98: =TRUNC(J98*(1+$N$17),2) -> 44.96 | M98: =IFERROR(TRUNC(I98*J98,2),"") -> 3198.6 | N98: =IFERROR(TRUNC(L98*I98,2),"") -> 4046.4
A99: 2000
A100: 2000 | E100: Espessura telha | F100: 0.06 | G100: m
A101: 2000 | E101: Espessura média trama | F101: 0.035 | G101: m
A102: 2000 | E102: Espessura treliças | F102: 0.08 | G102: m
A103: 2000 | E103: Fator de redução (vãos da trama; vãos internos treliça) | F103: 0.5 | G103: -
A104: 2000
A105: 2000 | E105: Área de telhas | F105: =F80 -> 720.43 | G105: m²
A106: 2000 | E106: Inclinação | F106: 0.3 | G106: (30%)
A107: 2000 | E107: Altura média da treliça | F107: =ROUNDUP((6+0.4*2)/2*F106,2) -> 1.02 | G107: m
A108: 2000 | E108: Total Cobertura | F108: =ROUND(F105/COS((ATAN(F106)))*(F100+F101*F103)+((11.99+0.4)*F107)/2*F102*F103*F85,2) -> 68.4 | G108: m³
A109: 2000
A110: 2000 | E110: Largura do pilar | F110: 0.2 | G110: m
A111: 2000 | E111: Altura do pilar | F111: 2.5 | G111: m
A112: 2000 | E112: Total Pilar | F112: =F110*F110*F111*F96 -> 1.3 | G112: m³
A113: 2000
A114: 2000 | E114: Fator de Empilhamento | F114: 1.3 | G114: -
A115: 2000
A116: 2000 | E116: Total | F116: =ROUNDUP((F112+F108)*F114,2) -> 90.61 | G116: m³
A117: 2000
A118: =IFERROR(LEFT(D118,SEARCH(".",D118)-1),"") -> 4 | B118: =IFERROR(LEFT(RIGHT(D118,LEN(D118)-SEARCH(".",D118)),SEARCH(".",RIGHT(D118,LEN(D118)-SEARCH(".",D118)))-1),"") ->  | C118: =IFERROR(IF(LEN(D118)-LEN(SUBSTITUTE(D118,".",""))<>3,"",MID(D118,SEARCH(".",D118,SEARCH(".",D118)+1)+1,LEN(D118)-SEARCH(".",D118,SEARCH(".",D118)+1)-(LEN(D118)-(SEARCH(".",D118,SEARCH(".",D118,SEARCH(".",D118)+1)+1)-1)))),"") ->  | D118: 4.9 | E118: =IF($G118="SINAPI",VLOOKUP($F118,DADOS_SINAPI,2,0),IF(G118="SETOP",VLOOKUP($F118,DADOS_SETOP,2,0),IF(G118="CPU",VLOOKUP($F118,DADOS_COMPOSICAO,2,0),IF(G118="SICRO",VLOOKUP($F118,DADOS_SICRO,2,0),IF(G118="SUDECAP",VLOOKUP(F118,DADOS_SUDECAP,2,0),IF(G118="COTAÇÃO",VLOOKUP($F118,DADOS_COTACAO,2,0),"")))))) -> TRANSPORTE COM CAMINHÃO BASCULANTE DE 6 M³, EM VIA URBANA PAVIMENTADA, DMT ATÉ 30 KM (UNIDADE: M3XKM). AF_07/2020 | F118: 97914 | G118: SINAPI | H118: =IF(G118="SINAPI",VLOOKUP($F118,DADOS_SINAPI,3,0),IF(G118="SETOP",VLOOKUP($F118,DADOS_SETOP,3,0),IF(G118="CPU",VLOOKUP($F118,DADOS_COMPOSICAO,10,0),IF(G118="SICRO",VLOOKUP($F118,DADOS_SICRO,3,0),IF(G118="SUDECAP",VLOOKUP(F118,DADOS_SUDECAP,3,0),IF(G118="COTAÇÃO",VLOOKUP($F118,DADOS_COTACAO,9,0),"")))))) -> M3XKM | I118: =TRUNC(F122,2) -> 616.15 | J118: =TRUNC(IF(G118="SINAPI",VLOOKUP($F118,DADOS_SINAPI,4,0),IF(G118="SETOP",VLOOKUP($F118,DADOS_SETOP,4,0),IF(G118="CPU",VLOOKUP($F118,DADOS_COMPOSICAO,13,0),IF(G118="SICRO",VLOOKUP($F118,DADOS_SICRO,4,0),IF(G118="SUDECAP",VLOOKUP(F118,DADOS_SUDECAP,4,0),IF(G118="COTAÇÃO",VLOOKUP(F118,DADOS_COTACAO,12,0),"")))))),2) -> 2.69 | K118: BDI 1 | L118: =TRUNC(J118*(1+$N$17),2) -> 3.4 | M118: =IFERROR(TRUNC(I118*J118,2),"") -> 1657.44 | N118: =IFERROR(TRUNC(L118*I118,2),"") -> 2094.91
A119: 2000
A120: 2000 | E120: Volume | F120: =F116 -> 90.61 | G120: m³
A121: 2000 | E121: Distância | F121: 6.8 | G121: km
A122: 2000 | E122: Total | F122: =ROUNDUP(F120*F121,2) -> 616.15 | G122: m³ x km
A123: 2000
A124: =IFERROR(LEFT(D124,SEARCH(".",D124)-1),"") -> 4 | B124: =IFERROR(LEFT(RIGHT(D124,LEN(D124)-SEARCH(".",D124)),SEARCH(".",RIGHT(D124,LEN(D124)-SEARCH(".",D124)))-1),"") ->  | C124: =IFERROR(IF(LEN(D124)-LEN(SUBSTITUTE(D124,".",""))<>3,"",MID(D124,SEARCH(".",D124,SEARCH(".",D124)+1)+1,LEN(D124)-SEARCH(".",D124,SEARCH(".",D124)+1)-(LEN(D124)-(SEARCH(".",D124,SEARCH(".",D124,SEARCH(".",D124)+1)+1)-1)))),"") ->  | D124: 4.10 | E124: =IF($G124="SINAPI",VLOOKUP($F124,DADOS_SINAPI,2,0),IF(G124="SETOP",VLOOKUP($F124,DADOS_SETOP,2,0),IF(G124="CPU",VLOOKUP($F124,DADOS_COMPOSICAO,2,0),IF(G124="SICRO",VLOOKUP($F124,DADOS_SICRO,2,0),IF(G124="SUDECAP",VLOOKUP(F124,DADOS_SUDECAP,2,0),IF(G124="COTAÇÃO",VLOOKUP($F124,DADOS_COTACAO,2,0),"")))))) -> ESPALHAMENTO DE MATERIAL COM TRATOR DE ESTEIRAS. AF_11/2019 | F124: 100574 | G124: SINAPI | H124: =IF(G124="SINAPI",VLOOKUP($F124,DADOS_SINAPI,3,0),IF(G124="SETOP",VLOOKUP($F124,DADOS_SETOP,3,0),IF(G124="CPU",VLOOKUP($F124,DADOS_COMPOSICAO,10,0),IF(G124="SICRO",VLOOKUP($F124,DADOS_SICRO,3,0),IF(G124="SUDECAP",VLOOKUP(F124,DADOS_SUDECAP,3,0),IF(G124="COTAÇÃO",VLOOKUP($F124,DADOS_COTACAO,9,0),"")))))) -> M3 | I124: =TRUNC(F127,2) -> 90.61 | J124: =TRUNC(IF(G124="SINAPI",VLOOKUP($F124,DADOS_SINAPI,4,0),IF(G124="SETOP",VLOOKUP($F124,DADOS_SETOP,4,0),IF(G124="CPU",VLOOKUP($F124,DADOS_COMPOSICAO,13,0),IF(G124="SICRO",VLOOKUP($F124,DADOS_SICRO,4,0),IF(G124="SUDECAP",VLOOKUP(F124,DADOS_SUDECAP,4,0),IF(G124="COTAÇÃO",VLOOKUP(F124,DADOS_COTACAO,12,0),"")))))),2) -> 1.3 | K124: BDI 1 | L124: =TRUNC(J124*(1+$N$17),2) -> 1.64 | M124: =IFERROR(TRUNC(I124*J124,2),"") -> 117.79 | N124: =IFERROR(TRUNC(L124*I124,2),"") -> 148.6
A125: 2000
A126: 2000 | E126: Volume de material | F126: =F116 -> 90.61 | G126: m³
A127: 2000 | E127: Total | F127: =F126 -> 90.61 | G127: m³
A128: 2000
A129: =IFERROR(LEFT(D129,SEARCH(".",D129)-1),"") -> 4 | B129: =IFERROR(LEFT(RIGHT(D129,LEN(D129)-SEARCH(".",D129)),SEARCH(".",RIGHT(D129,LEN(D129)-SEARCH(".",D129)))-1),"") ->  | C129: =IFERROR(IF(LEN(D129)-LEN(SUBSTITUTE(D129,".",""))<>3,"",MID(D129,SEARCH(".",D129,SEARCH(".",D129)+1)+1,LEN(D129)-SEARCH(".",D129,SEARCH(".",D129)+1)-(LEN(D129)-(SEARCH(".",D129,SEARCH(".",D129,SEARCH(".",D129)+1)+1)-1)))),"") ->  | D129: 4.11 | E129: =IF($G129="SINAPI",VLOOKUP($F129,DADOS_SINAPI,2,0),IF(G129="SETOP",VLOOKUP($F129,DADOS_SETOP,2,0),IF(G129="CPU",VLOOKUP($F129,DADOS_COMPOSICAO,2,0),IF(G129="SICRO",VLOOKUP($F129,DADOS_SICRO,2,0),IF(G129="SUDECAP",VLOOKUP(F129,DADOS_SUDECAP,2,0),IF(G129="COTAÇÃO",VLOOKUP($F129,DADOS_COTACAO,2,0),"")))))) -> FORNECIMENTO DE ANDAIME METÁLICO TUBULAR TIPO TORRE (LOCAÇÃO), INCLUSIVE RODÍZIOS, EXCLUSIVE MONTAGEM E DESMONTAGEM | F129: ED-9076 | G129: SETOP | H129: =IF(G129="SINAPI",VLOOKUP($F129,DADOS_SINAPI,3,0),IF(G129="SETOP",VLOOKUP($F129,DADOS_SETOP,3,0),IF(G129="CPU",VLOOKUP($F129,DADOS_COMPOSICAO,10,0),IF(G129="SICRO",VLOOKUP($F129,DADOS_SICRO,3,0),IF(G129="SUDECAP",VLOOKUP(F129,DADOS_SUDECAP,3,0),IF(G129="COTAÇÃO",VLOOKUP($F129,DADOS_COTACAO,9,0),"")))))) -> mxmês | I129: =TRUNC(F133,2) -> 9 | J129: =TRUNC(IF(G129="SINAPI",VLOOKUP($F129,DADOS_SINAPI,4,0),IF(G129="SETOP",VLOOKUP($F129,DADOS_SETOP,4,0),IF(G129="CPU",VLOOKUP($F129,DADOS_COMPOSICAO,13,0),IF(G129="SICRO",VLOOKUP($F129,DADOS_SICRO,4,0),IF(G129="SUDECAP",VLOOKUP(F129,DADOS_SUDECAP,4,0),IF(G129="COTAÇÃO",VLOOKUP(F129,DADOS_COTACAO,12,0),"")))))),2) -> 20 | K129: BDI 1 | L129: =TRUNC(J129*(1+$N$17),2) -> 25.3 | M129: =IFERROR(TRUNC(I129*J129,2),"") -> 180 | N129: =IFERROR(TRUNC(L129*I129,2),"") -> 227.7
A130: 2000
A131: 2000 | E131: Altura do Andaime | F131: 6 | G131: m
A132: 2000 | E132: Meses | F132: 1.5 | G132: mês
A133: 2000 | E133: Total | F133: =F131*F132 -> 9 | G133: m x mês
A134: 2000
A135: =IFERROR(LEFT(D135,SEARCH(".",D135)-1),"") -> 4 | B135: =IFERROR(LEFT(RIGHT(D135,LEN(D135)-SEARCH(".",D135)),SEARCH(".",RIGHT(D135,LEN(D135)-SEARCH(".",D135)))-1),"") ->  | C135: =IFERROR(IF(LEN(D135)-LEN(SUBSTITUTE(D135,".",""))<>3,"",MID(D135,SEARCH(".",D135,SEARCH(".",D135)+1)+1,LEN(D135)-SEARCH(".",D135,SEARCH(".",D135)+1)-(LEN(D135)-(SEARCH(".",D135,SEARCH(".",D135,SEARCH(".",D135)+1)+1)-1)))),"") ->  | D135: 4.12 | E135: =IF($G135="SINAPI",VLOOKUP($F135,DADOS_SINAPI,2,0),IF(G135="SETOP",VLOOKUP($F135,DADOS_SETOP,2,0),IF(G135="CPU",VLOOKUP($F135,DADOS_COMPOSICAO,2,0),IF(G135="SICRO",VLOOKUP($F135,DADOS_SICRO,2,0),IF(G135="SUDECAP",VLOOKUP(F135,DADOS_SUDECAP,2,0),IF(G135="COTAÇÃO",VLOOKUP($F135,DADOS_COTACAO,2,0),"")))))) -> MONTAGEM E DESMONTAGEM DE ANDAIME TUBULAR TIPO TORRE (EXCLUSIVE ANDAIME E LIMPEZA). AF_11/2017 | F135: 97064 | G135: SINAPI | H135: =IF(G135="SINAPI",VLOOKUP($F135,DADOS_SINAPI,3,0),IF(G135="SETOP",VLOOKUP($F135,DADOS_SETOP,3,0),IF(G135="CPU",VLOOKUP($F135,DADOS_COMPOSICAO,10,0),IF(G135="SICRO",VLOOKUP($F135,DADOS_SICRO,3,0),IF(G135="SUDECAP",VLOOKUP(F135,DADOS_SUDECAP,3,0),IF(G135="COTAÇÃO",VLOOKUP($F135,DADOS_COTACAO,9,0),"")))))) -> M | I135: =TRUNC(F138,2) -> 6 | J135: =TRUNC(IF(G135="SINAPI",VLOOKUP($F135,DADOS_SINAPI,4,0),IF(G135="SETOP",VLOOKUP($F135,DADOS_SETOP,4,0),IF(G135="CPU",VLOOKUP($F135,DADOS_COMPOSICAO,13,0),IF(G135="SICRO",VLOOKUP($F135,DADOS_SICRO,4,0),IF(G135="SUDECAP",VLOOKUP(F135,DADOS_SUDECAP,4,0),IF(G135="COTAÇÃO",VLOOKUP(F135,DADOS_COTACAO,12,0),"")))))),2) -> 18.36 | K135: BDI 1 | L135: =TRUNC(J135*(1+$N$17),2) -> 23.22 | M135: =IFERROR(TRUNC(I135*J135,2),"") -> 110.16 | N135: =IFERROR(TRUNC(L135*I135,2),"") -> 139.32
A136: 2000
A137: 2000 | E137: Altura do Andaime | F137: =F131 -> 6 | G137: =G131 -> m
A138: 2000 | E138: Total | F138: =F137 -> 6 | G138: m
A139: 2000
A140: 1000 | D140: 5 | E140: SISTEMA DE COBERTURA | M140: =SUMIF(A:A,D140,M:M) -> 361114.32 | N140: =SUMIF(A:A,D140,N:N) -> 456804.41
D141: 5.1 | E141: BLOCOS | M141: =IFERROR(SUMIFS(M:M,A:A,LEFT(D141,SEARCH(".",D141)-1),B:B,RIGHT(D141,LEN(D141)-SEARCH(".",D141))),"") -> 632.72 | N141: =IFERROR(SUMIFS(N:N,A:A,LEFT(D141,SEARCH(".",D141)-1),B:B,RIGHT(D141,LEN(D141)-SEARCH(".",D141))),"") -> 800.48
A142: =IFERROR(LEFT(D142,SEARCH(".",D142)-1),"") -> 5 | B142: =IFERROR(LEFT(RIGHT(D142,LEN(D142)-SEARCH(".",D142)),SEARCH(".",RIGHT(D142,LEN(D142)-SEARCH(".",D142)))-1),"") -> 1 | C142: =IFERROR(IF(LEN(D142)-LEN(SUBSTITUTE(D142,".",""))<>3,"",MID(D142,SEARCH(".",D142,SEARCH(".",D142)+1)+1,LEN(D142)-SEARCH(".",D142,SEARCH(".",D142)+1)-(LEN(D142)-(SEARCH(".",D142,SEARCH(".",D142,SEARCH(".",D142)+1)+1)-1)))),"") ->  | D142: 5.1.1 | E142: =IF($G142="SINAPI",VLOOKUP($F142,DADOS_SINAPI,2,0),IF(G142="SETOP",VLOOKUP($F142,DADOS_SETOP,2,0),IF(G142="CPU",VLOOKUP($F142,DADOS_COMPOSICAO,2,0),IF(G142="SICRO",VLOOKUP($F142,DADOS_SICRO,2,0),IF(G142="SUDECAP",VLOOKUP(F142,DADOS_SUDECAP,2,0),IF(G142="COTAÇÃO",VLOOKUP($F142,DADOS_COTACAO,2,0),"")))))) -> ESCAVAÇÃO MECANIZADA PARA BLOCO DE COROAMENTO OU SAPATA COM RETROESCAVADEIRA (INCLUINDO ESCAVAÇÃO PARA COLOCAÇÃO DE FÔRMAS). AF_06/2017 | F142: 96521 | G142: SINAPI | H142: =IF(G142="SINAPI",VLOOKUP($F142,DADOS_SINAPI,3,0),IF(G142="SETOP",VLOOKUP($F142,DADOS_SETOP,3,0),IF(G142="CPU",VLOOKUP($F142,DADOS_COMPOSICAO,10,0),IF(G142="SICRO",VLOOKUP($F142,DADOS_SICRO,3,0),IF(G142="SUDECAP",VLOOKUP(F142,DADOS_SUDECAP,3,0),IF(G142="COTAÇÃO",VLOOKUP($F142,DADOS_COTACAO,9,0),"")))))) -> M3 | I142: =TRUNC(F146,2) -> 0.35 | J142: =TRUNC(IF(G142="SINAPI",VLOOKUP($F142,DADOS_SINAPI,4,0),IF(G142="SETOP",VLOOKUP($F142,DADOS_SETOP,4,0),IF(G142="CPU",VLOOKUP($F142,DADOS_COMPOSICAO,13,0),IF(G142="SICRO",VLOOKUP($F142,DADOS_SICRO,4,0),IF(G142="SUDECAP",VLOOKUP(F142,DADOS_SUDECAP,4,0),IF(G142="COTAÇÃO",VLOOKUP(F142,DADOS_COTACAO,12,0),"")))))),2) -> 43.39 | K142: BDI 1 | L142: =TRUNC(J142*(1+$N$17),2) -> 54.89 | M142: =IFERROR(TRUNC(I142*J142,2),"") -> 15.18 | N142: =IFERROR(TRUNC(L142*I142,2),"") -> 19.21
A143: 2000
A144: 2000 | E144: Quantidade de Blocos | F144: 1 | G144: un
A145: 2000 | E145: Escavação por bloco | F145: =ROUNDUP(0.7^3,2) -> 0.35 | G145: m³
A146: 2000 | E146: Total | F146: =F144*F145 -> 0.35 | G146: m³
A147: 2000
A148: =IFERROR(LEFT(D148,SEARCH(".",D148)-1),"") -> 5 | B148: =IFERROR(LEFT(RIGHT(D148,LEN(D148)-SEARCH(".",D148)),SEARCH(".",RIGHT(D148,LEN(D148)-SEARCH(".",D148)))-1),"") -> 1 | C148: =IFERROR(IF(LEN(D148)-LEN(SUBSTITUTE(D148,".",""))<>3,"",MID(D148,SEARCH(".",D148,SEARCH(".",D148)+1)+1,LEN(D148)-SEARCH(".",D148,SEARCH(".",D148)+1)-(LEN(D148)-(SEARCH(".",D148,SEARCH(".",D148,SEARCH(".",D148)+1)+1)-1)))),"") ->  | D148: 5.1.2 | E148: =IF($G148="SINAPI",VLOOKUP($F148,DADOS_SINAPI,2,0),IF(G148="SETOP",VLOOKUP($F148,DADOS_SETOP,2,0),IF(G148="CPU",VLOOKUP($F148,DADOS_COMPOSICAO,2,0),IF(G148="SICRO",VLOOKUP($F148,DADOS_SICRO,2,0),IF(G148="SUDECAP",VLOOKUP(F148,DADOS_SUDECAP,2,0),IF(G148="COTAÇÃO",VLOOKUP($F148,DADOS_COTACAO,2,0),"")))))) -> ESTACA BROCA DE CONCRETO, DIÂMETRO DE 25CM, ESCAVAÇÃO MANUAL COM TRADO CONCHA, COM ARMADURA DE ARRANQUE. AF_05/2020 | F148: 101174 | G148: SINAPI | H148: =IF(G148="SINAPI",VLOOKUP($F148,DADOS_SINAPI,3,0),IF(G148="SETOP",VLOOKUP($F148,DADOS_SETOP,3,0),IF(G148="CPU",VLOOKUP($F148,DADOS_COMPOSICAO,10,0),IF(G148="SICRO",VLOOKUP($F148,DADOS_SICRO,3,0),IF(G148="SUDECAP",VLOOKUP(F148,DADOS_SUDECAP,3,0),IF(G148="COTAÇÃO",VLOOKUP($F148,DADOS_COTACAO,9,0),"")))))) -> M | I148: =TRUNC(F152,2) -> 4 | J148: =TRUNC(IF(G148="SINAPI",VLOOKUP($F148,DADOS_SINAPI,4,0),IF(G148="SETOP",VLOOKUP($F148,DADOS_SETOP,4,0),IF(G148="CPU",VLOOKUP($F148,DADOS_COMPOSICAO,13,0),IF(G148="SICRO",VLOOKUP($F148,DADOS_SICRO,4,0),IF(G148="SUDECAP",VLOOKUP(F148,DADOS_SUDECAP,4,0),IF(G148="COTAÇÃO",VLOOKUP(F148,DADOS_COTACAO,12,0),"")))))),2) -> 79.16 | K148: BDI 1 | L148: =TRUNC(J148*(1+$N$17),2) -> 100.15 | M148: =IFERROR(TRUNC(I148*J148,2),"") -> 316.64 | N148: =IFERROR(TRUNC(L148*I148,2),"") -> 400.6
A149: 2000
A150: 2000 | E150: Quantidade de Blocos | F150: =$F$144 -> 1 | G150: un
A151: 2000 | E151: Consumo por bloco | F151: 4 | G151: m
A152: 2000 | E152: Total | F152: =F150*F151 -> 4 | G152: m
A153: 2000
A154: =IFERROR(LEFT(D154,SEARCH(".",D154)-1),"") -> 5 | B154: =IFERROR(LEFT(RIGHT(D154,LEN(D154)-SEARCH(".",D154)),SEARCH(".",RIGHT(D154,LEN(D154)-SEARCH(".",D154)))-1),"") -> 1 | C154: =IFERROR(IF(LEN(D154)-LEN(SUBSTITUTE(D154,".",""))<>3,"",MID(D154,SEARCH(".",D154,SEARCH(".",D154)+1)+1,LEN(D154)-SEARCH(".",D154,SEARCH(".",D154)+1)-(LEN(D154)-(SEARCH(".",D154,SEARCH(".",D154,SEARCH(".",D154)+1)+1)-1)))),"") ->  | D154: 5.1.3 | E154: =IF($G154="SINAPI",VLOOKUP($F154,DADOS_SINAPI,2,0),IF(G154="SETOP",VLOOKUP($F154,DADOS_SETOP,2,0),IF(G154="CPU",VLOOKUP($F154,DADOS_COMPOSICAO,2,0),IF(G154="SICRO",VLOOKUP($F154,DADOS_SICRO,2,0),IF(G154="SUDECAP",VLOOKUP(F154,DADOS_SUDECAP,2,0),IF(G154="COTAÇÃO",VLOOKUP($F154,DADOS_COTACAO,2,0),"")))))) -> ARRASAMENTO MECANICO DE ESTACA DE CONCRETO ARMADO, DIAMETROS DE ATÉ 40 CM. AF_05/2021 | F154: 95601 | G154: SINAPI | H154: =IF(G154="SINAPI",VLOOKUP($F154,DADOS_SINAPI,3,0),IF(G154="SETOP",VLOOKUP($F154,DADOS_SETOP,3,0),IF(G154="CPU",VLOOKUP($F154,DADOS_COMPOSICAO,10,0),IF(G154="SICRO",VLOOKUP($F154,DADOS_SICRO,3,0),IF(G154="SUDECAP",VLOOKUP(F154,DADOS_SUDECAP,3,0),IF(G154="COTAÇÃO",VLOOKUP($F154,DADOS_COTACAO,9,0),"")))))) -> UN | I154: =TRUNC(F157,2) -> 1 | J154: =TRUNC(IF(G154="SINAPI",VLOOKUP($F154,DADOS_SINAPI,4,0),IF(G154="SETOP",VLOOKUP($F154,DADOS_SETOP,4,0),IF(G154="CPU",VLOOKUP($F154,DADOS_COMPOSICAO,13,0),IF(G154="SICRO",VLOOKUP($F154,DADOS_SICRO,4,0),IF(G154="SUDECAP",VLOOKUP(F154,DADOS_SUDECAP,4,0),IF(G154="COTAÇÃO",VLOOKUP(F154,DADOS_COTACAO,12,0),"")))))),2) -> 15.07 | K154: BDI 1 | L154: =TRUNC(J154*(1+$N$17),2) -> 19.06 | M154: =IFERROR(TRUNC(I154*J154,2),"") -> 15.07 | N154: =IFERROR(TRUNC(L154*I154,2),"") -> 19.06
A155: 2000
A156: 2000 | E156: Quantidade de Blocos | F156: =$F$144 -> 1 | G156: un
A157: 2000 | E157: Total | F157: =F144 -> 1 | G157: un
A158: 2000
A159: =IFERROR(LEFT(D159,SEARCH(".",D159)-1),"") -> 5 | B159: =IFERROR(LEFT(RIGHT(D159,LEN(D159)-SEARCH(".",D159)),SEARCH(".",RIGHT(D159,LEN(D159)-SEARCH(".",D159)))-1),"") -> 1 | C159: =IFERROR(IF(LEN(D159)-LEN(SUBSTITUTE(D159,".",""))<>3,"",MID(D159,SEARCH(".",D159,SEARCH(".",D159)+1)+1,LEN(D159)-SEARCH(".",D159,SEARCH(".",D159)+1)-(LEN(D159)-(SEARCH(".",D159,SEARCH(".",D159,SEARCH(".",D159)+1)+1)-1)))),"") ->  | D159: 5.1.4 | E159: =IF($G159="SINAPI",VLOOKUP($F159,DADOS_SINAPI,2,0),IF(G159="SETOP",VLOOKUP($F159,DADOS_SETOP,2,0),IF(G159="CPU",VLOOKUP($F159,DADOS_COMPOSICAO,2,0),IF(G159="SICRO",VLOOKUP($F159,DADOS_SICRO,2,0),IF(G159="SUDECAP",VLOOKUP(F159,DADOS_SUDECAP,2,0),IF(G159="COTAÇÃO",VLOOKUP($F159,DADOS_COTACAO,2,0),"")))))) -> LASTRO DE CONCRETO MAGRO, APLICADO EM BLOCOS DE COROAMENTO OU SAPATAS, ESPESSURA DE 5 CM. AF_08/2017 | F159: 96619 | G159: SINAPI | H159: =IF(G159="SINAPI",VLOOKUP($F159,DADOS_SINAPI,3,0),IF(G159="SETOP",VLOOKUP($F159,DADOS_SETOP,3,0),IF(G159="CPU",VLOOKUP($F159,DADOS_COMPOSICAO,10,0),IF(G159="SICRO",VLOOKUP($F159,DADOS_SICRO,3,0),IF(G159="SUDECAP",VLOOKUP(F159,DADOS_SUDECAP,3,0),IF(G159="COTAÇÃO",VLOOKUP($F159,DADOS_COTACAO,9,0),"")))))) -> M2 | I159: =TRUNC(F163,2) -> 0.31 | J159: =TRUNC(IF(G159="SINAPI",VLOOKUP($F159,DADOS_SINAPI,4,0),IF(G159="SETOP",VLOOKUP($F159,DADOS_SETOP,4,0),IF(G159="CPU",VLOOKUP($F159,DADOS_COMPOSICAO,13,0),IF(G159="SICRO",VLOOKUP($F159,DADOS_SICRO,4,0),IF(G159="SUDECAP",VLOOKUP(F159,DADOS_SUDECAP,4,0),IF(G159="COTAÇÃO",VLOOKUP(F159,DADOS_COTACAO,12,0),"")))))),2) -> 30.93 | K159: BDI 1 | L159: =TRUNC(J159*(1+$N$17),2) -> 39.13 | M159: =IFERROR(TRUNC(I159*J159,2),"") -> 9.58 | N159: =IFERROR(TRUNC(L159*I159,2),"") -> 12.13
A160: 2000
A161: 2000 | E161: Quantidade de Blocos | F161: =$F$144 -> 1 | G161: un
A162: 2000 | E162: Consumo por bloco | F162: =ROUNDUP(0.55^2,2) -> 0.31 | G162: m²
A163: 2000 | E163: Total | F163: =F161*F162 -> 0.31 | G163: m²
A164: 2000
A165: =IFERROR(LEFT(D165,SEARCH(".",D165)-1),"") -> 5 | B165: =IFERROR(LEFT(RIGHT(D165,LEN(D165)-SEARCH(".",D165)),SEARCH(".",RIGHT(D165,LEN(D165)-SEARCH(".",D165)))-1),"") -> 1 | C165: =IFERROR(IF(LEN(D165)-LEN(SUBSTITUTE(D165,".",""))<>3,"",MID(D165,SEARCH(".",D165,SEARCH(".",D165)+1)+1,LEN(D165)-SEARCH(".",D165,SEARCH(".",D165)+1)-(LEN(D165)-(SEARCH(".",D165,SEARCH(".",D165,SEARCH(".",D165)+1)+1)-1)))),"") ->  | D165: 5.1.5 | E165: =IF($G165="SINAPI",VLOOKUP($F165,DADOS_SINAPI,2,0),IF(G165="SETOP",VLOOKUP($F165,DADOS_SETOP,2,0),IF(G165="CPU",VLOOKUP($F165,DADOS_COMPOSICAO,2,0),IF(G165="SICRO",VLOOKUP($F165,DADOS_SICRO,2,0),IF(G165="SUDECAP",VLOOKUP(F165,DADOS_SUDECAP,2,0),IF(G165="COTAÇÃO",VLOOKUP($F165,DADOS_COTACAO,2,0),"")))))) -> FÔRMA E DESFORMA DE COMPENSADO PLASTIFICADO, ESP. 12MM, REAPROVEITAMENTO (3X) (FUNDAÇÃO) | F165: ED-8571 | G165: SETOP | H165: =IF(G165="SINAPI",VLOOKUP($F165,DADOS_SINAPI,3,0),IF(G165="SETOP",VLOOKUP($F165,DADOS_SETOP,3,0),IF(G165="CPU",VLOOKUP($F165,DADOS_COMPOSICAO,10,0),IF(G165="SICRO",VLOOKUP($F165,DADOS_SICRO,3,0),IF(G165="SUDECAP",VLOOKUP(F165,DADOS_SUDECAP,3,0),IF(G165="COTAÇÃO",VLOOKUP($F165,DADOS_COTACAO,9,0),"")))))) -> m2 | I165: =TRUNC(F170,2) -> 0.74 | J165: =TRUNC(IF(G165="SINAPI",VLOOKUP($F165,DADOS_SINAPI,4,0),IF(G165="SETOP",VLOOKUP($F165,DADOS_SETOP,4,0),IF(G165="CPU",VLOOKUP($F165,DADOS_COMPOSICAO,13,0),IF(G165="SICRO",VLOOKUP($F165,DADOS_SICRO,4,0),IF(G165="SUDECAP",VLOOKUP(F165,DADOS_SUDECAP,4,0),IF(G165="COTAÇÃO",VLOOKUP(F165,DADOS_COTACAO,12,0),"")))))),2) -> 71.99 | K165: BDI 1 | L165: =TRUNC(J165*(1+$N$17),2) -> 91.08 | M165: =IFERROR(TRUNC(I165*J165,2),"") -> 53.27 | N165: =IFERROR(TRUNC(L165*I165,2),"") -> 67.39
A166: 2000
A167: 2000 | E167: Quantidade de Blocos | F167: =$F$144 -> 1 | G167: un
A168: 2000 | E168: Consumo por bloco | F168: 2.22 | G168: m²
A169: 2000 | E169: Reutilização | F169: 3 | G169: vezes
A170: 2000 | E170: Total | F170: =F167*F168/F169 -> 0.74 | G170: m²
A171: 2000
A172: =IFERROR(LEFT(D172,SEARCH(".",D172)-1),"") -> 5 | B172: =IFERROR(LEFT(RIGHT(D172,LEN(D172)-SEARCH(".",D172)),SEARCH(".",RIGHT(D172,LEN(D172)-SEARCH(".",D172)))-1),"") -> 1 | C172: =IFERROR(IF(LEN(D172)-LEN(SUBSTITUTE(D172,".",""))<>3,"",MID(D172,SEARCH(".",D172,SEARCH(".",D172)+1)+1,LEN(D172)-SEARCH(".",D172,SEARCH(".",D172)+1)-(LEN(D172)-(SEARCH(".",D172,SEARCH(".",D172,SEARCH(".",D172)+1)+1)-1)))),"") ->  | D172: 5.1.6 | E172: =IF($G172="SINAPI",VLOOKUP($F172,DADOS_SINAPI,2,0),IF(G172="SETOP",VLOOKUP($F172,DADOS_SETOP,2,0),IF(G172="CPU",VLOOKUP($F172,DADOS_COMPOSICAO,2,0),IF(G172="SICRO",VLOOKUP($F172,DADOS_SICRO,2,0),IF(G172="SUDECAP",VLOOKUP(F172,DADOS_SUDECAP,2,0),IF(G172="COTAÇÃO",VLOOKUP($F172,DADOS_COTACAO,2,0),"")))))) -> CORTE, DOBRA E MONTAGEM DE AÇO CA-50/60, INCLUSIVE ESPAÇADOR | F172: ED-48298 | G172: SETOP | H172: =IF(G172="SINAPI",VLOOKUP($F172,DADOS_SINAPI,3,0),IF(G172="SETOP",VLOOKUP($F172,DADOS_SETOP,3,0),IF(G172="CPU",VLOOKUP($F172,DADOS_COMPOSICAO,10,0),IF(G172="SICRO",VLOOKUP($F172,DADOS_SICRO,3,0),IF(G172="SUDECAP",VLOOKUP(F172,DADOS_SUDECAP,3,0),IF(G172="COTAÇÃO",VLOOKUP($F172,DADOS_COTACAO,9,0),"")))))) -> Kg | I172: =TRUNC(F176,2) -> 5.72 | J172: =TRUNC(IF(G172="SINAPI",VLOOKUP($F172,DADOS_SINAPI,4,0),IF(G172="SETOP",VLOOKUP($F172,DADOS_SETOP,4,0),IF(G172="CPU",VLOOKUP($F172,DADOS_COMPOSICAO,13,0),IF(G172="SICRO",VLOOKUP($F172,DADOS_SICRO,4,0),IF(G172="SUDECAP",VLOOKUP(F172,DADOS_SUDECAP,4,0),IF(G172="COTAÇÃO",VLOOKUP(F172,DADOS_COTACAO,12,0),"")))))),2) -> 13.52 | K172: BDI 1 | L172: =TRUNC(J172*(1+$N$17),2) -> 17.1 | M172: =IFERROR(TRUNC(I172*J172,2),"") -> 77.33 | N172: =IFERROR(TRUNC(L172*I172,2),"") -> 97.81
A173: 2000
A174: 2000 | E174: Quantidade de Blocos | F174: =$F$144 -> 1 | G174: un
A175: 2000 | E175: Consumo por bloco | F175: =5.72 -> 5.72 | G175: kg
A176: 2000 | E176: Total | F176: =F174*F175 -> 5.72 | G176: kg
A177: 2000
A178: =IFERROR(LEFT(D178,SEARCH(".",D178)-1),"") -> 5 | B178: =IFERROR(LEFT(RIGHT(D178,LEN(D178)-SEARCH(".",D178)),SEARCH(".",RIGHT(D178,LEN(D178)-SEARCH(".",D178)))-1),"") -> 1 | C178: =IFERROR(IF(LEN(D178)-LEN(SUBSTITUTE(D178,".",""))<>3,"",MID(D178,SEARCH(".",D178,SEARCH(".",D178)+1)+1,LEN(D178)-SEARCH(".",D178,SEARCH(".",D178)+1)-(LEN(D178)-(SEARCH(".",D178,SEARCH(".",D178,SEARCH(".",D178)+1)+1)-1)))),"") ->  | D178: 5.1.7 | E178: =IF($G178="SINAPI",VLOOKUP($F178,DADOS_SINAPI,2,0),IF(G178="SETOP",VLOOKUP($F178,DADOS_SETOP,2,0),IF(G178="CPU",VLOOKUP($F178,DADOS_COMPOSICAO,2,0),IF(G178="SICRO",VLOOKUP($F178,DADOS_SICRO,2,0),IF(G178="SUDECAP",VLOOKUP(F178,DADOS_SUDECAP,2,0),IF(G178="COTAÇÃO",VLOOKUP($F178,DADOS_COTACAO,2,0),"")))))) -> FORNECIMENTO DE CONCRETO ESTRUTURAL, USINADO BOMBEADO, COM FCK 30MPA, INCLUSIVE LANÇAMENTO, ADENSAMENTO E ACABAMENTO (FUNDAÇÃO) | F178: ED-49806 | G178: SETOP | H178: =IF(G178="SINAPI",VLOOKUP($F178,DADOS_SINAPI,3,0),IF(G178="SETOP",VLOOKUP($F178,DADOS_SETOP,3,0),IF(G178="CPU",VLOOKUP($F178,DADOS_COMPOSICAO,10,0),IF(G178="SICRO",VLOOKUP($F178,DADOS_SICRO,3,0),IF(G178="SUDECAP",VLOOKUP(F178,DADOS_SUDECAP,3,0),IF(G178="COTAÇÃO",VLOOKUP($F178,DADOS_COTACAO,9,0),"")))))) -> m3 | I178: =TRUNC(F182,2) -> 0.17 | J178: =TRUNC(IF(G178="SINAPI",VLOOKUP($F178,DADOS_SINAPI,4,0),IF(G178="SETOP",VLOOKUP($F178,DADOS_SETOP,4,0),IF(G178="CPU",VLOOKUP($F178,DADOS_COMPOSICAO,13,0),IF(G178="SICRO",VLOOKUP($F178,DADOS_SICRO,4,0),IF(G178="SUDECAP",VLOOKUP(F178,DADOS_SUDECAP,4,0),IF(G178="COTAÇÃO",VLOOKUP(F178,DADOS_COTACAO,12,0),"")))))),2) -> 737.11 | K178: BDI 1 | L178: =TRUNC(J178*(1+$N$17),2) -> 932.59 | M178: =IFERROR(TRUNC(I178*J178,2),"") -> 125.3 | N178: =IFERROR(TRUNC(L178*I178,2),"") -> 158.54
A179: 2000
A180: 2000 | E180: Quantidade de Blocos | F180: =$F$144 -> 1 | G180: un
A181: 2000 | E181: Consumo por bloco | F181: =ROUNDUP(0.55^3,2) -> 0.17 | G181: m³
A182: 2000 | E182: Total | F182: =F180*F181 -> 0.17 | G182: m³
A183: 2000
A184: =IFERROR(LEFT(D184,SEARCH(".",D184)-1),"") -> 5 | B184: =IFERROR(LEFT(RIGHT(D184,LEN(D184)-SEARCH(".",D184)),SEARCH(".",RIGHT(D184,LEN(D184)-SEARCH(".",D184)))-1),"") -> 1 | C184: =IFERROR(IF(LEN(D184)-LEN(SUBSTITUTE(D184,".",""))<>3,"",MID(D184,SEARCH(".",D184,SEARCH(".",D184)+1)+1,LEN(D184)-SEARCH(".",D184,SEARCH(".",D184)+1)-(LEN(D184)-(SEARCH(".",D184,SEARCH(".",D184,SEARCH(".",D184)+1)+1)-1)))),"") ->  | D184: 5.1.8 | E184: =IF($G184="SINAPI",VLOOKUP($F184,DADOS_SINAPI,2,0),IF(G184="SETOP",VLOOKUP($F184,DADOS_SETOP,2,0),IF(G184="CPU",VLOOKUP($F184,DADOS_COMPOSICAO,2,0),IF(G184="SICRO",VLOOKUP($F184,DADOS_SICRO,2,0),IF(G184="SUDECAP",VLOOKUP(F184,DADOS_SUDECAP,2,0),IF(G184="COTAÇÃO",VLOOKUP($F184,DADOS_COTACAO,2,0),"")))))) -> REATERRO MANUAL APILOADO COM SOQUETE. AF_10/2017 | F184: 96995 | G184: SINAPI | H184: =IF(G184="SINAPI",VLOOKUP($F184,DADOS_SINAPI,3,0),IF(G184="SETOP",VLOOKUP($F184,DADOS_SETOP,3,0),IF(G184="CPU",VLOOKUP($F184,DADOS_COMPOSICAO,10,0),IF(G184="SICRO",VLOOKUP($F184,DADOS_SICRO,3,0),IF(G184="SUDECAP",VLOOKUP(F184,DADOS_SUDECAP,3,0),IF(G184="COTAÇÃO",VLOOKUP($F184,DADOS_COTACAO,9,0),"")))))) -> M3 | I184: =TRUNC(F188,2) -> 0.18 | J184: =TRUNC(IF(G184="SINAPI",VLOOKUP($F184,DADOS_SINAPI,4,0),IF(G184="SETOP",VLOOKUP($F184,DADOS_SETOP,4,0),IF(G184="CPU",VLOOKUP($F184,DADOS_COMPOSICAO,13,0),IF(G184="SICRO",VLOOKUP($F184,DADOS_SICRO,4,0),IF(G184="SUDECAP",VLOOKUP(F184,DADOS_SUDECAP,4,0),IF(G184="COTAÇÃO",VLOOKUP(F184,DADOS_COTACAO,12,0),"")))))),2) -> 42.62 | K184: BDI 1 | L184: =TRUNC(J184*(1+$N$17),2) -> 53.92 | M184: =IFERROR(TRUNC(I184*J184,2),"") -> 7.67 | N184: =IFERROR(TRUNC(L184*I184,2),"") -> 9.7
A185: 2000
A186: 2000 | E186: Quantidade de Blocos | F186: =$F$144 -> 1 | G186: un
A187: 2000 | E187: Reaterro por bloco | F187: =(F145-F181) -> 0.18 | G187: m³
A188: 2000 | E188: Total | F188: =F186*F187 -> 0.18 | G188: m³
A189: 2000
A190: =IFERROR(LEFT(D190,SEARCH(".",D190)-1),"") -> 5 | B190: =IFERROR(LEFT(RIGHT(D190,LEN(D190)-SEARCH(".",D190)),SEARCH(".",RIGHT(D190,LEN(D190)-SEARCH(".",D190)))-1),"") -> 1 | C190: =IFERROR(IF(LEN(D190)-LEN(SUBSTITUTE(D190,".",""))<>3,"",MID(D190,SEARCH(".",D190,SEARCH(".",D190)+1)+1,LEN(D190)-SEARCH(".",D190,SEARCH(".",D190)+1)-(LEN(D190)-(SEARCH(".",D190,SEARCH(".",D190,SEARCH(".",D190)+1)+1)-1)))),"") ->  | D190: 5.1.9 | E190: =IF($G190="SINAPI",VLOOKUP($F190,DADOS_SINAPI,2,0),IF(G190="SETOP",VLOOKUP($F190,DADOS_SETOP,2,0),IF(G190="CPU",VLOOKUP($F190,DADOS_COMPOSICAO,2,0),IF(G190="SICRO",VLOOKUP($F190,DADOS_SICRO,2,0),IF(G190="SUDECAP",VLOOKUP(F190,DADOS_SUDECAP,2,0),IF(G190="COTAÇÃO",VLOOKUP($F190,DADOS_COTACAO,2,0),"")))))) -> CARGA MANUAL DE MATERIAL DE QUALQUER NATUREZA SOBRE CAMINHÃO, EXCLUSIVE TRANSPORTE | F190: ED-51131 | G190: SETOP | H190: =IF(G190="SINAPI",VLOOKUP($F190,DADOS_SINAPI,3,0),IF(G190="SETOP",VLOOKUP($F190,DADOS_SETOP,3,0),IF(G190="CPU",VLOOKUP($F190,DADOS_COMPOSICAO,10,0),IF(G190="SICRO",VLOOKUP($F190,DADOS_SICRO,3,0),IF(G190="SUDECAP",VLOOKUP(F190,DADOS_SUDECAP,3,0),IF(G190="COTAÇÃO",VLOOKUP($F190,DADOS_COTACAO,9,0),"")))))) -> m3 | I190: =TRUNC(F195,2) -> 0.23 | J190: =TRUNC(IF(G190="SINAPI",VLOOKUP($F190,DADOS_SINAPI,4,0),IF(G190="SETOP",VLOOKUP($F190,DADOS_SETOP,4,0),IF(G190="CPU",VLOOKUP($F190,DADOS_COMPOSICAO,13,0),IF(G190="SICRO",VLOOKUP($F190,DADOS_SICRO,4,0),IF(G190="SUDECAP",VLOOKUP(F190,DADOS_SUDECAP,4,0),IF(G190="COTAÇÃO",VLOOKUP(F190,DADOS_COTACAO,12,0),"")))))),2) -> 35.54 | K190: BDI 1 | L190: =TRUNC(J190*(1+$N$17),2) -> 44.96 | M190: =IFERROR(TRUNC(I190*J190,2),"") -> 8.17 | N190: =IFERROR(TRUNC(L190*I190,2),"") -> 10.34
A191: 2000
A192: 2000 | E192: Quantidade de Blocos | F192: =$F$144 -> 1 | G192: un
A193: 2000 | E193: Carga por bloco | F193: =F181 -> 0.17 | G193: m³
A194: 2000 | E194: Fator de Empilhamento | F194: 1.3 | G194: -
A195: 2000 | E195: Total | F195: =ROUNDUP(F192*F193*F194,2) -> 0.23 | G195: m³
A196: 2000
A197: =IFERROR(LEFT(D197,SEARCH(".",D197)-1),"") -> 5 | B197: =IFERROR(LEFT(RIGHT(D197,LEN(D197)-SEARCH(".",D197)),SEARCH(".",RIGHT(D197,LEN(D197)-SEARCH(".",D197)))-1),"") -> 1 | C197: =IFERROR(IF(LEN(D197)-LEN(SUBSTITUTE(D197,".",""))<>3,"",MID(D197,SEARCH(".",D197,SEARCH(".",D197)+1)+1,LEN(D197)-SEARCH(".",D197,SEARCH(".",D197)+1)-(LEN(D197)-(SEARCH(".",D197,SEARCH(".",D197,SEARCH(".",D197)+1)+1)-1)))),"") ->  | D197: 5.1.10 | E197: =IF($G197="SINAPI",VLOOKUP($F197,DADOS_SINAPI,2,0),IF(G197="SETOP",VLOOKUP($F197,DADOS_SETOP,2,0),IF(G197="CPU",VLOOKUP($F197,DADOS_COMPOSICAO,2,0),IF(G197="SICRO",VLOOKUP($F197,DADOS_SICRO,2,0),IF(G197="SUDECAP",VLOOKUP(F197,DADOS_SUDECAP,2,0),IF(G197="COTAÇÃO",VLOOKUP($F197,DADOS_COTACAO,2,0),"")))))) -> TRANSPORTE COM CAMINHÃO BASCULANTE DE 6 M³, EM VIA URBANA PAVIMENTADA, DMT ATÉ 30 KM (UNIDADE: M3XKM). AF_07/2020 | F197: 97914 | G197: SINAPI | H197: =IF(G197="SINAPI",VLOOKUP($F197,DADOS_SINAPI,3,0),IF(G197="SETOP",VLOOKUP($F197,DADOS_SETOP,3,0),IF(G197="CPU",VLOOKUP($F197,DADOS_COMPOSICAO,10,0),IF(G197="SICRO",VLOOKUP($F197,DADOS_SICRO,3,0),IF(G197="SUDECAP",VLOOKUP(F197,DADOS_SUDECAP,3,0),IF(G197="COTAÇÃO",VLOOKUP($F197,DADOS_COTACAO,9,0),"")))))) -> M3XKM | I197: =TRUNC(F201,2) -> 1.57 | J197: =TRUNC(IF(G197="SINAPI",VLOOKUP($F197,DADOS_SINAPI,4,0),IF(G197="SETOP",VLOOKUP($F197,DADOS_SETOP,4,0),IF(G197="CPU",VLOOKUP($F197,DADOS_COMPOSICAO,13,0),IF(G197="SICRO",VLOOKUP($F197,DADOS_SICRO,4,0),IF(G197="SUDECAP",VLOOKUP(F197,DADOS_SUDECAP,4,0),IF(G197="COTAÇÃO",VLOOKUP(F197,DADOS_COTACAO,12,0),"")))))),2) -> 2.69 | K197: BDI 1 | L197: =TRUNC(J197*(1+$N$17),2) -> 3.4 | M197: =IFERROR(TRUNC(I197*J197,2),"") -> 4.22 | N197: =IFERROR(TRUNC(L197*I197,2),"") -> 5.33
A198: 2000
A199: 2000 | E199: Carga de Material | F199: =F195 -> 0.23 | G199: m³
A200: 2000 | E200: Distância | F200: =F121 -> 6.8 | G200: km
A201: 2000 | E201: Total | F201: =ROUNDUP(F199*F200,2) -> 1.57 | G201: m³ X km
A202: 2000
A203: =IFERROR(LEFT(D203,SEARCH(".",D203)-1),"") -> 5 | B203: =IFERROR(LEFT(RIGHT(D203,LEN(D203)-SEARCH(".",D203)),SEARCH(".",RIGHT(D203,LEN(D203)-SEARCH(".",D203)))-1),"") -> 1 | C203: =IFERROR(IF(LEN(D203)-LEN(SUBSTITUTE(D203,".",""))<>3,"",MID(D203,SEARCH(".",D203,SEARCH(".",D203)+1)+1,LEN(D203)-SEARCH(".",D203,SEARCH(".",D203)+1)-(LEN(D203)-(SEARCH(".",D203,SEARCH(".",D203,SEARCH(".",D203)+1)+1)-1)))),"") ->  | D203: 5.1.11 | E203: =IF($G203="SINAPI",VLOOKUP($F203,DADOS_SINAPI,2,0),IF(G203="SETOP",VLOOKUP($F203,DADOS_SETOP,2,0),IF(G203="CPU",VLOOKUP($F203,DADOS_COMPOSICAO,2,0),IF(G203="SICRO",VLOOKUP($F203,DADOS_SICRO,2,0),IF(G203="SUDECAP",VLOOKUP(F203,DADOS_SUDECAP,2,0),IF(G203="COTAÇÃO",VLOOKUP($F203,DADOS_COTACAO,2,0),"")))))) -> ESPALHAMENTO DE MATERIAL COM TRATOR DE ESTEIRAS. AF_11/2019 | F203: 100574 | G203: SINAPI | H203: =IF(G203="SINAPI",VLOOKUP($F203,DADOS_SINAPI,3,0),IF(G203="SETOP",VLOOKUP($F203,DADOS_SETOP,3,0),IF(G203="CPU",VLOOKUP($F203,DADOS_COMPOSICAO,10,0),IF(G203="SICRO",VLOOKUP($F203,DADOS_SICRO,3,0),IF(G203="SUDECAP",VLOOKUP(F203,DADOS_SUDECAP,3,0),IF(G203="COTAÇÃO",VLOOKUP($F203,DADOS_COTACAO,9,0),"")))))) -> M3 | I203: =TRUNC(F206,2) -> 0.23 | J203: =TRUNC(IF(G203="SINAPI",VLOOKUP($F203,DADOS_SINAPI,4,0),IF(G203="SETOP",VLOOKUP($F203,DADOS_SETOP,4,0),IF(G203="CPU",VLOOKUP($F203,DADOS_COMPOSICAO,13,0),IF(G203="SICRO",VLOOKUP($F203,DADOS_SICRO,4,0),IF(G203="SUDECAP",VLOOKUP(F203,DADOS_SUDECAP,4,0),IF(G203="COTAÇÃO",VLOOKUP(F203,DADOS_COTACAO,12,0),"")))))),2) -> 1.3 | K203: BDI 1 | L203: =TRUNC(J203*(1+$N$17),2) -> 1.64 | M203: =IFERROR(TRUNC(I203*J203,2),"") -> 0.29 | N203: =IFERROR(TRUNC(L203*I203,2),"") -> 0.37
A204: 2000
A205: 2000 | E205: Volume de material | F205: =F195 -> 0.23 | G205: m³
A206: 2000 | E206: Total | F206: =F205 -> 0.23 | G206: m³
A207: 2000
D208: 5.2 | E208: ESTRUTURA E TELHAMENTO | M208: =IFERROR(SUMIFS(M:M,A:A,LEFT(D208,SEARCH(".",D208)-1),B:B,RIGHT(D208,LEN(D208)-SEARCH(".",D208))),"") -> 360481.6 | N208: =IFERROR(SUMIFS(N:N,A:A,LEFT(D208,SEARCH(".",D208)-1),B:B,RIGHT(D208,LEN(D208)-SEARCH(".",D208))),"") -> 456003.93
... 161 more rows

Sheet ABC
A2: CURVA ABC DE SERVIÇOS | H2: Revisão: | I2: =DADOS!D6 -> R01
H3: Data: | I3: =DADOS!D2 -> 2023-05-05
A4: Projeto: | C4: Responsável: | D4: Cliente: | H4: Bancos:
A5: =DADOS!D8 -> REFORMA DA COBERTURA DO CEIM RECANTO FELIZ | H5: =DADOS!D14 -> SINAPI: 03/2023 Minas Gerais SETOP: 01/2023 Minas Gerais SICRO : 01/2023 Minas Gerais SUDECAP: 02/2023 Minas Gerais
H8: BDI 1: | I8: =DADOS!D10 -> 0.2652
H9: BDI 2: | I9: =DADOS!D12 -> 0.2025
A11: =A2&" DE "&DADOS!D20&" - "&A5 -> CURVA ABC DE SERVIÇOS DE PROJETO EXECUTIVO - REFORMA DA COBERTURA DO CEIM RECANTO FELIZ
A13: Código | B13: Banco | C13: Descrição | D13: Unidade | E13: Quantidade | F13: Valor Unitário | G13: Total | H13: Peso (%) | I13: Peso Acumulado (%)
A15: ED-49664 | B15: SETOP | C15: FORNECIMENTO DE ESTRUTURA METÁLICA EM PERFIL LAMINADO, INCLUSIVE FABRICAÇÃO, TRANSPORTE, MONTAGEM E APLICAÇÃO DE FUNDO PREPARADOR ANTICORROSIVO EM SUPERFÍCIE METÁLICA, UMA (1) DEMÃO | D15: Kg | E15: 6590.33 | F15: 30.9 | G15: 203641.19 | H15: 0.2645816316 | I15: 0.2645816316
A16: 94216 | B16: SINAPI | C16: TELHAMENTO COM TELHA METÁLICA TERMOACÚSTICA E = 30 MM, COM ATÉ 2 ÁGUAS, INCLUSO IÇAMENTO. AF_07/2019 | D16: M2 | E16: 705.82 | F16: 234.69 | G16: 165648.89 | H16: 0.2152199837 | I16: 0.4798016153
A17: 93565 | B17: SINAPI | C17: ENGENHEIRO CIVIL DE OBRA JUNIOR COM ENCARGOS COMPLEMENTARES | D17: MES | E17: 5 | F17: 21650.3 | G17: 108251.5 | H17: 0.1406461949 | I17: 0.6204478102
A18: ED-50497 | B18: SETOP | C18: PINTURA ESMALTE EM ESTRUTURA METÁLICA, DUAS (2) DEMÃOS, INCLUSIVE UMA (1) DEMÃO FUNDO ANTICORROSIVO | D18: m2 | E18: 2038.51 | F18: 41.63 | G18: 84863.17 | H18: 0.1102588135 | I18: 0.7307066237
A19: 100321 | B19: SINAPI | C19: TÉCNICO EM SEGURANÇA DO TRABALHO COM ENCARGOS COMPLEMENTARES | D19: MES | E19: 5 | F19: 7349.88 | G19: 36749.4 | H19: 0.04774680512 | I19: 0.7784534288
A20: ED-48227 | B20: SETOP | C20: ALVENARIA DE VEDAÇÃO COM TIJOLO MACIÇO REQUEIMADO, ESP. 10CM, PARA REVESTIMENTO, INCLUSIVE ARGAMASSA PARA ASSENTAMENTO | D20: m2 | E20: 201.78 | F20: 110.85 | G20: 22367.31 | H20: 0.02906081709 | I20: 0.8075142459
A21: 87792 | B21: SINAPI | C21: EMBOÇO OU MASSA ÚNICA EM ARGAMASSA TRAÇO 1:2:8, PREPARO MECÂNICO COM BETONEIRA 400 L, APLICADA MANUALMENTE EM PANOS CEGOS DE FACHADA (SEM PRESENÇA DE VÃOS), ESPESSURA DE 25 MM. AF_08/2022 | D21: M2 | E21: 403.56 | F21: 47.09 | G21: 19003.64 | H21: 0.02469055537 | I21: 0.8322048013
A22: ED-50761 | B22: SETOP | C22: REBOCO COM ARGAMASSA, TRAÇO 1:2:8 (CIMENTO, CAL E AREIA), ESP. 20MM, APLICAÇÃO MANUAL, PREPARO MECÂNICO | D22: m2 | E22: 403.56 | F22: 40.58 | G22: 16376.46 | H22: 0.02127718124 | I22: 0.8534819825
A23: 89512 | B23: SINAPI | C23: TUBO PVC, SÉRIE R, ÁGUA PLUVIAL, DN 100 MM, FORNECIDO E INSTALADO EM RAMAL DE ENCAMINHAMENTO. AF_06/2022 | D23: M | E23: 243.55 | F23: 62.69 | G23: 15268.14 | H23: 0.01983719204 | I23: 0.8733191746
A24: 94228 | B24: SINAPI | C24: CALHA EM CHAPA DE AÇO GALVANIZADO NÚMERO 24, DESENVOLVIMENTO DE 50 CM, INCLUSO TRANSPORTE VERTICAL. AF_07/2019 | D24: M | E24: 98.5 | F24: 129.79 | G24: 12784.31 | H24: 0.01661006597 | I24: 0.8899292405
A25: 95626 | B25: SINAPI | C25: APLICAÇÃO MANUAL DE TINTA LÁTEX ACRÍLICA EM PAREDE EXTERNAS DE CASAS, DUAS DEMÃOS. AF_11/2016 | D25: M2 | E25: 403.56 | F25: 18.96 | G25: 7651.49 | H25: 0.009941229025 | I25: 0.8998704696
A26: 101979 | B26: SINAPI | C26: CHAPIM (RUFO CAPA) EM AÇO GALVANIZADO, CORTE 33. AF_11/2020 | D26: M | E26: 120 | F26: 61.19 | G26: 7342.8 | H26: 0.009540162306 | I26: 0.9094106319
A27: 94990 | B27: SINAPI | C27: EXECUÇÃO DE PASSEIO (CALÇADA) OU PISO DE CONCRETO COM CONCRETO MOLDADO IN LOCO, FEITO EM OBRA, ACABAMENTO CONVENCIONAL, NÃO ARMADO. AF_08/2022 | D27: M3 | E27: 6.8 | F27: 942.63 | G27: 6409.88 | H27: 0.00832806226 | I27: 0.9177386941
A28: ED-50266 | B28: SETOP | C28: LIMPEZA FINAL PARA ENTREGA DA OBRA | D28: m2 | E28: 720.42 | F28: 8.17 | G28: 5885.83 | H28: 0.007647188199 | I28: 0.9253858823
A29: 97650 | B29: SINAPI | C29: REMOÇÃO DE TRAMA DE MADEIRA PARA COBERTURA, DE FORMA MANUAL, SEM REAPROVEITAMENTO. AF_12/2017 | D29: M2 | E29: 720.43 | F29: 7.88 | G29: 5676.98 | H29: 0.007375839 | I29: 0.9327617213
A30: ED-49883 | B30: SETOP | C30: CAIXA DE ESGOTO DE INSPEÇÃO/PASSAGEM EM ALVENARIA (60X60X60CM), REVESTIMENTO EM ARGAMASSA COM ADITIVO IMPERMEABILIZANTE, COM TAMPA DE CONCRETO, INCLUSIVE ESCAVAÇÃO, REATERRO E TRANSPORTE E RETIRADA DO MATERIAL ESCAVADO (EM CAÇAMBA) | D30: un | E30: 10 | F30: 521.85 | G30: 5218.5 | H30: 0.006780157024 | I30: 0.9395418784
A31: ED-50155 | B31: SETOP | C31: LOCAÇÃO DE BANHEIRO QUÍMICO, DIMENSÃO (110X120X230)CM, LINHA PADRÃO, CONTENDO UMA (1) PIA/HIGIENIZADOR DE MÃOS, INCLUSIVE MANUTENÇÃO E MOBILIZAÇÃO/DESMOBILIZAÇÃO | D31: mês | E31: 5 | F31: 1037.46 | G31: 5187.3 | H31: 0.006739620299 | I31: 0.9462814987
A32: ED-28428 | B32: SETOP | C32: FORNECIMENTO E COLOCAÇÃO DE PLACA DE OBRA EM CHAPA GALVANIZADA #26, ESP. 0,45MM, DIMENSÃO (4X3)M, PLOTADA COM ADESIVO VINÍLICO, AFIXADA COM REBITES 4,8X40MM, EM ESTRUTURA METÁLICA DE METALON 20X20MM, ESP. 1,25MM, INCLUSIVE SUPORTE EM EUCALIPTO AUTOCLAVADO PINTADO COM TINTA PVA DUAS (2) DEMÃOS | D32: un | E32: 1 | F32: 4690.75 | G32: 4690.75 | H32: 0.006094475723 | I32: 0.9523759744
A33: ED-16350 | B33: SETOP | C33: LOCAÇÃO DE CONTAINER COM ISOLAMENTO TÉRMICO, TIPO 3, PARA DEPÓSITO/FERRAMENTARIA DE OBRA, COM MEDIDAS REFERENCIAIS DE (6) METROS COMPRIMENTO, (2,3) METROS LARGURA E (2,5) METROS ALTURA ÚTIL INTERNA, INCLUSIVE LIGAÇÕES ELÉTRICAS INTERNAS, EXCLUSIVE MOBILIZAÇÃO/DESMOBILIZAÇÃO E LIGAÇÕES PROVISÓRIAS EXTERNAS | D33: mês | E33: 5 | F33: 872.27 | G33: 4361.35 | H33: 0.005666501454 | I33: 0.9580424758
A34: ED-51131 | B34: SETOP | C34: CARGA MANUAL DE MATERIAL DE QUALQUER NATUREZA SOBRE CAMINHÃO, EXCLUSIVE TRANSPORTE | D34: m3 | E34: 91.53 | F34: 44.96 | G34: 4115.18 | H34: 0.005346664095 | I34: 0.9633891399
A35: 97651 | B35: SINAPI | C35: REMOÇÃO DE TESOURAS DE MADEIRA, COM VÃO MENOR QUE 8M, DE FORMA MANUAL, SEM REAPROVEITAMENTO. AF_12/2017 | D35: UN | E35: 40 | F35: 87.28 | G35: 3491.2 | H35: 0.004535955581 | I35: 0.9679250955
A36: 97649 | B36: SINAPI | C36: REMOÇÃO DE TELHAS DE FIBROCIMENTO, METÁLICA E CERÂMICA, DE FORMA MECANIZADA, COM USO DE GUINDASTE, SEM REAPROVEITAMENTO. AF_12/2017 | D36: M2 | E36: 720.43 | F36: 4.69 | G36: 3378.81 | H36: 0.004389932424 | I36: 0.9723150279
A37: 100327 | B37: SINAPI | C37: RUFO EXTERNO/INTERNO EM CHAPA DE AÇO GALVANIZADO NÚMERO 26, CORTE DE 33 CM, INCLUSO IÇAMENTO. AF_07/2019 | D37: M | E37: 39 | F37: 85.74 | G37: 3343.86 | H37: 0.004344523496 | I37: 0.9766595514
A38: 89580 | B38: SINAPI | C38: TUBO PVC, SÉRIE R, ÁGUA PLUVIAL, DN 150 MM, FORNECIDO E INSTALADO EM CONDUTORES VERTICAIS DE ÁGUAS PLUVIAIS. AF_06/2022 | D38: M | E38: 25.53 | F38: 93.61 | G38: 2389.86 | H38: 0.003105035176 | I38: 0.9797645866
A39: 89529 | B39: SINAPI | C39: JOELHO 90 GRAUS, PVC, SERIE R, ÁGUA PLUVIAL, DN 100 MM, JUNTA ELÁSTICA, FORNECIDO E INSTALADO EM RAMAL DE ENCAMINHAMENTO. AF_06/2022 | D39: UN | E39: 48 | F39: 46.67 | G39: 2240.16 | H39: 0.002910536851 | I39: 0.9826751235
A40: 97914 | B40: SINAPI | C40: TRANSPORTE COM CAMINHÃO BASCULANTE DE 6 M³, EM VIA URBANA PAVIMENTADA, DMT ATÉ 30 KM (UNIDADE: M3XKM). AF_07/2020 | D40: M3XKM | E40: 624.52 | F40: 3.4 | G40: 2123.36 | H40: 0.002758783983 | I40: 0.9854339074
A41: ED-48402 | B41: SETOP | C41: COLOCAÇÃO DE CUMEEIRA GALVANIZADA TRAPEZOIDAL E = 0,50 MM, SIMPLES | D41: m | E41: 26.69 | F41: 69.34 | G41: 1850.68 | H41: 0.002404503401 | I41: 0.9878384108
A42: 88415 | B42: SINAPI | C42: APLICAÇÃO MANUAL DE FUNDO SELADOR ACRÍLICO EM PAREDES EXTERNAS DE CASAS. AF_06/2014 | D42: M2 | E42: 403.56 | F42: 4.27 | G42: 1723.2 | H42: 0.002238874501 | I42: 0.9900772853
A43: DAC-4.1 | B43: CPU | C43: REMOÇÃO DE PILAR DE MADEIRA | D43: UN | E43: 13 | F43: 100.83 | G43: 1310.79 | H43: 0.001703049157 | I43: 0.9917803345
A44: 93358 | B44: SINAPI | C44: ESCAVAÇÃO MANUAL DE VALA COM PROFUNDIDADE MENOR OU IGUAL A 1,30 M. AF_02/2021 | D44: M3 | E44: 11.7 | F44: 88.93 | G44: 1040.48 | H44: 0.001351847807 | I44: 0.9931321823
A45: ED-50137 | B45: SETOP | C45: MOBILIZAÇÃO E DESMOBILIZAÇÃO DE CONTAINER, INCLUSIVE CARGA, DESCARGA E TRANSPORTE EM CAMINHÃO CARROCERIA COM GUINDAUTO (MUNCK), EXCLUSIVE LOCAÇÃO DO CONTAINER | D45: un | E45: 1 | F45: 799.47 | G45: 799.47 | H45: 0.001038714599 | I45: 0.9941708969
A46: ED-48506 | B46: SETOP | C46: REMOÇÃO MANUAL DE RUFO METÁLICO, COM REAPROVEITAMENTO, INCLUSIVE AFASTAMENTO E EMPILHAMENTO, EXCLUSIVE TRANSPORTE E RETIRADA DO MATERIAL REMOVIDO NÃO REAPROVEITÁVEL | D46: m | E46: 91.11 | F46: 7.65 | G46: 696.99 | H46: 0.0009055670488 | I46: 0.995076464
A47: 01.04.11 | B47: SUDECAP | C47: FITA ZEBRADA AMARELA PARA SINALIZAÇAO L= 7CM | D47: M | E47: 150 | F47: 3.7 | G47: 555 | H47: 0.0007210859726 | I47: 0.9957975499
A48: 93382 | B48: SINAPI | C48: REATERRO MANUAL DE VALAS COM COMPACTAÇÃO MECANIZADA. AF_04/2016 | D48: M3 | E48: 11.7 | F48: 36.96 | G48: 432.43 | H48: 0.0005618364093 | I48: 0.9963593863
A49: 101174 | B49: SINAPI | C49: ESTACA BROCA DE CONCRETO, DIÂMETRO DE 25CM, ESCAVAÇÃO MANUAL COM TRADO CONCHA, COM ARMADURA DE ARRANQUE. AF_05/2020 | D49: M | E49: 4 | F49: 100.15 | G49: 400.6 | H49: 0.0005204811543 | I49: 0.9968798675
A50: 97624 | B50: SINAPI | C50: DEMOLIÇÃO DE ALVENARIA DE TIJOLO MACIÇO, DE FORMA MANUAL, SEM REAPROVEITAMENTO. AF_12/2017 | D50: M3 | E50: 3.38 | F50: 111.32 | G50: 376.26 | H50: 0.0004888573118 | I50: 0.9973687248
A51: ED-48438 | B51: SETOP | C51: REMOÇÃO DE CALHA EM CHAPA GALVANIZADA OU EM PVC, COM REAPROVEITAMENTO, INCLUSIVE AFASTAMENTO E EMPILHAMENTO, EXCLUSIVE TRANSPORTE E RETIRADA DO MATERIAL REMOVIDO NÃO REAPROVEITÁVEL | D51: m | E51: 66.4 | F51: 5.19 | G51: 344.61 | H51: 0.0004477359226 | I51: 0.9978164607
A52: 89531 | B52: SINAPI | C52: JOELHO 45 GRAUS, PVC, SERIE R, ÁGUA PLUVIAL, DN 100 MM, JUNTA ELÁSTICA, FORNECIDO E INSTALADO EM RAMAL DE ENCAMINHAMENTO. AF_06/2022 | D52: UN | E52: 6 | F52: 48.11 | G52: 288.66 | H52: 0.000375042661 | I52: 0.9981915034
A53: 90444 | B53: SINAPI | C53: RASGO EM CONTRAPISO PARA RAMAIS/ DISTRIBUIÇÃO COM DIÂMETROS MENORES OU IGUAIS A 40 MM. AF_05/2015 | D53: M | E53: 7.5 | F53: 32.49 | G53: 243.67 | H53: 0.0003165892233 | I53: 0.9985080926
A54: ED-9076 | B54: SETOP | C54: FORNECIMENTO DE ANDAIME METÁLICO TUBULAR TIPO TORRE (LOCAÇÃO), INCLUSIVE RODÍZIOS, EXCLUSIVE MONTAGEM E DESMONTAGEM | D54: mxmês | E54: 9 | F54: 25.3 | G54: 227.7 | H54: 0.0002958401369 | I54: 0.9988039327
A55: ED-48440 | B55: SETOP | C55: DEMOLIÇÃO MANUAL DE CONCRETO, SEM ARMAÇÃO, INCLUSIVE AFASTAMENTO E EMPILHAMENTO, EXCLUSIVE TRANSPORTE E RETIRADA DO MATERIAL DEMOLIDO | D55: m3 | E55: 0.6 | F55: 324.73 | G55: 194.83 | H55: 0.0002531336577 | I55: 0.9990570664
A56: ED-49806 | B56: SETOP | C56: FORNECIMENTO DE CONCRETO ESTRUTURAL, USINADO BOMBEADO, COM FCK 30MPA, INCLUSIVE LANÇAMENTO, ADENSAMENTO E ACABAMENTO (FUNDAÇÃO) | D56: m3 | E56: 0.17 | F56: 932.59 | G56: 158.54 | H56: 0.0002059837299 | I56: 0.9992630501
A57: 100574 | B57: SINAPI | C57: ESPALHAMENTO DE MATERIAL COM TRATOR DE ESTEIRAS. AF_11/2019 | D57: M3 | E57: 91.62 | F57: 1.64 | G57: 150.24 | H57: 0.0001951999217 | I57: 0.9994582501
A58: 97064 | B58: SINAPI | C58: MONTAGEM E DESMONTAGEM DE ANDAIME TUBULAR TIPO TORRE (EXCLUSIVE ANDAIME E LIMPEZA). AF_11/2017 | D58: M | E58: 6 | F58: 23.22 | G58: 139.32 | H58: 0.0001810120679 | I58: 0.9996392621
A59: ED-48298 | B59: SETOP | C59: CORTE, DOBRA E MONTAGEM DE AÇO CA-50/60, INCLUSIVE ESPAÇADOR | D59: Kg | E59: 5.72 | F59: 17.1 | G59: 97.81 | H59: 0.0001270800342 | I59: 0.9997663422
A60: ED-8571 | B60: SETOP | C60: FÔRMA E DESFORMA DE COMPENSADO PLASTIFICADO, ESP. 12MM, REAPROVEITAMENTO (3X) (FUNDAÇÃO) | D60: m2 | E60: 0.74 | F60: 91.08 | G60: 67.39 | H60: 8.755672738e-05 | I60: 0.9998538989
A61: 90468 | B61: SINAPI | C61: CHUMBAMENTO LINEAR EM CONTRAPISO PARA RAMAIS/DISTRIBUIÇÃO COM DIÂMETROS MENORES OU IGUAIS A 40 MM. AF_05/2015 | D61: M | E61: 7.5 | F61: 6.98 | G61: 52.35 | H61: 6.801594715e-05 | I61: 0.9999219148
A62: 96521 | B62: SINAPI | C62: ESCAVAÇÃO MECANIZADA PARA BLOCO DE COROAMENTO OU SAPATA COM RETROESCAVADEIRA (INCLUINDO ESCAVAÇÃO PARA COLOCAÇÃO DE FÔRMAS). AF_06/2017 | D62: M3 | E62: 0.35 | F62: 54.89 | G62: 19.21 | H62: 2.495866943e-05 | I62: 0.9999468735
A63: 95601 | B63: SINAPI | C63: ARRASAMENTO MECANICO DE ESTACA DE CONCRETO ARMADO, DIAMETROS DE ATÉ 40 CM. AF_05/2021 | D63: UN | E63: 1 | F63: 19.06 | G63: 19.06 | H63: 2.476378133e-05 | I63: 0.9999716373
A64: 96619 | B64: SINAPI | C64: LASTRO DE CONCRETO MAGRO, APLICADO EM BLOCOS DE COROAMENTO OU SAPATAS, ESPESSURA DE 5 CM. AF_08/2017 | D64: M2 | E64: 0.31 | F64: 39.13 | G64: 12.13 | H64: 1.575995108e-05 | I64: 0.9999873972
A65: 96995 | B65: SINAPI | C65: REATERRO MANUAL APILOADO COM SOQUETE. AF_10/2017 | D65: M3 | E65: 0.18 | F65: 53.92 | G65: 9.7 | H65: 1.260276385e-05 | I65: 1
A67: TOTAL INCLUINDO ADMINISTRAÇÃO | H67: =ORC!M366 -> 608420.91
A68: BDI | H68: =ORC!M367 -> 161251.53
A69: TOTAL GERAL | H69: =IF(ORC!M368=SUM(G:G),ORC!M368,"ERRO") -> 769672.44
D73: RESPONSÁVEL TÉCNICO: | F73: =DADOS!D16 -> FLÁVIA CRISTINA BARBOSA
F74: =DADOS!D18 -> CREA - MG 187.842/D

Sheet Auxiliar_ABC (hidden)
A1: ED-49664 | B1: SETOP | C1: FORNECIMENTO DE ESTRUTURA METÁLICA EM PERFIL LAMINADO, INCLUSIVE FABRICAÇÃO, TRANSPORTE, MONTAGEM E APLICAÇÃO DE FUNDO PREPARADOR ANTICORROSIVO EM SUPERFÍCIE METÁLICA, UMA (1) DEMÃO | D1: Kg | E1: 6590.33 | F1: 30.9 | G1: 203641.19 | H1: 0.2645816316 | I1: 0.2645816316 | R1: QUANTIDADE TOTAL | V1: VALOR TOTAL | W1: % | X1: =W1 -> %
A2: 94216 | B2: SINAPI | C2: TELHAMENTO COM TELHA METÁLICA TERMOACÚSTICA E = 30 MM, COM ATÉ 2 ÁGUAS, INCLUSO IÇAMENTO. AF_07/2019 | D2: M2 | E2: 705.82 | F2: 234.69 | G2: 165648.89 | H2: 0.2152199837 | I2: 0.4798016153 | R2: =SUMIF(ORC!$F:$F,O2,ORC!$I:$I) -> 0 | V2: =SUMIF(ORC!$F:$F,O2,ORC!$N:$N) -> 0 | W2: =V2/SUM($I:$I) -> 0 | X2: =W2+X1 -> 
A3: 93565 | B3: SINAPI | C3: ENGENHEIRO CIVIL DE OBRA JUNIOR COM ENCARGOS COMPLEMENTARES | D3: MES | E3: 5 | F3: 21650.3 | G3: 108251.5 | H3: 0.1406461949 | I3: 0.6204478102
A4: ED-50497 | B4: SETOP | C4: PINTURA ESMALTE EM ESTRUTURA METÁLICA, DUAS (2) DEMÃOS, INCLUSIVE UMA (1) DEMÃO FUNDO ANTICORROSIVO | D4: m2 | E4: 2038.51 | F4: 41.63 | G4: 84863.17 | H4: 0.1102588135 | I4: 0.7307066237
A5: 100321 | B5: SINAPI | C5: TÉCNICO EM SEGURANÇA DO TRABALHO COM ENCARGOS COMPLEMENTARES | D5: MES | E5: 5 | F5: 7349.88 | G5: 36749.4 | H5: 0.04774680512 | I5: 0.7784534288
A6: ED-48227 | B6: SETOP | C6: ALVENARIA DE VEDAÇÃO COM TIJOLO MACIÇO REQUEIMADO, ESP. 10CM, PARA REVESTIMENTO, INCLUSIVE ARGAMASSA PARA ASSENTAMENTO | D6: m2 | E6: 201.78 | F6: 110.85 | G6: 22367.31 | H6: 0.02906081709 | I6: 0.8075142459
A7: 87792 | B7: SINAPI | C7: EMBOÇO OU MASSA ÚNICA EM ARGAMASSA TRAÇO 1:2:8, PREPARO MECÂNICO COM BETONEIRA 400 L, APLICADA MANUALMENTE EM PANOS CEGOS DE FACHADA (SEM PRESENÇA DE VÃOS), ESPESSURA DE 25 MM. AF_08/2022 | D7: M2 | E7: 403.56 | F7: 47.09 | G7: 19003.64 | H7: 0.02469055537 | I7: 0.8322048013
A8: ED-50761 | B8: SETOP | C8: REBOCO COM ARGAMASSA, TRAÇO 1:2:8 (CIMENTO, CAL E AREIA), ESP. 20MM, APLICAÇÃO MANUAL, PREPARO MECÂNICO | D8: m2 | E8: 403.56 | F8: 40.58 | G8: 16376.46 | H8: 0.02127718124 | I8: 0.8534819825
A9: 89512 | B9: SINAPI | C9: TUBO PVC, SÉRIE R, ÁGUA PLUVIAL, DN 100 MM, FORNECIDO E INSTALADO EM RAMAL DE ENCAMINHAMENTO. AF_06/2022 | D9: M | E9: 243.55 | F9: 62.69 | G9: 15268.14 | H9: 0.01983719204 | I9: 0.8733191746
A10: 94228 | B10: SINAPI | C10: CALHA EM CHAPA DE AÇO GALVANIZADO NÚMERO 24, DESENVOLVIMENTO DE 50 CM, INCLUSO TRANSPORTE VERTICAL. AF_07/2019 | D10: M | E10: 98.5 | F10: 129.79 | G10: 12784.31 | H10: 0.01661006597 | I10: 0.8899292405
A11: 95626 | B11: SINAPI | C11: APLICAÇÃO MANUAL DE TINTA LÁTEX ACRÍLICA EM PAREDE EXTERNAS DE CASAS, DUAS DEMÃOS. AF_11/2016 | D11: M2 | E11: 403.56 | F11: 18.96 | G11: 7651.49 | H11: 0.009941229025 | I11: 0.8998704696
A12: 101979 | B12: SINAPI | C12: CHAPIM (RUFO CAPA) EM AÇO GALVANIZADO, CORTE 33. AF_11/2020 | D12: M | E12: 120 | F12: 61.19 | G12: 7342.8 | H12: 0.009540162306 | I12: 0.9094106319
A13: 94990 | B13: SINAPI | C13: EXECUÇÃO DE PASSEIO (CALÇADA) OU PISO DE CONCRETO COM CONCRETO MOLDADO IN LOCO, FEITO EM OBRA, ACABAMENTO CONVENCIONAL, NÃO ARMADO. AF_08/2022 | D13: M3 | E13: 6.8 | F13: 942.63 | G13: 6409.88 | H13: 0.00832806226 | I13: 0.9177386941
A14: ED-50266 | B14: SETOP | C14: LIMPEZA FINAL PARA ENTREGA DA OBRA | D14: m2 | E14: 720.42 | F14: 8.17 | G14: 5885.83 | H14: 0.007647188199 | I14: 0.9253858823
A15: 97650 | B15: SINAPI | C15: REMOÇÃO DE TRAMA DE MADEIRA PARA COBERTURA, DE FORMA MANUAL, SEM REAPROVEITAMENTO. AF_12/2017 | D15: M2 | E15: 720.43 | F15: 7.88 | G15: 5676.98 | H15: 0.007375839 | I15: 0.9327617213
A16: ED-49883 | B16: SETOP | C16: CAIXA DE ESGOTO DE INSPEÇÃO/PASSAGEM EM ALVENARIA (60X60X60CM), REVESTIMENTO EM ARGAMASSA COM ADITIVO IMPERMEABILIZANTE, COM TAMPA DE CONCRETO, INCLUSIVE ESCAVAÇÃO, REATERRO E TRANSPORTE E RETIRADA DO MATERIAL ESCAVADO (EM CAÇAMBA) | D16: un | E16: 10 | F16: 521.85 | G16: 5218.5 | H16: 0.006780157024 | I16: 0.9395418784
A17: ED-50155 | B17: SETOP | C17: LOCAÇÃO DE BANHEIRO QUÍMICO, DIMENSÃO (110X120X230)CM, LINHA PADRÃO, CONTENDO UMA (1) PIA/HIGIENIZADOR DE MÃOS, INCLUSIVE MANUTENÇÃO E MOBILIZAÇÃO/DESMOBILIZAÇÃO | D17: mês | E17: 5 | F17: 1037.46 | G17: 5187.3 | H17: 0.006739620299 | I17: 0.9462814987
A18: ED-28428 | B18: SETOP | C18: FORNECIMENTO E COLOCAÇÃO DE PLACA DE OBRA EM CHAPA GALVANIZADA #26, ESP. 0,45MM, DIMENSÃO (4X3)M, PLOTADA COM ADESIVO VINÍLICO, AFIXADA COM REBITES 4,8X40MM, EM ESTRUTURA METÁLICA DE METALON 20X20MM, ESP. 1,25MM, INCLUSIVE SUPORTE EM EUCALIPTO AUTOCLAVADO PINTADO COM TINTA PVA DUAS (2) DEMÃOS | D18: un | E18: 1 | F18: 4690.75 | G18: 4690.75 | H18: 0.006094475723 | I18: 0.9523759744
A19: ED-16350 | B19: SETOP | C19: LOCAÇÃO DE CONTAINER COM ISOLAMENTO TÉRMICO, TIPO 3, PARA DEPÓSITO/FERRAMENTARIA DE OBRA, COM MEDIDAS REFERENCIAIS DE (6) METROS COMPRIMENTO, (2,3) METROS LARGURA E (2,5) METROS ALTURA ÚTIL INTERNA, INCLUSIVE LIGAÇÕES ELÉTRICAS INTERNAS, EXCLUSIVE MOBILIZAÇÃO/DESMOBILIZAÇÃO E LIGAÇÕES PROVISÓRIAS EXTERNAS | D19: mês | E19: 5 | F19: 872.27 | G19: 4361.35 | H19: 0.005666501454 | I19: 0.9580424758
A20: ED-51131 | B20: SETOP | C20: CARGA MANUAL DE MATERIAL DE QUALQUER NATUREZA SOBRE CAMINHÃO, EXCLUSIVE TRANSPORTE | D20: m3 | E20: 91.53 | F20: 44.96 | G20: 4115.18 | H20: 0.005346664095 | I20: 0.9633891399
A21: 97651 | B21: SINAPI | C21: REMOÇÃO DE TESOURAS DE MADEIRA, COM VÃO MENOR QUE 8M, DE FORMA MANUAL, SEM REAPROVEITAMENTO. AF_12/2017 | D21: UN | E21: 40 | F21: 87.28 | G21: 3491.2 | H21: 0.004535955581 | I21: 0.9679250955
A22: 97649 | B22: SINAPI | C22: REMOÇÃO DE TELHAS DE FIBROCIMENTO, METÁLICA E CERÂMICA, DE FORMA MECANIZADA, COM USO DE GUINDASTE, SEM REAPROVEITAMENTO. AF_12/2017 | D22: M2 | E22: 720.43 | F22: 4.69 | G22: 3378.81 | H22: 0.004389932424 | I22: 0.9723150279
A23: 100327 | B23: SINAPI | C23: RUFO EXTERNO/INTERNO EM CHAPA DE AÇO GALVANIZADO NÚMERO 26, CORTE DE 33 CM, INCLUSO IÇAMENTO. AF_07/2019 | D23: M | E23: 39 | F23: 85.74 | G23: 3343.86 | H23: 0.004344523496 | I23: 0.9766595514
A24: 89580 | B24: SINAPI | C24: TUBO PVC, SÉRIE R, ÁGUA PLUVIAL, DN 150 MM, FORNECIDO E INSTALADO EM CONDUTORES VERTICAIS DE ÁGUAS PLUVIAIS. AF_06/2022 | D24: M | E24: 25.53 | F24: 93.61 | G24: 2389.86 | H24: 0.003105035176 | I24: 0.9797645866
A25: 89529 | B25: SINAPI | C25: JOELHO 90 GRAUS, PVC, SERIE R, ÁGUA PLUVIAL, DN 100 MM, JUNTA ELÁSTICA, FORNECIDO E INSTALADO EM RAMAL DE ENCAMINHAMENTO. AF_06/2022 | D25: UN | E25: 48 | F25: 46.67 | G25: 2240.16 | H25: 0.002910536851 | I25: 0.9826751235
A26: 97914 | B26: SINAPI | C26: TRANSPORTE COM CAMINHÃO BASCULANTE DE 6 M³, EM VIA URBANA PAVIMENTADA, DMT ATÉ 30 KM (UNIDADE: M3XKM). AF_07/2020 | D26: M3XKM | E26: 624.52 | F26: 3.4 | G26: 2123.36 | H26: 0.002758783983 | I26: 0.9854339074
A27: ED-48402 | B27: SETOP | C27: COLOCAÇÃO DE CUMEEIRA GALVANIZADA TRAPEZOIDAL E = 0,50 MM, SIMPLES | D27: m | E27: 26.69 | F27: 69.34 | G27: 1850.68 | H27: 0.002404503401 | I27: 0.9878384108
A28: 88415 | B28: SINAPI | C28: APLICAÇÃO MANUAL DE FUNDO SELADOR ACRÍLICO EM PAREDES EXTERNAS DE CASAS. AF_06/2014 | D28: M2 | E28: 403.56 | F28: 4.27 | G28: 1723.2 | H28: 0.002238874501 | I28: 0.9900772853
A29: DAC-4.1 | B29: CPU | C29: REMOÇÃO DE PILAR DE MADEIRA | D29: UN | E29: 13 | F29: 100.83 | G29: 1310.79 | H29: 0.001703049157 | I29: 0.9917803345
A30: 93358 | B30: SINAPI | C30: ESCAVAÇÃO MANUAL DE VALA COM PROFUNDIDADE MENOR OU IGUAL A 1,30 M. AF_02/2021 | D30: M3 | E30: 11.7 | F30: 88.93 | G30: 1040.48 | H30: 0.001351847807 | I30: 0.9931321823
A31: ED-50137 | B31: SETOP | C31: MOBILIZAÇÃO E DESMOBILIZAÇÃO DE CONTAINER, INCLUSIVE CARGA, DESCARGA E TRANSPORTE EM CAMINHÃO CARROCERIA COM GUINDAUTO (MUNCK), EXCLUSIVE LOCAÇÃO DO CONTAINER | D31: un | E31: 1 | F31: 799.47 | G31: 799.47 | H31: 0.001038714599 | I31: 0.9941708969
A32: ED-48506 | B32: SETOP | C32: REMOÇÃO MANUAL DE RUFO METÁLICO, COM REAPROVEITAMENTO, INCLUSIVE AFASTAMENTO E EMPILHAMENTO, EXCLUSIVE TRANSPORTE E RETIRADA DO MATERIAL REMOVIDO NÃO REAPROVEITÁVEL | D32: m | E32: 91.11 | F32: 7.65 | G32: 696.99 | H32: 0.0009055670488 | I32: 0.995076464
A33: 01.04.11 | B33: SUDECAP | C33: FITA ZEBRADA AMARELA PARA SINALIZAÇAO L= 7CM | D33: M | E33: 150 | F33: 3.7 | G33: 555 | H33: 0.0007210859726 | I33: 0.9957975499
A34: 93382 | B34: SINAPI | C34: REATERRO MANUAL DE VALAS COM COMPACTAÇÃO MECANIZADA. AF_04/2016 | D34: M3 | E34: 11.7 | F34: 36.96 | G34: 432.43 | H34: 0.0005618364093 | I34: 0.9963593863
A35: 101174 | B35: SINAPI | C35: ESTACA BROCA DE CONCRETO, DIÂMETRO DE 25CM, ESCAVAÇÃO MANUAL COM TRADO CONCHA, COM ARMADURA DE ARRANQUE. AF_05/2020 | D35: M | E35: 4 | F35: 100.15 | G35: 400.6 | H35: 0.0005204811543 | I35: 0.9968798675
A36: 97624 | B36: SINAPI | C36: DEMOLIÇÃO DE ALVENARIA DE TIJOLO MACIÇO, DE FORMA MANUAL, SEM REAPROVEITAMENTO. AF_12/2017 | D36: M3 | E36: 3.38 | F36: 111.32 | G36: 376.26 | H36: 0.0004888573118 | I36: 0.9973687248
A37: ED-48438 | B37: SETOP | C37: REMOÇÃO DE CALHA EM CHAPA GALVANIZADA OU EM PVC, COM REAPROVEITAMENTO, INCLUSIVE AFASTAMENTO E EMPILHAMENTO, EXCLUSIVE TRANSPORTE E RETIRADA DO MATERIAL REMOVIDO NÃO REAPROVEITÁVEL | D37: m | E37: 66.4 | F37: 5.19 | G37: 344.61 | H37: 0.0004477359226 | I37: 0.9978164607
A38: 89531 | B38: SINAPI | C38: JOELHO 45 GRAUS, PVC, SERIE R, ÁGUA PLUVIAL, DN 100 MM, JUNTA ELÁSTICA, FORNECIDO E INSTALADO EM RAMAL DE ENCAMINHAMENTO. AF_06/2022 | D38: UN | E38: 6 | F38: 48.11 | G38: 288.66 | H38: 0.000375042661 | I38: 0.9981915034
A39: 90444 | B39: SINAPI | C39: RASGO EM CONTRAPISO PARA RAMAIS/ DISTRIBUIÇÃO COM DIÂMETROS MENORES OU IGUAIS A 40 MM. AF_05/2015 | D39: M | E39: 7.5 | F39: 32.49 | G39: 243.67 | H39: 0.0003165892233 | I39: 0.9985080926
A40: ED-9076 | B40: SETOP | C40: FORNECIMENTO DE ANDAIME METÁLICO TUBULAR TIPO TORRE (LOCAÇÃO), INCLUSIVE RODÍZIOS, EXCLUSIVE MONTAGEM E DESMONTAGEM | D40: mxmês | E40: 9 | F40: 25.3 | G40: 227.7 | H40: 0.0002958401369 | I40: 0.9988039327
A41: ED-48440 | B41: SETOP | C41: DEMOLIÇÃO MANUAL DE CONCRETO, SEM ARMAÇÃO, INCLUSIVE AFASTAMENTO E EMPILHAMENTO, EXCLUSIVE TRANSPORTE E RETIRADA DO MATERIAL DEMOLIDO | D41: m3 | E41: 0.6 | F41: 324.73 | G41: 194.83 | H41: 0.0002531336577 | I41: 0.9990570664
A42: ED-49806 | B42: SETOP | C42: FORNECIMENTO DE CONCRETO ESTRUTURAL, USINADO BOMBEADO, COM FCK 30MPA, INCLUSIVE LANÇAMENTO, ADENSAMENTO E ACABAMENTO (FUNDAÇÃO) | D42: m3 | E42: 0.17 | F42: 932.59 | G42: 158.54 | H42: 0.0002059837299 | I42: 0.9992630501
A43: 100574 | B43: SINAPI | C43: ESPALHAMENTO DE MATERIAL COM TRATOR DE ESTEIRAS. AF_11/2019 | D43: M3 | E43: 91.62 | F43: 1.64 | G43: 150.24 | H43: 0.0001951999217 | I43: 0.9994582501
A44: 97064 | B44: SINAPI | C44: MONTAGEM E DESMONTAGEM DE ANDAIME TUBULAR TIPO TORRE (EXCLUSIVE ANDAIME E LIMPEZA). AF_11/2017 | D44: M | E44: 6 | F44: 23.22 | G44: 139.32 | H44: 0.0001810120679 | I44: 0.9996392621
A45: ED-48298 | B45: SETOP | C45: CORTE, DOBRA E MONTAGEM DE AÇO CA-50/60, INCLUSIVE ESPAÇADOR | D45: Kg | E45: 5.72 | F45: 17.1 | G45: 97.81 | H45: 0.0001270800342 | I45: 0.9997663422
A46: ED-8571 | B46: SETOP | C46: FÔRMA E DESFORMA DE COMPENSADO PLASTIFICADO, ESP. 12MM, REAPROVEITAMENTO (3X) (FUNDAÇÃO) | D46: m2 | E46: 0.74 | F46: 91.08 | G46: 67.39 | H46: 8.755672738e-05 | I46: 0.9998538989
A47: 90468 | B47: SINAPI | C47: CHUMBAMENTO LINEAR EM CONTRAPISO PARA RAMAIS/DISTRIBUIÇÃO COM DIÂMETROS MENORES OU IGUAIS A 40 MM. AF_05/2015 | D47: M | E47: 7.5 | F47: 6.98 | G47: 52.35 | H47: 6.801594715e-05 | I47: 0.9999219148
A48: 96521 | B48: SINAPI | C48: ESCAVAÇÃO MECANIZADA PARA BLOCO DE COROAMENTO OU SAPATA COM RETROESCAVADEIRA (INCLUINDO ESCAVAÇÃO PARA COLOCAÇÃO DE FÔRMAS). AF_06/2017 | D48: M3 | E48: 0.35 | F48: 54.89 | G48: 19.21 | H48: 2.495866943e-05 | I48: 0.9999468735
A49: 95601 | B49: SINAPI | C49: ARRASAMENTO MECANICO DE ESTACA DE CONCRETO ARMADO, DIAMETROS DE ATÉ 40 CM. AF_05/2021 | D49: UN | E49: 1 | F49: 19.06 | G49: 19.06 | H49: 2.476378133e-05 | I49: 0.9999716373
A50: 96619 | B50: SINAPI | C50: LASTRO DE CONCRETO MAGRO, APLICADO EM BLOCOS DE COROAMENTO OU SAPATAS, ESPESSURA DE 5 CM. AF_08/2017 | D50: M2 | E50: 0.31 | F50: 39.13 | G50: 12.13 | H50: 1.575995108e-05 | I50: 0.9999873972
A51: 96995 | B51: SINAPI | C51: REATERRO MANUAL APILOADO COM SOQUETE. AF_10/2017 | D51: M3 | E51: 0.18 | F51: 53.92 | G51: 9.7 | H51: 1.260276385e-05 | I51: 1

Sheet Auxiliar_ABC2 (hidden)
A1: 1 | D1: 1.1 | E1: LOCAÇÃO DE BANHEIRO QUÍMICO, DIMENSÃO (110X120X230)CM, LINHA PADRÃO, CONTENDO UMA (1) PIA/HIGIENIZADOR DE MÃOS, INCLUSIVE MANUTENÇÃO E MOBILIZAÇÃO/DESMOBILIZAÇÃO | F1: ED-50155 | G1: SETOP | H1: mês | I1: 5 | J1: 820 | K1: BDI 1 | L1: 1037.46 | M1: 4100 | N1: 5187.3
A2: 1 | D2: 1.2 | E2: LOCAÇÃO DE CONTAINER COM ISOLAMENTO TÉRMICO, TIPO 3, PARA DEPÓSITO/FERRAMENTARIA DE OBRA, COM MEDIDAS REFERENCIAIS DE (6) METROS COMPRIMENTO, (2,3) METROS LARGURA E (2,5) METROS ALTURA ÚTIL INTERNA, INCLUSIVE LIGAÇÕES ELÉTRICAS INTERNAS, EXCLUSIVE MOBILIZAÇÃO/DESMOBILIZAÇÃO E LIGAÇÕES PROVISÓRIAS EXTERNAS | F2: ED-16350 | G2: SETOP | H2: mês | I2: 5 | J2: 689.44 | K2: BDI 1 | L2: 872.27 | M2: 3447.2 | N2: 4361.35
A3: 1 | D3: 1.3 | E3: MOBILIZAÇÃO E DESMOBILIZAÇÃO DE CONTAINER, INCLUSIVE CARGA, DESCARGA E TRANSPORTE EM CAMINHÃO CARROCERIA COM GUINDAUTO (MUNCK), EXCLUSIVE LOCAÇÃO DO CONTAINER | F3: ED-50137 | G3: SETOP | H3: un | I3: 1 | J3: 631.9 | K3: BDI 1 | L3: 799.47 | M3: 631.9 | N3: 799.47
A4: 1 | D4: 1.4 | E4: FITA ZEBRADA AMARELA PARA SINALIZAÇAO L= 7CM | F4: 01.04.11 | G4: SUDECAP | H4: M | I4: 150 | J4: 2.93 | K4: BDI 1 | L4: 3.7 | M4: 439.5 | N4: 555
A5: 2 | D5: 2.1 | E5: FORNECIMENTO E COLOCAÇÃO DE PLACA DE OBRA EM CHAPA GALVANIZADA #26, ESP. 0,45MM, DIMENSÃO (4X3)M, PLOTADA COM ADESIVO VINÍLICO, AFIXADA COM REBITES 4,8X40MM, EM ESTRUTURA METÁLICA DE METALON 20X20MM, ESP. 1,25MM, INCLUSIVE SUPORTE EM EUCALIPTO AUTOCLAVADO PINTADO COM TINTA PVA DUAS (2) DEMÃOS | F5: ED-28428 | G5: SETOP | H5: un | I5: 1 | J5: 3707.52 | K5: BDI 1 | L5: 4690.75 | M5: 3707.52 | N5: 4690.75
A6: 3 | D6: 3.1 | E6: ENGENHEIRO CIVIL DE OBRA JUNIOR COM ENCARGOS COMPLEMENTARES | F6: 93565 | G6: SINAPI | H6: MES | I6: 5 | J6: 17112.16 | K6: BDI 1 | L6: 21650.3 | M6: 85560.8 | N6: 108251.5
A7: 3 | D7: 3.2 | E7: TÉCNICO EM SEGURANÇA DO TRABALHO COM ENCARGOS COMPLEMENTARES | F7: 100321 | G7: SINAPI | H7: MES | I7: 5 | J7: 5809.27 | K7: BDI 1 | L7: 7349.88 | M7: 29046.35 | N7: 36749.4
A8: 4 | D8: 4.1 | E8: REMOÇÃO DE TELHAS DE FIBROCIMENTO, METÁLICA E CERÂMICA, DE FORMA MECANIZADA, COM USO DE GUINDASTE, SEM REAPROVEITAMENTO. AF_12/2017 | F8: 97649 | G8: SINAPI | H8: M2 | I8: 720.43 | J8: 3.71 | K8: BDI 1 | L8: 4.69 | M8: 2672.79 | N8: 3378.81
A9: 4 | D9: 4.2 | E9: REMOÇÃO MANUAL DE RUFO METÁLICO, COM REAPROVEITAMENTO, INCLUSIVE AFASTAMENTO E EMPILHAMENTO, EXCLUSIVE TRANSPORTE E RETIRADA DO MATERIAL REMOVIDO NÃO REAPROVEITÁVEL | F9: ED-48506 | G9: SETOP | H9: m | I9: 91.11 | J9: 6.05 | K9: BDI 1 | L9: 7.65 | M9: 551.21 | N9: 696.99
A10: 4 | D10: 4.3 | E10: REMOÇÃO DE CALHA EM CHAPA GALVANIZADA OU EM PVC, COM REAPROVEITAMENTO, INCLUSIVE AFASTAMENTO E EMPILHAMENTO, EXCLUSIVE TRANSPORTE E RETIRADA DO MATERIAL REMOVIDO NÃO REAPROVEITÁVEL | F10: ED-48438 | G10: SETOP | H10: m | I10: 66.4 | J10: 4.11 | K10: BDI 1 | L10: 5.19 | M10: 272.9 | N10: 344.61
A11: 4 | D11: 4.4 | E11: REMOÇÃO DE TRAMA DE MADEIRA PARA COBERTURA, DE FORMA MANUAL, SEM REAPROVEITAMENTO. AF_12/2017 | F11: 97650 | G11: SINAPI | H11: M2 | I11: 720.43 | J11: 6.23 | K11: BDI 1 | L11: 7.88 | M11: 4488.27 | N11: 5676.98
A12: 4 | D12: 4.5 | E12: REMOÇÃO DE TESOURAS DE MADEIRA, COM VÃO MENOR QUE 8M, DE FORMA MANUAL, SEM REAPROVEITAMENTO. AF_12/2017 | F12: 97651 | G12: SINAPI | H12: UN | I12: 40 | J12: 68.99 | K12: BDI 1 | L12: 87.28 | M12: 2759.6 | N12: 3491.2
A13: 4 | D13: 4.6 | E13: DEMOLIÇÃO DE ALVENARIA DE TIJOLO MACIÇO, DE FORMA MANUAL, SEM REAPROVEITAMENTO. AF_12/2017 | F13: 97624 | G13: SINAPI | H13: M3 | I13: 3.38 | J13: 87.99 | K13: BDI 1 | L13: 111.32 | M13: 297.4 | N13: 376.26
A14: 4 | D14: 4.7 | E14: REMOÇÃO DE PILAR DE MADEIRA | F14: DAC-4.1 | G14: CPU | H14: UN | I14: 13 | J14: 79.7 | K14: BDI 1 | L14: 100.83 | M14: 1036.1 | N14: 1310.79
A15: 4 | D15: 4.8 | E15: CARGA MANUAL DE MATERIAL DE QUALQUER NATUREZA SOBRE CAMINHÃO, EXCLUSIVE TRANSPORTE | F15: ED-51131 | G15: SETOP | H15: m3 | I15: 90 | J15: 35.54 | K15: BDI 1 | L15: 44.96 | M15: 3198.6 | N15: 4046.4
A16: 4 | D16: 4.9 | E16: TRANSPORTE COM CAMINHÃO BASCULANTE DE 6 M³, EM VIA URBANA PAVIMENTADA, DMT ATÉ 30 KM (UNIDADE: M3XKM). AF_07/2020 | F16: 97914 | G16: SINAPI | H16: M3XKM | I16: 616.15 | J16: 2.69 | K16: BDI 1 | L16: 3.4 | M16: 1657.44 | N16: 2094.91
A17: 4 | D17: 4.10 | E17: ESPALHAMENTO DE MATERIAL COM TRATOR DE ESTEIRAS. AF_11/2019 | F17: 100574 | G17: SINAPI | H17: M3 | I17: 90.61 | J17: 1.3 | K17: BDI 1 | L17: 1.64 | M17: 117.79 | N17: 148.6
A18: 4 | D18: 4.11 | E18: FORNECIMENTO DE ANDAIME METÁLICO TUBULAR TIPO TORRE (LOCAÇÃO), INCLUSIVE RODÍZIOS, EXCLUSIVE MONTAGEM E DESMONTAGEM | F18: ED-9076 | G18: SETOP | H18: mxmês | I18: 9 | J18: 20 | K18: BDI 1 | L18: 25.3 | M18: 180 | N18: 227.7
A19: 4 | D19: 4.12 | E19: MONTAGEM E DESMONTAGEM DE ANDAIME TUBULAR TIPO TORRE (EXCLUSIVE ANDAIME E LIMPEZA). AF_11/2017 | F19: 97064 | G19: SINAPI | H19: M | I19: 6 | J19: 18.36 | K19: BDI 1 | L19: 23.22 | M19: 110.16 | N19: 139.32
A20: 5 | B20: 1 | D20: 5.1.1 | E20: ESCAVAÇÃO MECANIZADA PARA BLOCO DE COROAMENTO OU SAPATA COM RETROESCAVADEIRA (INCLUINDO ESCAVAÇÃO PARA COLOCAÇÃO DE FÔRMAS). AF_06/2017 | F20: 96521 | G20: SINAPI | H20: M3 | I20: 0.35 | J20: 43.39 | K20: BDI 1 | L20: 54.89 | M20: 15.18 | N20: 19.21
A21: 5 | B21: 1 | D21: 5.1.2 | E21: ESTACA BROCA DE CONCRETO, DIÂMETRO DE 25CM, ESCAVAÇÃO MANUAL COM TRADO CONCHA, COM ARMADURA DE ARRANQUE. AF_05/2020 | F21: 101174 | G21: SINAPI | H21: M | I21: 4 | J21: 79.16 | K21: BDI 1 | L21: 100.15 | M21: 316.64 | N21: 400.6
A22: 5 | B22: 1 | D22: 5.1.3 | E22: ARRASAMENTO MECANICO DE ESTACA DE CONCRETO ARMADO, DIAMETROS DE ATÉ 40 CM. AF_05/2021 | F22: 95601 | G22: SINAPI | H22: UN | I22: 1 | J22: 15.07 | K22: BDI 1 | L22: 19.06 | M22: 15.07 | N22: 19.06
A23: 5 | B23: 1 | D23: 5.1.4 | E23: LASTRO DE CONCRETO MAGRO, APLICADO EM BLOCOS DE COROAMENTO OU SAPATAS, ESPESSURA DE 5 CM. AF_08/2017 | F23: 96619 | G23: SINAPI | H23: M2 | I23: 0.31 | J23: 30.93 | K23: BDI 1 | L23: 39.13 | M23: 9.58 | N23: 12.13
A24: 5 | B24: 1 | D24: 5.1.5 | E24: FÔRMA E DESFORMA DE COMPENSADO PLASTIFICADO, ESP. 12MM, REAPROVEITAMENTO (3X) (FUNDAÇÃO) | F24: ED-8571 | G24: SETOP | H24: m2 | I24: 0.74 | J24: 71.99 | K24: BDI 1 | L24: 91.08 | M24: 53.27 | N24: 67.39
A25: 5 | B25: 1 | D25: 5.1.6 | E25: CORTE, DOBRA E MONTAGEM DE AÇO CA-50/60, INCLUSIVE ESPAÇADOR | F25: ED-48298 | G25: SETOP | H25: Kg | I25: 5.72 | J25: 13.52 | K25: BDI 1 | L25: 17.1 | M25: 77.33 | N25: 97.81
A26: 5 | B26: 1 | D26: 5.1.7 | E26: FORNECIMENTO DE CONCRETO ESTRUTURAL, USINADO BOMBEADO, COM FCK 30MPA, INCLUSIVE LANÇAMENTO, ADENSAMENTO E ACABAMENTO (FUNDAÇÃO) | F26: ED-49806 | G26: SETOP | H26: m3 | I26: 0.17 | J26: 737.11 | K26: BDI 1 | L26: 932.59 | M26: 125.3 | N26: 158.54
A27: 5 | B27: 1 | D27: 5.1.8 | E27: REATERRO MANUAL APILOADO COM SOQUETE. AF_10/2017 | F27: 96995 | G27: SINAPI | H27: M3 | I27: 0.18 | J27: 42.62 | K27: BDI 1 | L27: 53.92 | M27: 7.67 | N27: 9.7
A28: 5 | B28: 1 | D28: 5.1.9 | E28: CARGA MANUAL DE MATERIAL DE QUALQUER NATUREZA SOBRE CAMINHÃO, EXCLUSIVE TRANSPORTE | F28: ED-51131 | G28: SETOP | H28: m3 | I28: 0.23 | J28: 35.54 | K28: BDI 1 | L28: 44.96 | M28: 8.17 | N28: 10.34
A29: 5 | B29: 1 | D29: 5.1.10 | E29: TRANSPORTE COM CAMINHÃO BASCULANTE DE 6 M³, EM VIA URBANA PAVIMENTADA, DMT ATÉ 30 KM (UNIDADE: M3XKM). AF_07/2020 | F29: 97914 | G29: SINAPI | H29: M3XKM | I29: 1.57 | J29: 2.69 | K29: BDI 1 | L29: 3.4 | M29: 4.22 | N29: 5.33
A30: 5 | B30: 1 | D30: 5.1.11 | E30: ESPALHAMENTO DE MATERIAL COM TRATOR DE ESTEIRAS. AF_11/2019 | F30: 100574 | G30: SINAPI | H30: M3 | I30: 0.23 | J30: 1.3 | K30: BDI 1 | L30: 1.64 | M30: 0.29 | N30: 0.37
A31: 5 | B31: 2 | D31: 5.2.1 | E31: FORNECIMENTO DE ESTRUTURA METÁLICA EM PERFIL LAMINADO, INCLUSIVE FABRICAÇÃO, TRANSPORTE, MONTAGEM E APLICAÇÃO DE FUNDO PREPARADOR ANTICORROSIVO EM SUPERFÍCIE METÁLICA, UMA (1) DEMÃO | F31: ED-49664 | G31: SETOP | H31: Kg | I31: 6590.33 | J31: 24.43 | K31: BDI 1 | L31: 30.9 | M31: 161001.76 | N31: 203641.19
A32: 5 | B32: 2 | D32: 5.2.2 | E32: TELHAMENTO COM TELHA METÁLICA TERMOACÚSTICA E = 30 MM, COM ATÉ 2 ÁGUAS, INCLUSO IÇAMENTO. AF_07/2019 | F32: 94216 | G32: SINAPI | H32: M2 | I32: 705.82 | J32: 185.5 | K32: BDI 1 | L32: 234.69 | M32: 130929.61 | N32: 165648.89
A33: 5 | B33: 2 | D33: 5.2.3 | E33: COLOCAÇÃO DE CUMEEIRA GALVANIZADA TRAPEZOIDAL E = 0,50 MM, SIMPLES | F33: ED-48402 | G33: SETOP | H33: m | I33: 26.69 | J33: 54.81 | K33: BDI 1 | L33: 69.34 | M33: 1462.87 | N33: 1850.68
A34: 5 | B34: 2 | D34: 5.2.4 | E34: PINTURA ESMALTE EM ESTRUTURA METÁLICA, DUAS (2) DEMÃOS, INCLUSIVE UMA (1) DEMÃO FUNDO ANTICORROSIVO | F34: ED-50497 | G34: SETOP | H34: m2 | I34: 2038.51 | J34: 32.91 | K34: BDI 1 | L34: 41.63 | M34: 67087.36 | N34: 84863.17
A35: 6 | D35: 6.1 | E35: ALVENARIA DE VEDAÇÃO COM TIJOLO MACIÇO REQUEIMADO, ESP. 10CM, PARA REVESTIMENTO, INCLUSIVE ARGAMASSA PARA ASSENTAMENTO | F35: ED-48227 | G35: SETOP | H35: m2 | I35: 201.78 | J35: 87.62 | K35: BDI 1 | L35: 110.85 | M35: 17679.96 | N35: 22367.31
A36: 6 | D36: 6.3 | E36: EMBOÇO OU MASSA ÚNICA EM ARGAMASSA TRAÇO 1:2:8, PREPARO MECÂNICO COM BETONEIRA 400 L, APLICADA MANUALMENTE EM PANOS CEGOS DE FACHADA (SEM PRESENÇA DE VÃOS), ESPESSURA DE 25 MM. AF_08/2022 | F36: 87792 | G36: SINAPI | H36: M2 | I36: 403.56 | J36: 37.22 | K36: BDI 1 | L36: 47.09 | M36: 15020.5 | N36: 19003.64
A37: 6 | D37: 6.4 | E37: REBOCO COM ARGAMASSA, TRAÇO 1:2:8 (CIMENTO, CAL E AREIA), ESP. 20MM, APLICAÇÃO MANUAL, PREPARO MECÂNICO | F37: ED-50761 | G37: SETOP | H37: m2 | I37: 403.56 | J37: 32.08 | K37: BDI 1 | L37: 40.58 | M37: 12946.2 | N37: 16376.46
A38: 6 | D38: 6.5 | E38: APLICAÇÃO MANUAL DE FUNDO SELADOR ACRÍLICO EM PAREDES EXTERNAS DE CASAS. AF_06/2014 | F38: 88415 | G38: SINAPI | H38: M2 | I38: 403.56 | J38: 3.38 | K38: BDI 1 | L38: 4.27 | M38: 1364.03 | N38: 1723.2
A39: 6 | D39: 6.6 | E39: APLICAÇÃO MANUAL DE TINTA LÁTEX ACRÍLICA EM PAREDE EXTERNAS DE CASAS, DUAS DEMÃOS. AF_11/2016 | F39: 95626 | G39: SINAPI | H39: M2 | I39: 403.56 | J39: 14.99 | K39: BDI 1 | L39: 18.96 | M39: 6049.36 | N39: 7651.49
A40: 7 | D40: 7.1 | E40: CAIXA DE ESGOTO DE INSPEÇÃO/PASSAGEM EM ALVENARIA (60X60X60CM), REVESTIMENTO EM ARGAMASSA COM ADITIVO IMPERMEABILIZANTE, COM TAMPA DE CONCRETO, INCLUSIVE ESCAVAÇÃO, REATERRO E TRANSPORTE E RETIRADA DO MATERIAL ESCAVADO (EM CAÇAMBA) | F40: ED-49883 | G40: SETOP | H40: un | I40: 10 | J40: 412.47 | K40: BDI 1 | L40: 521.85 | M40: 4124.7 | N40: 5218.5
A41: 7 | D41: 7.2 | E41: JOELHO 90 GRAUS, PVC, SERIE R, ÁGUA PLUVIAL, DN 100 MM, JUNTA ELÁSTICA, FORNECIDO E INSTALADO EM RAMAL DE ENCAMINHAMENTO. AF_06/2022 | F41: 89529 | G41: SINAPI | H41: UN | I41: 48 | J41: 36.89 | K41: BDI 1 | L41: 46.67 | M41: 1770.72 | N41: 2240.16
A42: 7 | D42: 7.3 | E42: JOELHO 45 GRAUS, PVC, SERIE R, ÁGUA PLUVIAL, DN 100 MM, JUNTA ELÁSTICA, FORNECIDO E INSTALADO EM RAMAL DE ENCAMINHAMENTO. AF_06/2022 | F42: 89531 | G42: SINAPI | H42: UN | I42: 6 | J42: 38.03 | K42: BDI 1 | L42: 48.11 | M42: 228.18 | N42: 288.66
A43: 7 | D43: 7.4 | E43: TUBO PVC, SÉRIE R, ÁGUA PLUVIAL, DN 100 MM, FORNECIDO E INSTALADO EM RAMAL DE ENCAMINHAMENTO. AF_06/2022 | F43: 89512 | G43: SINAPI | H43: M | I43: 243.55 | J43: 49.55 | K43: BDI 1 | L43: 62.69 | M43: 12067.9 | N43: 15268.14
A44: 7 | D44: 7.5 | E44: TUBO PVC, SÉRIE R, ÁGUA PLUVIAL, DN 150 MM, FORNECIDO E INSTALADO EM CONDUTORES VERTICAIS DE ÁGUAS PLUVIAIS. AF_06/2022 | F44: 89580 | G44: SINAPI | H44: M | I44: 25.53 | J44: 73.99 | K44: BDI 1 | L44: 93.61 | M44: 1888.96 | N44: 2389.86
A45: 7 | D45: 7.6 | E45: CALHA EM CHAPA DE AÇO GALVANIZADO NÚMERO 24, DESENVOLVIMENTO DE 50 CM, INCLUSO TRANSPORTE VERTICAL. AF_07/2019 | F45: 94228 | G45: SINAPI | H45: M | I45: 98.5 | J45: 102.59 | K45: BDI 1 | L45: 129.79 | M45: 10105.11 | N45: 12784.31
A46: 7 | D46: 7.7 | E46: RUFO EXTERNO/INTERNO EM CHAPA DE AÇO GALVANIZADO NÚMERO 26, CORTE DE 33 CM, INCLUSO IÇAMENTO. AF_07/2019 | F46: 100327 | G46: SINAPI | H46: M | I46: 39 | J46: 67.77 | K46: BDI 1 | L46: 85.74 | M46: 2643.03 | N46: 3343.86
A47: 7 | D47: 7.8 | E47: CHAPIM (RUFO CAPA) EM AÇO GALVANIZADO, CORTE 33. AF_11/2020 | F47: 101979 | G47: SINAPI | H47: M | I47: 120 | J47: 48.37 | K47: BDI 1 | L47: 61.19 | M47: 5804.4 | N47: 7342.8
A48: 7 | D48: 7.9 | E48: ESCAVAÇÃO MANUAL DE VALA COM PROFUNDIDADE MENOR OU IGUAL A 1,30 M. AF_02/2021 | F48: 93358 | G48: SINAPI | H48: M3 | I48: 11.7 | J48: 70.29 | K48: BDI 1 | L48: 88.93 | M48: 822.39 | N48: 1040.48
A49: 7 | D49: 7.10 | E49: REATERRO MANUAL DE VALAS COM COMPACTAÇÃO MECANIZADA. AF_04/2016 | F49: 93382 | G49: SINAPI | H49: M3 | I49: 11.7 | J49: 29.22 | K49: BDI 1 | L49: 36.96 | M49: 341.87 | N49: 432.43
A50: 7 | D50: 7.11 | E50: DEMOLIÇÃO MANUAL DE CONCRETO, SEM ARMAÇÃO, INCLUSIVE AFASTAMENTO E EMPILHAMENTO, EXCLUSIVE TRANSPORTE E RETIRADA DO MATERIAL DEMOLIDO | F50: ED-48440 | G50: SETOP | H50: m3 | I50: 0.6 | J50: 256.67 | K50: BDI 1 | L50: 324.73 | M50: 154 | N50: 194.83
A51: 7 | D51: 7.12 | E51: RASGO EM CONTRAPISO PARA RAMAIS/ DISTRIBUIÇÃO COM DIÂMETROS MENORES OU IGUAIS A 40 MM. AF_05/2015 | F51: 90444 | G51: SINAPI | H51: M | I51: 7.5 | J51: 25.68 | K51: BDI 1 | L51: 32.49 | M51: 192.6 | N51: 243.67
A52: 7 | D52: 7.13 | E52: CHUMBAMENTO LINEAR EM CONTRAPISO PARA RAMAIS/DISTRIBUIÇÃO COM DIÂMETROS MENORES OU IGUAIS A 40 MM. AF_05/2015 | F52: 90468 | G52: SINAPI | H52: M | I52: 7.5 | J52: 5.52 | K52: BDI 1 | L52: 6.98 | M52: 41.4 | N52: 52.35
A53: 7 | D53: 7.14 | E53: CARGA MANUAL DE MATERIAL DE QUALQUER NATUREZA SOBRE CAMINHÃO, EXCLUSIVE TRANSPORTE | F53: ED-51131 | G53: SETOP | H53: m3 | I53: 1.3 | J53: 35.54 | K53: BDI 1 | L53: 44.96 | M53: 46.2 | N53: 58.44
A54: 7 | D54: 7.15 | E54: TRANSPORTE COM CAMINHÃO BASCULANTE DE 6 M³, EM VIA URBANA PAVIMENTADA, DMT ATÉ 30 KM (UNIDADE: M3XKM). AF_07/2020 | F54: 97914 | G54: SINAPI | H54: M3XKM | I54: 6.8 | J54: 2.69 | K54: BDI 1 | L54: 3.4 | M54: 18.29 | N54: 23.12
A55: 7 | D55: 7.16 | E55: ESPALHAMENTO DE MATERIAL COM TRATOR DE ESTEIRAS. AF_11/2019 | F55: 100574 | G55: SINAPI | H55: M3 | I55: 0.78 | J55: 1.3 | K55: BDI 1 | L55: 1.64 | M55: 1.01 | N55: 1.27
A56: 7 | D56: 7.17 | E56: EXECUÇÃO DE PASSEIO (CALÇADA) OU PISO DE CONCRETO COM CONCRETO MOLDADO IN LOCO, FEITO EM OBRA, ACABAMENTO CONVENCIONAL, NÃO ARMADO. AF_08/2022 | F56: 94990 | G56: SINAPI | H56: M3 | I56: 6.8 | J56: 745.05 | K56: BDI 1 | L56: 942.63 | M56: 5066.34 | N56: 6409.88
A57: 8 | D57: 8.1 | E57: LIMPEZA FINAL PARA ENTREGA DA OBRA | F57: ED-50266 | G57: SETOP | H57: m2 | I57: 720.42 | J57: 6.46 | K57: BDI 1 | L57: 8.17 | M57: 4653.91 | N57: 5885.83

Sheet CPU
A2: COMPOSIÇÕES DE CUSTO | L2: Revisão: | M2: =DADOS!D6 -> R01
L3: Data: | M3: =DADOS!D2 -> 2023-05-05
A4: Projeto: | D4: Cliente: | H4: Cliente: | L4: Bancos:
A5: =DADOS!D8 -> REFORMA DA COBERTURA DO CEIM RECANTO FELIZ | L5: =DADOS!D14 -> SINAPI: 03/2023 Minas Gerais SETOP: 01/2023 Minas Gerais SICRO : 01/2023 Minas Gerais SUDECAP: 02/2023 Minas Gerais
L8: BDI 1: | M8: =DADOS!D10 -> 0.2652
L9: BDI 2: | M9: =DADOS!D12 -> 0.2025
A11: =A2&" DE "&DADOS!D20&" - "&A5 -> COMPOSIÇÕES DE CUSTO DE PROJETO EXECUTIVO - REFORMA DA COBERTURA DO CEIM RECANTO FELIZ
A13: CÓDIGO | B13: DESCRIÇÃO | I13: Banco | J13: Unid. | K13: Coeficiente | L13: Preço Unit. | M13: Total
A15: 4 | B15: =VLOOKUP(A15,ORC!$D$45:$N$368,2,0) -> DEMOLIÇÕES E REMOÇÕES
A16: DAC-4.1 | B16: REMOÇÃO DE PILAR DE MADEIRA | I16: CPU | J16: UN | M16: =SUM(M17:M19) -> 79.7
B17: 93382 | C17: =IF(I17="SINAPI",VLOOKUP(B17,DADOS_SINAPI,2,0),IF(I17="SETOP",VLOOKUP(B17,DADOS_SETOP,2,0),IF(I17="SICRO",VLOOKUP(B17,DADOS_SICRO,2,0),IF(I17="SUDECAP",VLOOKUP(B17,DADOS_SUDECAP,2,0),IF(I17="COTAÇÃO",VLOOKUP(B17,DADOS_COTACAO,2,0),VLOOKUP(B17,DADOS_COMPOSICAO,2,0)))))) -> REATERRO MANUAL DE VALAS COM COMPACTAÇÃO MECANIZADA. AF_04/2016 | I17: SINAPI | J17: =IF(I17="SINAPI",VLOOKUP(B17,DADOS_SINAPI,3,0),IF(I17="SETOP",VLOOKUP(B17,DADOS_SETOP,3,0),IF(I17="SICRO",VLOOKUP(B17,DADOS_SICRO,3,0),IF(I17="SUDECAP",VLOOKUP(B17,DADOS_SUDECAP,3,0),IF(I17="COTAÇÃO",VLOOKUP(B17,DADOS_COTACAO,9,0),VLOOKUP(B17,DADOS_COMPOSICAO,10,0)))))) -> M3 | K17: 0.08 | L17: =TRUNC(IF(I17="SINAPI",VLOOKUP(B17,DADOS_SINAPI,4,0),IF(I17="SETOP",VLOOKUP(B17,DADOS_SETOP,4,0),IF(I17="SICRO",VLOOKUP(B17,DADOS_SICRO,4,0),IF(I17="SUDECAP",VLOOKUP(B17,DADOS_SUDECAP,4,0),IF(I17="COTAÇÃO",VLOOKUP(B17,DADOS_COTACAO,12,0),VLOOKUP(B17,DADOS_COMPOSICAO,13,0)))))),2) -> 29.22 | M17: =TRUNC(K17*L17,2) -> 2.33
B18: 94990 | C18: EXECUÇÃO DE PASSEIO (CALÇADA) OU PISO DE CONCRETO COM CONCRETO MOLDADO IN LOCO, FEITO EM OBRA, ACABAMENTO CONVENCIONAL, NÃO ARMADO. AF_08/2022 | I18: SINAPI | J18: M3 | K18: 0.08 | L18: 745.05 | M18: =TRUNC(K18*L18,2) -> 59.6
B19: 88316 | C19: SERVENTE COM ENCARGOS COMPLEMENTARES | I19: SINAPI | J19: H | K19: 1 | L19: 17.77 | M19: 17.77
D26: RESPONSÁVEL TÉCNICO: | G26: =DADOS!D16 -> FLÁVIA CRISTINA BARBOSA
G27: =DADOS!D18 -> CREA - MG 187.842/D

Sheet COT
A2: PLANILHA DE COTAÇÕES | K2: Revisão: | L2: =DADOS!D6 -> R01
K3: Data: | L3: =DADOS!D2 -> 2023-05-05
A4: Projeto: | D4: Responsável: | G4: Cliente: | K4: Bancos:
A5: =DADOS!D8 -> REFORMA DA COBERTURA DO CEIM RECANTO FELIZ | D5: =DADOS!G8 -> 0 | K5: =DADOS!D14 -> SINAPI: 03/2023 Minas Gerais SETOP: 01/2023 Minas Gerais SICRO : 01/2023 Minas Gerais SUDECAP: 02/2023 Minas Gerais
K8: BDI 1: | L8: =DADOS!D10 -> 0.2652
K9: BDI 2: | L9: =DADOS!D12 -> 0.2025
A11: =A2&" DE "&DADOS!D20&" - "&A5 -> PLANILHA DE COTAÇÕES DE PROJETO EXECUTIVO - REFORMA DA COBERTURA DO CEIM RECANTO FELIZ
A13: COT-MET-001 | B13: FORNECIMENTO, MONTAGEM E INSTALAÇÃO DE COBERTURA METÁLICA COM TELHAS DE POLICARBONATO COMPATA, LARGURA DE 4,30m E COMPRIMENTO DE 24,56m, INCLUSO PINTURA | I13: UN | L13: =MEDIAN(L15:XFD17) -> 
A14: EMPRESA | B14: CIDADE | C14: LOCAL / LINK | G14: CNPJ | H14: CONTATO | I14: UN | J14: VALOR | K14: FRETE | L14: TOTAL
A21: EMPRESA | B21: CIDADE | C21: LOCAL / LINK | G21: CNPJ | H21: CONTATO | I21: UN | J21: VALOR | K21: FRETE | L21: TOTAL
A27: EMPRESA | B27: CIDADE | C27: LOCAL / LINK | G27: CNPJ | H27: CONTATO | I27: UN | J27: VALOR | K27: FRETE | L27: TOTAL
C35: RESPONSÁVEL TÉCNICO: | F35: =DADOS!D16 -> FLÁVIA CRISTINA BARBOSA
F36: =DADOS!D18 -> CREA - MG 187.842/D

Sheet SINAPI (hidden)
B1: SINAPI MARÇO 2023
A2: CÓDIGO | B2: DESCRIÇÃO | C2: UNIDADE | D2: PREÇO
A3: 38605 | B3: ABERTURA PARA ENCAIXE DE CUBA OU LAVATORIO EM BANCADA DE MARMORE/ GRANITO OU OUTRO TIPO DE PEDRA NATURAL | C3: UN | D3: 119.64
A4: 11270 | B4: ABRACADEIRA DE LATAO PARA FIXACAO DE CABO PARA-RAIO, DIMENSOES 32 X 24 X 24 MM | C4: UN | D4: 3.54
A5: 412 | B5: ABRACADEIRA DE NYLON PARA AMARRACAO DE CABOS, COMPRIMENTO DE *230* X *7,6* MM | C5: UN | D5: 1.02
A6: 414 | B6: ABRACADEIRA DE NYLON PARA AMARRACAO DE CABOS, COMPRIMENTO DE 100 X 2,5 MM | C6: UN | D6: 0.06
A7: 410 | B7: ABRACADEIRA DE NYLON PARA AMARRACAO DE CABOS, COMPRIMENTO DE 150 X *3,6* MM | C7: UN | D7: 0.15
A8: 411 | B8: ABRACADEIRA DE NYLON PARA AMARRACAO DE CABOS, COMPRIMENTO DE 200 X *4,6* MM | C8: UN | D8: 0.2
A9: 408 | B9: ABRACADEIRA DE NYLON PARA AMARRACAO DE CABOS, COMPRIMENTO DE 390 X *4,6* MM | C9: UN | D9: 0.99
A10: 39131 | B10: ABRACADEIRA EM ACO PARA AMARRACAO DE ELETRODUTOS, TIPO D, COM 1 1/2" E CUNHA DE FIXACAO | C10: UN | D10: 3.79
A11: 394 | B11: ABRACADEIRA EM ACO PARA AMARRACAO DE ELETRODUTOS, TIPO D, COM 1 1/2" E PARAFUSO DE FIXACAO | C11: UN | D11: 3.84
A12: 39130 | B12: ABRACADEIRA EM ACO PARA AMARRACAO DE ELETRODUTOS, TIPO D, COM 1 1/4" E CUNHA DE FIXACAO | C12: UN | D12: 3.46
A13: 395 | B13: ABRACADEIRA EM ACO PARA AMARRACAO DE ELETRODUTOS, TIPO D, COM 1 1/4" E PARAFUSO DE FIXACAO | C13: UN | D13: 3.7
A14: 39127 | B14: ABRACADEIRA EM ACO PARA AMARRACAO DE ELETRODUTOS, TIPO D, COM 1/2" E CUNHA DE FIXACAO | C14: UN | D14: 1.82
A15: 392 | B15: ABRACADEIRA EM ACO PARA AMARRACAO DE ELETRODUTOS, TIPO D, COM 1/2" E PARAFUSO DE FIXACAO | C15: UN | D15: 1.87
A16: 39129 | B16: ABRACADEIRA EM ACO PARA AMARRACAO DE ELETRODUTOS, TIPO D, COM 1" E CUNHA DE FIXACAO | C16: UN | D16: 2.13
A17: 393 | B17: ABRACADEIRA EM ACO PARA AMARRACAO DE ELETRODUTOS, TIPO D, COM 1" E PARAFUSO DE FIXACAO | C17: UN | D17: 2.23
A18: 39133 | B18: ABRACADEIRA EM ACO PARA AMARRACAO DE ELETRODUTOS, TIPO D, COM 2 1/2" E CUNHA DE FIXACAO | C18: UN | D18: 4.98
A19: 397 | B19: ABRACADEIRA EM ACO PARA AMARRACAO DE ELETRODUTOS, TIPO D, COM 2 1/2" E PARAFUSO DE FIXACAO | C19: UN | D19: 5.5
A20: 39132 | B20: ABRACADEIRA EM ACO PARA AMARRACAO DE ELETRODUTOS, TIPO D, COM 2" E CUNHA DE FIXACAO | C20: UN | D20: 3.98
A21: 396 | B21: ABRACADEIRA EM ACO PARA AMARRACAO DE ELETRODUTOS, TIPO D, COM 2" E PARAFUSO DE FIXACAO | C21: UN | D21: 4.27
A22: 39135 | B22: ABRACADEIRA EM ACO PARA AMARRACAO DE ELETRODUTOS, TIPO D, COM 3 1/2" E CUNHA DE FIXACAO | C22: UN | D22: 7.97
A23: 39128 | B23: ABRACADEIRA EM ACO PARA AMARRACAO DE ELETRODUTOS, TIPO D, COM 3/4" E CUNHA DE FIXACAO | C23: UN | D23: 1.99
A24: 400 | B24: ABRACADEIRA EM ACO PARA AMARRACAO DE ELETRODUTOS, TIPO D, COM 3/4" E PARAFUSO DE FIXACAO | C24: UN | D24: 1.94
A25: 39125 | B25: ABRACADEIRA EM ACO PARA AMARRACAO DE ELETRODUTOS, TIPO D, COM 3/8" E PARAFUSO DE FIXACAO | C25: UN | D25: 1.99
A26: 39134 | B26: ABRACADEIRA EM ACO PARA AMARRACAO DE ELETRODUTOS, TIPO D, COM 3" E CUNHA DE FIXACAO | C26: UN | D26: 6.64
A27: 398 | B27: ABRACADEIRA EM ACO PARA AMARRACAO DE ELETRODUTOS, TIPO D, COM 3" E PARAFUSO DE FIXACAO | C27: UN | D27: 6.12
A28: 39126 | B28: ABRACADEIRA EM ACO PARA AMARRACAO DE ELETRODUTOS, TIPO D, COM 4" E CUNHA DE FIXACAO | C28: UN | D28: 8.96
A29: 399 | B29: ABRACADEIRA EM ACO PARA AMARRACAO DE ELETRODUTOS, TIPO D, COM 4" E PARAFUSO DE FIXACAO | C29: UN | D29: 7.89
A30: 39158 | B30: ABRACADEIRA EM ACO PARA AMARRACAO DE ELETRODUTOS, TIPO ECONOMICA (GOTA), COM 8" | C30: UN | D30: 21.2
A31: 39141 | B31: ABRACADEIRA EM ACO PARA AMARRACAO DE ELETRODUTOS, TIPO U SIMPLES, COM 1 1/2" | C31: UN | D31: 1.54
A32: 39140 | B32: ABRACADEIRA EM ACO PARA AMARRACAO DE ELETRODUTOS, TIPO U SIMPLES, COM 1 1/4" | C32: UN | D32: 1.39
A33: 39137 | B33: ABRACADEIRA EM ACO PARA AMARRACAO DE ELETRODUTOS, TIPO U SIMPLES, COM 1/2" | C33: UN | D33: 0.8
A34: 39139 | B34: ABRACADEIRA EM ACO PARA AMARRACAO DE ELETRODUTOS, TIPO U SIMPLES, COM 1" | C34: UN | D34: 1.16
A35: 39143 | B35: ABRACADEIRA EM ACO PARA AMARRACAO DE ELETRODUTOS, TIPO U SIMPLES, COM 2 1/2" | C35: UN | D35: 3.17
A36: 39142 | B36: ABRACADEIRA EM ACO PARA AMARRACAO DE ELETRODUTOS, TIPO U SIMPLES, COM 2" | C36: UN | D36: 2.27
A37: 39138 | B37: ABRACADEIRA EM ACO PARA AMARRACAO DE ELETRODUTOS, TIPO U SIMPLES, COM 3/4" | C37: UN | D37: 0.85
A38: 39136 | B38: ABRACADEIRA EM ACO PARA AMARRACAO DE ELETRODUTOS, TIPO U SIMPLES, COM 3/8" | C38: UN | D38: 0.56
A39: 39144 | B39: ABRACADEIRA EM ACO PARA AMARRACAO DE ELETRODUTOS, TIPO U SIMPLES, COM 3" | C39: UN | D39: 3.7
A40: 39145 | B40: ABRACADEIRA EM ACO PARA AMARRACAO DE ELETRODUTOS, TIPO U SIMPLES, COM 4" | C40: UN | D40: 6.09
A41: 12615 | B41: ABRACADEIRA PVC, PARA CALHA PLUVIAL, DIAMETRO ENTRE *80 E 100* MM, PARA DRENAGEM PLUVIAL PREDIAL | C41: UN | D41: 13.91
A42: 11927 | B42: ABRACADEIRA, GALVANIZADA/ZINCADA, ROSCA SEM FIM, PARAFUSO INOX, LARGURA FITA *12,6 A *14 MM, D = 2" A 2 1/2" | C42: UN | D42: 10.56
A43: 11928 | B43: ABRACADEIRA, GALVANIZADA/ZINCADA, ROSCA SEM FIM, PARAFUSO INOX, LARGURA FITA *12,6 A *14 MM, D = 3" A 3 3/4" | C43: UN | D43: 12.1
A44: 11929 | B44: ABRACADEIRA, GALVANIZADA/ZINCADA, ROSCA SEM FIM, PARAFUSO INOX, LARGURA FITA *12,6 A *14 MM, D = 4" A 4 3/4" | C44: UN | D44: 18.72
A45: 36801 | B45: ACABAMENTO DE METAL CROMADO PARA REGISTRO PEQUENO, DE PAREDE, 1/2 " OU 3/4 " | C45: UN | D45: 27.25
A46: 36246 | B46: ACABAMENTO SIMPLES/CONVENCIONAL PARA FORRO PVC, TIPO "U" OU "C", COR BRANCA, COMPRIMENTO 6 M | C46: M | D46: 4.59
A47: 37600 | B47: ACESSORIO DE LIGACAO NAO ELETRICO PARA CARGAS EXPLOSIVAS, TUBO DE 6 M | C47: UN | D47: 112.99
A48: 37599 | B48: ACESSORIO INICIADOR NAO ELETRICO, TUBO DE 6 M, TEMPO DE RETARDO DE *160* MS | C48: UN | D48: 105.16
A49: 1 | B49: ACETILENO (RECARGA DE GAS ACETILENO PARA CILINDRO DE CONJUNTO OXICORTE GRANDE) NAO INCLUI TROCA/MANUTENCAO DO CILINDRO | C49: KG | D49: 90
A50: 3 | B50: ACIDO CLORIDRICO / ACIDO MURIATICO, DILUICAO 10% A 12% PARA USO EM LIMPEZA | C50: L | D50: 20.46
A51: 43054 | B51: ACO CA-25, 10,0 MM, OU 12,5 MM, OU 16,0 MM, OU 20,0 MM, OU 25,0 MM, VERGALHAO | C51: KG | D51: 9.07
A52: 42402 | B52: ACO CA-25, 16,0 MM, BARRA DE TRANSFERENCIA | C52: KG | D52: 8.66
A53: 42403 | B53: ACO CA-25, 20,0 MM, BARRA DE TRANSFERENCIA | C53: KG | D53: 11.11
A54: 42404 | B54: ACO CA-25, 25,0 MM, BARRA DE TRANSFERENCIA | C54: KG | D54: 11.05
A55: 42405 | B55: ACO CA-25, 32,0 MM, BARRA DE TRANSFERENCIA | C55: KG | D55: 11.77
A56: 34341 | B56: ACO CA-25, 32,0 MM, VERGALHAO | C56: KG | D56: 10.22
A57: 43053 | B57: ACO CA-25, 6,3 MM OU 8,0 MM, VERGALHAO | C57: KG | D57: 8.1
A58: 43058 | B58: ACO CA-50, 10,0 MM, OU 12,5 MM, OU 16,0 MM, OU 20,0 MM, DOBRADO E CORTADO | C58: KG | D58: 8.4
A59: 34 | B59: ACO CA-50, 10,0 MM, VERGALHAO | C59: KG | D59: 8.44
A60: 43055 | B60: ACO CA-50, 12,5 MM OU 16,0 MM, VERGALHAO | C60: KG | D60: 7.31
A61: 43056 | B61: ACO CA-50, 20,0 MM OU 25,0 MM, VERGALHAO | C61: KG | D61: 8.43
A62: 43057 | B62: ACO CA-50, 32,0 MM, VERGALHAO | C62: KG | D62: 9.26
A63: 34449 | B63: ACO CA-50, 6,3 MM, DOBRADO E CORTADO | C63: KG | D63: 9.9
A64: 32 | B64: ACO CA-50, 6,3 MM, VERGALHAO | C64: KG | D64: 8.9
A65: 33 | B65: ACO CA-50, 8,0 MM, VERGALHAO | C65: KG | D65: 8.95
A66: 43061 | B66: ACO CA-60, 4,2 MM OU 5,0 MM, DOBRADO E CORTADO | C66: KG | D66: 8.37
A67: 43059 | B67: ACO CA-60, 4,2 MM, OU 5,0 MM, OU 6,0 MM, OU 7,0 MM, VERGALHAO | C67: KG | D67: 7.98
A68: 43062 | B68: ACO CA-60, 6,0 MM OU 7,0 MM, DOBRADO E CORTADO | C68: KG | D68: 8.85
A69: 43060 | B69: ACO CA-60, 8,0 MM OU 9,5 MM, VERGALHAO | C69: KG | D69: 6.95
A70: 40410 | B70: ACOPLAMENTO RIGIDO EM FERRO FUNDIDO PARA SISTEMA DE TUBULACAO RANHURADA, DN 50 MM (2") | C70: UN | D70: 26.72
A71: 40411 | B71: ACOPLAMENTO RIGIDO EM FERRO FUNDIDO PARA SISTEMA DE TUBULACAO RANHURADA, DN 65 MM (2 1/2") | C71: UN | D71: 29
A72: 40412 | B72: ACOPLAMENTO RIGIDO EM FERRO FUNDIDO PARA SISTEMA DE TUBULACAO RANHURADA, DN 80 MM (3") | C72: UN | D72: 32.54
A73: 44254 | B73: ADAPTADOR CPVC, ROSCAVEL, COM FLANGES E ANEL DE VEDACAO, 15 MM, CAIXA D'AGUA PARA AGUA QUENTE | C73: UN | D73: 30.01
A74: 44255 | B74: ADAPTADOR CPVC, ROSCAVEL, COM FLANGES E ANEL DE VEDACAO, 22 MM, CAIXA D'AGUA PARA AGUA QUENTE | C74: UN | D74: 33.27
A75: 44256 | B75: ADAPTADOR CPVC, ROSCAVEL, COM FLANGES E ANEL DE VEDACAO, 28 MM, CAIXA D'AGUA PARA AGUA QUENTE | C75: UN | D75: 37.57
A76: 44257 | B76: ADAPTADOR CPVC, ROSCAVEL, COM FLANGES E ANEL DE VEDACAO, 35 MM, CAIXA D'AGUA PARA AGUA QUENTE | C76: UN | D76: 59.44
A77: 44258 | B77: ADAPTADOR CPVC, ROSCAVEL, COM FLANGES E ANEL DE VEDACAO, 42 MM, CAIXA D'AGUA PARA AGUA QUENTE | C77: UN | D77: 67.94
A78: 44259 | B78: ADAPTADOR CPVC, ROSCAVEL, COM FLANGES E ANEL DE VEDACAO, 54 MM, CAIXA D'AGUA PARA AGUA QUENTE | C78: UN | D78: 93.25
A79: 55 | B79: ADAPTADOR DE COMPRESSAO EM POLIPROPILENO (PP), PARA TUBO EM PEAD, 20 MM X 1/2", PARA LIGACAO PREDIAL DE AGUA (NTS 179) | C79: UN | D79: 4.61
A80: 61 | B80: ADAPTADOR DE COMPRESSAO EM POLIPROPILENO (PP), PARA TUBO EM PEAD, 20 MM X 3/4", PARA LIGACAO PREDIAL DE AGUA (NTS 179) | C80: UN | D80: 4.36
A81: 62 | B81: ADAPTADOR DE COMPRESSAO EM POLIPROPILENO (PP), PARA TUBO EM PEAD, 32 MM X 1", PARA LIGACAO PREDIAL DE AGUA (NTS 179) | C81: UN | D81: 9.03
A82: 103 | B82: ADAPTADOR PVC SOLDAVEL CURTO COM BOLSA E ROSCA, 110 MM X 4", PARA AGUA FRIA | C82: UN | D82: 54.99
A83: 107 | B83: ADAPTADOR PVC SOLDAVEL CURTO COM BOLSA E ROSCA, 20 MM X 1/2", PARA AGUA FRIA | C83: UN | D83: 1.03
A84: 65 | B84: ADAPTADOR PVC SOLDAVEL CURTO COM BOLSA E ROSCA, 25 MM X 3/4", PARA AGUA FRIA | C84: UN | D84: 1.13
A85: 108 | B85: ADAPTADOR PVC SOLDAVEL CURTO COM BOLSA E ROSCA, 32 MM X 1", PARA AGUA FRIA | C85: UN | D85: 2.28
A86: 110 | B86: ADAPTADOR PVC SOLDAVEL CURTO COM BOLSA E ROSCA, 40 MM X 1 1/2", PARA AGUA FRIA | C86: UN | D86: 7.91
A87: 109 | B87: ADAPTADOR PVC SOLDAVEL CURTO COM BOLSA E ROSCA, 40 MM X 1 1/4", PARA AGUA FRIA | C87: UN | D87: 4.71
A88: 111 | B88: ADAPTADOR PVC SOLDAVEL CURTO COM BOLSA E ROSCA, 50 MM X 1 1/4", PARA AGUA FRIA | C88: UN | D88: 10.7
A89: 112 | B89: ADAPTADOR PVC SOLDAVEL CURTO COM BOLSA E ROSCA, 50 MM X1 1/2", PARA AGUA FRIA | C89: UN | D89: 5.67
A90: 113 | B90: ADAPTADOR PVC SOLDAVEL CURTO COM BOLSA E ROSCA, 60 MM X 2", PARA AGUA FRIA | C90: UN | D90: 14.2
A91: 104 | B91: ADAPTADOR PVC SOLDAVEL CURTO COM BOLSA E ROSCA, 75 MM X 2 1/2", PARA AGUA FRIA | C91: UN | D91: 24.72
A92: 102 | B92: ADAPTADOR PVC SOLDAVEL CURTO COM BOLSA E ROSCA, 85 MM X 3", PARA AGUA FRIA | C92: UN | D92: 34.08
A93: 95 | B93: ADAPTADOR PVC SOLDAVEL, COM FLANGE E ANEL DE VEDACAO, 20 MM X 1/2", PARA CAIXA D'AGUA | C93: UN | D93: 14.4
A94: 96 | B94: ADAPTADOR PVC SOLDAVEL, COM FLANGE E ANEL DE VEDACAO, 25 MM X 3/4", PARA CAIXA D'AGUA | C94: UN | D94: 15.66
A95: 97 | B95: ADAPTADOR PVC SOLDAVEL, COM FLANGE E ANEL DE VEDACAO, 32 MM X 1", PARA CAIXA D'AGUA | C95: UN | D95: 23.57
A96: 98 | B96: ADAPTADOR PVC SOLDAVEL, COM FLANGE E ANEL DE VEDACAO, 40 MM X 1 1/4", PARA CAIXA D'AGUA | C96: UN | D96: 35.28
A97: 99 | B97: ADAPTADOR PVC SOLDAVEL, COM FLANGE E ANEL DE VEDACAO, 50 MM X 1 1/2", PARA CAIXA D'AGUA | C97: UN | D97: 33.34
A98: 100 | B98: ADAPTADOR PVC SOLDAVEL, COM FLANGES E ANEL DE VEDACAO, 60 MM X 2", PARA CAIXA D' AGUA | C98: UN | D98: 58.25
A99: 75 | B99: ADAPTADOR PVC SOLDAVEL, COM FLANGES LIVRES, 110 MM X 4", PARA CAIXA D' AGUA | C99: UN | D99: 339.61
A100: 83 | B100: ADAPTADOR PVC SOLDAVEL, COM FLANGES LIVRES, 75 MM X 2 1/2", PARA CAIXA D' AGUA | C100: UN | D100: 271.51
A101: 74 | B101: ADAPTADOR PVC SOLDAVEL, COM FLANGES LIVRES, 85 MM X 3", PARA CAIXA D' AGUA | C101: UN | D101: 388.18
A102: 106 | B102: ADAPTADOR PVC SOLDAVEL, LONGO, COM FLANGE LIVRE, 110 MM X 4", PARA CAIXA D' AGUA | C102: UN | D102: 490.87
A103: 88 | B103: ADAPTADOR PVC SOLDAVEL, LONGO, COM FLANGE LIVRE, 32 MM X 1", PARA CAIXA D' AGUA | C103: UN | D103: 13.8
A104: 82 | B104: ADAPTADOR PVC SOLDAVEL, LONGO, COM FLANGE LIVRE, 75 MM X 2 1/2", PARA CAIXA D' AGUA | C104: UN | D104: 258.32
A105: 105 | B105: ADAPTADOR PVC SOLDAVEL, LONGO, COM FLANGE LIVRE, 85 MM X 3", PARA CAIXA D' AGUA | C105: UN | D105: 366.03
A106: 60 | B106: ADAPTADOR PVC, COM REGISTRO, PARA PEAD, 20 MM X 3/4", PARA LIGACAO PREDIAL DE AGUA | C106: UN | D106: 5.98
A107: 72 | B107: ADAPTADOR PVC, ROSCAVEL, COM FLANGES E ANEL DE VEDACAO, 1 1/2", PARA CAIXA D'AGUA | C107: UN | D107: 63.94
A108: 67 | B108: ADAPTADOR PVC, ROSCAVEL, COM FLANGES E ANEL DE VEDACAO, 1/2", PARA CAIXA D' AGUA | C108: UN | D108: 20.67
A109: 71 | B109: ADAPTADOR PVC, ROSCAVEL, COM FLANGES E ANEL DE VEDACAO, 1", PARA CAIXA D' AGUA | C109: UN | D109: 39.49
A110: 73 | B110: ADAPTADOR PVC, ROSCAVEL, COM FLANGES E ANEL DE VEDACAO, 3/4", PARA CAIXA D' AGUA | C110: UN | D110: 19.78
A111: 37997 | B111: ADAPTADOR, CPVC, SOLDAVEL, 15 MM, PARA AGUA QUENTE | C111: UN | D111: 17.88
A112: 37998 | B112: ADAPTADOR, CPVC, SOLDAVEL, 22 MM, PARA AGUA QUENTE | C112: UN | D112: 23.94
A113: 10899 | B113: ADAPTADOR, EM LATAO, ENGATE RAPIDO 2 1/2" X ROSCA INTERNA 5 FIOS 2 1/2", PARA INSTALACAO PREDIAL DE COMBATE A INCENDIO | C113: UN | D113: 87.61
A114: 10900 | B114: ADAPTADOR, EM LATAO, ENGATE RAPIDO1 1/2" X ROSCA INTERNA 5 FIOS 2 1/2", PARA INSTALACAO PREDIAL DE COMBATE A INCENDIO | C114: UN | D114: 68.57
A115: 46 | B115: ADAPTADOR, PVC PBA, BOLSA/ROSCA, JE, DN 75 / DE 85 MM | C115: UN | D115: 56.84
A116: 47 | B116: ADAPTADOR, PVC PBA, BOLSA/ROSCA, JE, DN 100 / DE 110 MM | C116: UN | D116: 97.19
A117: 48 | B117: ADAPTADOR, PVC PBA, BOLSA/ROSCA, JE, DN 50 / DE 60 MM | C117: UN | D117: 25.35
A118: 52 | B118: ADAPTADOR, PVC PBA, PONTA/ROSCA, JE, DN 50 / DE 60 MM | C118: UN | D118: 19.26
A119: 43 | B119: ADAPTADOR, PVC PBA, PONTA/ROSCA, JE, DN 75 / DE 85 MM | C119: UN | D119: 65
A120: 39719 | B120: ADESIVO / COLA DE CONTATO LIQUIDO, A BASE DE RESINAS, PARA COLAGEM DE ESPUMA PARA ISOLAMENTO TERMICO FLEXIVEL | C120: L | D120: 150.11
A121: 3410 | B121: ADESIVO / COLA PARA EPS (ISOPOR) E OUTROS MATERIAIS | C121: KG | D121: 33.76
A122: 4791 | B122: ADESIVO ACRILICO DE BASE AQUOSA / COLA DE CONTATO | C122: KG | D122: 47.6
A123: 157 | B123: ADESIVO ESTRUTURAL A BASE DE RESINA EPOXI PARA INJECAO EM TRINCAS, BICOMPONENTE, BAIXA VISCOSIDADE | C123: KG | D123: 133.22
A124: 156 | B124: ADESIVO ESTRUTURAL A BASE DE RESINA EPOXI, BICOMPONENTE, FLUIDO | C124: KG | D124: 47.43
A125: 131 | B125: ADESIVO ESTRUTURAL A BASE DE RESINA EPOXI, BICOMPONENTE, PASTOSO (TIXOTROPICO) | C125: KG | D125: 40.56
A126: 21114 | B126: ADESIVO PARA TUBOS CPVC, *75* G | C126: UN | D126: 29.59
A127: 119 | B127: ADESIVO PLASTICO PARA PVC, BISNAGA COM 75 GR | C127: UN | D127: 7.5
A128: 122 | B128: ADESIVO PLASTICO PARA PVC, FRASCO COM *850* GR | C128: UN | D128: 57.7
A129: 20080 | B129: ADESIVO PLASTICO PARA PVC, FRASCO COM 175 GR | C129: UN | D129: 18.83
A130: 124 | B130: ADITIVO ACELERADOR DE PEGA E ENDURECIMENTO PARA ARGAMASSAS E CONCRETOS, LIQUIDO E ISENTO DE CLORETOS | C130: L | D130: 15.64
A131: 7334 | B131: ADITIVO ADESIVO LIQUIDO PARA ARGAMASSAS DE REVESTIMENTOS CIMENTICIOS | C131: L | D131: 15.17
A132: 123 | B132: ADITIVO IMPERMEABILIZANTE DE PEGA NORMAL PARA ARGAMASSAS E CONCRETOS SEM ARMACAO, LIQUIDO E ISENTO DE CLORETOS | C132: L | D132: 6.4
A133: 127 | B133: ADITIVO IMPERMEABILIZANTE DE PEGA ULTRARRAPIDA, LIQUIDO E ISENTO DE CLORETOS | C133: L | D133: 15.28
A134: 41373 | B134: ADITIVO LIQUIDO IMPERMEABILIZANTE CRISTALIZANTE | C134: L | D134: 21.29
A135: 133 | B135: ADITIVO LIQUIDO INCORPORADOR DE AR PARA CONCRETO E ARGAMASSA, LIQUIDO E ISENTO DE CLORETOS | C135: L | D135: 6.34
A136: 43617 | B136: ADITIVO PLASTIFICANTE E ESTABILIZADOR PARA ARGAMASSAS DE ASSENTAMENTO E REBOCO, LIQUIDO E ISENTO DE CLORETOS | C136: L | D136: 7.09
A137: 132 | B137: ADITIVO PLASTIFICANTE RETARDADOR DE PEGA E REDUTOR DE AGUA PARA CONCRETO, LIQUIDO E ISENTO DE CLORETOS | C137: L | D137: 6.58
A138: 43618 | B138: ADITIVO SUPERPLASTIFICANTE DE PEGA NORMAL PARA CONCRETO, LIQUIDO E ISENTO DE CLORETOS | C138: KG | D138: 16.56
A139: 37476 | B139: ADUELA/ GALERIA PRE-MOLDADA DE CONCRETO ARMADO, SECAO QUADRADA INTERNA DE 1,50 X 1,50 M (L X A), MISULA DE 20 X 20 CM, C = 1,00 M, ESPESSURA MIN = 15 CM, TB-45 E FCK DO CONCRETO = 30 MPA | C139: UN | D139: 4159.66
A140: 37478 | B140: ADUELA/ GALERIA PRE-MOLDADA DE CONCRETO ARMADO, SECAO RETANGULAR INTERNA DE 2,00 X 2,00 M (L X A), MISULA DE 20 X 20 CM, C = 1,00 M, ESPESSURA MIN = 15 CM, TB-45 E FCK DO CONCRETO = 30 MPA | C140: UN | D140: 5210.08
A141: 37477 | B141: ADUELA/ GALERIA PRE-MOLDADA DE CONCRETO ARMADO, SECAO RETANGULAR INTERNA DE 2,50 X 2,50 M (L X A), MISULA DE 20 X 20 CM, C = 1,00 M, ESPESSURA MIN = 15 CM, TB-45 E FCK DO CONCRETO = 30 MPA | C141: UN | D141: 7058.82
A142: 37479 | B142: ADUELA/ GALERIA PRE-MOLDADA DE CONCRETO ARMADO, SECAO RETANGULAR INTERNA DE 3,00 X 3,00 M (L X A), MISULA DE 20 X 20 CM, C = 1.00 M, ESPESSURA MIN = 20 CM, TB-45 E FCK DO CONCRETO = 30 MPA | C142: UN | D142: 8371.84
A143: 4319 | B143: AFASTADOR PARA TELHA DE FIBROCIMENTO CANALETE 90 OU KALHETAO | C143: UN | D143: 2.37
A144: 42409 | B144: AGENTE DE CURA, PROTETOR DA EVAPORACAO DA AGUA DE HIDRATACAO DO CONCRETO | C144: KG | D144: 10.43
A145: 40553 | B145: AGREGADO RECICLADO, TIPO RACHAO RECICLADO CINZA, CLASSE A | C145: M3 | D145: 48.5
A146: 6114 | B146: AJUDANTE DE ARMADOR (HORISTA) | C146: H | D146: 12.39
A147: 40912 | B147: AJUDANTE DE ARMADOR (MENSALISTA) | C147: MES | D147: 2185.38
A148: 247 | B148: AJUDANTE DE ELETRICISTA (HORISTA) | C148: H | D148: 13.86
A149: 40919 | B149: AJUDANTE DE ELETRICISTA (MENSALISTA) | C149: MES | D149: 2446
A150: 40984 | B150: AJUDANTE DE ESTRUTURAS METALICAS (MENSALISTA) | C150: MES | D150: 2582.9
A151: 44499 | B151: AJUDANTE DE ESTRUTURAS METALICAS HORISTA | C151: H | D151: 14.63
A152: 248 | B152: AJUDANTE DE OPERACAO EM GERAL (HORISTA) | C152: H | D152: 13.86
A153: 41086 | B153: AJUDANTE DE OPERACAO EM GERAL (MENSALISTA) | C153: MES | D153: 2446
A154: 34466 | B154: AJUDANTE DE PINTOR (HORISTA) | C154: H | D154: 13.86
A155: 41083 | B155: AJUDANTE DE PINTOR (MENSALISTA) | C155: MES | D155: 2446
A156: 252 | B156: AJUDANTE DE SERRALHEIRO (HORISTA) | C156: H | D156: 13.86
A157: 40909 | B157: AJUDANTE DE SERRALHEIRO (MENSALISTA) | C157: MES | D157: 2446
A158: 242 | B158: AJUDANTE ESPECIALIZADO (HORISTA) | C158: H | D158: 13.88
A159: 41085 | B159: AJUDANTE ESPECIALIZADO (MENSALISTA) | C159: MES | D159: 2449.4
A160: 427 | B160: ALCA PREFORMADA DE CONTRA POSTE, EM ACO GALVANIZADO, PARA CABO 3/16", COMPRIMENTO *860* MM | C160: UN | D160: 8.17
A161: 417 | B161: ALCA PREFORMADA DE DISTRIBUICAO, EM ACO GALVANIZADO, PARA CABO DE ALUMINIO DIAMETRO 16 A 25 MM | C161: UN | D161: 3.85
A162: 11273 | B162: ALCA PREFORMADA DE DISTRIBUICAO, EM ACO GALVANIZADO, PARA CONDUTORES DE ALUMINIO AWG 1/0 (CAA 6/1 OU CA 7 FIOS) | C162: UN | D162: 11.95
A163: 11272 | B163: ALCA PREFORMADA DE DISTRIBUICAO, EM ACO GALVANIZADO, PARA CONDUTORES DE ALUMINIO AWG 2 (CAA 6/1 OU CA 7 FIOS) | C163: UN | D163: 7.21
A164: 11275 | B164: ALCA PREFORMADA DE SERVICO, EM ACO GALVANIZADO, PARA CONDUTORES DE ALUMINIO AWG 4 (CAA 6/1) | C164: UN | D164: 2.89
A165: 11274 | B165: ALCA PREFORMADA DE SERVICO, EM ACO GALVANIZADO, PARA CONDUTORES DE ALUMINIO AWG 6 (CAA 6/1) | C165: UN | D165: 2.2
A166: 38470 | B166: ALICATE DE CORTE DIAGONAL 6 " COM ISOLAMENTO | C166: UN | D166: 36
A167: 38547 | B167: ALICATE DE CRIMPAR RJ11, RJ12 E RJ45 | C167: UN | D167: 98.24
A168: 38469 | B168: ALICATE DE PRESSAO PARA SOLDA DE CHAPA 18 " | C168: UN | D168: 105.63
A169: 38467 | B169: ALICATE DE PRESSAO 11 " PARA SOLDA, TIPO C | C169: UN | D169: 59.43
A170: 38468 | B170: ALICATE DE PRESSAO 11 " PARA SOLDA, TIPO U | C170: UN | D170: 65.4
A171: 38471 | B171: ALICATE PARA ANEIS DE PISTAO, CAPACIDADE 50 A 100 MM | C171: UN | D171: 84.93
A172: 37370 | B172: ALIMENTACAO - HORISTA (COLETADO CAIXA - ENCARGOS COMPLEMENTARES) | C172: H | D172: 1.69
A173: 40862 | B173: ALIMENTACAO - MENSALISTA (COLETADO CAIXA - ENCARGOS COMPLEMENTARES) | C173: MES | D173: 319.56
A174: 10658 | B174: ALISADORA DE CONCRETO COM MOTOR A GASOLINA DE 5,5 HP, PESO COM MOTOR DE 78 KG, 4 PAS | C174: UN | D174: 8364.5
A175: 253 | B175: ALMOXARIFE (HORISTA) | C175: H | D175: 18.55
A176: 40809 | B176: ALMOXARIFE (MENSALISTA) | C176: MES | D176: 3270.79
A177: 42428 | B177: ALONGADOR COM TRES ALTURAS, EM TUBO DE ACO CARBONO, PINTURA NO PROCESSO ELETROSTATICO - EQUIPAMENTO DE GINASTICA PARA ACADEMIA AO AR LIVRE / ACADEMIA DA TERCEIRA IDADE - ATI | C177: UN | D177: 2251
A178: 583 | B178: ALUMINIO ANODIZADO | C178: KG | D178: 66.65
A179: 301 | B179: ANEL BORRACHA PARA TUBO ESGOTO PREDIAL, DN 100 MM (NBR 5688) | C179: UN | D179: 3.02
A180: 296 | B180: ANEL BORRACHA PARA TUBO ESGOTO PREDIAL, DN 50 MM (NBR 5688) | C180: UN | D180: 1.7
A181: 297 | B181: ANEL BORRACHA PARA TUBO ESGOTO PREDIAL, DN 75 MM (NBR 5688) | C181: UN | D181: 2.51
A182: 299 | B182: ANEL BORRACHA, DN 100 MM, PARA TUBO SERIE REFORCADA ESGOTO PREDIAL | C182: UN | D182: 3.54
A183: 300 | B183: ANEL BORRACHA, DN 150 MM, PARA TUBO SERIE REFORCADA ESGOTO PREDIAL | C183: UN | D183: 12.26
A184: 20085 | B184: ANEL BORRACHA, DN 50 MM, PARA TUBO SERIE REFORCADA ESGOTO PREDIAL | C184: UN | D184: 2.24
A185: 298 | B185: ANEL BORRACHA, DN 75 MM, PARA TUBO SERIE REFORCADA ESGOTO PREDIAL | C185: UN | D185: 2.72
A186: 311 | B186: ANEL BORRACHA, PARA TUBO PVC DEFOFO, DN 100 MM (NBR 7665) | C186: UN | D186: 10.11
A187: 318 | B187: ANEL BORRACHA, PARA TUBO PVC DEFOFO, DN 150 MM (NBR 7665) | C187: UN | D187: 20.36
A188: 319 | B188: ANEL BORRACHA, PARA TUBO PVC DEFOFO, DN 200 MM (NBR 7665) | C188: UN | D188: 31.92
A189: 303 | B189: ANEL BORRACHA, PARA TUBO PVC, REDE COLETOR ESGOTO, DN 100 MM (NBR 7362) | C189: UN | D189: 3.34
A190: 305 | B190: ANEL BORRACHA, PARA TUBO PVC, REDE COLETOR ESGOTO, DN 150 MM (NBR 7362) | C190: UN | D190: 10.52
A191: 306 | B191: ANEL BORRACHA, PARA TUBO PVC, REDE COLETOR ESGOTO, DN 200 MM (NBR 7362) | C191: UN | D191: 15.96
A192: 307 | B192: ANEL BORRACHA, PARA TUBO PVC, REDE COLETOR ESGOTO, DN 250 MM (NBR 7362) | C192: UN | D192: 40.32
A193: 309 | B193: ANEL BORRACHA, PARA TUBO PVC, REDE COLETOR ESGOTO, DN 350 MM (NBR 7362) | C193: UN | D193: 66.06
A194: 310 | B194: ANEL BORRACHA, PARA TUBO PVC, REDE COLETOR ESGOTO, DN 400 MM (NBR 7362) | C194: UN | D194: 91.55
A195: 328 | B195: ANEL BORRACHA, PARA TUBO/CONEXAO PVC PBA, DN 100 MM, PARA REDE AGUA | C195: UN | D195: 8
A196: 325 | B196: ANEL BORRACHA, PARA TUBO/CONEXAO PVC PBA, DN 50 MM, PARA REDE AGUA | C196: UN | D196: 2.36
A197: 20326 | B197: ANEL BORRACHA, PARA TUBO/CONEXAO PVC PBA, DN 60 MM, PARA REDE AGUA | C197: UN | D197: 4.32
A198: 329 | B198: ANEL BORRACHA, PARA TUBO/CONEXAO PVC PBA, DN 75 MM, PARA REDE AGUA | C198: UN | D198: 6.69
A199: 308 | B199: ANEL BORRACHA, PARA TUBO, PVC REDE COLETOR ESGOTO, DN 300 MM (NBR 7362) | C199: UN | D199: 90
A200: 39642 | B200: ANEL DE BORRACHA PARA VEDACAO DE DUTO PEAD CORRUGADO PARA ELETRICA, DN 1 1/2" (NBR 15715) | C200: UN | D200: 2.96
... 12238 more rows

Sheet SETOP (hidden)
B1: SETOP JANEIRO 2023
A2: CÓDIGO | B2: DESCRIÇÃO | C2: UNIDADE | D2: PREÇO
A3: 8662 | B3: MOBILIZAÇÃO E DESMOBILIZAÇÃO DE OBRA
A4: 8700 | B4: OBRAS EM CENTRO URBANO OU REGIÃO LIMÍTROFE
A5: ED-50394 | B5: MOBILIZAÇÃO E DESMOBILIZAÇÃO DE OBRA EM CENTRO URBANO OU REGIÃO LIMÍTROFE COM VALOR ACIMA DE 3.000.000,01 | C5: % | D5: 0.2
A6: ED-50392 | B6: MOBILIZAÇÃO E DESMOBILIZAÇÃO DE OBRA EM CENTRO URBANO OU REGIÃO LIMÍTROFE COM VALOR ATÉ O VALOR DE 1.000.000,00 | C6: % | D6: 0.5
A7: ED-50393 | B7: MOBILIZAÇÃO E DESMOBILIZAÇÃO DE OBRA EM CENTRO URBANO OU REGIÃO LIMÍTROFE COM VALOR ENTRE 1.000.000,01 E 3.000.000,00 | C7: % | D7: 0.3
A8: ED-29823 | B8: TAPUME FIXO DE PROTEÇÃO PARA FECHAMENTO DE OBRA EM TELHA METÁLICA GALVANIZADA, TIPO TRAPEZOIDAL, ESP. 0,5MM, COM MÓDULO NA DIMENSÃO DE (300X220)CM, COM REAPROVEITAMENTO, EXCLUSIVE PINTURA ESMALTE, INCLUSIVE PONTALETE E FIXAÇÃO | C8: m2 | D8: 58.23
A9: 8701 | B9: OBRA DISTANTE DE CENTRO URBANO
A10: ED-50391 | B10: MOBILIZAÇÃO E DESMOBILIZAÇÃO OBRA DISTANTE DE CENTRO URBANO COM ACIMA DE 3.000.000,01 | C10: % | D10: 1
A11: ED-50390 | B11: MOBILIZAÇÃO E DESMOBILIZAÇÃO OBRA DISTANTE DE CENTRO URBANO COM ENTRE 1.000.000,01 E 3.000.000,00 | C11: % | D11: 1.5
A12: ED-50389 | B12: MOBILIZAÇÃO E DESMOBILIZAÇÃO OBRA DISTANTE DE CENTRO URBANO COM VALOR ATÉ O VALOR DE 1.000.000,00 | C12: % | D12: 2
A13: 8663 | B13: SERVIÇOS PRELIMINARES
A14: 8702 | B14: LIMPEZA DO TERRENO
A15: ED-50701 | B15: CAPINA MANUAL DO TERRENO, EXCLUSIVE RASTELAMENTO E QUEIMA | C15: m2 | D15: 1.18
A16: ED-28163 | B16: DESTOCAMENTO E AFASTAMENTO DE REMANESCENTE ARBÓREO, INCLUSIVE TRANSPORTE E RETIRADA DO MATERIAL ESCAVADO (EM CAÇAMBA) | C16: un | D16: 408.37
A17: ED-50703 | B17: LIMPEZA DE TERRENO, INCLUSIVE CAPINA, RASTELAMENTO COM AFASTAMENTO ATÉ VINTE (20) METROS E QUEIMA CONTROLADA | C17: m2 | D17: 2.08
A18: ED-8143 | B18: RASTELAMENTO DE ÁREA COM AFASTAMENTO DE ATÉ VINTE (20) METROS, EXCLUSIVE CAPINA OU ROÇADA MANUAL | C18: m2 | D18: 0.78
A19: ED-28162 | B19: ROÇADA MANUAL DE TERRENO COM ROÇADEIRA COSTAL, EXCLUSIVE RASTELAMENTO E QUEIMA | C19: m2 | D19: 0.17
A20: 8703 | B20: DESMATAMENTO E DESTOCAMENTO
A21: ED-50702 | B21: DESMATAMENTO, DESTOCAMENTO E LIMPEZA, INCLUSIVE TRANSPORTE ATÉ CINQUENTA (50) METROS | C21: m2 | D21: 0.49
A22: 8704 | B22: SUPRESSÃO DE ÁRVORE
A23: ED-50699 | B23: CORTE DE ÁRVORE COM MOTOSSERRA, DIÂMETRO DO TRONCO ACIMA DE TRINTA (30) CENTÍMETROS ATÉ CINQUENTA (50) CENTÍMETROS, EXCLUSIVE DESTOCAMENTO E AFASTAMENTO | C23: un | D23: 81.41
A24: ED-50697 | B24: CORTE DE ÁRVORE COM MOTOSSERRA, DIÂMETRO DO TRONCO DE QUINZE (15) CENTÍMETROS ATÉ TRINTA (30) CENTÍMETROS, EXCLUSIVE DESTOCAMENTO E AFASTAMENTO | C24: un | D24: 48.85
A25: 8706 | B25: REMOÇÃO DE TELHADO
A26: ED-48438 | B26: REMOÇÃO DE CALHA EM CHAPA GALVANIZADA OU EM PVC, COM REAPROVEITAMENTO, INCLUSIVE AFASTAMENTO E EMPILHAMENTO, EXCLUSIVE TRANSPORTE E RETIRADA DO MATERIAL REMOVIDO NÃO REAPROVEITÁVEL | C26: m | D26: 4.11
A27: ED-48446 | B27: REMOÇÃO MANUAL DE CONDUTOR EM PVC OU METÁLICO, COM REAPROVEITAMENTO, INCLUSIVE AFASTAMENTO E EMPILHAMENTO, EXCLUSIVE TRANSPORTE E RETIRADA DO MATERIAL REMOVIDO NÃO REAPROVEITÁVEL | C27: m | D27: 4.93
A28: ED-48455 | B28: REMOÇÃO MANUAL DE ENGRADAMENTO PARA TELHA TIPO CALHA ESTRUTURAL EM FIBROCIMENTO, COM REAPROVEITAMENTO, INCLUSIVE AFASTAMENTO E EMPILHAMENTO, EXCLUSIVE TRANSPORTE E RETIRADA DO MATERIAL REMOVIDO NÃO REAPROVEITÁVEL | C28: m2 | D28: 9.93
A29: ED-48457 | B29: REMOÇÃO MANUAL DE ENGRADAMENTO PARA TELHA TIPO CERÂMICA OU CONCRETO, INCLUSIVE AFASTAMENTO E EMPILHAMENTO, EXCLUSIVE TRANSPORTE E RETIRADA DO MATERIAL REMOVIDO NÃO REAPROVEITÁVEL | C29: m2 | D29: 19.86
A30: ED-48454 | B30: REMOÇÃO MANUAL DE ENGRADAMENTO PARA TELHA TIPO METÁLICA, PVC OU FIBROCIMENTO, COM REAPROVEITAMENTO, INCLUSIVE AFASTAMENTO E EMPILHAMENTO, EXCLUSIVE TRANSPORTE E RETIRADA DO MATERIAL REMOVIDO NÃO REAPROVEITÁVEL | C30: m2 | D30: 13.24
A31: ED-48506 | B31: REMOÇÃO MANUAL DE RUFO METÁLICO, COM REAPROVEITAMENTO, INCLUSIVE AFASTAMENTO E EMPILHAMENTO, EXCLUSIVE TRANSPORTE E RETIRADA DO MATERIAL REMOVIDO NÃO REAPROVEITÁVEL | C31: m | D31: 6.05
A32: ED-48512 | B32: REMOÇÃO MANUAL DE TELHA EM FIBROCIMENTO, TIPO ONDULADA, COM REAPROVEITAMENTO, INCLUSIVE AFASTAMENTO E EMPILHAMENTO, EXCLUSIVE TRANSPORTE E RETIRADA DO MATERIAL REMOVIDO NÃO REAPROVEITÁVEL | C32: m2 | D32: 11.35
A33: ED-48514 | B33: REMOÇÃO MANUAL DE TELHA CERÂMICA, COM REAPROVEITAMENTO, INCLUSIVE AFASTAMENTO E EMPILHAMENTO, EXCLUSIVE TRANSPORTE E RETIRADA DO MATERIAL REMOVIDO NÃO REAPROVEITÁVEL | C33: m2 | D33: 21.41
A34: ED-48510 | B34: REMOÇÃO MANUAL DE TELHA EM FIBROCIMENTO, TIPO CALHA ESTRUTURAL, COM REAPROVEITAMENTO, INCLUSIVE IÇAMENTO, AFASTAMENTO E EMPILHAMENTO, EXCLUSIVE TRANSPORTE E RETIRADA DO MATERIAL REMOVIDO NÃO REAPROVEITÁVEL | C34: m2 | D34: 23.4
A35: ED-48509 | B35: REMOÇÃO MANUAL DE TELHA METÁLICA OU PVC, COM REAPROVEITAMENTO, INCLUSIVE AFASTAMENTO E EMPILHAMENTO, EXCLUSIVE TRANSPORTE E RETIRADA DO MATERIAL REMOVIDO NÃO REAPROVEITÁVEL | C35: m2 | D35: 7.94
A36: 8707 | B36: DEMOLIÇÃO E REMOÇÃO DE INSTALAÇÃO
A37: ED-48500 | B37: DEMOLIÇÃO MANUAL DE TUBULAÇÕES EMBUTIDAS DE REDE (ÁGUA, ELÉTRICA, GASES, ETC.), INCLUSIVE RASGO EM ALVENARIA, REMOÇÃO DE ACESSÓRIOS DE FIXAÇÃO, AFASTAMENTO E EMPILHAMENTO, EXCLUSIVE TRANSPORTE E RETIRADA DO MATERIAL DEMOLIDO | C37: m | D37: 7.4
A38: ED-48466 | B38: REMOÇÃO MANUAL DE INTERFONE, COM REAPROVEITAMENTO, INCLUSIVE AFASTAMENTO E EMPILHAMENTO, EXCLUSIVE TRANSPORTE E RETIRADA DO MATERIAL REMOVIDO NÃO REAPROVEITÁVEL | C38: un | D38: 38.95
A39: ED-48468 | B39: REMOÇÃO MANUAL DE LUMINÁRIA COMERCIAL, EMBUTIDA OU SOBREPOR, COM REAPROVEITAMENTO, INCLUSIVE AFASTAMENTO E EMPILHAMENTO, EXCLUSIVE TRANSPORTE E RETIRADA DO MATERIAL REMOVIDO NÃO REAPROVEITÁVEL | C39: un | D39: 9.37
A40: ED-48469 | B40: REMOÇÃO MANUAL DE LUMINÁRIA COMPACTA (PLAFON, PAINEL LED, ETC.) EMBUTIDA OU SOBREPOR, COM REAPROVEITAMENTO, INCLUSIVE AFASTAMENTO E EMPILHAMENTO, EXCLUSIVE TRANSPORTE E RETIRADA DO MATERIAL REMOVIDO NÃO REAPROVEITÁVEL | C40: un | D40: 5.46
A41: ED-48499 | B41: REMOÇÃO MANUAL DE REDES DE DUTOS PARA CLIMATIZAÇÃO, INCLUSIVE AFASTAMENTO E EMPILHAMENTO, EXCLUSIVE TRANSPORTE E RETIRADA DO MATERIAL REMOVIDO NÃO REAPROVEITÁVEL | C41: m | D41: 8.22
A42: ED-48515 | B42: REMOÇÃO MANUAL DE TUBULAÇÕES EMBUTIDAS DE REDE (ÁGUA, ELÉTRICA, GASES, ETC.), COM REAPROVEITAMENTO, INCLUSIVE RASGO EM ALVENARIA, REMOÇÃO DE ACESSÓRIOS DE FIXAÇÃO, AFASTAMENTO E EMPILHAMENTO, EXCLUSIVE TRANSPORTE E RETIRADA DO MATERIAL REMOVIDO NÃO REAPROVEITÁVEL | C42: m | D42: 10.66
A43: 8708 | B43: DEMOLIÇÃO DE FORRO
A44: ED-48463 | B44: DEMOLIÇÃO MANUAL DE FORRO DE CHAPA OU PLACA DE GESSO, INCLUSIVE DEMOLIÇÃO DA ESTRUTURA DE SUSTENTAÇÃO, AFASTAMENTO E EMPILHAMENTO, EXCLUSIVE TRANSPORTE E RETIRADA DO MATERIAL DEMOLIDO | C44: m2 | D44: 4.88
A45: 8709 | B45: REMOÇÃO DE FORRO
A46: ED-48460 | B46: REMOÇÃO MANUAL DE FORRO DE PLACAS (GESSO, MINERAL, FIBRA, ISOPOR, COLMEIA, PVC, ETC.), COM REAPROVEITAMENTO, INCLUSIVE AFASTAMENTO E EMPILHAMENTO, EXCLUSIVE DEMOLIÇÃO DA ESTRUTURA DE SUSTENTAÇÃO, TRANSPORTE E RETIRADA DO MATERIAL REMOVIDO NÃO REAPROVEITÁVEL | C46: m2 | D46: 1.84
A47: ED-48459 | B47: REMOÇÃO MANUAL DE FORRO DE PLACAS (GESSO, MINERAL, FIBRA, ISOPOR, COLMEIA, PVC, ETC.), COM REAPROVEITAMENTO, INCLUSIVE DEMOLIÇÃO ESTRUTURA DE SUSTENTAÇÃO, AFASTAMENTO E EMPILHAMENTO, EXCLUSIVE TRANSPORTE E RETIRADA DO MATERIAL REMOVIDO NÃO REAPROVEITÁVEL | C47: m2 | D47: 5.53
A48: ED-48464 | B48: REMOÇÃO MANUAL DE FORRO DE TÁBUAS DE PINHO, COM REAPROVEITAMENTO, INCLUSIVE AFASTAMENTO E EMPILHAMENTO, EXCLUSIVE REMOÇÃO DA ESTRUTURA DE SUSTENTAÇÃO, TRANSPORTE E RETIRADA DO MATERIAL REMOVIDO NÃO REAPROVEITÁVEL | C48: m2 | D48: 8.71
A49: ED-28355 | B49: REMOÇÃO MANUAL ESTRUTURA OU TRAMA DE SUSTENTAÇÃO DE MADEIRA OU METÁLICA PARA FORRO, COM REAPROVEITAMENTO, INCLUSIVE AFASTAMENTO E EMPILHAMENTO, EXCLUSIVE TRANSPORTE E RETIRADA DO MATERIAL REMOVIDO NÃO REAPROVEITÁVEL | C49: m2 | D49: 3.69
A50: 8710 | B50: REMOÇÃO DE ESQUADRIA
A51: ED-48496 | B51: REMOÇÃO MANUAL DE CONJUNTO DE ALIZARES, COM REAPROVEITAMENTO, INCLUSIVE AFASTAMENTO E EMPILHAMENTO, EXCLUSIVE TRANSPORTE E RETIRADA DO MATERIAL REMOVIDO NÃO REAPROVEITÁVEL | C51: cj | D51: 3.09
A52: ED-48458 | B52: REMOÇÃO MANUAL DE CONJUNTO DE FERRAGENS (DOBRADIÇAS, FECHADURA E MAÇANETAS), COM REAPROVEITAMENTO, INCLUSIVE AFASTAMENTO E EMPILHAMENTO, EXCLUSIVE TRANSPORTE E RETIRADA DO MATERIAL REMOVIDO NÃO REAPROVEITÁVEL | C52: un | D52: 18.85
A53: ED-48493 | B53: REMOÇÃO MANUAL DE ESQUADRIA EM MADEIRA, COM REAPROVEITAMENTO, INCLUSIVE REMOÇÃO DE MARCO/ALIZAR/GUARNIÇÕES, AFASTAMENTO E EMPILHAMENTO, EXCLUSIVE TRANSPORTE E RETIRADA DO MATERIAL REMOVIDO NÃO REAPROVEITÁVEL | C53: m2 | D53: 11.85
A54: ED-48497 | B54: REMOÇÃO MANUAL DE ESQUADRIA METÁLICA, COM REAPROVEITAMENTO, INCLUSIVE MARCO/ALIZAR/GUARNIÇÕES, AFASTAMENTO E EMPILHAMENTO, EXCLUSIVE TRANSPORTE E RETIRADA DO MATERIAL REMOVIDO NÃO REAPROVEITÁVEL | C54: m2 | D54: 16.46
A55: ED-48494 | B55: REMOÇÃO MANUAL DE FOLHA DE PORTA OU JANELA DE MADEIRA OU METÁLICA, COM REAPROVEITAMENTO, INCLUSIVE AFASTAMENTO E EMPILHAMENTO, EXCLUSIVE TRANSPORTE E RETIRADA DO MATERIAL REMOVIDO NÃO REAPROVEITÁVEL | C55: m2 | D55: 8
A56: ED-48495 | B56: REMOÇÃO MANUAL DE MARCO EM MADEIRA OU METÁLICO, COM REAPROVEITAMENTO, INCLUSIVE AFASTAMENTO E EMPILHAMENTO, EXCLUSIVE TRANSPORTE E RETIRADA DO MATERIAL REMOVIDO NÃO REAPROVEITÁVEL | C56: un | D56: 16
A57: 8711 | B57: DEMOLIÇÃO DE IMPERMEABILIZAÇÃO
A58: ED-48465 | B58: DEMOLIÇÃO MANUAL DE IMPERMEABILIZAÇÃO E PROTEÇÃO MECÂNICA, INCLUSIVE AFASTAMENTO E EMPILHAMENTO, EXCLUSIVE TRANSPORTE E RETIRADA DO MATERIAL DEMOLIDO | C58: m2 | D58: 24.42
A59: 8712 | B59: REMOÇÃO DE LOUÇA E ACESSÓRIOS
A60: ED-48467 | B60: REMOÇÃO DE LOUÇAS (LAVATÓRIO, BANHEIRA, PIA, VASO SANITÁRIO, TANQUE), COM REAPROVEITAMENTO, INCLUSIVE AFASTAMENTO E EMPILHAMENTO, EXCLUSIVE TRANSPORTE E RETIRADA DO MATERIAL REMOVIDO NÃO REAPROVEITÁVEL | C60: un | D60: 37.99
A61: ED-48470 | B61: REMOÇÃO MANUAL DE METAIS COMUNS E ACABAMENTOS (TORNEIRA, ACABAMENTO PARA REGISTRO, SIFÃO, ENGATE FLEXÍVEL, ETC.), COM REAPROVEITAMENTO, INCLUSIVE AFASTAMENTO E EMPILHAMENTO, EXCLUSIVE TRANSPORTE E RETIRADA DO MATERIAL REMOVIDO NÃO REAPROVEITÁVEL | C61: un | D61: 5.66
A62: ED-48471 | B62: REMOÇÃO MANUAL DE METAIS EMBUTIDOS (BASE DE REGISTRO, VÁLVULA DE DESCARGA, TORNEIRA ANTIVANDALISMO, ETC.), COM REAPROVEITAMENTO, INCLUSIVE AFASTAMENTO E EMPILHAMENTO, EXCLUSIVE TRANSPORTE E RETIRADA DO MATERIAL REMOVIDO NÃO REAPROVEITÁVEL | C62: un | D62: 18.08
A63: 8713 | B63: DEMOLIÇÃO E REMOÇÃO DE DIVISÓRIA E BANCADA
A64: ED-48452 | B64: DEMOLIÇÃO MANUAL DE ALVENARIA/DIVISÓRIA DE ELEMENTOS VAZADOS (COBOGÓ, ETC. ), INCLUSIVE AFASTAMENTO E EMPILHAMENTO, EXCLUSIVE TRANSPORTE E RETIRADA DO MATERIAL DEMOLIDO | C64: m2 | D64: 15.59
A65: ED-48453 | B65: DEMOLIÇÃO MANUAL DE DIVISÓRIA COMERCIAL EM LAMINADO, INCLUSIVE AFASTAMENTO E EMPILHAMENTO, EXCLUSIVE TRANSPORTE E RETIRADA DO MATERIAL DEMOLIDO | C65: m2 | D65: 6.27
A66: ED-8024 | B66: DEMOLIÇÃO MANUAL DE DIVISÓRIA DE MADEIRA, INCLUSIVE AFASTAMENTO E EMPILHAMENTO, EXCLUSIVE TRANSPORTE E RETIRADA DO MATERIAL DEMOLIDO | C66: m2 | D66: 9.56
A67: ED-48437 | B67: REMOÇÃO MANUAL DE BANCADA DE PEDRA (MÁRMORE, GRANITO, ARDÓSIA, MARMORITE, ETC.), COM REAPROVEITAMENTO, INCLUSIVE RASGO EM ALVENARIA, REMOÇÃO DE ACESSÓRIOS DE FIXAÇÃO, AFASTAMENTO E EMPILHAMENTO, EXCLUSIVE TRANSPORTE E RETIRADA DO MATERIAL REMOVIDO NÃO REAPROVEITÁVEL | C67: m2 | D67: 47.42
A68: ED-28348 | B68: REMOÇÃO MANUAL DE DIVISÓRIA EM PEDRA (MÁRMORE, GRANITO, ARDÓSIA, MARMORITE, ETC.), COM REAPROVEITAMENTO, INCLUSIVE RASGO EM ALVENARIA, REMOÇÃO DE ACESSÓRIOS DE FIXAÇÃO, AFASTAMENTO E EMPILHAMENTO, EXCLUSIVE TRANSPORTE E RETIRADA DO MATERIAL REMOVIDO NÃO REAPROVEITÁVEL | C68: m2 | D68: 39.57
A69: 8714 | B69: DEMOLIÇÃO DE ALVENARIA
A70: ED-48436 | B70: DEMOLIÇÃO MANUAL DE ALVENARIA DE TIJOLO CERÂMICO MACIÇO, INCLUSIVE AFASTAMENTO E EMPILHAMENTO, EXCLUSIVE TRANSPORTE E RETIRADA DO MATERIAL DEMOLIDO | C70: m3 | D70: 134.74
A71: ED-48435 | B71: DEMOLIÇÃO MANUAL DE ALVENARIA DE TIJOLO CERÂMICO OU BLOCO DE CONCRETO, INCLUSIVE AFASTAMENTO E EMPILHAMENTO, EXCLUSIVE TRANSPORTE E RETIRADA DO MATERIAL DEMOLIDO | C71: m3 | D71: 92.63
A72: ED-28338 | B72: DEMOLIÇÃO MANUAL DE CONSTRUÇÃO EM ALVENARIAS DE VEDAÇÃO, COM ESPESSURA MÁXIMA DE 15CM, INCLUSIVE REMOÇÃO COM REAPROVEITAMENTO DE ESQUADRIAS, AFASTAMENTO E EMPILHAMENTO, EXCLUSIVE TRANSPORTE E RETIRADA DO MATERIAL DEMOLIDO/REMOVIDO NÃO REAPROVEITÁVEL | C72: m2 | D72: 14.71
A73: 8715 | B73: DEMOLIÇÃO DE CONCRETO
A74: ED-48441 | B74: DEMOLIÇÃO MANUAL DE CONCRETO ARMADO, INCLUSIVE AFASTAMENTO E EMPILHAMENTO, EXCLUSIVE TRANSPORTE E RETIRADA DO MATERIAL DEMOLIDO | C74: m3 | D74: 423.5
A75: ED-48440 | B75: DEMOLIÇÃO MANUAL DE CONCRETO, SEM ARMAÇÃO, INCLUSIVE AFASTAMENTO E EMPILHAMENTO, EXCLUSIVE TRANSPORTE E RETIRADA DO MATERIAL DEMOLIDO | C75: m3 | D75: 256.67
A76: ED-48443 | B76: DEMOLIÇÃO MECANIZADA DE CONCRETO ARMADO, COM EQUIPAMENTO ELÉTRICO, INCLUSIVE AFASTAMENTO E EMPILHAMENTO, EXCLUSIVE TRANSPORTE E RETIRADA DO MATERIAL DEMOLIDO | C76: m3 | D76: 219.71
A77: ED-48445 | B77: DEMOLIÇÃO MECANIZADA DE CONCRETO ARMADO, COM EQUIPAMENTO PNEUMÁTICO, INCLUSIVE AFASTAMENTO E EMPILHAMENTO, EXCLUSIVE TRANSPORTE E RETIRADA DO MATERIAL DEMOLIDO | C77: m3 | D77: 307.73
A78: ED-48442 | B78: DEMOLIÇÃO MECANIZADA DE CONCRETO, SEM ARMAÇÃO, COM EQUIPAMENTO ELÉTRICO, INCLUSIVE AFASTAMENTO E EMPILHAMENTO, EXCLUSIVE TRANSPORTE E RETIRADA DO MATERIAL DEMOLIDO | C78: m3 | D78: 135.4
A79: ED-48444 | B79: DEMOLIÇÃO MECANIZADA DE CONCRETO, SEM ARMAÇÃO, COM EQUIPAMENTO PNEUMÁTICO, INCLUSIVE AFASTAMENTO E EMPILHAMENTO, EXCLUSIVE TRANSPORTE E RETIRADA DO MATERIAL DEMOLIDO | C79: m3 | D79: 188.74
A80: 8716 | B80: REMOÇÃO DE PADRÃO CONCESSIONÁRIA
A81: ED-48475 | B81: REMOÇÃO MANUAL DE PADRÃO DE ENTRADA DE ÁGUA, COM REAPROVEITAMENTO, INCLUSIVE AFASTAMENTO E EMPILHAMENTO, EXCLUSIVE TRANSPORTE E RETIRADA DO MATERIAL REMOVIDO NÃO REAPROVEITÁVEL | C81: un | D81: 86.86
A82: ED-48474 | B82: REMOÇÃO MANUAL DE PADRÃO DE ENTRADA DE ENERGIA, COM REAPROVEITAMENTO, INCLUSIVE AFASTAMENTO E EMPILHAMENTO, EXCLUSIVE TRANSPORTE E RETIRADA DO MATERIAL REMOVIDO NÃO REAPROVEITÁVEL | C82: un | D82: 218.82
A83: 8717 | B83: DEMOLIÇÃO E REMOÇÃO DE PAVIMENTAÇÃO
A84: ED-48487 | B84: DEMOLIÇÃO MANUAL DE LAJE DE CONCRETO ARMADO, COM ESPESSURA DE ATÉ 15CM, INCLUSIVE AFASTAMENTO E EMPILHAMENTO, EXCLUSIVE TRANSPORTE E RETIRADA DO MATERIAL DEMOLIDO | C84: m2 | D84: 37.04
A85: ED-48507 | B85: DEMOLIÇÃO MANUAL DE SARJETA OU SARJETÃO DE CONCRETO, INCLUSIVE AFASTAMENTO E EMPILHAMENTO, EXCLUSIVE TRANSPORTE E RETIRADA DO MATERIAL DEMOLIDO | C85: m2 | D85: 9.25
A86: ED-48489 | B86: DEMOLIÇÃO MECANIZADA DE LAJE DE CONCRETO ARMADO, COM ESPESSURA DE ATÉ 15CM, , COM EQUIPAMENTO ELÉTRICO, INCLUSIVE AFASTAMENTO E EMPILHAMENTO, EXCLUSIVE TRANSPORTE E RETIRADA DO MATERIAL DEMOLIDO | C86: m2 | D86: 19.95
A87: ED-48486 | B87: DEMOLIÇÃO MECANIZADA DE LAJE DE CONCRETO ARMADO, COM ESPESSURA DE ATÉ 15CM, , COM EQUIPAMENTO PNEUMÁTICO, INCLUSIVE AFASTAMENTO E EMPILHAMENTO, EXCLUSIVE TRANSPORTE E RETIRADA DO MATERIAL DEMOLIDO | C87: m2 | D87: 27.43
A88: ED-48492 | B88: DEMOLIÇÃO MECANIZADA DE REVESTIMENTO ASFÁLTICO, COM EQUIPAMENTO PNEUMÁTICO, INCLUSIVE AFASTAMENTO E EMPILHAMENTO, EXCLUSIVE TRANSPORTE E RETIRADA DO MATERIAL DEMOLIDO | C88: m2 | D88: 9.1
A89: ED-48490 | B89: REMOÇÃO MANUAL DE ALVENARIA POLIÉDRICA, COM REAPROVEITAMENTO, INCLUSIVE AFASTAMENTO E EMPILHAMENTO, EXCLUSIVE TRANSPORTE E RETIRADA DO MATERIAL REMOVIDO NÃO REAPROVEITÁVEL | C89: m2 | D89: 12.73
A90: ED-48488 | B90: REMOÇÃO MANUAL DE CALÇADA PORTUGUESA, COM REAPROVEITAMENTO, INCLUSIVE AFASTAMENTO E EMPILHAMENTO, EXCLUSIVE TRANSPORTE E RETIRADA DO MATERIAL REMOVIDO NÃO REAPROVEITÁVEL | C90: m2 | D90: 7.68
A91: ED-48473 | B91: REMOÇÃO MANUAL DE GUIA DE MEIO-FIO EM PEDRA (GNAISSE, BASALTO, ETC.), COM REAPROVEITAMENTO, INCLUSIVE AFASTAMENTO E EMPILHAMENTO, EXCLUSIVE TRANSPORTE E RETIRADA DO MATERIAL REMOVIDO NÃO REAPROVEITÁVEL | C91: m | D91: 18.51
A92: ED-48472 | B92: REMOÇÃO MANUAL DE GUIA DE MEIO-FIO PRÉ-MOLDADA EM CONCRETO, COM REAPROVEITAMENTO, INCLUSIVE AFASTAMENTO E EMPILHAMENTO, EXCLUSIVE TRANSPORTE E RETIRADA DO MATERIAL REMOVIDO NÃO REAPROVEITÁVEL | C92: m | D92: 9.87
A93: ED-48476 | B93: REMOÇÃO MANUAL DE PAVIMENTAÇÃO INTERTRAVADA OU SEXTAVADO EM PRÉ-MOLDADO DE CONCRETO, COM REAPROVEITAMENTO, INCLUSIVE AFASTAMENTO E EMPILHAMENTO, EXCLUSIVE TRANSPORTE E RETIRADA DO MATERIAL REMOVIDO NÃO REAPROVEITÁVEL | C93: m2 | D93: 12.73
A94: ED-48491 | B94: REMOÇÃO MANUAL DE PAVIMENTO PARALELEPÍPEDO, COM REAPROVEITAMENTO, INCLUSIVE AFASTAMENTO E EMPILHAMENTO, EXCLUSIVE TRANSPORTE E RETIRADA DO MATERIAL REMOVIDO NÃO REAPROVEITÁVEL | C94: m2 | D94: 14.14
A95: 8718 | B95: DEMOLIÇÃO E REMOÇÃO DE REVESTIMENTO
A96: ED-48504 | B96: DEMOLIÇÃO MANUAL DE LAMINADO MELAMÍNICO EM SUPERFÍCIE DE MADEIRA OU PAREDE, INCLUSIVE AFASTAMENTO E EMPILHAMENTO, EXCLUSIVE TRANSPORTE E RETIRADA DO MATERIAL DEMOLIDO | C96: m2 | D96: 9.25
A97: ED-48501 | B97: DEMOLIÇÃO MANUAL DE REBOCO OU EMBOÇO, COM ESPESSURA DE ATÉ 55MM, INCLUSIVE AFASTAMENTO E EMPILHAMENTO, EXCLUSIVE TRANSPORTE E RETIRADA DO MATERIAL DEMOLIDO | C97: m2 | D97: 8.79
A98: ED-48502 | B98: DEMOLIÇÃO MANUAL DE REVESTIMENTO CERÂMICO, AZULEJO OU LADRILHO HIDRÁULICO, INCLUSIVE AFASTAMENTO E EMPILHAMENTO, EXCLUSIVE DEMOLIÇÃO DO REBOCO OU EMBOÇO, TRANSPORTE E RETIRADA DO MATERIAL DEMOLIDO | C98: m2 | D98: 18.31
A99: ED-48503 | B99: DEMOLIÇÃO MANUAL DE REVESTIMENTO DE PEDRA (MÁRMORE, GRANITO, ARDÓSIA, ETC.), INCLUSIVE AFASTAMENTO E EMPILHAMENTO, EXCLUSIVE DEMOLIÇÃO DO REBOCO OU EMBOÇO, TRANSPORTE E RETIRADA DO MATERIAL DEMOLIDO | C99: m2 | D99: 21.98
A100: ED-48478 | B100: REMOÇÃO MANUAL DE PEITORIL DE MÁRMORE OU GRANITO, COM REAPROVEITAMENTO, INCLUSIVE AFASTAMENTO E EMPILHAMENTO, EXCLUSIVE TRANSPORTE E RETIRADA DO MATERIAL REMOVIDO NÃO REAPROVEITÁVEL | C100: m | D100: 7.2
A101: 8719 | B101: DEMOLIÇÃO E REMOÇÃO DE PISO
A102: ED-48480 | B102: DEMOLIÇÃO MANUAL DE PISO CERÂMICO OU LADRILHO HIDRÁULICO, INCLUSIVE AFASTAMENTO E EMPILHAMENTO, EXCLUSIVE DEMOLIÇÃO DE CONTRAPISO, TRANSPORTE E RETIRADA DO MATERIAL DEMOLIDO | C102: m2 | D102: 14.65
A103: ED-48479 | B103: DEMOLIÇÃO MANUAL DE PISO CIMENTADO OU CONTRAPISO DE ARGAMASSA, COM ESPESSURA MÁXIMA DE 10CM, INCLUSIVE AFASTAMENTO E EMPILHAMENTO, EXCLUSIVE TRANSPORTE E RETIRADA DO MATERIAL DEMOLIDO | C103: m2 | D103: 15.69
A104: ED-48481 | B104: DEMOLIÇÃO MANUAL DE PISO DE PEDRAS (MÁRMORE, GRANITO, ARDÓSIA, ETC.), INCLUSIVE AFASTAMENTO E EMPILHAMENTO, EXCLUSIVE DEMOLIÇÃO DE CONTRAPISO, TRANSPORTE E RETIRADA DO MATERIAL DEMOLIDO | C104: m2 | D104: 18.31
A105: ED-48483 | B105: DEMOLIÇÃO MANUAL DE PISO EM GRANILITE/MARMORITE, INCLUSIVE AFASTAMENTO E EMPILHAMENTO, EXCLUSIVE TRANSPORTE E RETIRADA DO MATERIAL DEMOLIDO | C105: m2 | D105: 19.98
A106: ED-48482 | B106: DEMOLIÇÃO MANUAL DE PISO VINÍLICO, INCLUSIVE AFASTAMENTO E EMPILHAMENTO, EXCLUSIVE TRANSPORTE E RETIRADA DO MATERIAL DEMOLIDO | C106: m2 | D106: 7.79
A107: ED-48505 | B107: DEMOLIÇÃO MANUAL DE RODAPÉ, INCLUSIVE ARGAMASSA DE ASSENTAMENTO E AFASTAMENTO, EXCLUSIVE TRANSPORTE E RETIRADA DO MATERIAL DEMOLIDO | C107: m | D107: 2.42
A108: ED-48485 | B108: REMOÇÃO MANUAL DE PISO DE TÁBUAS, COM REAPROVEITAMENTO, INCLUSIVE AFASTAMENTO E EMPILHAMENTO, EXCLUSIVE TRANSPORTE E RETIRADA DO MATERIAL REMOVIDO NÃO REAPROVEITÁVEL | C108: m2 | D108: 21.98
A109: ED-48484 | B109: REMOÇÃO MANUAL DE PISO DE TACO DE MADEIRA, COM REAPROVEITAMENTO, INCLUSIVE AFASTAMENTO E EMPILHAMENTO, EXCLUSIVE TRANSPORTE E RETIRADA DO MATERIAL REMOVIDO NÃO REAPROVEITÁVEL | C109: m2 | D109: 19.11
A110: ED-48508 | B110: REMOÇÃO MANUAL DE SOLEIRA DE MÁRMORE OU GRANITO, COM REAPROVEITAMENTO, INCLUSIVE AFASTAMENTO E EMPILHAMENTO, EXCLUSIVE TRANSPORTE E RETIRADA DO MATERIAL REMOVIDO NÃO REAPROVEITÁVEL | C110: m | D110: 7.7
A111: 8720 | B111: REMOÇÃO DE CERCA E ALAMBRADO
A112: ED-48434 | B112: REMOÇÃO MANUAL DE ALAMBRADO METÁLICO, COM REAPROVEITAMENTO, INCLUSIVE AFASTAMENTO E EMPILHAMENTO, EXCLUSIVE TRANSPORTE E RETIRADA DO MATERIAL REMOVIDO NÃO REAPROVEITÁVEL | C112: m2 | D112: 16.91
A113: ED-48439 | B113: REMOÇÃO MANUAL DE CERCA, COM REAPROVEITAMENTO, INCLUSIVE AFASTAMENTO E EMPILHAMENTO, EXCLUSIVE TRANSPORTE E RETIRADA DO MATERIAL REMOVIDO NÃO REAPROVEITÁVEL | C113: m2 | D113: 14.65
A114: ED-48449 | B114: REMOÇÃO MANUAL DE CONCERTINA, COM DIÂMETRO DE ATÉ 730MM, COM REAPROVEITAMENTO, INCLUSIVE AFASTAMENTO E EMPILHAMENTO, EXCLUSIVE TRANSPORTE E RETIRADA DO MATERIAL REMOVIDO NÃO REAPROVEITÁVEL | C114: m | D114: 2.45
A115: 8721 | B115: REMOÇÃO DE VIDRO
A116: ED-48516 | B116: REMOÇÃO MANUAL DE VIDRO EM ESQUADRIAS, COM REAPROVEITAMENTO, INCLUSIVE LIMPEZA DO ENCAIXE, AFASTAMENTO E EMPILHAMENTO, EXCLUSIVE TRANSPORTE E RETIRADA DO MATERIAL REMOVIDO NÃO REAPROVEITÁVEL | C116: m2 | D116: 5.78
A117: 8722 | B117: REMOÇÃO DE ITEM ESCOLAR
A118: ED-48498 | B118: REMOÇÃO MANUAL DE QUADRO NEGRO, COM REAPROVEITAMENTO, INCLUSIVE AFASTAMENTO E EMPILHAMENTO, EXCLUSIVE TRANSPORTE E RETIRADA DO MATERIAL REMOVIDO NÃO REAPROVEITÁVEL | C118: m2 | D118: 24.69
A119: 8664 | B119: INSTALAÇÕES PROVISÓRIAS
A120: 8723 | B120: PLACA DE OBRA
A121: ED-16660 | B121: FORNECIMENTO E COLOCAÇÃO DE PLACA DE OBRA EM CHAPA GALVANIZADA #26, ESP. 0,45 MM, PLOTADA COM ADESIVO VINÍLICO, AFIXADA COM REBITES 4,8X40 MM, EM ESTRUTURA METÁLICA DE METALON 20X20 MM, ESP. 1,25 MM, INCLUSIVE SUPORTE EM EUCALIPTO AUTOCLAVADO PINTADO COM TINTA PVA DUAS (2) DEMÃOS | C121: m2 | D121: 308.96
A122: ED-28427 | B122: FORNECIMENTO E COLOCAÇÃO DE PLACA DE OBRA EM CHAPA GALVANIZADA #26, ESP. 0,45MM, DIMENSÃO (3X1,5)M, PLOTADA COM ADESIVO VINÍLICO, AFIXADA COM REBITES 4,8X40MM, EM ESTRUTURA METÁLICA DE METALON 20X20MM, ESP. 1,25MM, INCLUSIVE SUPORTE EM EUCALIPTO AUTOCLAVADO PINTADO COM TINTA PVA DUAS (2) DEMÃOS | C122: un | D122: 1390.32
A123: ED-28428 | B123: FORNECIMENTO E COLOCAÇÃO DE PLACA DE OBRA EM CHAPA GALVANIZADA #26, ESP. 0,45MM, DIMENSÃO (4X3)M, PLOTADA COM ADESIVO VINÍLICO, AFIXADA COM REBITES 4,8X40MM, EM ESTRUTURA METÁLICA DE METALON 20X20MM, ESP. 1,25MM, INCLUSIVE SUPORTE EM EUCALIPTO AUTOCLAVADO PINTADO COM TINTA PVA DUAS (2) DEMÃOS | C123: un | D123: 3707.52
A124: ED-28429 | B124: FORNECIMENTO E COLOCAÇÃO DE PLACA DE OBRA EM CHAPA GALVANIZADA #26, ESP. 0,45MM, DIMENSÃO (6X3)M, PLOTADA COM ADESIVO VINÍLICO, AFIXADA COM REBITES 4,8X40MM, EM ESTRUTURA METÁLICA DE METALON 20X20MM, ESP. 1,25MM, INCLUSIVE SUPORTE EM EUCALIPTO AUTOCLAVADO PINTADO COM TINTA PVA DUAS (2) DEMÃOS | C124: un | D124: 5561.28
A125: 8724 | B125: INSTALAÇÃO PROVISÓRIA ÁGUA E ENERGIA
A126: ED-50150 | B126: LIGAÇÃO DE ÁGUA PROVISÓRIA PARA CANTEIRO, INCLUSIVE HIDRÔMETRO E CAVALETE PARA MEDIÇÃO DE ÁGUA - ENTRADA PRINCIPAL, EM AÇO GALVANIZADO DN 20MM (1/2") - PADRÃO CONCESSIONÁRIA | C126: un | D126: 371.6
A127: ED-50151 | B127: LIGAÇÃO PROVISÓRIA COM ENTRADA DE ENERGIA AÉREA, PADRÃO CEMIG, CARGA INSTALADA DE 15,1KVA ATÉ 30KVA, TRIFÁSICO, COM SAÍDA SUBTERRÂNEA, INCLUSIVE POSTE, CAIXA PARA MEDIDOR, DISJUNTOR, BARRAMENTO, ATERRAMENTO E ACESSÓRIOS | C127: un | D127: 1151.74
A128: 8725 | B128: ESCRITÓRIO DE OBRA
A129: ED-50125 | B129: ÁREA COBERTA EM TELHA FIBROCIMENTO PARA CENTRAL DE CORTE/DOBRA/MONTAGEM EM CANTEIRO DE OBRAS, INCLUSIVE BANCADA E INSTALAÇÕES ELÉTRICAS, EXCLUSIVE VEDAÇÕES LATERAIS | C129: m2 | D129: 121.28
A130: ED-50135 | B130: BARRACÃO DE OBRA, EM CHAPA DE COMPENSADO RESINADO, INCLUSIVE INSTALAÇÕES SANITÁRIAS E MOBILIÁRIO - PADRÃO DER-MG | C130: m2 | D130: 552.57
A131: ED-50128 | B131: BARRACÃO DE OBRA PARA DEPÓSITO E FERRAMENTARIA TIPO-I, ÁREA INTERNA 14,52M2, EM CHAPA DE COMPENSADO RESINADO, INCLUSIVE MOBILIÁRIO (OBRA DE PEQUENO PORTE, EFETIVO ATÉ 30 HOMENS), PADRÃO DER-MG | C131: un | D131: 7436.24
A132: ED-50129 | B132: BARRACÃO DE OBRA PARA DEPÓSITO E FERRAMENTARIA TIPO-II, ÁREA INTERNA 25,41M2, EM CHAPA DE COMPENSADO RESINADO, INCLUSIVE MOBILIÁRIO (OBRA DE MÉDIO PORTE, EFETIVO DE 30 A 60 HOMENS), PADRÃO DER-MG | C132: un | D132: 12261.58
A133: ED-50148 | B133: BARRACÃO DE OBRA PARA ESCRITÓRIO DA EMPREITEIRA TIPO-I, ÁREA INTERNA 18,15M2, EM CHAPA DE COMPENSADO RESINADO, INCLUSIVE MOBILIÁRIO (OBRA DE PEQUENO A MÉDIO PORTE, EFETIVO ATÉ 60 HOMENS) - PADRÃO DER-MG | C133: un | D133: 9779.83
A134: ED-50149 | B134: BARRACÃO DE OBRA PARA ESCRITÓRIO DA EMPREITEIRA TIPO-II, ÁREA INTERNA 21,78M2, EM CHAPA DE COMPENSADO RESINADO, INCLUSIVE MOBILIÁRIO (OBRA DE GRANDE PORTE, EFETIVO ACIMA 60 HOMENS) - PADRÃO DER-MG | C134: un | D134: 11317.49
A135: ED-50146 | B135: BARRACÃO DE OBRA PARA ESCRITÓRIO DA FISCALIZAÇÃO TIPO-I, ÁREA INTERNA 18,15M2, EM CHAPA DE COMPENSADO RESINADO, INCLUSIVE MOBILIÁRIO (OBRA DE PEQUENO A MÉDIO PORTE, EFETIVO ATÉ 60 HOMENS) - PADRÃO DER-MG | C135: un | D135: 9721.43
A136: ED-50147 | B136: BARRACÃO DE OBRA PARA ESCRITÓRIO DA FISCALIZAÇÃO TIPO-II, ÁREA INTERNA 21,78M2, EM CHAPA DE COMPENSADO RESINADO, INCLUSIVE MOBILIÁRIO (OBRA DE GRANDE PORTE, EFETIVO ACIMA 60 HOMENS) - PADRÃO DER-MG | C136: un | D136: 11259.09
A137: ED-50130 | B137: BARRACÃO DE OBRA PARA INSTALAÇÃO SANITÁRIA TIPO-I, ÁREA INTERNA 14,52M2, EM CHAPA DE COMPENSADO RESINADO (OBRA DE PEQUENO PORTE, EFETIVO ATÉ 30 HOMENS), PADRÃO DER-MG | C137: un | D137: 8369.9
A138: ED-50131 | B138: BARRACÃO DE OBRA PARA INSTALAÇÃO SANITÁRIA TIPO-II, ÁREA INTERNA 18,15M2, EM CHAPA DE COMPENSADO RESINADO (OBRA DE MÉDIO PORTE, EFETIVO DE 30 A 60 HOMENS), PADRÃO DER-MG | C138: un | D138: 10685.98
A139: ED-50132 | B139: BARRACÃO DE OBRA PARA INSTALAÇÃO SANITÁRIA TIPO-III, ÁREA INTERNA 25,41M2, EM CHAPA DE COMPENSADO RESINADO (OBRA DE GRANDE PORTE, EFETIVO ACIMA DE 60 HOMENS), PADRÃO DER-MG | C139: un | D139: 15044.63
A140: ED-50133 | B140: BARRACÃO DE OBRA PARA REFEITÓRIO TIPO-I, ÁREA INTERNA 18,15M2, EM CHAPA DE COMPENSADO RESINADO (OBRA DE MÉDIO PORTE, EFETIVO DE 30 A 60 HOMENS), PADRÃO DER-MG | C140: un | D140: 9321.13
A141: ED-50134 | B141: BARRACÃO DE OBRA PARA REFEITÓRIO TIPO-II, ÁREA INTERNA 25,41M2, EM CHAPA DE COMPENSADO RESINADO (OBRA DE GRANDE PORTE, EFETIVO ACIMA DE 60 HOMENS), PADRÃO DER-MG | C141: un | D141: 12573.1
A142: ED-50126 | B142: BARRACÃO DE OBRA PARA VESTIÁRIO TIPO-I, ÁREA INTERNA 25,41M2, EM CHAPA DE COMPENSADO RESINADO, INCLUSIVE MOBILIÁRIO (OBRA DE PEQUENO PORTE, EFETIVO ATÉ 30 HOMENS), PADRÃO DER-MG | C142: un | D142: 12810.55
A143: ED-50127 | B143: BARRACÃO DE OBRA PARA VESTIÁRIO TIPO-II, ÁREA INTERNA 67,76M2, EM CHAPA DE COMPENSADO RESINADO, INCLUSIVE MOBILIÁRIO (OBRA DE MÉDIO PORTE, EFETIVO DE 30 A 60 HOMENS), PADRÃO DER-MG | C143: un | D143: 24678.92
A144: ED-16341 | B144: LIGAÇÃO PROVISÓRIA DE ÁGUA E ESGOTO PARA CONTAINER (ESCRITÓRIO DE OBRA) | C144: un | D144: 304
A145: ED-16343 | B145: LIGAÇÃO PROVISÓRIA DE ÁGUA E ESGOTO PARA CONTAINER (VESTIÁRIO DE OBRA), EXCLUSIVE CHUVEIRO ELÉTRICO | C145: un | D145: 356.17
A146: ED-16342 | B146: LIGAÇÃO PROVISÓRIA DE ENERGIA ELÉTRICA PARA CONTAINER | C146: un | D146: 331
A147: ED-16356 | B147: LIGAÇÕES PROVISÓRIAS PARA CONTAINER TIPO 1 (CORRESPONDENTE AO CÓDIGO ED-16348) | C147: un | D147: 331
A148: ED-16357 | B148: LIGAÇÕES PROVISÓRIAS PARA CONTAINER TIPO 2 (CORRESPONDENTE AO CÓDIGO ED-16349) | C148: un | D148: 635
A149: ED-16358 | B149: LIGAÇÕES PROVISÓRIAS PARA CONTAINER TIPO 3 (CORRESPONDENTE AO CÓDIGO ED-16350) | C149: un | D149: 331
A150: ED-16359 | B150: LIGAÇÕES PROVISÓRIAS PARA CONTAINER TIPO 4 (CORRESPONDENTE AO CÓDIGO ED-16351) | C150: un | D150: 331
A151: ED-16360 | B151: LIGAÇÕES PROVISÓRIAS PARA CONTAINER TIPO 5 (CORRESPONDENTE AO CÓDIGO ED-16352) | C151: un | D151: 1062.33
A152: ED-16361 | B152: LIGAÇÕES PROVISÓRIAS PARA CONTAINER TIPO 6 (CORRESPONDENTE AO CÓDIGO ED-16353) | C152: un | D152: 687.17
A153: ED-16362 | B153: LIGAÇÕES PROVISÓRIAS PARA CONTAINER TIPO 7 (CORRESPONDENTE AO CÓDIGO ED-16354) | C153: un | D153: 901.55
A154: ED-16363 | B154: LIGAÇÕES PROVISÓRIAS PARA CONTAINER TIPO 8 (CORRESPONDENTE AO CÓDIGO ED-16355) | C154: un | D154: 331
A155: ED-50155 | B155: LOCAÇÃO DE BANHEIRO QUÍMICO, DIMENSÃO (110X120X230)CM, LINHA PADRÃO, CONTENDO UMA (1) PIA/HIGIENIZADOR DE MÃOS, INCLUSIVE MANUTENÇÃO E MOBILIZAÇÃO/DESMOBILIZAÇÃO | C155: mês | D155: 820
A156: ED-16348 | B156: LOCAÇÃO DE CONTAINER COM ISOLAMENTO TÉRMICO, TIPO 1, PARA ESCRITÓRIO DE OBRA, COM MEDIDAS REFERENCIAIS DE (6) METROS COMPRIMENTO, (2,3) METROS LARGURA E (2,5) METROS ALTURA ÚTIL INTERNA, INCLUSIVE AR CONDICIONADO E LIGAÇÕES ELÉTRICAS INTERNAS, EXCLUSIVE MOBILIZAÇÃO/DESMOBILIZAÇÃO E LIGAÇÕES PROVISÓRIAS EXTERNAS | C156: mês | D156: 800.88
A157: ED-16349 | B157: LOCAÇÃO DE CONTAINER COM ISOLAMENTO TÉRMICO, TIPO 2, PARA ESCRITÓRIO DE OBRA COM SANITÁRIO CONTENDO UM (1) VASO SANITÁRIO E UM (1) LAVATÓRIO, COM MEDIDAS REFERENCIAIS DE (6) METROS COMPRIMENTO, (2,3) METROS LARGURA E (2,5) METROS ALTURA ÚTIL INTERNA, INCLUSIVE AR CONDICIONADO E LIGAÇÕES ELÉTRICAS E HIDROSSANITÁRIAS INTERNAS, EXCLUSIVE MOBILIZAÇÃO/DESMOBILIZAÇÃO E LIGAÇÕES PROVISÓRIAS EXTERNAS | C157: mês | D157: 953.49
A158: ED-16350 | B158: LOCAÇÃO DE CONTAINER COM ISOLAMENTO TÉRMICO, TIPO 3, PARA DEPÓSITO/FERRAMENTARIA DE OBRA, COM MEDIDAS REFERENCIAIS DE (6) METROS COMPRIMENTO, (2,3) METROS LARGURA E (2,5) METROS ALTURA ÚTIL INTERNA, INCLUSIVE LIGAÇÕES ELÉTRICAS INTERNAS, EXCLUSIVE MOBILIZAÇÃO/DESMOBILIZAÇÃO E LIGAÇÕES PROVISÓRIAS EXTERNAS | C158: mês | D158: 689.44
A159: ED-16351 | B159: LOCAÇÃO DE CONTAINER COM ISOLAMENTO TÉRMICO, TIPO 4, PARA REFEITÓRIO DE OBRA, COM MEDIDAS REFERENCIAIS DE (6) METROS COMPRIMENTO, (2,3) METROS LARGURA E (2,5) METROS ALTURA ÚTIL INTERNA, INCLUSIVE LIGAÇÕES ELÉTRICAS INTERNAS, EXCLUSIVE MOBILIZAÇÃO/DESMOBILIZAÇÃO E LIGAÇÕES PROVISÓRIAS EXTERNAS | C159: mês | D159: 609.04
A160: ED-16352 | B160: LOCAÇÃO DE CONTAINER COM ISOLAMENTO TÉRMICO, TIPO 5, PARA VESTIÁRIO DE OBRA COM SETE (7) CHUVEIROS E DOIS (2) LAVATÓRIOS, COM MEDIDAS REFERENCIAIS DE (6) METROS COMPRIMENTO, (2,3) METROS LARGURA E (2,5) METROS ALTURA ÚTIL INTERNA, INCLUSIVE LIGAÇÕES ELÉTRICAS E HIDROSSANITÁRIAS INTERNAS, EXCLUSIVE MOBILIZAÇÃO/DESMOBILIZAÇÃO E LIGAÇÕES PROVISÓRIAS EXTERNAS | C160: mês | D160: 834.25
A161: ED-16353 | B161: LOCAÇÃO DE CONTAINER COM ISOLAMENTO TÉRMICO, TIPO 6, PARA VESTIÁRIO DE OBRA COM SETE (7) VASOS SANITÁRIOS, UM (1) MICTÓRIO E UM (1) LAVATÓRIO, COM MEDIDAS REFERENCIAIS DE (6) METROS COMPRIMENTO, (2,3) METROS LARGURA E (2,5) METROS ALTURA ÚTIL INTERNA, INCLUSIVE LIGAÇÕES ELÉTRICAS E HIDROSSANITÁRIAS INTERNAS, EXCLUSIVE MOBILIZAÇÃO/DESMOBILIZAÇÃO E LIGAÇÕES PROVISÓRIAS EXTERNAS | C161: mês | D161: 802.88
A162: ED-16354 | B162: LOCAÇÃO DE CONTAINER COM ISOLAMENTO TÉRMICO, TIPO 7, PARA VESTIÁRIO DE OBRA COM QUATRO (4) CHUVEIROS, TRÊS (3) VASOS SANITÁRIOS, UM (1) MICTÓRIO E UM (1) LAVATÓRIO, COM MEDIDAS REFERENCIAIS DE (6) METROS COMPRIMENTO, (2,3) METROS LARGURA E (2,5) METROS ALTURA ÚTIL INTERNA, INCLUSIVE LIGAÇÕES ELÉTRICAS E HIDROSSANITÁRIAS INTERNAS, EXCLUSIVE MOBILIZAÇÃO/DESMOBILIZAÇÃO E LIGAÇÕES PROVISÓRIAS EXTERNAS | C162: mês | D162: 807.6
A163: ED-16355 | B163: LOCAÇÃO DE CONTAINER COM ISOLAMENTO TÉRMICO, TIPO 8, PARA VESTIÁRIO DE OBRA COM OITO (8) BANCOS E CINCO (5) ARMÁRIOS, COM MEDIDAS REFERENCIAIS DE (6) METROS COMPRIMENTO, (2,3) METROS LARGURA E (2,5) METROS ALTURA ÚTIL INTERNA, INCLUSIVE LIGAÇÕES ELÉTRICAS INTERNAS, EXCLUSIVE MOBILIZAÇÃO/DESMOBILIZAÇÃO E LIGAÇÕES PROVISÓRIAS EXTERNAS | C163: mês | D163: 630.99
A164: ED-50137 | B164: MOBILIZAÇÃO E DESMOBILIZAÇÃO DE CONTAINER, INCLUSIVE CARGA, DESCARGA E TRANSPORTE EM CAMINHÃO CARROCERIA COM GUINDAUTO (MUNCK), EXCLUSIVE LOCAÇÃO DO CONTAINER | C164: un | D164: 631.9
A165: 8726 | B165: LOCAÇÃO DA OBRA
A166: ED-17989 | B166: LOCAÇÃO DE OBRA COM GABARITO DE TÁBUAS CORRIDAS PONTALETADAS A CADA 2,00M, REAPROVEITAMENTO (2X), INCLUSIVE ACOMPANHAMENTO DE EQUIPE TOPOGRÁFICA PARA MARCAÇÃO DE PONTO TOPOGRÁFICO | C166: m | D166: 48.91
A167: ED-50276 | B167: LOCAÇÃO TOPOGRÁFICA ACIMA DE CINQUENTA (50) PONTOS REFERENCIAIS, INCLUSIVE ESTACA (PIQUETE) DE MARCAÇÃO | C167: un | D167: 31.27
A168: ED-50275 | B168: LOCAÇÃO TOPOGRÁFICA DE VINTE UM (21) ATÉ CINQUENTA (50) PONTOS REFERENCIAIS, INCLUSIVE ESTACA (PIQUETE) DE MARCAÇÃO | C168: un | D168: 54.05
A169: ED-50274 | B169: LOCAÇÃO TOPOGRÁFICA PARA ATÉ VINTE (20) PONTOS REFERENCIAIS, INCLUSIVE ESTACA (PIQUETE) DE MARCAÇÃO | C169: un | D169: 71.77
A170: 8727 | B170: TAPUME E CERCA
A171: ED-50136 | B171: CERCA COM MOURÕES DE MADEIRA ROLIÇA, COM CINCO (5) FIOS DE ARAME FARPADO, BWG 14 (2,0MM), ALTURA DE 150CM, INCLUSIVE ESCAVAÇÃO, REATERRO COMPACTADO E FORNECIMENTO | C171: m | D171: 39.02
A172: ED-50162 | B172: PORTÃO PARA TAPUME FIXO DE PROTEÇÃO COM FECHAMENTO DE OBRA EM CHAPA DE COMPENSADO, ESP. 12MM, COM MÓDULO NA DIMENSÃO DE (110X220)CM, INCLUSIVE FERRAGENS E PINTURA LÁTEX (PVA) COM DUAS (2) DEMÃOS | C172: m2 | D172: 141.09
A173: ED-50166 | B173: REMANEJAMENTO DE TAPUME FIXO DE PROTEÇÃO PARA FECHAMENTO DE OBRA, INCLUSIVE ESCAVAÇÃO MANUAL E REATERRO COMPACTADO | C173: m2 | D173: 9.33
A174: ED-50163 | B174: TAPUME DE PROTEÇÃO PARA TRANSEUNTE EM TELA DE POLIETILENO, COM MÓDULO NA DIMENSÃO DE (150X150)CM, INCLUSIVE BASE DE APOIO EM CONCRETO MAGRO, DIMENSÃO (40X40)CM, ALTURA DE 20CM, EM PONTALETE, FORNECIMENTO E MOVIMENTAÇÃO | C174: m | D174: 17.17
A175: ED-50159 | B175: TAPUME FIXO DE PROTEÇÃO PARA FECHAMENTO DE OBRA EM CHAPA DE COMPENSADO, ESP. 12MM, COM MÓDULO NA DIMENSÃO DE (110X220)CM, INCLUSIVE PINTURA LÁTEX (PVA) COM DUAS (2) DEMÃOS, EXCLUSIVE ABERTURA PARA PORTÃO | C175: m | D175: 206.9
A176: ED-50164 | B176: TAPUME FIXO DE PROTEÇÃO PARA FECHAMENTO DE OBRA EM TELA GALVANIZADA, COM TRAMA LOSANGULAR DE 2"X2", FIO BWG 14, COM MÓDULO NA DIMENSÃO DE (300X220)CM, INCLUSIVE PINTURA ESMALTE COM DUAS (2) DEMÃOS, EXCLUSIVE ABERTURA PARA PORTÃO | C176: m2 | D176: 69.78
A177: ED-50165 | B177: TAPUME REMOVÍVEL DE PROTEÇÃO PARA FECHAMENTO DE OBRA EM TELA GALVANIZADA, COM TRAMA LOSANGULAR DE 2"X2", FIO BWG 14, COM MÓDULO NA DIMENSÃO DE (300X220)CM, INCLUSIVE BASE DE APOIO EM CONCRETO MAGRO, DIMENSÃO (40X40)CM, ALTURA DE 20CM EM PONTALETE | C177: m2 | D177: 76.81
A178: 8728 | B178: PROTEÇÃO DE TRANSEUNTE
A179: ED-27006 | B179: CONE PARA SINALIZAÇÃO/ISOLAMENTO DE ÁREAS, ALTURA 75CM, INCLUSIVE FORNECIMENTO E MOVIMENTAÇÃO | C179: un | D179: 4.61
A180: ED-50157 | B180: FITA ZEBRADA AMARELA PARA SINALIZAÇÃO ISOLAMENTO DE ÁREA, EXCLUSIVE SUPORTE PARA SUSTENTAÇÃO, INCLUSIVE FIXAÇÃO E FORNECIMENTO | C180: m | D180: 2.5
A181: ED-50156 | B181: PROTEÇÃO PARA TRANSEUNTE OU ISOLAMENTO DE ÁREA COM FITA ZEBRADA AMARELA, INCLUSIVE BASE DE APOIO EM CONCRETO MAGRO , DIMENSÃO (40X40)CM, ALTURA DE 150CM, EM PONTALETE, FORNECIMENTO E MOVIMENTAÇÃO | C181: m | D181: 7.3
A182: 8729 | B182: ANDAIME
A183: ED-28530 | B183: ANDAIME EM CAVALETE METÁLICO PARA ALVENARIA, COM CHAPA DE COMPENSADO E TÁBUA, COM REAPROVEITAMENTO, INCLUSIVE MONTAGEM/DESMONTAGEM E REMANEJAMENTO | C183: m | D183: 1.47
A184: ED-28533 | B184: ANDAIME EM CAVALETE METÁLICO PARA FORRO OU SERVIÇO EM ALTURA INTERNO, COM CHAPA DE COMPENSADO E TÁBUA, COM REAPROVEITAMENTO, INCLUSIVE MONTAGEM/DESMONTAGEM E REMANEJAMENTO | C184: m2 | D184: 1.34
A185: ED-48243 | B185: CONDUTOR/DUTO DE ENTULHO EM POLIETILENO, INCLUSIVE ACESSÓRIOS DE FIXAÇÃO, SUPORTES, MONTAGEM/DESMONTAGEM E REMANEJAMENTO | C185: mxmês | D185: 44.12
A186: ED-9075 | B186: FORNECIMENTO DE ANDAIME METÁLICO PARA FACHADA (LOCAÇÃO), INCLUSIVE PISO METÁLICO E SAPATAS, EXCLUSIVE MONTAGEM E DESMONTAGEM | C186: m2xmês | D186: 6.66
A187: ED-9076 | B187: FORNECIMENTO DE ANDAIME METÁLICO TUBULAR TIPO TORRE (LOCAÇÃO), INCLUSIVE RODÍZIOS, EXCLUSIVE MONTAGEM E DESMONTAGEM | C187: mxmês | D187: 20
A188: ED-48246 | B188: MONTAGEM E DESMONTAGEM DE ANDAIME METÁLICO PARA FACHADA COM PISO METÁLICO, EXCLUSIVE FORNECIMENTO DO ANDAIME E RODAPÉ/GUARDA-CORPO EM MADEIRA | C188: m2 | D188: 7.7
A189: ED-48245 | B189: MONTAGEM E DESMONTAGEM DE ANDAIME METÁLICO PARA FACHADA COM PISO METÁLICO, INCLUSIVE RODAPÉ/GUARDA-CORPO EM MADEIRA, EXCLUSIVE FORNECIMENTO DO ANDAIME | C189: m2 | D189: 10.91
A190: ED-9077 | B190: MONTAGEM E DESMONTAGEM DE ANDAIME METÁLICO TUBULAR TIPO TORRE, EXCLUSIVE FORNECIMENTO DO ANDAIME | C190: m | D190: 8.8
A191: ED-48249 | B191: TELA DE PROTEÇÃO, TIPO FACHADEIRA, INSTALADA EM ANDAIME METÁLICO PARA FACHADA, EXCLUSIVE ANDAIME METÁLICO, INCLUSIVE ACESSÓRIOS DE FIXAÇÃO | C191: m2 | D191: 6.26
A192: ED-48248 | B192: TELA PARA PROTEÇÃO DE FACHADA EM POLIETILENO, EXCLUSIVE BANDEJA SALVA VIDAS, INCLUSIVE ACESSÓRIOS DE FIXAÇÃO | C192: m2 | D192: 7.8
A193: 8730 | B193: BANDEJA DE PROTEÇÃO/SALVA VIDAS
A194: ED-28493 | B194: BANDEJA SALVA VIDAS, TIPO PRIMÁRIA, EM SUPORTE METÁLICO COM FORRO EM COMPENSADO RESINADO E TÁBUA, COMPRIMENTO DE 250CM COM COMPLEMENTO DE 80CM, INCLUSIVE ACESSÓRIOS DE FIXAÇÃO E INSTALAÇÃO | C194: m | D194: 228.93
A195: ED-28494 | B195: BANDEJA SALVA VIDAS, TIPO SECUNDÁRIA, EM SUPORTE METÁLICO COM FORRO EM COMPENSADO RESINADO E TÁBUA, COMPRIMENTO DE 140CM COM COMPLEMENTO DE 80CM, INCLUSIVE ACESSÓRIOS DE FIXAÇÃO E INSTALAÇÃO | C195: m | D195: 144.12
A196: 8665 | B196: TERRAPLENAGEM/TRABALHOS EM TERRA
A197: 8731 | B197: REGULARIZAÇÃO E COMPACTAÇÃO DE SOLO
A198: ED-51100 | B198: CORTE E DESATERRO MECÂNICO PARA REGULARIZAÇÃO, COM TRATOR DE ESTEIRA, INCLUSIVE ARRASTAMENTO NIVELADO, AFASTAMENTO E EMPILHAMENTO, EXCLUSIVE CARGA, TRANSPORTE E DESCARGA | C198: m3 | D198: 3.81
A199: ED-51122 | B199: REGULARIZAÇÃO E COMPACTAÇÃO DE TERRENO MANUAL COM SOQUETE, EXCLUSIVE DESMATAMENTO, DESTOCAMENTO, LIMPEZA/ROÇADA DO TERRENO | C199: m2 | D199: 8.72
A200: ED-51124 | B200: REGULARIZAÇÃO E COMPACTAÇÃO MECÂNICA DE TERRENO COM ROLO VIBRATÓRIO, EXCLUSIVE DESMATAMENTO, DESTOCAMENTO, LIMPEZA/ROÇADA DO TERRENO | C200: m2 | D200: 2.99
... 3969 more rows

Sheet SICRO (hidden)
B1: SICRO JANEIRO 2023
A2: CÓDIGO | B2: DESCRIÇÃO | C2: UNIDADE | D2: PREÇO
A3: 307731 | B3: Aparelho de apoio de neoprene fretado para estruturas moldadas no local - fornecimento e instalação | C3: dm³ | D3: 108.58
A4: 307732 | B4: Aparelho de apoio de neoprene fretado para estruturas pré-moldadas - fornecimento e instalação | C4: dm³ | D4: 86.8
A5: 308308 | B5: Aparelho de apoio metálico elastomérico fixo com capacidade de 1.500 kN - fornecimento e instalação | C5: un | D5: 14203.08
A6: 308313 | B6: Aparelho de apoio metálico elastomérico fixo com capacidade de 10.000 kN - fornecimento e instalação | C6: un | D6: 93036.49
A7: 308309 | B7: Aparelho de apoio metálico elastomérico fixo com capacidade de 2.500 kN - fornecimento e instalação | C7: un | D7: 23199.45
A8: 308310 | B8: Aparelho de apoio metálico elastomérico fixo com capacidade de 4.000 kN - fornecimento e instalação | C8: un | D8: 37369.57
A9: 308311 | B9: Aparelho de apoio metálico elastomérico fixo com capacidade de 5.500 kN - fornecimento e instalação | C9: un | D9: 50148.44
A10: 308312 | B10: Aparelho de apoio metálico elastomérico fixo com capacidade de 7.500 kN - fornecimento e instalação | C10: un | D10: 68789.87
A11: 308307 | B11: Aparelho de apoio metálico elastomérico fixo com capacidade de 700 kN - fornecimento e instalação | C11: un | D11: 9506.44
A12: 308322 | B12: Aparelho de apoio metálico elastomérico multidirecional com capacidade de 1.500 kN - fornecimento e instalação | C12: un | D12: 8606.2
A13: 308327 | B13: Aparelho de apoio metálico elastomérico multidirecional com capacidade de 10.000 kN - fornecimento e instalação | C13: un | D13: 55948.58
A14: 308323 | B14: Aparelho de apoio metálico elastomérico multidirecional com capacidade de 2.500 kN - fornecimento e instalação | C14: un | D14: 11957.57
A15: 308324 | B15: Aparelho de apoio metálico elastomérico multidirecional com capacidade de 4.000 kN - fornecimento e instalação | C15: un | D15: 19918.34
A16: 308325 | B16: Aparelho de apoio metálico elastomérico multidirecional com capacidade de 5.500 kN - fornecimento e instalação | C16: un | D16: 28596.65
A17: 308326 | B17: Aparelho de apoio metálico elastomérico multidirecional com capacidade de 7.500 kN - fornecimento e instalação | C17: un | D17: 40439.6
A18: 308321 | B18: Aparelho de apoio metálico elastomérico multidirecional com capacidade de 700 kN - fornecimento e instalação | C18: un | D18: 4975.24
A19: 308315 | B19: Aparelho de apoio metálico elastomérico unidirecional com capacidade de 1.500 kN - fornecimento e instalação | C19: un | D19: 10179.92
A20: 308320 | B20: Aparelho de apoio metálico elastomérico unidirecional com capacidade de 10.000 kN - fornecimento e instalação | C20: un | D20: 58559.85
A21: 308316 | B21: Aparelho de apoio metálico elastomérico unidirecional com capacidade de 2.500 kN - fornecimento e instalação | C21: un | D21: 15484.11
A22: 308317 | B22: Aparelho de apoio metálico elastomérico unidirecional com capacidade de 4.000 kN - fornecimento e instalação | C22: un | D22: 24955.15
A23: 308318 | B23: Aparelho de apoio metálico elastomérico unidirecional com capacidade de 5.500 kN - fornecimento e instalação | C23: un | D23: 32428.6
A24: 308319 | B24: Aparelho de apoio metálico elastomérico unidirecional com capacidade de 7.500 kN - fornecimento e instalação | C24: un | D24: 44994.04
A25: 308314 | B25: Aparelho de apoio metálico elastomérico unidirecional com capacidade de 700 kN - fornecimento e instalação | C25: un | D25: 7121.92
A26: 308250 | B26: Aparelho de apoio metálico esférico fixo com capacidade de 1.000 kN - fornecimento e instalação | C26: un | D26: 5766.37
A27: 308251 | B27: Aparelho de apoio metálico esférico fixo com capacidade de 1.500 kN - fornecimento e instalação | C27: un | D27: 8585.96
A28: 308268 | B28: Aparelho de apoio metálico esférico fixo com capacidade de 10.000 kN - fornecimento e instalação | C28: un | D28: 128633.28
A29: 308252 | B29: Aparelho de apoio metálico esférico fixo com capacidade de 2.000 kN - fornecimento e instalação | C29: un | D29: 10860.55
A30: 308253 | B30: Aparelho de apoio metálico esférico fixo com capacidade de 2.500 kN - fornecimento e instalação | C30: un | D30: 13693.54
A31: 308254 | B31: Aparelho de apoio metálico esférico fixo com capacidade de 3.000 kN - fornecimento e instalação | C31: un | D31: 15725.25
A32: 308255 | B32: Aparelho de apoio metálico esférico fixo com capacidade de 3.500 kN - fornecimento e instalação | C32: un | D32: 18997.48
A33: 308256 | B33: Aparelho de apoio metálico esférico fixo com capacidade de 4.000 kN - fornecimento e instalação | C33: un | D33: 22394.16
A34: 308257 | B34: Aparelho de apoio metálico esférico fixo com capacidade de 4.500 kN - fornecimento e instalação | C34: un | D34: 56898.13
A35: 308258 | B35: Aparelho de apoio metálico esférico fixo com capacidade de 5.000 kN - fornecimento e instalação | C35: un | D35: 63262.13
A36: 308259 | B36: Aparelho de apoio metálico esférico fixo com capacidade de 5.500 kN - fornecimento e instalação | C36: un | D36: 68619.57
A37: 308260 | B37: Aparelho de apoio metálico esférico fixo com capacidade de 6.000 kN - fornecimento e instalação | C37: un | D37: 74025.44
A38: 308261 | B38: Aparelho de apoio metálico esférico fixo com capacidade de 6.500 kN - fornecimento e instalação | C38: un | D38: 84130.52
A39: 308262 | B39: Aparelho de apoio metálico esférico fixo com capacidade de 7.000 kN - fornecimento e instalação | C39: un | D39: 86808.26
A40: 308263 | B40: Aparelho de apoio metálico esférico fixo com capacidade de 7.500 kN - fornecimento e instalação | C40: un | D40: 96992.66
A41: 308264 | B41: Aparelho de apoio metálico esférico fixo com capacidade de 8.000 kN - fornecimento e instalação | C41: un | D41: 103685.92
A42: 308265 | B42: Aparelho de apoio metálico esférico fixo com capacidade de 8.500 kN - fornecimento e instalação | C42: un | D42: 106195.48
A43: 308266 | B43: Aparelho de apoio metálico esférico fixo com capacidade de 9.000 kN - fornecimento e instalação | C43: un | D43: 114762.28
A44: 308267 | B44: Aparelho de apoio metálico esférico fixo com capacidade de 9.500 kN - fornecimento e instalação | C44: un | D44: 121013.8
A45: 308288 | B45: Aparelho de apoio metálico esférico multidirecional com capacidade de 1.000 kN - fornecimento e instalação | C45: un | D45: 11300.6
A46: 308289 | B46: Aparelho de apoio metálico esférico multidirecional com capacidade de 1.500 kN - fornecimento e instalação | C46: un | D46: 15590.28
A47: 308306 | B47: Aparelho de apoio metálico esférico multidirecional com capacidade de 10.000 kN - fornecimento e instalação | C47: un | D47: 103548.04
A48: 308290 | B48: Aparelho de apoio metálico esférico multidirecional com capacidade de 2.000 kN - fornecimento e instalação | C48: un | D48: 20444.78
A49: 308291 | B49: Aparelho de apoio metálico esférico multidirecional com capacidade de 2.500 kN - fornecimento e instalação | C49: un | D49: 25089.67
A50: 308292 | B50: Aparelho de apoio metálico esférico multidirecional com capacidade de 3.000 kN - fornecimento e instalação | C50: un | D50: 29170.54
A51: 308293 | B51: Aparelho de apoio metálico esférico multidirecional com capacidade de 3.500 kN - fornecimento e instalação | C51: un | D51: 33423.01
A52: 308294 | B52: Aparelho de apoio metálico esférico multidirecional com capacidade de 4.000 kN - fornecimento e instalação | C52: un | D52: 38406.74
A53: 308295 | B53: Aparelho de apoio metálico esférico multidirecional com capacidade de 4.500 kN - fornecimento e instalação | C53: un | D53: 43903.14
A54: 308296 | B54: Aparelho de apoio metálico esférico multidirecional com capacidade de 5.000 kN - fornecimento e instalação | C54: un | D54: 49214.49
A55: 308297 | B55: Aparelho de apoio metálico esférico multidirecional com capacidade de 5.500 kN - fornecimento e instalação | C55: un | D55: 53219.62
A56: 308298 | B56: Aparelho de apoio metálico esférico multidirecional com capacidade de 6.000 kN - fornecimento e instalação | C56: un | D56: 60804.7
A57: 308299 | B57: Aparelho de apoio metálico esférico multidirecional com capacidade de 6.500 kN - fornecimento e instalação | C57: un | D57: 65603.78
A58: 308300 | B58: Aparelho de apoio metálico esférico multidirecional com capacidade de 7.000 kN - fornecimento e instalação | C58: un | D58: 70481.6
A59: 308301 | B59: Aparelho de apoio metálico esférico multidirecional com capacidade de 7.500 kN - fornecimento e instalação | C59: un | D59: 75013.16
A60: 308302 | B60: Aparelho de apoio metálico esférico multidirecional com capacidade de 8.000 kN - fornecimento e instalação | C60: un | D60: 80844.41
A61: 308303 | B61: Aparelho de apoio metálico esférico multidirecional com capacidade de 8.500 kN - fornecimento e instalação | C61: un | D61: 87324.2
A62: 308304 | B62: Aparelho de apoio metálico esférico multidirecional com capacidade de 9.000 kN - fornecimento e instalação | C62: un | D62: 92031.77
A63: 308305 | B63: Aparelho de apoio metálico esférico multidirecional com capacidade de 9.500 kN - fornecimento e instalação | C63: un | D63: 98264.83
A64: 308269 | B64: Aparelho de apoio metálico esférico unidirecional com capacidade de 1.000 kN - fornecimento e instalação | C64: un | D64: 6268.1
A65: 308270 | B65: Aparelho de apoio metálico esférico unidirecional com capacidade de 1.500 kN - fornecimento e instalação | C65: un | D65: 9808.21
A66: 308287 | B66: Aparelho de apoio metálico esférico unidirecional com capacidade de 10.000 kN - fornecimento e instalação | C66: un | D66: 114041.58
A67: 308271 | B67: Aparelho de apoio metálico esférico unidirecional com capacidade de 2.000 kN - fornecimento e instalação | C67: un | D67: 11887.35
A68: 308272 | B68: Aparelho de apoio metálico esférico unidirecional com capacidade de 2.500 kN - fornecimento e instalação | C68: un | D68: 14789.99
A69: 308273 | B69: Aparelho de apoio metálico esférico unidirecional com capacidade de 3.000 kN - fornecimento e instalação | C69: un | D69: 18210.7
A70: 308274 | B70: Aparelho de apoio metálico esférico unidirecional com capacidade de 3.500 kN - fornecimento e instalação | C70: un | D70: 20623.39
A71: 308275 | B71: Aparelho de apoio metálico esférico unidirecional com capacidade de 4.000 kN - fornecimento e instalação | C71: un | D71: 30956.71
A72: 308276 | B72: Aparelho de apoio metálico esférico unidirecional com capacidade de 4.500 kN - fornecimento e instalação | C72: un | D72: 51186.98
A73: 308277 | B73: Aparelho de apoio metálico esférico unidirecional com capacidade de 5.000 kN - fornecimento e instalação | C73: un | D73: 56625.96
A74: 308278 | B74: Aparelho de apoio metálico esférico unidirecional com capacidade de 5.500 kN - fornecimento e instalação | C74: un | D74: 61665.37
A75: 308279 | B75: Aparelho de apoio metálico esférico unidirecional com capacidade de 6.000 kN - fornecimento e instalação | C75: un | D75: 66637.28
A76: 308280 | B76: Aparelho de apoio metálico esférico unidirecional com capacidade de 6.500 kN - fornecimento e instalação | C76: un | D76: 73795.67
A77: 308281 | B77: Aparelho de apoio metálico esférico unidirecional com capacidade de 7.000 kN - fornecimento e instalação | C77: un | D77: 79359.98
A78: 308282 | B78: Aparelho de apoio metálico esférico unidirecional com capacidade de 7.500 kN - fornecimento e instalação | C78: un | D78: 85893.89
A79: 308283 | B79: Aparelho de apoio metálico esférico unidirecional com capacidade de 8.000 kN - fornecimento e instalação | C79: un | D79: 90586.18
A80: 308284 | B80: Aparelho de apoio metálico esférico unidirecional com capacidade de 8.500 kN - fornecimento e instalação | C80: un | D80: 97957.62
A81: 308285 | B81: Aparelho de apoio metálico esférico unidirecional com capacidade de 9.000 kN - fornecimento e instalação | C81: un | D81: 103838.07
A82: 308286 | B82: Aparelho de apoio metálico esférico unidirecional com capacidade de 9.500 kN - fornecimento e instalação | C82: un | D82: 109632.08
A83: 307733 | B83: Junta de dilatação em elastômero e perfil VV - L = 20 mm e H = 40 mm - fornecimento e instalação | C83: m | D83: 433.81
A84: 307734 | B84: Junta de dilatação em elastômero e perfil VV - L = 25 mm e H = 50 mm - fornecimento e instalação | C84: m | D84: 546.72
A85: 307735 | B85: Junta de dilatação em elastômero e perfil VV - L = 35 mm e H = 60 mm - fornecimento e instalação | C85: m | D85: 892.2
A86: 307736 | B86: Junta de dilatação em elastômero e perfil VV - L = 40 mm e H = 70 mm - fornecimento e instalação | C86: m | D86: 1205.65
A87: 307737 | B87: Junta de dilatação em elastômero e perfil VV - L = 50 mm e H = 80 mm - fornecimento e instalação | C87: m | D87: 1479.84
A88: 307730 | B88: Junta de dilatação em perfil extrudado de borracha vulcanizada | C88: m | D88: 0
A89: 307084 | B89: Lábios poliméricos em junta de pavimento de concreto - L = 20 mm e H = 30 mm - confecção e assentamento | C89: m | D89: 29.33
A90: 407818 | B90: Armação em aço CA-25 - fornecimento, preparo e colocação | C90: kg | D90: 12.26
A91: 407819 | B91: Armação em aço CA-50 - fornecimento, preparo e colocação | C91: kg | D91: 12.08
A92: 407820 | B92: Armação em aço CA-60 - fornecimento, preparo e colocação | C92: kg | D92: 12.57
A93: 407740 | B93: Chumbador tipo espera em aço CA-25 para fixação de estrutura metálica em concreto - fornecimento e instalação | C93: kg | D93: 15.22
A94: 408037 | B94: Luva de emenda com rosca cônica para aço CA-50 - D = 12,5 mm - fornecimento e instalação | C94: un | D94: 22.65
A95: 408038 | B95: Luva de emenda com rosca cônica para aço CA-50 - D = 16 mm - fornecimento e instalação | C95: un | D95: 30.37
A96: 408039 | B96: Luva de emenda com rosca cônica para aço CA-50 - D = 20 mm - fornecimento e instalação | C96: un | D96: 40.9
A97: 408041 | B97: Luva de emenda com rosca cônica para aço CA-50 - D = 25 mm - fornecimento e instalação | C97: un | D97: 58.37
A98: 408042 | B98: Luva de emenda com rosca cônica para aço CA-50 - D = 32 mm - fornecimento e instalação | C98: un | D98: 87.11
A99: 408031 | B99: Luva de emenda prensada para aço CA-50 - D = 12,5 mm - fornecimento e instalação | C99: un | D99: 20.4
A100: 408032 | B100: Luva de emenda prensada para aço CA-50 - D = 16 mm - fornecimento e instalação | C100: un | D100: 28.12
A101: 408033 | B101: Luva de emenda prensada para aço CA-50 - D = 20 mm - fornecimento e instalação | C101: un | D101: 40.36
A102: 408035 | B102: Luva de emenda prensada para aço CA-50 - D = 25 mm - fornecimento e instalação | C102: un | D102: 69.75
A103: 408036 | B103: Luva de emenda prensada para aço CA-50 - D = 32 mm - fornecimento e instalação | C103: un | D103: 139.53
A104: 408067 | B104: Tela de aço eletrossoldada - fornecimento, preparo e colocação | C104: kg | D104: 11.94
A105: 407743 | B105: Treliça nervurada três barras longitudinais interligadas por duas diagonais sinusoidal - fornecimento e instalação | C105: kg | D105: 12.6
A106: 607137 | B106: Arco metálico galvanizado tipo MP 152S - arco alto - vão = 10,08 m e altura = 6,12 m - aterro rodoviário mínimo = 0,90 m e máximo = 5,00 m - areia e brita comerciais | C106: m | D106: 60146.61
A107: 606785 | B107: Arco metálico galvanizado tipo MP 152S - arco alto - vão = 10,08 m e altura = 6,12 m - aterro rodoviário mínimo = 0,90 m e máximo = 5,00 m - areia extraída e brita produzida | C107: m | D107: 59319.4
A108: 607139 | B108: Arco metálico galvanizado tipo MP 152S - arco alto - vão = 10,31 m e altura = 6,17 m - aterro rodoviário mínimo = 0,90 m e máximo = 4,90 m - areia e brita comerciais | C108: m | D108: 60988.16
A109: 606787 | B109: Arco metálico galvanizado tipo MP 152S - arco alto - vão = 10,31 m e altura = 6,17 m - aterro rodoviário mínimo = 0,90 m e máximo = 4,90 m - areia extraída e brita produzida | C109: m | D109: 59837.94
A110: 607140 | B110: Arco metálico galvanizado tipo MP 152S - arco alto - vão = 10,36 m e altura = 5,38 m - aterro rodoviário mínimo = 1,20 m e máximo = 3,60 m - areia e brita comerciais | C110: m | D110: 55680.78
A111: 606788 | B111: Arco metálico galvanizado tipo MP 152S - arco alto - vão = 10,36 m e altura = 5,38 m - aterro rodoviário mínimo = 1,20 m e máximo = 3,60 m - areia extraída e brita produzida | C111: m | D111: 55220.39
A112: 607141 | B112: Arco metálico galvanizado tipo MP 152S - arco alto - vão = 10,54 m e altura = 6,05 m - aterro rodoviário mínimo = 1,20 m e máximo = 4,20 m - areia e brita comerciais | C112: m | D112: 62077.96
A113: 606789 | B113: Arco metálico galvanizado tipo MP 152S - arco alto - vão = 10,54 m e altura = 6,05 m - aterro rodoviário mínimo = 1,20 m e máximo = 4,20 m - areia extraída e brita produzida | C113: m | D113: 61218.48
A114: 607144 | B114: Arco metálico galvanizado tipo MP 152S - arco alto - vão = 10,57 m e altura = 5,41 m - aterro rodoviário mínimo = 1,20 m e máximo = 4,10 m - areia e brita comerciais | C114: m | D114: 72647.22
A115: 606792 | B115: Arco metálico galvanizado tipo MP 152S - arco alto - vão = 10,57 m e altura = 5,41 m - aterro rodoviário mínimo = 1,20 m e máximo = 4,10 m - areia extraída e brita produzida | C115: m | D115: 71860.69
A116: 607142 | B116: Arco metálico galvanizado tipo MP 152S - arco alto - vão = 10,74 m e altura = 6,48 m - aterro rodoviário mínimo = 1,20 m e máximo = 4,70 m - areia e brita comerciais | C116: m | D116: 65126.24
A117: 606790 | B117: Arco metálico galvanizado tipo MP 152S - arco alto - vão = 10,74 m e altura = 6,48 m - aterro rodoviário mínimo = 1,20 m e máximo = 4,70 m - areia extraída e brita produzida | C117: m | D117: 64198.08
A118: 607145 | B118: Arco metálico galvanizado tipo MP 152S - arco alto - vão = 10,77 m e altura = 6,10 m - aterro rodoviário mínimo = 1,20 m e máximo = 4,70 m - areia e brita comerciais | C118: m | D118: 80328.81
A119: 606793 | B119: Arco metálico galvanizado tipo MP 152S - arco alto - vão = 10,77 m e altura = 6,10 m - aterro rodoviário mínimo = 1,20 m e máximo = 4,70 m - areia extraída e brita produzida | C119: m | D119: 79442.96
A120: 607146 | B120: Arco metálico galvanizado tipo MP 152S - arco alto - vão = 10,97 m e altura = 6,53 m - aterro rodoviário mínimo = 1,20 m e máximo = 4,70 m - areia e brita comerciais | C120: m | D120: 83725.15
A121: 606794 | B121: Arco metálico galvanizado tipo MP 152S - arco alto - vão = 10,97 m e altura = 6,53 m - aterro rodoviário mínimo = 1,20 m e máximo = 4,70 m - areia extraída e brita produzida | C121: m | D121: 82769.8
A122: 607143 | B122: Arco metálico galvanizado tipo MP 152S - arco alto - vão = 11,35 m e altura = 7,12 m - aterro rodoviário mínimo = 1,20 m e máximo = 4,70 m - areia e brita comerciais | C122: m | D122: 70355.66
A123: 606791 | B123: Arco metálico galvanizado tipo MP 152S - arco alto - vão = 11,35 m e altura = 7,12 m - aterro rodoviário mínimo = 1,20 m e máximo = 4,70 m - areia extraída e brita produzida | C123: m | D123: 69286.24
A124: 607147 | B124: Arco metálico galvanizado tipo MP 152S - arco alto - vão = 11,58 m e altura = 7,16 m - aterro rodoviário mínimo = 1,20 m e máximo = 6,40 m - areia e brita comerciais | C124: m | D124: 90292.86
A125: 606795 | B125: Arco metálico galvanizado tipo MP 152S - arco alto - vão = 11,58 m e altura = 7,16 m - aterro rodoviário mínimo = 1,20 m e máximo = 6,40 m - areia extraída e brita produzida | C125: m | D125: 89195.29
A126: 607112 | B126: Arco metálico galvanizado tipo MP 152S - arco alto - vão = 6,12 m e altura = 2,77 m - aterro rodoviário mínimo = 0,75 m e máximo = 5,40 m - areia e brita comerciais | C126: m | D126: 29355.55
A127: 606760 | B127: Arco metálico galvanizado tipo MP 152S - arco alto - vão = 6,12 m e altura = 2,77 m - aterro rodoviário mínimo = 0,75 m e máximo = 5,40 m - areia extraída e brita produzida | C127: m | D127: 29066.11
A128: 607113 | B128: Arco metálico galvanizado tipo MP 152S - arco alto - vão = 6,30 m e altura = 3,68 m - aterro rodoviário mínimo = 0,75 m e máximo = 7,50 m - areia e brita comerciais | C128: m | D128: 34377.62
A129: 606761 | B129: Arco metálico galvanizado tipo MP 152S - arco alto - vão = 6,30 m e altura = 3,68 m - aterro rodoviário mínimo = 0,75 m e máximo = 7,50 m - areia extraída e brita produzida | C129: m | D129: 34045.72
A130: 606762 | B130: Arco metálico galvanizado tipo MP 152S - arco alto - vão = 6,55 m e altura = 3,56 m - aterro rodoviário mínimo = 0,75 m e máximo = 4,9 m - areia extraída e brita produzida | C130: m | D130: 33880.96
A131: 607114 | B131: Arco metálico galvanizado tipo MP 152S - arco alto - vão = 6,55 m e altura = 3,56 m - aterro rodoviário mínimo = 0,75 m e máximo = 4,90 m - areia e brita comerciais | C131: m | D131: 34216.72
A132: 607116 | B132: Arco metálico galvanizado tipo MP 152S - arco alto - vão = 6,78 m e altura = 3,61 m - aterro rodoviário mínimo = 0,75 m e máximo = 4,80 m - areia e brita comerciais | C132: m | D132: 36185.54
A133: 606764 | B133: Arco metálico galvanizado tipo MP 152S - arco alto - vão = 6,78 m e altura = 3,61 m - aterro rodoviário mínimo = 0,75 m e máximo = 4,80 m - areia extraída e brita produzida | C133: m | D133: 35832.32
A134: 607115 | B134: Arco metálico galvanizado tipo MP 152S - arco alto - vão = 6,96 m e altura = 4,42 m - aterro rodoviário mínimo = 0,75 m e máximo = 8,10 m - areia e brita comerciais | C134: m | D134: 41107.56
A135: 606763 | B135: Arco metálico galvanizado tipo MP 152S - arco alto - vão = 6,96 m e altura = 4,42 m - aterro rodoviário mínimo = 0,75 m e máximo = 8,10 m - areia extraída e brita produzida | C135: m | D135: 40681.05
A136: 607117 | B136: Arco metálico galvanizado tipo MP 152S - arco alto - vão = 6,99 m e altura = 4,27 m - aterro rodoviário mínimo = 0,75 m e máximo = 5,70 m - areia e brita comerciais | C136: m | D136: 41114.73
A137: 606765 | B137: Arco metálico galvanizado tipo MP 152S - arco alto - vão = 6,99 m e altura = 4,27 m - aterro rodoviário mínimo = 0,75 m e máximo = 5,70 m - areia extraída e brita produzida | C137: m | D137: 40699.59
A138: 607118 | B138: Arco metálico galvanizado tipo MP 152S - arco alto - vão = 7,01 m e altura = 3,63 m - aterro rodoviário mínimo = 0,75 m e máximo = 4,60 m - areia e brita comerciais | C138: m | D138: 36840.65
A139: 606766 | B139: Arco metálico galvanizado tipo MP 152S - arco alto - vão = 7,01 m e altura = 3,63 m - aterro rodoviário mínimo = 0,75 m e máximo = 4,60 m - areia extraída e brita produzida | C139: m | D139: 36473.28
A140: 607120 | B140: Arco metálico galvanizado tipo MP 152S - arco alto - vão = 7,24 m e altura = 3,68 m - aterro rodoviário mínimo = 0,90 m e máximo = 4,4 m - areia e brita comerciais | C140: m | D140: 37497.81
A141: 606768 | B141: Arco metálico galvanizado tipo MP 152S - arco alto - vão = 7,24 m e altura = 3,68 m - aterro rodoviário mínimo = 0,90 m e máximo = 4,40 m - areia extraída e brita produzida | C141: m | D141: 37113.76
A142: 607119 | B142: Arco metálico galvanizado tipo MP 152S - arco alto - vão = 7,42 m e altura = 4,52 m - aterro rodoviário mínimo = 0,90 m e máximo = 6,40 m - areia e brita comerciais | C142: m | D142: 43086.8
A143: 606767 | B143: Arco metálico galvanizado tipo MP 152S - arco alto - vão = 7,42 m e altura = 4,52 m - aterro rodoviário mínimo = 0,90 m e máximo = 6,40 m - areia extraída e brita produzida | C143: m | D143: 42622.66
A144: 607121 | B144: Arco metálico galvanizado tipo MP 152S - arco alto - vão = 7,47 m e altura = 4,19 m - aterro rodoviário mínimo = 0,90 m e máximo = 4,30 m - areia e brita comerciais | C144: m | D144: 40613.04
A145: 606769 | B145: Arco metálico galvanizado tipo MP 152S - arco alto - vão = 7,47 m e altura = 4,19 m - aterro rodoviário mínimo = 0,90 m e máximo = 4,30 m - areia extraída e brita produzida | C145: m | D145: 40173.21
A146: 607123 | B146: Arco metálico galvanizado tipo MP 152S - arco alto - vão = 7,67 m e altura = 3,99 m - aterro rodoviário mínimo = 0,90 m e máximo = 4,10 m - areia e brita comerciais | C146: m | D146: 40045.77
A147: 606771 | B147: Arco metálico galvanizado tipo MP 152S - arco alto - vão = 7,67 m e altura = 3,99 m - aterro rodoviário mínimo = 0,90 m e máximo = 4,10 m - areia extraída e brita produzida | C147: m | D147: 39610.82
A148: 607122 | B148: Arco metálico galvanizado tipo MP 152S - arco alto - vão = 7,85 m e altura = 4,60 m - aterro rodoviário mínimo = 0,90 m e máximo = 6,00 m - areia e brita comerciais | C148: m | D148: 44430.27
A149: 606770 | B149: Arco metálico galvanizado tipo MP 152S - arco alto - vão = 7,85 m e altura = 4,60 m - aterro rodoviário mínimo = 0,90 m e máximo = 6,00 m - areia extraída e brita produzida | C149: m | D149: 43930.09
A150: 607125 | B150: Arco metálico galvanizado tipo MP 152S - arco alto - vão = 7,90 m e altura = 4,04 m - aterro rodoviário mínimo = 0,90 m e máximo = 4,00 m - areia e brita comerciais | C150: m | D150: 41388.88
A151: 606773 | B151: Arco metálico galvanizado tipo MP 152S - arco alto - vão = 7,90 m e altura = 4,04 m - aterro rodoviário mínimo = 0,90 m e máximo = 4,00 m - areia extraída e brita produzida | C151: m | D151: 40934.23
A152: 607124 | B152: Arco metálico galvanizado tipo MP 152S - arco alto - vão = 8,08 m e altura = 4,65 m - aterro rodoviário mínimo = 0,90 m e máximo = 5,80 m - areia e brita comerciais | C152: m | D152: 45124.34
A153: 606772 | B153: Arco metálico galvanizado tipo MP 152S - arco alto - vão = 8,08 m e altura = 4,65 m - aterro rodoviário mínimo = 0,90 m e máximo = 5,80 m - areia extraída e brita produzida | C153: m | D153: 44604.28
A154: 607126 | B154: Arco metálico galvanizado tipo MP 152S - arco alto - vão = 8,31 m e altura = 4,70 m - aterro rodoviário mínimo = 0,90 m e máximo = 5,60 m - areia e brita comerciais | C154: m | D154: 46352.98
A155: 606774 | B155: Arco metálico galvanizado tipo MP 152S - arco alto - vão = 8,31 m e altura = 4,70 m - aterro rodoviário mínimo = 0,90 m e máximo = 5,60 m - areia extraída e brita produzida | C155: m | D155: 45811.1
A156: 607127 | B156: Arco metálico galvanizado tipo MP 152S - arco alto - vão = 8,36 m e altura = 4,11 m - aterro rodoviário mínimo = 0,90 m e máximo = 3,70 m - areia e brita comerciais | C156: m | D156: 42716.63
A157: 606775 | B157: Arco metálico galvanizado tipo MP 152S - arco alto - vão = 8,36 m e altura = 4,11 m - aterro rodoviário mínimo = 0,90 m e máximo = 3,70 m - areia extraída e brita produzida | C157: m | D157: 42227.36
A158: 607129 | B158: Arco metálico galvanizado tipo MP 152S - arco alto - vão = 8,59 m e altura = 4,39 m - aterro rodoviário mínimo = 0,90 m e máximo = 3,60 m - areia e brita comerciais | C158: m | D158: 44677.13
A159: 606777 | B159: Arco metálico galvanizado tipo MP 152S - arco alto - vão = 8,59 m e altura = 4,39 m - aterro rodoviário mínimo = 0,90 m e máximo = 3,60 m - areia extraída e brita produzida | C159: m | D159: 44145.69
A160: 607128 | B160: Arco metálico galvanizado tipo MP 152S - arco alto - vão = 8,97 m e altura = 5,00 m - aterro rodoviário mínimo = 0,90 m e máximo = 5,80 m - areia e brita comerciais | C160: m | D160: 49111.75
A161: 606776 | B161: Arco metálico galvanizado tipo MP 152S - arco alto - vão = 8,97 m e altura = 5,00 m - aterro rodoviário mínimo = 0,90 m e máximo = 5,80 m - areia extraída e brita produzida | C161: m | D161: 48492.5
A162: 607130 | B162: Arco metálico galvanizado tipo MP 152S - arco alto - vão = 9,17 m e altura = 5,49 m - aterro rodoviário mínimo = 0,90 m e máximo = 5,60 m - areia e brita comerciais | C162: m | D162: 52336.35
A163: 606778 | B163: Arco metálico galvanizado tipo MP 152S - arco alto - vão = 9,17 m e altura = 5,49 m - aterro rodoviário mínimo = 0,90 m e máximo = 5,60 m - areia extraída e brita produzida | C163: m | D163: 51654.4
A164: 607131 | B164: Arco metálico galvanizado tipo MP 152S - arco alto - vão = 9,22 m e altura = 4,70 m - aterro rodoviário mínimo = 0,90 m e máximo = 4,10 m - areia e brita comerciais | C164: m | D164: 49140.38
A165: 606779 | B165: Arco metálico galvanizado tipo MP 152S - arco alto - vão = 9,22 m e altura = 4,70 m - aterro rodoviário mínimo = 0,90 m e máximo = 4,10 m - areia extraída e brita produzida | C165: m | D165: 48538
A166: 607133 | B166: Arco metálico galvanizado tipo MP 152S - arco alto - vão = 9,45 m e altura = 4,75 m - aterro rodoviário mínimo = 0,90 m e máximo = 4,00 m - areia e brita comerciais | C166: m | D166: 49937.4
A167: 606781 | B167: Arco metálico galvanizado tipo MP 152S - arco alto - vão = 9,45 m e altura = 4,75 m - aterro rodoviário mínimo = 0,90 m e máximo = 4,00 m - areia extraída e brita produzida | C167: m | D167: 49310.2
A168: 607132 | B168: Arco metálico galvanizado tipo MP 152S - arco alto - vão = 9,63 m e altura = 5,59 m - aterro rodoviário mínimo = 0,90 m e máximo = 5,30 m - areia e brita comerciais | C168: m | D168: 54384.28
A169: 606780 | B169: Arco metálico galvanizado tipo MP 152S - arco alto - vão = 9,63 m e altura = 5,59 m - aterro rodoviário mínimo = 0,90 m e máximo = 5,30 m - areia extraída e brita produzida | C169: m | D169: 53653.62
A170: 607134 | B170: Arco metálico galvanizado tipo MP 152S - arco alto - vão = 9,65 m e altura = 5,41 m - aterro rodoviário mínimo = 0,90 m e máximo = 4,70 m - areia e brita comerciais | C170: m | D170: 53846.91
A171: 606782 | B171: Arco metálico galvanizado tipo MP 152S - arco alto - vão = 9,65 m e altura = 5,41 m - aterro rodoviário mínimo = 0,90 m e máximo = 4,70 m - areia extraída e brita produzida | C171: m | D171: 53133.9
A172: 607136 | B172: Arco metálico galvanizado tipo MP 152S - arco alto - vão = 9,68 m e altura = 5,23 m - aterro rodoviário mínimo = 0,90 m e máximo = 3,90 m - areia e brita comerciais | C172: m | D172: 53172.49
A173: 606784 | B173: Arco metálico galvanizado tipo MP 152S - arco alto - vão = 9,68 m e altura = 5,23 m - aterro rodoviário mínimo = 0,90 m e máximo = 3,90 m - areia extraída e brita produzida | C173: m | D173: 52476.63
A174: 607135 | B174: Arco metálico galvanizado tipo MP 152S - arco alto - vão = 9,86 m e altura = 6,07 m - aterro rodoviário mínimo = 0,90 m e máximo = 5,20 m - areia e brita comerciais | C174: m | D174: 59293.04
A175: 606783 | B175: Arco metálico galvanizado tipo MP 152S - arco alto - vão = 9,86 m e altura = 6,07 m - aterro rodoviário mínimo = 0,90 m e máximo = 5,20 m - areia extraída e brita produzida | C175: m | D175: 58492.41
A176: 607138 | B176: Arco metálico galvanizado tipo MP 152S - arco alto - vão = 9,91 m e altura = 5,28 m - aterro rodoviário mínimo = 0,90 m e máximo = 3,80 m - areia e brita comerciais | C176: m | D176: 54057.22
A177: 606786 | B177: Arco metálico galvanizado tipo MP 152S - arco alto - vão = 9,91 m e altura = 5,28 m - aterro rodoviário mínimo = 0,90 m e máximo = 3,80 m - areia extraída e brita produzida | C177: m | D177: 53319.86
A178: 606842 | B178: Arco metálico galvanizado tipo MP 152S - ovoide - vão = 7,21 m e altura = 7,82 m - aterro rodoviário mínimo = 0,75 m e máximo = 6,70 m - areia e brita comerciais | C178: m | D178: 67394.87
A179: 606832 | B179: Arco metálico galvanizado tipo MP 152S - ovoide - vão = 7,21 m e altura = 7,82 m - aterro rodoviário mínimo = 0,75 m e máximo = 6,70 m - areia extraída e brita produzida | C179: m | D179: 67024.17
A180: 606843 | B180: Arco metálico galvanizado tipo MP 152S - ovoide - vão = 7,31 m e altura = 7,87 m - aterro rodoviário mínimo = 0,90 m e máximo = 6,80 m - areia e brita comerciais | C180: m | D180: 70038.47
A181: 606833 | B181: Arco metálico galvanizado tipo MP 152S - ovoide - vão = 7,31 m e altura = 7,87 m - aterro rodoviário mínimo = 0,90 m e máximo = 6,80 m - areia extraída e brita produzida | C181: m | D181: 69647.24
A182: 606845 | B182: Arco metálico galvanizado tipo MP 152S - ovoide - vão = 7,57 m e altura = 8,44 m - aterro rodoviário mínimo = 0,90 m e máximo = 5,60 m - areia e brita comerciais | C182: m | D182: 72595.71
A183: 606835 | B183: Arco metálico galvanizado tipo MP 152S - ovoide - vão = 7,57 m e altura = 8,44 m - aterro rodoviário mínimo = 0,90 m e máximo = 5,60 m - areia extraída e brita produzida | C183: m | D183: 72207.71
A184: 606844 | B184: Arco metálico galvanizado tipo MP 152S - ovoide - vão = 7,77 m e altura = 7,90 m - aterro rodoviário mínimo = 0,90 m e máximo = 6,80 m - areia e brita comerciais | C184: m | D184: 71136.06
A185: 606834 | B185: Arco metálico galvanizado tipo MP 152S - ovoide - vão = 7,77 m e altura = 7,90 m - aterro rodoviário mínimo = 0,90 m e máximo = 6,80 m - areia extraída e brita produzida | C185: m | D185: 70734.73
A186: 606847 | B186: Arco metálico galvanizado tipo MP 152S - ovoide - vão = 8,13 m e altura = 8,01 m - aterro rodoviário mínimo = 0,90 m e máximo = 3,50 m - areia e brita comerciais | C186: m | D186: 75921.73
A187: 606837 | B187: Arco metálico galvanizado tipo MP 152S - ovoide - vão = 8,13 m e altura = 8,01 m - aterro rodoviário mínimo = 0,90 m e máximo = 3,50 m - areia extraída e brita produzida | C187: m | D187: 75479.95
A188: 606846 | B188: Arco metálico galvanizado tipo MP 152S - ovoide - vão = 8,36 m e altura = 8,23 m - aterro rodoviário mínimo = 0,90 m e máximo = 4,30 m - areia e brita comerciais | C188: m | D188: 76814.17
A189: 606836 | B189: Arco metálico galvanizado tipo MP 152S - ovoide - vão = 8,36 m e altura = 8,23 m - aterro rodoviário mínimo = 0,90 m e máximo = 4,30 m - areia extraída e brita produzida | C189: m | D189: 76369.65
A190: 606848 | B190: Arco metálico galvanizado tipo MP 152S - ovoide - vão = 8,56 m e altura = 8,48 m - aterro rodoviário mínimo = 0,90 m e máximo = 5,30 m - areia e brita comerciais | C190: m | D190: 76607.95
A191: 606838 | B191: Arco metálico galvanizado tipo MP 152S - ovoide - vão = 8,56 m e altura = 8,48 m - aterro rodoviário mínimo = 0,90 m e máximo = 5,30 m - areia extraída e brita produzida | C191: m | D191: 76144.09
A192: 606849 | B192: Arco metálico galvanizado tipo MP 152S - ovoide - vão = 8,71 m e altura = 9,32 m - aterro rodoviário mínimo = 0,90 m e máximo = 6,00 m - areia e brita comerciais | C192: m | D192: 82861.65
A193: 606839 | B193: Arco metálico galvanizado tipo MP 152S - ovoide - vão = 8,71 m e altura = 9,32 m - aterro rodoviário mínimo = 0,90 m e máximo = 6,00 m - areia extraída e brita produzida | C193: m | D193: 82412.4
A194: 606850 | B194: Arco metálico galvanizado tipo MP 152S - ovoide - vão = 9,15 m e altura = 9,04 m - aterro rodoviário mínimo = 0,90 m e máximo = 4,70 m - areia e brita comerciais | C194: m | D194: 83560.53
A195: 606840 | B195: Arco metálico galvanizado tipo MP 152S - ovoide - vão = 9,15 m e altura = 9,04 m - aterro rodoviário mínimo = 0,90 m e máximo = 4,70 m - areia extraída e brita produzida | C195: m | D195: 83065.35
A196: 606851 | B196: Arco metálico galvanizado tipo MP 152S - ovoide - vão = 9,15 m e altura = 9,50 m - aterro rodoviário mínimo = 0,90 m e máximo = 5,70 m - areia e brita comerciais | C196: m | D196: 84282.38
A197: 606841 | B197: Arco metálico galvanizado tipo MP 152S - ovoide - vão = 9,15 m e altura = 9,50 m - aterro rodoviário mínimo = 0,90 m e máximo = 5,70 m - areia extraída e brita produzida | C197: m | D197: 83810.36
A198: 605604 | B198: Argamassa de solo-cimento com 10% de cimento e material de jazida - preparo e injeção em tunnel liner | C198: m³ | D198: 278.18
A199: 605695 | B199: Bueiro metálico com chapas múltiplas MP 100 com revestimento em epóxi - D = 0,60 m - brita comercial | C199: m | D199: 1601.25
A200: 605607 | B200: Bueiro metálico com chapas múltiplas MP 100 com revestimento em epóxi - D = 0,60 m - brita produzida | C200: m | D200: 1572.4
... 7809 more rows

Sheet SUDECAP (hidden)
B1: SUDECAP FEVEREIRO 2023
A2: CÓDIGO | B2: DESCRIÇÃO | C2: UNIDADE | D2: PREÇO
A3: 1 | B3: INSTALAÇAO DA OBRA
A4: 01.01 | B4: ESCRITORIO DE OBRA
A5: 01.01.07 | B5: ESCRITORIO DA FISCALIZAÇAO TIPO I | C5: UN | D5: 7949.63
A6: 01.01.09 | B6: ESCRITORIO DE FISCALIZAÇAO TIPO II | C6: UN | D6: 9318.3
A7: 01.01.12 | B7: ESCRITORIO DA EMPREITEIRA TIPO II | C7: UN | D7: 9318.3
A8: 01.02 | B8: BARRACAO DE OBRA
A9: 01.02.06 | B9: VESTIARIO TIPO I | C9: UN | D9: 6435.23
A10: 01.02.07 | B10: VESTIARIO TIPO II | C10: UN | D10: 12938.03
A11: 01.02.08 | B11: VESTIARIO TIPO III | C11: UN | D11: 17236.56
A12: 01.02.11 | B12: AREA COBERTA EM TELHA ONDULADA DE FIBROCIMENTO 4MM | C12: M2 | D12: 72.21
A13: 01.02.12 | B13: DEPOSITO E FERRAMENTARIA TIPO I | C13: UN | D13: 5106.24
A14: 01.02.13 | B14: DEPOSITO E FERRAMENTARIA TIPO II | C14: UN | D14: 7804.69
A15: 01.02.14 | B15: DEPOSITO E FERRAMENTARIA TIPO III | C15: UN | D15: 10515.62
A16: 01.02.15 | B16: DEPOSITO DE MATERIAIS ENSACADOS | C16: UN | D16: 3828.99
A17: 01.02.20 | B17: INSTALAÇAO SANITARIA TIPO I | C17: UN | D17: 6475.61
A18: 01.02.21 | B18: INSTALAÇAO SANITARIA TIPO II | C18: UN | D18: 8080.14
A19: 01.02.22 | B19: INSTALAÇAO SANITARIA TIPO III | C19: UN | D19: 11448
A20: 01.02.25 | B20: REFEITORIO TIPO I | C20: UN | D20: 5061.57
A21: 01.02.26 | B21: REFEITORIO TIPO II | C21: UN | D21: 5710.47
A22: 01.03 | B22: PLACA DE OBRA AFIXADA COM PEÇAS DE MADEIRA
A23: 01.03.01 | B23: 3,00 X 2,00 M EM LONA IMPRESSAO DIGITAL P.SUDECAP | C23: UN | D23: 2415.17
A24: 01.03.02 | B24: PLACA DE OBRA EM LONA IMPRESSAO DIGITAL P. SUDECAP | C24: M2 | D24: 336.82
A25: 01.03.03 | B25: PLACA DE OBRA EM CHAPA GALVANIZADA ADESIVADA, DIMENSÕES 2,40 X 1,20 M, PADRÃO CEF | C25: M2 | D25: 367.65
A26: 01.04 | B26: TAPUME PADRAO SUDECAP (TIPO I, II E III)
A27: 01.04.01 | B27: COMPENSADO 10MM FIXAÇAO ENTERRADA COM INFORME PBH | C27: M | D27: 101.96
A28: 01.04.02 | B28: COMPENSADO 10MM FIXAÇAO ENTERRADA SEM INFORME PBH | C28: M | D28: 101.96
A29: 01.04.03 | B29: COMPENSADO 10MM COM BASE DE CONCRETO C/INFORME PBH | C29: M | D29: 105.39
A30: 01.04.04 | B30: COMPENSADO 10MM COM BASE DE CONCRETO S/INFORME PBH | C30: M | D30: 105.39
A31: 01.04.05 | B31: INFORME PUBLIC.LONA IMP.DIGITAL APLICADO EM TAPUME | C31: M2 | D31: 82.99
A32: 01.04.06 | B32: DE TELA GALVANIZADA #2" FIO 14 C/FIXAÇAO ENTERRADA | C32: M | D32: 51.62
A33: 01.04.07 | B33: DE TELA GALVANIZADA #2" FIO 14 C/BASE DE CONCRETO | C33: M | D33: 56.17
A34: 01.04.09 | B34: TELA-TAPUME DE POLIPROPILENO H= 1,20 M, INCL. BASE | C34: M | D34: 8.93
A35: 01.04.10 | B35: PROTEÇAO COM FITA ZEBRADA AMARELA L=7CM E PEÇA 7X7 | C35: M | D35: 7.34
A36: 01.04.11 | B36: FITA ZEBRADA AMARELA PARA SINALIZAÇAO L= 7CM | C36: M | D36: 2.93
A37: 01.04.12 | B37: TAPUME METÁLICO COM BASE DE CONCRETO | C37: M2 | D37: 46.78
A38: 01.04.13 | B38: TAPUME METÁLICO COM BASE ENTERRADA | C38: M2 | D38: 44.83
A39: 01.04.14 | B39: TAPUME METÁLICO COM TELA E BASE DE CONCRETO | C39: M2 | D39: 43.02
A40: 01.04.15 | B40: TAPUME METÁLICO COM TELA E BASE ENTERRADA | C40: M2 | D40: 41.07
A41: 01.04.20 | B41: REMANEJAMENTO DE TAPUME | C41: M | D41: 7.56
A42: 01.05 | B42: CERCA PADRAO SUDECAP
A43: 01.05.05 | B43: TIPO 1 - PECA 8X8 CADA 2,00M E 5 FIOS ARAME GALVANIZADO | C43: M | D43: 17.06
A44: 01.06 | B44: INSTALAÇAO PROVISORIA - CONCESSIONARIA
A45: 01.06.01 | B45: PADRÃO CEMIG PROVISÓRIO TIPO C3, DEMANDA PROVÁVEL DE 23,1 ATÉ 27,0KW (3F+N) | C45: UN | D45: 766.07
A46: 01.06.05 | B46: PADRAO COPASA - KIT CAVALTE METAL E REGISTRO 3/4" | C46: UN | D46: 453.32
A47: 01.07 | B47: FOSSA E SUMIDOURO
A48: 01.07.02 | B48: FOSSA SEPTICA E SUMIDOURO DN=1,20M H=4,00M | C48: UN | D48: 618.41
A49: 01.08 | B49: REDE INTERNA E PROVISORIA DE AGUA E ESGOTO
A50: 01.08.01 | B50: TUBO PVC D= 100 MM | C50: M | D50: 24.71
A51: 01.08.02 | B51: TUBO PVC D= 150 MM | C51: M | D51: 51.63
A52: 01.08.03 | B52: TUBO PVC D= 200 MM | C52: M | D52: 103.08
A53: 01.08.04 | B53: TUBO PVC D= 250 MM | C53: M | D53: 144.43
A54: 01.08.20 | B54: TUBO PVC AGUA SOLDA E CONEXOES D=20MM (1/2") | C54: M | D54: 6.55
A55: 01.08.21 | B55: TUBO PVC AGUA SOLDA E CONEXOES D=25MM (3/4") | C55: M | D55: 6.86
A56: 01.09 | B56: CONTAINER 6,0X2,30X2,82 M COM ISOLAMENTO TERMICO
A57: 01.09.01 | B57: MOBILIZACAO DE CONTAINER | C57: UN | D57: 600
A58: 01.09.02 | B58: ESCRITORIO COM AR CONDICIONADO | C58: MES | D58: 850
A59: 01.09.03 | B59: ESCRITORIO COM AR CONDICIONADO E SANITARIO | C59: MES | D59: 930
A60: 01.09.05 | B60: VESTIARIO COM 7 CHUVEIROS E 2 LAVATORIOS | C60: MES | D60: 1100
A61: 01.09.06 | B61: VESTIARIO BOX 7 SANIT. 2 LAVAT. 1 MICTORIO | C61: MES | D61: 1100
A62: 01.09.07 | B62: VESTIARIO 4 CHUV. 3 SANIT. 1LAVAT. 1 MICT. | C62: MES | D62: 850
A63: 01.09.08 | B63: VESTIARIO | C63: MES | D63: 650
A64: 01.09.09 | B64: REFEITORIO | C64: MES | D64: 650
A65: 01.09.10 | B65: DEPOSITO E FERRAMENTARIA COM LAVATORIO | C65: MES | D65: 730
A66: 01.09.11 | B66: DESMOBILIZAÇÃO DE CONTAINER | C66: UN | D66: 600
A67: 01.09.12 | B67: INSTALAÇÕES PARA CONTAINERS TIPO ESCRITORIO | C67: UN | D67: 750.75
A68: 01.09.13 | B68: INSTALAÇÕES PARA CONTAINER VESTIARIO COM BANCO E ARMÁRIO | C68: UN | D68: 225.49
A69: 01.09.14 | B69: INSTALAÇÕES PARA CONTAINER REFEITORIO | C69: UN | D69: 229.74
A70: 01.09.15 | B70: INSTALAÇÕES PARA CONTAINER DEPOSITO E FERRAMENTARIA COM LAVATORIO | C70: UN | D70: 381.18
A71: 01.09.16 | B71: CAIXA DÁGUA DE 1000L PARA ABASTECIMENTO DE CONTAINERS | C71: UN | D71: 262.92
A72: 01.10 | B72: BANHEIRO QUIMICO
A73: 01.10.01 | B73: BANHEIRO QUIMICO 110X120X230CM COM MANUTENCAO | C73: MES | D73: 680
A74: 01.10.02 | B74: BANHEIRO QUÍMICO E REBOQUE PARA TRANSPORTE DE BANHEIRO QUÍMICO | C74: MES | D74: 1022.1
A75: 01.11 | B75: SINALIZAÇAO
A76: 01.11.01 | B76: PLACA 1,0X0,60M DUPLA FACE CH.GALV. 26 EM CAVALETE | C76: UNMES | D76: 27.52
A77: 01.11.02 | B77: PLACA 1,0X0,60M CH.26 EM CAVALETE METALON 20X20MM | C77: UNMES | D77: 16.78
A78: 01.11.03 | B78: PLACA 0,50X0,50M DUPLA FACE CH.GALV.22 EM CAVALETE | C78: UNMES | D78: 14.98
A79: 01.11.04 | B79: PLACA 0,50X0,50M CH.GALV.22 CAVALETE METALON 20X20 | C79: UNMES | D79: 12.98
A80: 01.11.05 | B80: FAIXA 6,0X0,80M TECIDO MORIM SUPORTE EM EUCALIPTO | C80: UN | D80: 201.24
A81: 01.11.06 | B81: CONE MASTER 75CM BASE DE BORRACHA CORPO POLIETILEN | C81: UN | D81: 81.23
A82: 01.11.07 | B82: CONE EM PVC H= 75 CM | C82: UN | D82: 40.49
A83: 01.11.08 | B83: SINALIZADOR ELET.MONOLIGHT LED 60 A 70 FLASHES/MIN | C83: UN | D83: 142.31
A84: 01.12 | B84: VISTORIA CAUTELAR
A85: 01.12.01 | B85: VISTORIA CAUTELAR - ÁREA CONSTRUÍDA <= 100M2 | C85: UN | D85: 305.25
A86: 01.12.02 | B86: VISTORIA CAUTELAR - 101M2 < ÁREA CONSTRUÍDA <= 200M2 | C86: UN | D86: 381.48
A87: 01.12.03 | B87: VISTORIA CAUTELAR - 201M2 < ÁREA CONSTRUÍDA <= 500M2 | C87: UN | D87: 508.49
A88: 01.12.04 | B88: VISTORIA CAUTELAR - 501M2 < ÁREA CONSTRUÍDA <= 2000M2 | C88: UN | D88: 739.93
A89: 01.12.05 | B89: VISTORIA CAUTELAR - 2001M2 < ÁREA CONSTRUÍDA <= 7000M2 | C89: UN | D89: 1244.13
A90: 01.12.06 | B90: VISTORIA CAUTELAR - ÁREA CONSTRUÍDA > 7001M2 | C90: UN | D90: 1757.41
A91: 01.17 | B91: LOCAÇAO DE OBRA
A92: 01.17.01 | B92: GABARITO | C92: M | D92: 29.5
A93: 01.29 | B93: ANDAIME FACHADEIRO
A94: 01.29.01 | B94: ANDAIME FACHADEIRO INCLUSIVE FORRO METALICO | C94: M2MES | D94: 11
A95: 01.29.02 | B95: GUARDA CORPO MADEIRA L= 15 CM P/ ANDAIME FACHADEIRO | C95: M2 | D95: 8.9
A96: 01.29.03 | B96: MONTAGEM DE ANDAIME FACHADEIRO | C96: M2 | D96: 1.91
A97: 01.29.04 | B97: DESMONTAGEM DE ANDAIME FACHADEIRO | C97: M2 | D97: 1.91
A98: 01.30 | B98: MONTAGEM E DESMONTAGEM DE ANDAIME
A99: 01.30.02 | B99: ANDAIME INTERNO P/EXEC. DE ALVENARIA ALT. ATE 3,5M | C99: M2 | D99: 15.24
A100: 01.30.03 | B100: ANDAIME INTERNO DE MADEIRA P/ REVESTIMENTO DE TETO | C100: M2 | D100: 15.77
A101: 2 | B101: DEMOLIÇOES E REMOÇOES
A102: 02.01 | B102: REMOÇAO DE TELHA INCLUSIVE EMPILHAMENTO
A103: 02.01.01 | B103: METALICA OU PVC | C103: M2 | D103: 4.26
A104: 02.01.03 | B104: TIPO CALHA DE FIBROCIMENTO | C104: M2 | D104: 10.2
A105: 02.01.05 | B105: ONDULADA DE FIBROCIMENTO | C105: M2 | D105: 8.5
A106: 02.01.07 | B106: CERAMICA COLONIAL OU FRANCESA | C106: M2 | D106: 10.2
A107: 02.02 | B107: REMOÇAO DE CALHA, RUFO E CONDUTOR,INCL.AFASTAMENTO
A108: 02.02.01 | B108: DE CALHA GALVANIZADA OU PVC | C108: M | D108: 5.1
A109: 02.02.05 | B109: DE RUFO DE CHAPA GALVANIZADA | C109: M | D109: 3.4
A110: 02.02.10 | B110: DE CONDUTOR DE CHAPA GALVANIZADA OU PVC | C110: M | D110: 3.4
A111: 02.03 | B111: REMOÇAO DE ENGRADAMENTO DE TELHADO INCL.EMPILHAM.
A112: 02.03.01 | B112: DE TELHA METALICA OU PVC | C112: M2 | D112: 5.73
A113: 02.03.03 | B113: DE TELHA TIPO CALHA DE FIBROCIMENTO | C113: M2 | D113: 2.87
A114: 02.03.05 | B114: DE TELHA ONDULADA DE FIBROCIMENTO | C114: M2 | D114: 5.73
A115: 02.03.07 | B115: DE TELHA CERAMICA, COLONIAL OU FRANCESA | C115: M2 | D115: 8.07
A116: 02.04 | B116: REMOÇAO DE FORRO INCLUSIVE EMPILHAMENTO
A117: 02.04.01 | B117: DE PLACAS INCLUSIVE BARROTEAMENTO | C117: M2 | D117: 14.39
A118: 02.04.02 | B118: DE PLACAS EXCLUSIVE BARROTEAMENTO | C118: M2 | D118: 7.2
A119: 02.04.10 | B119: DE GESSO | C119: M2 | D119: 10.79
A120: 02.06 | B120: REMOÇAO DE ESQUADRIA DE MADEIRA INCL. EMPILHAMENTO
A121: 02.06.01 | B121: DE PORTA OU JANELA INCLUSIVE MARCO E ALIZAR | C121: M2 | D121: 10.18
A122: 02.06.02 | B122: DE FOLHA DE PORTA OU JANELA | C122: M2 | D122: 5.09
A123: 02.06.03 | B123: DE MARCO E ALIZAR | C123: UN | D123: 8.69
A124: 02.06.04 | B124: DE MARCO | C124: UN | D124: 6.14
A125: 02.06.05 | B125: DE ALIZAR | C125: CJ | D125: 2.54
A126: 02.07 | B126: REMOÇAO DE ESQUADRIA METALICA
A127: 02.07.01 | B127: DE PORTA OU JANELA | C127: M2 | D127: 12.72
A128: 02.09 | B128: DEMOLIÇAO DE REVESTIMENTO INCLUSIVE AFASTAMENTO
A129: 02.09.01 | B129: DE REBOCO | C129: M2 | D129: 2.36
A130: 02.09.03 | B130: CERAMICO, AZULEJO OU LADRILHO HIDRAULICO | C130: M2 | D130: 15.31
A131: 02.09.05 | B131: DE PEDRA (MARMORE, GRANITO, ARDOSIA, SAO TOME,ETC) | C131: M2 | D131: 17.01
A132: 02.09.06 | B132: DE FORMICA | C132: M2 | D132: 5.09
A133: 02.09.07 | B133: DE PEDRA ALMOFADADA | C133: M2 | D133: 35.98
A134: 02.10 | B134: DEMOLIÇAO DE PISO INCLUSIVE AFASTAMENTO
A135: 02.10.01 | B135: CIMENTADO OU CONTRAPISO DE ARGAMASSA | C135: M2 | D135: 2.36
A136: 02.10.03 | B136: CERAMICO OU LADRILHO HIDRAULICO | C136: M2 | D136: 11.91
A137: 02.10.05 | B137: DE PEDRA (MARMORE, GRANITO, ARDOSIA, SAO TOME,ETC) | C137: M2 | D137: 22.1
A138: 02.10.07 | B138: VINILICO | C138: M2 | D138: 5.96
A139: 02.10.08 | B139: DE MARMORITE | C139: M2 | D139: 14.03
A140: 02.10.09 | B140: DE TACO DE MADEIRA | C140: M2 | D140: 23.33
A141: 02.11 | B141: DEMOLIÇAO DE PASSEIO E PAVIMENTO
A142: 02.11.01 | B142: PASSEIO OU LAJE DE CONCRETO MANUALMENTE | C142: M2 | D142: 20.41
A143: 02.11.02 | B143: PASSEIO OU LAJE DE CONCRETO C/ EQUIP. PNEUMATICO | C143: M2 | D143: 12.98
A144: 02.11.03 | B144: CALÇADA PORTUGUESA | C144: M2 | D144: 4.78
A145: 02.11.04 | B145: PASSEIO OU LAJE DE CONCRETO C/EQUIPAMENTO ELETRICO | C145: M2 | D145: 5.76
A146: 02.11.05 | B146: MANUAL DE ALVENARIA POLIEDRICA | C146: M2 | D146: 5.96
A147: 02.11.07 | B147: DE REVESTIMENTO ASFALTICO COM EQUIP. PNEUMATICO | C147: M2 | D147: 12.98
A148: 02.12 | B148: CORTE MECANICO EM CONCRETO/ASFALTO
A149: 02.12.01 | B149: CORTE MECAN. C/ SERRA CIRCULAR EM CONCRETO/ASFALTO | C149: M | D149: 1.9
A150: 02.13 | B150: DEMOLIÇAO DE CONCRETO INCLUSIVE AFASTAMENTO
A151: 02.13.01 | B151: SIMPLES - MANUAL | C151: M3 | D151: 210.42
A152: 02.13.02 | B152: ARMADO - MANUAL | C152: M3 | D152: 289.14
A153: 02.13.03 | B153: SIMPLES - COM EQUIPAMENTO ELETRICO | C153: M3 | D153: 75.72
A154: 02.13.04 | B154: ARMADO - COM EQUIPAMENTO ELETRICO | C154: M3 | D154: 119.38
A155: 02.14 | B155: DEMOLIÇAO MANUAL, DE ALVENARIA INCL. AFASTAMENTO
A156: 02.14.01 | B156: DE ALVENARIA DE TIJOLOS E BLOCOS | C156: M3 | D156: 95.58
A157: 02.15 | B157: REMOÇAO DE MEIO-FIO
A158: 02.15.01 | B158: PREMOLDADO DE CONCRETO | C158: M | D158: 7.45
A159: 02.15.02 | B159: DE PEDRA (GNAISSE, BASALTO ETC.) | C159: M | D159: 22.35
A160: 02.16 | B160: DEMOLIÇAO, REMOÇAO E CARGA MECANICA
A161: 02.16.01 | B161: DE CONSTRUÇOES DE ALVENARIA | C161: M2 | D161: 7.23
A162: 02.16.04 | B162: DE GABIAO | C162: M3 | D162: 18.73
A163: 02.19 | B163: DEMOLIÇAO DE DIVISORIA INCLUSIVE AFASTAMENTO
A164: 02.19.01 | B164: DE PEDRA (MARMORE, ARDORSIA OU MARMORITE) | C164: M2 | D164: 35.98
A165: 02.19.03 | B165: DE MADEIRA | C165: M2 | D165: 13.16
A166: 02.19.05 | B166: DE ELEMENTOS VAZADOS (COBOGO, ETC) | C166: M2 | D166: 6.7
A167: 02.19.06 | B167: DE LAMINADO | C167: M2 | D167: 0.9
A168: 02.20 | B168: REMOÇAO DE QUADROS
A169: 02.20.01 | B169: NEGRO | C169: M2 | D169: 17.01
A170: 02.21 | B170: REMOÇAO DE PEÇAS DIVERSAS
A171: 02.21.01 | B171: LOUÇAS | C171: UN | D171: 53.97
A172: 02.21.02 | B172: FERRAGENS (DOBRADIÇAS, FECHADURAS, MAÇANETAS) | C172: UN | D172: 10.93
A173: 02.21.03 | B173: METAIS COMUNS(CONDUITE,SIFAO, REGISTRO, TORNEIRA) | C173: UN | D173: 11.67
A174: 02.21.04 | B174: METAIS ESPECIAIS(VALVULA DE DESCARGA, CAIXA SILEN) | C174: UN | D174: 11.66
A175: 02.21.05 | B175: REMOÇAO DE LUMINARIA FLUORESCENTE | C175: UN | D175: 2.86
A176: 02.21.06 | B176: REMOÇAO DE LUMNARIA INCANDESCENTE | C176: UN | D176: 0.75
A177: 02.21.20 | B177: REMOÇAO DE PADRAO CEMIG | C177: UN | D177: 71.96
A178: 02.21.21 | B178: REMOÇAO DE PADRAO COPASA | C178: UN | D178: 53.97
A179: 02.21.22 | B179: REMOÇAO DE INTERFONE | C179: UN | D179: 6.14
A180: 02.22 | B180: REMOÇAO DE BANCADA
A181: 02.22.01 | B181: DE PEDRA(MARMORE,GRANITO,ARDOSIA,MARMORITE, ETC) | C181: M2 | D181: 35.98
A182: 02.23 | B182: REMOÇAO DE CERCA E ALAMBRADO
A183: 02.23.01 | B183: CERCA DE ARAME | C183: M | D183: 9.19
A184: 02.23.03 | B184: ALAMBRADO | C184: M2 | D184: 12.72
A185: 02.26 | B185: TRANSPORTE DE MATERIAL DEMOLIDO EM CARRINHO DE MAO
A186: 02.26.01 | B186: DMT <= 50,0 M | C186: M3 | D186: 22.35
A187: 02.26.02 | B187: 50,0 M < DMT <= 100,0 M | C187: M3 | D187: 29.8
A188: 02.27 | B188: CARGA DE MATERIAL DEMOLIDO SOBRE CAMINHAO
A189: 02.27.01 | B189: MANUAL | C189: M3 | D189: 20.42
A190: 02.27.02 | B190: MECANICA | C190: M3 | D190: 2.87
A191: 02.28 | B191: TRANSPORTE DE MATERIAL DEMOLIDO EM CAMINHAO
A192: 02.28.01 | B192: DMT <= 1 KM | C192: M3 | D192: 3.69
A193: 02.28.02 | B193: 1 KM < DMT <= 2 KM | C193: M3 | D193: 7.05
A194: 02.28.03 | B194: 2 KM < DMT <= 5 KM | C194: M3KM | D194: 3.19
A195: 02.28.04 | B195: DMT > 5 KM | C195: M3KM | D195: 1.91
A196: 02.29 | B196: TRANSPORTE DE MAT.DE QUALQUER NATUREZA EM CAÇAMBA
A197: 02.29.01 | B197: CAÇAMBA 5m³ | C197: VG | D197: 280
A198: 02.30 | B198: LIMPEZA DO PAVIMENTO
A199: 02.30.01 | B199: CAPINA E VARRIÇAO DE PAVIMENTO EM ALVEN.POLIEDRICA | C199: M2 | D199: 2.48
A200: 03 | B200: TRABALHOS EM TERRA
... 1241 more rows

Sheet CRO 3 meses (hidden)
A2: CRONOGRAMA FÍSICO-FINANCEIRO | M2: Revisão: | N2: =DADOS!D6 -> R01
M3: Data: | N3: =DADOS!D2 -> 2023-05-05
A4: Projeto: | D4: Responsável: | I4: Cliente: | M4: Bancos:
A5: =DADOS!D8 -> REFORMA DA COBERTURA DO CEIM RECANTO FELIZ | M5: =DADOS!D14 -> SINAPI: 03/2023 Minas Gerais SETOP: 01/2023 Minas Gerais SICRO : 01/2023 Minas Gerais SUDECAP: 02/2023 Minas Gerais
M8: BDI 1: | N8: =DADOS!D10 -> 0.2652
M9: BDI 2: | N9: =DADOS!D12 -> 0.2025
A11: =A2&" DE "&DADOS!D20&" - "&A5 -> CRONOGRAMA FÍSICO-FINANCEIRO DE PROJETO EXECUTIVO - REFORMA DA COBERTURA DO CEIM RECANTO FELIZ
A13: ITEM | B13: DESCRIÇÃO | F13: Unid. | G13: 30 DIAS | I13: 60 DIAS | K13: 90 DIAS | M13: Total por Etapa
A15: 1 | B15: =VLOOKUP(A15,ORC!$D:$N,2,0) -> CANTEIRO DE OBRA | F15: % | G15: 1 | M15: =SUM(G15:L15) -> 1
A16: =IFERROR(IF(B15<>"",100,B15),"") -> 100 | F16: R$ | G16: =IF(G15="","",IFERROR(G15*$M16,"")) -> 10903.12 | I16: =IF(I15="","",IFERROR(I15*$M16,"")) ->  | K16: =IF(K15="","",IFERROR(K15*$M16,"")) ->  | M16: =VLOOKUP(A15,ORC!$D:$N,11,0) -> 10903.12
A17: 2 | B17: =VLOOKUP(A17,ORC!$D:$N,2,0) -> SERVIÇOS PRELIMINARES | F17: % | G17: =1/3 -> 0.3333333333 | I17: =1/3 -> 0.3333333333 | K17: =1/3 -> 0.3333333333 | M17: =SUM(G17:L17) -> 1
A18: =IFERROR(IF(B17<>"",100,B17),"") -> 100 | F18: R$ | G18: =IF(G17="","",IFERROR(G17*$M18,"")) -> 1563.583333 | I18: =IF(I17="","",IFERROR(I17*$M18,"")) -> 1563.583333 | K18: =IF(K17="","",IFERROR(K17*$M18,"")) -> 1563.583333 | M18: =VLOOKUP(A17,ORC!$D:$N,11,0) -> 4690.75
A19: 3 | B19: =VLOOKUP(A19,ORC!$D:$N,2,0) -> ADMINISTRAÇÃO DE OBRA | F19: % | G19: =1/3 -> 0.3333333333 | I19: =1/3 -> 0.3333333333 | K19: =1/3 -> 0.3333333333 | M19: =SUM(G19:L19) -> 1
A20: =IFERROR(IF(B19<>"",100,B19),"") -> 100 | F20: R$ | G20: =IF(G19="","",IFERROR(G19*$M20,"")) -> 48333.63333 | I20: =IF(I19="","",IFERROR(I19*$M20,"")) -> 48333.63333 | K20: =IF(K19="","",IFERROR(K19*$M20,"")) -> 48333.63333 | M20: =VLOOKUP(A19,ORC!$D:$N,11,0) -> 145000.9
A21: 4 | B21: =VLOOKUP(A21,ORC!$D:$N,2,0) -> DEMOLIÇÕES E REMOÇÕES | F21: % | G21: 1 | M21: =SUM(G21:L21) -> 1
A22: =IFERROR(IF(B21<>"",100,B21),"") -> 100 | F22: R$ | G22: =IF(G21="","",IFERROR(G21*$M22,"")) -> 21932.57 | I22: =IF(I21="","",IFERROR(I21*$M22,"")) ->  | K22: =IF(K21="","",IFERROR(K21*$M22,"")) ->  | M22: =VLOOKUP(A21,ORC!$D:$N,11,0) -> 21932.57
A23: 5 | B23: =VLOOKUP(A23,ORC!$D:$N,2,0) -> SISTEMA DE COBERTURA | F23: % | G23: 0.4 | I23: 0.3 | K23: 0.3 | M23: =SUM(G23:L23) -> 1
A24: =IFERROR(IF(B23<>"",100,B23),"") -> 100 | F24: R$ | G24: =IF(G23="","",IFERROR(G23*$M24,"")) -> 182721.764 | I24: =IF(I23="","",IFERROR(I23*$M24,"")) -> 137041.323 | K24: =IF(K23="","",IFERROR(K23*$M24,"")) -> 137041.323 | M24: =VLOOKUP(A23,ORC!$D:$N,11,0) -> 456804.41
A25: 6 | B25: =VLOOKUP(A25,ORC!$D:$N,2,0) -> FECHAMENTO DA COBERTURA | F25: % | K25: 1 | M25: =SUM(G25:L25) -> 1
A26: =IFERROR(IF(B25<>"",100,B25),"") -> 100 | F26: R$ | G26: =IF(G25="","",IFERROR(G25*$M26,"")) ->  | I26: =IF(I25="","",IFERROR(I25*$M26,"")) ->  | K26: =IF(K25="","",IFERROR(K25*$M26,"")) -> 67122.1 | M26: =VLOOKUP(A25,ORC!$D:$N,11,0) -> 67122.1
A27: 7 | B27: =VLOOKUP(A27,ORC!$D:$N,2,0) -> DRENAGEM PLUVIAL | F27: % | K27: 1 | M27: =SUM(G27:L27) -> 1
A28: =IFERROR(IF(B27<>"",100,B27),"") -> 100 | F28: R$ | G28: =IF(G27="","",IFERROR(G27*$M28,"")) ->  | I28: =IF(I27="","",IFERROR(I27*$M28,"")) ->  | K28: =IF(K27="","",IFERROR(K27*$M28,"")) -> 57332.76 | M28: =VLOOKUP(A27,ORC!$D:$N,11,0) -> 57332.76
A29: 8 | B29: =VLOOKUP(A29,ORC!$D:$N,2,0) -> SERVIÇOS FINAIS | F29: % | K29: 1 | M29: =SUM(G29:L29) -> 1
A30: =IFERROR(IF(B29<>"",100,B29),"") -> 100 | F30: R$ | G30: =IF(G29="","",IFERROR(G29*$M30,"")) ->  | I30: =IF(I29="","",IFERROR(I29*$M30,"")) ->  | K30: =IF(K29="","",IFERROR(K29*$M30,"")) -> 5885.83 | M30: =VLOOKUP(A29,ORC!$D:$N,11,0) -> 5885.83
A32: 9 | B32: =VLOOKUP(A32,ORC!$D:$N,2,0) ->  | F32: % | M32: =SUM(G32:L32) -> 0
A33: =IFERROR(IF(B32<>"",100,B32),"") ->  | F33: R$ | G33: =IF(G32="","",IFERROR(G32*$M33,"")) ->  | I33: =IF(I32="","",IFERROR(I32*$M33,"")) ->  | K33: =IF(K32="","",IFERROR(K32*$M33,"")) ->  | M33: =VLOOKUP(A32,ORC!$D:$N,11,0) -> 
A34: 10 | B34: =VLOOKUP(A34,ORC!$D:$N,2,0) ->  | F34: % | M34: =SUM(G34:L34) -> 0
A35: =IFERROR(IF(B34<>"",100,B34),"") ->  | F35: R$ | G35: =IF(G34="","",IFERROR(G34*$M35,"")) ->  | I35: =IF(I34="","",IFERROR(I34*$M35,"")) ->  | K35: =IF(K34="","",IFERROR(K34*$M35,"")) ->  | M35: =VLOOKUP(A34,ORC!$D:$N,11,0) -> 
A36: 11 | B36: =VLOOKUP(A36,ORC!$D:$N,2,0) ->  | F36: % | M36: =SUM(G36:L36) -> 0
A37: =IFERROR(IF(B36<>"",100,B36),"") ->  | F37: R$ | G37: =IF(G36="","",IFERROR(G36*$M37,"")) ->  | I37: =IF(I36="","",IFERROR(I36*$M37,"")) ->  | K37: =IF(K36="","",IFERROR(K36*$M37,"")) ->  | M37: =VLOOKUP(A36,ORC!$D:$N,11,0) -> 
A38: 12 | B38: =VLOOKUP(A38,ORC!$D:$N,2,0) ->  | F38: % | M38: =SUM(G38:L38) -> 0
A39: =IFERROR(IF(B38<>"",100,B38),"") ->  | F39: R$ | G39: =IF(G38="","",IFERROR(G38*$M39,"")) ->  | I39: =IF(I38="","",IFERROR(I38*$M39,"")) ->  | K39: =IF(K38="","",IFERROR(K38*$M39,"")) ->  | M39: =VLOOKUP(A38,ORC!$D:$N,11,0) -> 
A40: 13 | B40: =VLOOKUP(A40,ORC!$D:$N,2,0) ->  | F40: % | M40: =SUM(G40:L40) -> 0
A41: =IFERROR(IF(B40<>"",100,B40),"") ->  | F41: R$ | G41: =IF(G40="","",IFERROR(G40*$M41,"")) ->  | I41: =IF(I40="","",IFERROR(I40*$M41,"")) ->  | K41: =IF(K40="","",IFERROR(K40*$M41,"")) ->  | M41: =VLOOKUP(A40,ORC!$D:$N,11,0) -> 
A42: 14 | B42: =VLOOKUP(A42,ORC!$D:$N,2,0) ->  | F42: % | M42: =SUM(G42:L42) -> 0
A43: =IFERROR(IF(B42<>"",100,B42),"") ->  | F43: R$ | G43: =IF(G42="","",IFERROR(G42*$M43,"")) ->  | I43: =IF(I42="","",IFERROR(I42*$M43,"")) ->  | K43: =IF(K42="","",IFERROR(K42*$M43,"")) ->  | M43: =VLOOKUP(A42,ORC!$D:$N,11,0) -> 
A44: 15 | B44: =VLOOKUP(A44,ORC!$D:$N,2,0) ->  | F44: % | M44: =SUM(G44:L44) -> 0
A45: =IFERROR(IF(B44<>"",100,B44),"") ->  | F45: R$ | G45: =IF(G44="","",IFERROR(G44*$M45,"")) ->  | I45: =IF(I44="","",IFERROR(I44*$M45,"")) ->  | K45: =IF(K44="","",IFERROR(K44*$M45,"")) ->  | M45: =VLOOKUP(A44,ORC!$D:$N,11,0) -> 
A46: 16 | B46: =VLOOKUP(A46,ORC!$D:$N,2,0) ->  | F46: % | M46: =SUM(G46:L46) -> 0
A47: =IFERROR(IF(B46<>"",100,B46),"") ->  | F47: R$ | G47: =IF(G46="","",IFERROR(G46*$M47,"")) ->  | I47: =IF(I46="","",IFERROR(I46*$M47,"")) ->  | K47: =IF(K46="","",IFERROR(K46*$M47,"")) ->  | M47: =VLOOKUP(A46,ORC!$D:$N,11,0) -> 
A48: 17 | B48: =VLOOKUP(A48,ORC!$D:$N,2,0) ->  | F48: % | M48: =SUM(G48:L48) -> 0
A49: =IFERROR(IF(B48<>"",100,B48),"") ->  | F49: R$ | G49: =IF(G48="","",IFERROR(G48*$M49,"")) ->  | I49: =IF(I48="","",IFERROR(I48*$M49,"")) ->  | K49: =IF(K48="","",IFERROR(K48*$M49,"")) ->  | M49: =VLOOKUP(A48,ORC!$D:$N,11,0) -> 
A50: 18 | B50: =VLOOKUP(A50,ORC!$D:$N,2,0) ->  | F50: % | M50: =SUM(G50:L50) -> 0
A51: =IFERROR(IF(B50<>"",100,B50),"") ->  | F51: R$ | G51: =IF(G50="","",IFERROR(G50*$M51,"")) ->  | I51: =IF(I50="","",IFERROR(I50*$M51,"")) ->  | K51: =IF(K50="","",IFERROR(K50*$M51,"")) ->  | M51: =VLOOKUP(A50,ORC!$D:$N,11,0) -> 
A52: 19 | B52: =VLOOKUP(A52,ORC!$D:$N,2,0) ->  | F52: % | M52: =SUM(G52:L52) -> 0
A53: =IFERROR(IF(B52<>"",100,B52),"") ->  | F53: R$ | G53: =IF(G52="","",IFERROR(G52*$M53,"")) ->  | I53: =IF(I52="","",IFERROR(I52*$M53,"")) ->  | K53: =IF(K52="","",IFERROR(K52*$M53,"")) ->  | M53: =VLOOKUP(A52,ORC!$D:$N,11,0) -> 
A55: 20 | B55: =VLOOKUP(A55,ORC!$D:$N,2,0) ->  | F55: % | M55: =SUM(G55:L55) -> 0
A56: =IFERROR(IF(B55<>"",100,B55),"") ->  | F56: R$ | G56: =IF(G55="","",IFERROR(G55*$M56,"")) ->  | I56: =IF(I55="","",IFERROR(I55*$M56,"")) ->  | K56: =IF(K55="","",IFERROR(K55*$M56,"")) ->  | M56: =VLOOKUP(A55,ORC!$D:$N,11,0) -> 
A57: 21 | B57: =VLOOKUP(A57,ORC!$D:$N,2,0) ->  | F57: % | M57: =SUM(G57:L57) -> 0
A58: =IFERROR(IF(B57<>"",100,B57),"") ->  | F58: R$ | G58: =IF(G57="","",IFERROR(G57*$M58,"")) ->  | I58: =IF(I57="","",IFERROR(I57*$M58,"")) ->  | K58: =IF(K57="","",IFERROR(K57*$M58,"")) ->  | M58: =VLOOKUP(A57,ORC!$D:$N,11,0) -> 
A59: 22 | B59: =VLOOKUP(A59,ORC!$D:$N,2,0) ->  | F59: % | M59: =SUM(G59:L59) -> 0
A60: =IFERROR(IF(B59<>"",100,B59),"") ->  | F60: R$ | G60: =IF(G59="","",IFERROR(G59*$M60,"")) ->  | I60: =IF(I59="","",IFERROR(I59*$M60,"")) ->  | K60: =IF(K59="","",IFERROR(K59*$M60,"")) ->  | M60: =VLOOKUP(A59,ORC!$D:$N,11,0) -> 
A61: 23 | B61: =VLOOKUP(A61,ORC!$D:$N,2,0) ->  | F61: % | M61: =SUM(G61:L61) -> 0
A62: =IFERROR(IF(B61<>"",100,B61),"") ->  | F62: R$ | G62: =IF(G61="","",IFERROR(G61*$M62,"")) ->  | I62: =IF(I61="","",IFERROR(I61*$M62,"")) ->  | K62: =IF(K61="","",IFERROR(K61*$M62,"")) ->  | M62: =VLOOKUP(A61,ORC!$D:$N,11,0) -> 
A63: 24 | B63: =VLOOKUP(A63,ORC!$D:$N,2,0) ->  | F63: % | M63: =SUM(G63:L63) -> 0
A64: =IFERROR(IF(B63<>"",100,B63),"") ->  | F64: R$ | G64: =IF(G63="","",IFERROR(G63*$M64,"")) ->  | I64: =IF(I63="","",IFERROR(I63*$M64,"")) ->  | K64: =IF(K63="","",IFERROR(K63*$M64,"")) ->  | M64: =VLOOKUP(A63,ORC!$D:$N,11,0) -> 
A65: 25 | B65: =VLOOKUP(A65,ORC!$D:$N,2,0) ->  | F65: % | M65: =SUM(G65:L65) -> 0
A66: =IFERROR(IF(B65<>"",100,B65),"") ->  | F66: R$ | G66: =IF(G65="","",IFERROR(G65*$M66,"")) ->  | I66: =IF(I65="","",IFERROR(I65*$M66,"")) ->  | K66: =IF(K65="","",IFERROR(K65*$M66,"")) ->  | M66: =VLOOKUP(A65,ORC!$D:$N,11,0) -> 
A67: 26 | B67: =VLOOKUP(A67,ORC!$D:$N,2,0) ->  | F67: % | M67: =SUM(G67:L67) -> 0
A68: =IFERROR(IF(B67<>"",100,B67),"") ->  | F68: R$ | G68: =IF(G67="","",IFERROR(G67*$M68,"")) ->  | I68: =IF(I67="","",IFERROR(I67*$M68,"")) ->  | K68: =IF(K67="","",IFERROR(K67*$M68,"")) ->  | M68: =VLOOKUP(A67,ORC!$D:$N,11,0) -> 
A69: 27 | B69: =VLOOKUP(A69,ORC!$D:$N,2,0) ->  | F69: % | M69: =SUM(G69:L69) -> 0
A70: =IFERROR(IF(B69<>"",100,B69),"") ->  | F70: R$ | G70: =IF(G69="","",IFERROR(G69*$M70,"")) ->  | I70: =IF(I69="","",IFERROR(I69*$M70,"")) ->  | K70: =IF(K69="","",IFERROR(K69*$M70,"")) ->  | M70: =VLOOKUP(A69,ORC!$D:$N,11,0) -> 
A71: 28 | B71: =VLOOKUP(A71,ORC!$D:$N,2,0) ->  | F71: % | M71: =SUM(G71:L71) -> 0
A72: =IFERROR(IF(B71<>"",100,B71),"") ->  | F72: R$ | G72: =IF(G71="","",IFERROR(G71*$M72,"")) ->  | I72: =IF(I71="","",IFERROR(I71*$M72,"")) ->  | K72: =IF(K71="","",IFERROR(K71*$M72,"")) ->  | M72: =VLOOKUP(A71,ORC!$D:$N,11,0) -> 
A73: 29 | B73: =VLOOKUP(A73,ORC!$D:$N,2,0) ->  | F73: % | M73: =SUM(G73:L73) -> 0
A74: =IFERROR(IF(B73<>"",100,B73),"") ->  | F74: R$ | G74: =IF(G73="","",IFERROR(G73*$M74,"")) ->  | I74: =IF(I73="","",IFERROR(I73*$M74,"")) ->  | K74: =IF(K73="","",IFERROR(K73*$M74,"")) ->  | M74: =VLOOKUP(A73,ORC!$D:$N,11,0) -> 
A75: 30 | B75: =VLOOKUP(A75,ORC!$D:$N,2,0) ->  | F75: % | M75: =SUM(G75:L75) -> 0
A76: =IFERROR(IF(B75<>"",100,B75),"") ->  | F76: R$ | G76: =IF(G75="","",IFERROR(G75*$M76,"")) ->  | I76: =IF(I75="","",IFERROR(I75*$M76,"")) ->  | K76: =IF(K75="","",IFERROR(K75*$M76,"")) ->  | M76: =VLOOKUP(A75,ORC!$D:$N,11,0) -> 
F79: Porcentagem | G79: =G80/$K$82 -> 0.3448930439 | I79: =I80/$K$82 -> 0.2428806463 | K79: =K80/$K$82 -> 0.4122263098
F80: Custo | G80: =SUMIF($A:$A,100,G:G) -> 265454.6707 | I80: =SUMIF($A:$A,100,I:I) -> 186938.5397 | K80: =SUMIF($A:$A,100,K:K) -> 317279.2297
F81: Porcentagem Acumulada | G81: =G79 -> 0.3448930439 | I81: =I79+G81 -> 0.5877736902 | K81: =K79+I81 -> 1
F82: Custo Acumulado | G82: =G80 -> 265454.6707 | I82: =I80+G82 -> 452393.2103 | K82: =IF(K80+I82=ORC!M368,K80+I82,"ERRO") -> 769672.44
F86: RESPONSÁVEL TÉCNICO | G86: =DADOS!D16 -> FLÁVIA CRISTINA BARBOSA
G87: =DADOS!D18 -> CREA - MG 187.842/D

Sheet CRO 4 meses (hidden)
A2: CRONOGRAMA FÍSICO-FINANCEIRO | K2: Revisão: | L2: =DADOS!D6 -> R01
K3: Data: | L3: =DADOS!D2 -> 2023-05-05
A4: Projeto: | D4: Responsável: | H4: Cliente: | K4: Bancos:
A5: =DADOS!D8 -> REFORMA DA COBERTURA DO CEIM RECANTO FELIZ | K5: =DADOS!D14 -> SINAPI: 03/2023 Minas Gerais SETOP: 01/2023 Minas Gerais SICRO : 01/2023 Minas Gerais SUDECAP: 02/2023 Minas Gerais
K8: BDI 1: | L8: =DADOS!D10 -> 0.2652
K9: BDI 2: | L9: =DADOS!D12 -> 0.2025
A11: =A2&" DE "&DADOS!D20&" - "&A5 -> CRONOGRAMA FÍSICO-FINANCEIRO DE PROJETO EXECUTIVO - REFORMA DA COBERTURA DO CEIM RECANTO FELIZ
A13: ITEM | B13: DESCRIÇÃO | F13: Unid. | G13: 30 DIAS | H13: 60 DIAS | I13: 90 DIAS | J13: 120 DIAS | K13: Total por Etapa
A15: 1 | B15: =VLOOKUP(A15,ORC!$D:$N,2,0) -> CANTEIRO DE OBRA | F15: % | G15: 0.1 | H15: 0.2 | I15: 0.3 | J15: 0.4 | K15: =SUM(G15:J15) -> 1
A16: =IFERROR(IF(B15<>"",100,B15),"") -> 100 | F16: R$ | G16: =IF(G15="","",IFERROR(G15*$K16,"")) -> 1090.312 | H16: =IF(H15="","",IFERROR(H15*$K16,"")) -> 2180.624 | I16: 3270.936 | J16: 4361.248 | K16: =VLOOKUP(A15,ORC!$D:$N,11,0) -> 10903.12
A17: 2 | B17: =VLOOKUP(A17,ORC!$D:$N,2,0) -> SERVIÇOS PRELIMINARES | F17: % | K17: =SUM(G17:J17) -> 0
A18: =IFERROR(IF(B17<>"",100,B17),"") -> 100 | F18: R$ | G18: =IF(G17="","",IFERROR(G17*$K18,"")) ->  | H18: =IF(H17="","",IFERROR(H17*$K18,"")) ->  | I18: =IF(I17="","",IFERROR(I17*$K18,"")) ->  | J18: =IF(J17="","",IFERROR(J17*$K18,"")) ->  | K18: =VLOOKUP(A17,ORC!$D:$N,11,0) -> 4690.75
A19: 3 | B19: =VLOOKUP(A19,ORC!$D:$N,2,0) -> ADMINISTRAÇÃO DE OBRA | F19: % | K19: =SUM(G19:J19) -> 0
A20: =IFERROR(IF(B19<>"",100,B19),"") -> 100 | F20: R$ | G20: =IF(G19="","",IFERROR(G19*$K20,"")) ->  | H20: =IF(H19="","",IFERROR(H19*$K20,"")) ->  | I20: =IF(I19="","",IFERROR(I19*$K20,"")) ->  | J20: =IF(J19="","",IFERROR(J19*$K20,"")) ->  | K20: =VLOOKUP(A19,ORC!$D:$N,11,0) -> 145000.9
A21: 4 | B21: =VLOOKUP(A21,ORC!$D:$N,2,0) -> DEMOLIÇÕES E REMOÇÕES | F21: % | K21: =SUM(G21:J21) -> 0
A22: =IFERROR(IF(B21<>"",100,B21),"") -> 100 | F22: R$ | G22: =IF(G21="","",IFERROR(G21*$K22,"")) ->  | H22: =IF(H21="","",IFERROR(H21*$K22,"")) ->  | I22: =IF(I21="","",IFERROR(I21*$K22,"")) ->  | J22: =IF(J21="","",IFERROR(J21*$K22,"")) ->  | K22: =VLOOKUP(A21,ORC!$D:$N,11,0) -> 21932.57
A23: 5 | B23: =VLOOKUP(A23,ORC!$D:$N,2,0) -> SISTEMA DE COBERTURA | F23: % | K23: =SUM(G23:J23) -> 0
A24: =IFERROR(IF(B23<>"",100,B23),"") -> 100 | F24: R$ | G24: =IF(G23="","",IFERROR(G23*$K24,"")) ->  | H24: =IF(H23="","",IFERROR(H23*$K24,"")) ->  | I24: =IF(I23="","",IFERROR(I23*$K24,"")) ->  | J24: =IF(J23="","",IFERROR(J23*$K24,"")) ->  | K24: =VLOOKUP(A23,ORC!$D:$N,11,0) -> 456804.41
A25: 6 | B25: =VLOOKUP(A25,ORC!$D:$N,2,0) -> FECHAMENTO DA COBERTURA | F25: % | K25: =SUM(G25:J25) -> 0
A26: =IFERROR(IF(B25<>"",100,B25),"") -> 100 | F26: R$ | G26: =IF(G25="","",IFERROR(G25*$K26,"")) ->  | H26: =IF(H25="","",IFERROR(H25*$K26,"")) ->  | I26: =IF(I25="","",IFERROR(I25*$K26,"")) ->  | J26: =IF(J25="","",IFERROR(J25*$K26,"")) ->  | K26: =VLOOKUP(A25,ORC!$D:$N,11,0) -> 67122.1
A27: 7 | B27: =VLOOKUP(A27,ORC!$D:$N,2,0) -> DRENAGEM PLUVIAL | F27: % | K27: =SUM(G27:J27) -> 0
A28: =IFERROR(IF(B27<>"",100,B27),"") -> 100 | F28: R$ | G28: =IF(G27="","",IFERROR(G27*$K28,"")) ->  | H28: =IF(H27="","",IFERROR(H27*$K28,"")) ->  | I28: =IF(I27="","",IFERROR(I27*$K28,"")) ->  | J28: =IF(J27="","",IFERROR(J27*$K28,"")) ->  | K28: =VLOOKUP(A27,ORC!$D:$N,11,0) -> 57332.76
A29: 8 | B29: =VLOOKUP(A29,ORC!$D:$N,2,0) -> SERVIÇOS FINAIS | F29: % | K29: =SUM(G29:J29) -> 0
A30: =IFERROR(IF(B29<>"",100,B29),"") -> 100 | F30: R$ | G30: =IF(G29="","",IFERROR(G29*$K30,"")) ->  | H30: =IF(H29="","",IFERROR(H29*$K30,"")) ->  | I30: =IF(I29="","",IFERROR(I29*$K30,"")) ->  | J30: =IF(J29="","",IFERROR(J29*$K30,"")) ->  | K30: =VLOOKUP(A29,ORC!$D:$N,11,0) -> 5885.83
A31: 9 | B31: =VLOOKUP(A31,ORC!$D:$N,2,0) ->  | F31: % | K31: =SUM(G31:J31) -> 0
A32: =IFERROR(IF(B31<>"",100,B31),"") ->  | F32: R$ | G32: =IF(G31="","",IFERROR(G31*$K32,"")) ->  | H32: =IF(H31="","",IFERROR(H31*$K32,"")) ->  | I32: =IF(I31="","",IFERROR(I31*$K32,"")) ->  | J32: =IF(J31="","",IFERROR(J31*$K32,"")) ->  | K32: =VLOOKUP(A31,ORC!$D:$N,11,0) -> 
A33: 10 | B33: =VLOOKUP(A33,ORC!$D:$N,2,0) ->  | F33: % | K33: =SUM(G33:J33) -> 0
A34: =IFERROR(IF(B33<>"",100,B33),"") ->  | F34: R$ | G34: =IF(G33="","",IFERROR(G33*$K34,"")) ->  | H34: =IF(H33="","",IFERROR(H33*$K34,"")) ->  | I34: =IF(I33="","",IFERROR(I33*$K34,"")) ->  | J34: =IF(J33="","",IFERROR(J33*$K34,"")) ->  | K34: =VLOOKUP(A33,ORC!$D:$N,11,0) -> 
A35: 11 | B35: =VLOOKUP(A35,ORC!$D:$N,2,0) ->  | F35: % | K35: =SUM(G35:J35) -> 0
A36: =IFERROR(IF(B35<>"",100,B35),"") ->  | F36: R$ | G36: =IF(G35="","",IFERROR(G35*$K36,"")) ->  | H36: =IF(H35="","",IFERROR(H35*$K36,"")) ->  | I36: =IF(I35="","",IFERROR(I35*$K36,"")) ->  | J36: =IF(J35="","",IFERROR(J35*$K36,"")) ->  | K36: =VLOOKUP(A35,ORC!$D:$N,11,0) -> 
A37: 12 | B37: =VLOOKUP(A37,ORC!$D:$N,2,0) ->  | F37: % | K37: =SUM(G37:J37) -> 0
A38: =IFERROR(IF(B37<>"",100,B37),"") ->  | F38: R$ | G38: =IF(G37="","",IFERROR(G37*$K38,"")) ->  | H38: =IF(H37="","",IFERROR(H37*$K38,"")) ->  | I38: =IF(I37="","",IFERROR(I37*$K38,"")) ->  | J38: =IF(J37="","",IFERROR(J37*$K38,"")) ->  | K38: =VLOOKUP(A37,ORC!$D:$N,11,0) -> 
A39: 13 | B39: =VLOOKUP(A39,ORC!$D:$N,2,0) ->  | F39: % | K39: =SUM(G39:J39) -> 0
A40: =IFERROR(IF(B39<>"",100,B39),"") ->  | F40: R$ | G40: =IF(G39="","",IFERROR(G39*$K40,"")) ->  | H40: =IF(H39="","",IFERROR(H39*$K40,"")) ->  | I40: =IF(I39="","",IFERROR(I39*$K40,"")) ->  | J40: =IF(J39="","",IFERROR(J39*$K40,"")) ->  | K40: =VLOOKUP(A39,ORC!$D:$N,11,0) -> 
A41: 14 | B41: =VLOOKUP(A41,ORC!$D:$N,2,0) ->  | F41: % | K41: =SUM(G41:J41) -> 0
A42: =IFERROR(IF(B41<>"",100,B41),"") ->  | F42: R$ | G42: =IF(G41="","",IFERROR(G41*$K42,"")) ->  | H42: =IF(H41="","",IFERROR(H41*$K42,"")) ->  | I42: =IF(I41="","",IFERROR(I41*$K42,"")) ->  | J42: =IF(J41="","",IFERROR(J41*$K42,"")) ->  | K42: =VLOOKUP(A41,ORC!$D:$N,11,0) -> 
A43: 15 | B43: =VLOOKUP(A43,ORC!$D:$N,2,0) ->  | F43: % | K43: =SUM(G43:J43) -> 0
A44: =IFERROR(IF(B43<>"",100,B43),"") ->  | F44: R$ | G44: =IF(G43="","",IFERROR(G43*$K44,"")) ->  | H44: =IF(H43="","",IFERROR(H43*$K44,"")) ->  | I44: =IF(I43="","",IFERROR(I43*$K44,"")) ->  | J44: =IF(J43="","",IFERROR(J43*$K44,"")) ->  | K44: =VLOOKUP(A43,ORC!$D:$N,11,0) -> 
A45: 16 | B45: =VLOOKUP(A45,ORC!$D:$N,2,0) ->  | F45: % | K45: =SUM(G45:J45) -> 0
A46: =IFERROR(IF(B45<>"",100,B45),"") ->  | F46: R$ | G46: =IF(G45="","",IFERROR(G45*$K46,"")) ->  | H46: =IF(H45="","",IFERROR(H45*$K46,"")) ->  | I46: =IF(I45="","",IFERROR(I45*$K46,"")) ->  | J46: =IF(J45="","",IFERROR(J45*$K46,"")) ->  | K46: =VLOOKUP(A45,ORC!$D:$N,11,0) -> 
A47: 17 | B47: =VLOOKUP(A47,ORC!$D:$N,2,0) ->  | F47: % | K47: =SUM(G47:J47) -> 0
A48: =IFERROR(IF(B47<>"",100,B47),"") ->  | F48: R$ | G48: =IF(G47="","",IFERROR(G47*$K48,"")) ->  | H48: =IF(H47="","",IFERROR(H47*$K48,"")) ->  | I48: =IF(I47="","",IFERROR(I47*$K48,"")) ->  | J48: =IF(J47="","",IFERROR(J47*$K48,"")) ->  | K48: =VLOOKUP(A47,ORC!$D:$N,11,0) -> 
A49: 18 | B49: =VLOOKUP(A49,ORC!$D:$N,2,0) ->  | F49: % | K49: =SUM(G49:J49) -> 0
A50: =IFERROR(IF(B49<>"",100,B49),"") ->  | F50: R$ | G50: =IF(G49="","",IFERROR(G49*$K50,"")) ->  | H50: =IF(H49="","",IFERROR(H49*$K50,"")) ->  | I50: =IF(I49="","",IFERROR(I49*$K50,"")) ->  | J50: =IF(J49="","",IFERROR(J49*$K50,"")) ->  | K50: =VLOOKUP(A49,ORC!$D:$N,11,0) -> 
A51: 19 | B51: =VLOOKUP(A51,ORC!$D:$N,2,0) ->  | F51: % | K51: =SUM(G51:J51) -> 0
A52: =IFERROR(IF(B51<>"",100,B51),"") ->  | F52: R$ | G52: =IF(G51="","",IFERROR(G51*$K52,"")) ->  | H52: =IF(H51="","",IFERROR(H51*$K52,"")) ->  | I52: =IF(I51="","",IFERROR(I51*$K52,"")) ->  | J52: =IF(J51="","",IFERROR(J51*$K52,"")) ->  | K52: =VLOOKUP(A51,ORC!$D:$N,11,0) -> 
A54: 20 | B54: =VLOOKUP(A54,ORC!$D:$N,2,0) ->  | F54: % | K54: =SUM(G54:J54) -> 0
A55: =IFERROR(IF(B54<>"",100,B54),"") ->  | F55: R$ | G55: =IF(G54="","",IFERROR(G54*$K55,"")) ->  | H55: =IF(H54="","",IFERROR(H54*$K55,"")) ->  | I55: =IF(I54="","",IFERROR(I54*$K55,"")) ->  | J55: =IF(J54="","",IFERROR(J54*$K55,"")) ->  | K55: =VLOOKUP(A54,ORC!$D:$N,11,0) -> 
A56: 21 | B56: =VLOOKUP(A56,ORC!$D:$N,2,0) ->  | F56: % | K56: =SUM(G56:J56) -> 0
A57: =IFERROR(IF(B56<>"",100,B56),"") ->  | F57: R$ | G57: =IF(G56="","",IFERROR(G56*$K57,"")) ->  | H57: =IF(H56="","",IFERROR(H56*$K57,"")) ->  | I57: =IF(I56="","",IFERROR(I56*$K57,"")) ->  | J57: =IF(J56="","",IFERROR(J56*$K57,"")) ->  | K57: =VLOOKUP(A56,ORC!$D:$N,11,0) -> 
A58: 22 | B58: =VLOOKUP(A58,ORC!$D:$N,2,0) ->  | F58: % | K58: =SUM(G58:J58) -> 0
A59: =IFERROR(IF(B58<>"",100,B58),"") ->  | F59: R$ | G59: =IF(G58="","",IFERROR(G58*$K59,"")) ->  | H59: =IF(H58="","",IFERROR(H58*$K59,"")) ->  | I59: =IF(I58="","",IFERROR(I58*$K59,"")) ->  | J59: =IF(J58="","",IFERROR(J58*$K59,"")) ->  | K59: =VLOOKUP(A58,ORC!$D:$N,11,0) -> 
A60: 23 | B60: =VLOOKUP(A60,ORC!$D:$N,2,0) ->  | F60: % | K60: =SUM(G60:J60) -> 0
A61: =IFERROR(IF(B60<>"",100,B60),"") ->  | F61: R$ | G61: =IF(G60="","",IFERROR(G60*$K61,"")) ->  | H61: =IF(H60="","",IFERROR(H60*$K61,"")) ->  | I61: =IF(I60="","",IFERROR(I60*$K61,"")) ->  | J61: =IF(J60="","",IFERROR(J60*$K61,"")) ->  | K61: =VLOOKUP(A60,ORC!$D:$N,11,0) -> 
A62: 24 | B62: =VLOOKUP(A62,ORC!$D:$N,2,0) ->  | F62: % | K62: =SUM(G62:J62) -> 0
A63: =IFERROR(IF(B62<>"",100,B62),"") ->  | F63: R$ | G63: =IF(G62="","",IFERROR(G62*$K63,"")) ->  | H63: =IF(H62="","",IFERROR(H62*$K63,"")) ->  | K63: =VLOOKUP(A62,ORC!$D:$N,11,0) -> 
A64: 25 | B64: =VLOOKUP(A64,ORC!$D:$N,2,0) ->  | F64: % | K64: =SUM(G64:J64) -> 0
A65: =IFERROR(IF(B64<>"",100,B64),"") ->  | F65: R$ | G65: =IF(G64="","",IFERROR(G64*$K65,"")) ->  | H65: =IF(H64="","",IFERROR(H64*$K65,"")) ->  | K65: =VLOOKUP(A64,ORC!$D:$N,11,0) -> 
A66: 26 | B66: =VLOOKUP(A66,ORC!$D:$N,2,0) ->  | F66: % | K66: =SUM(G66:J66) -> 0
A67: =IFERROR(IF(B66<>"",100,B66),"") ->  | F67: R$ | G67: =IF(G66="","",IFERROR(G66*$K67,"")) ->  | H67: =IF(H66="","",IFERROR(H66*$K67,"")) ->  | K67: =VLOOKUP(A66,ORC!$D:$N,11,0) -> 
A68: 27 | B68: =VLOOKUP(A68,ORC!$D:$N,2,0) ->  | F68: % | K68: =SUM(G68:J68) -> 0
A69: =IFERROR(IF(B68<>"",100,B68),"") ->  | F69: R$ | G69: =IF(G68="","",IFERROR(G68*$K69,"")) ->  | H69: =IF(H68="","",IFERROR(H68*$K69,"")) ->  | K69: =VLOOKUP(A68,ORC!$D:$N,11,0) -> 
A70: 28 | B70: =VLOOKUP(A70,ORC!$D:$N,2,0) ->  | F70: % | K70: =SUM(G70:J70) -> 0
A71: =IFERROR(IF(B70<>"",100,B70),"") ->  | F71: R$ | G71: =IF(G70="","",IFERROR(G70*$K71,"")) ->  | H71: =IF(H70="","",IFERROR(H70*$K71,"")) ->  | K71: =VLOOKUP(A70,ORC!$D:$N,11,0) -> 
A72: 29 | B72: =VLOOKUP(A72,ORC!$D:$N,2,0) ->  | F72: % | K72: =SUM(G72:J72) -> 0
A73: =IFERROR(IF(B72<>"",100,B72),"") ->  | F73: R$ | G73: =IF(G72="","",IFERROR(G72*$K73,"")) ->  | H73: =IF(H72="","",IFERROR(H72*$K73,"")) ->  | K73: =VLOOKUP(A72,ORC!$D:$N,11,0) -> 
A74: 30 | B74: =VLOOKUP(A74,ORC!$D:$N,2,0) ->  | F74: % | K74: =SUM(G74:J74) -> 0
A75: =IFERROR(IF(B74<>"",100,B74),"") ->  | F75: R$ | G75: =IF(G74="","",IFERROR(G74*$K75,"")) ->  | H75: =IF(H74="","",IFERROR(H74*$K75,"")) ->  | K75: =VLOOKUP(A74,ORC!$D:$N,11,0) -> 
F77: Porcentagem | G77: =G78/$J$80 ->  | H77: =H78/$J$80 ->  | I77: =I78/$J$80 ->  | J77: =J78/$J$80 -> 
F78: Custo | G78: =SUMIF($A:$A,100,G:G) -> 1090.312 | H78: =SUMIF($A:$A,100,H:H) -> 2180.624 | I78: =SUMIF($A:$A,100,I:I) -> 3270.936 | J78: =SUMIF($A:$A,100,J:J) -> 4361.248
F79: Porcentagem Acumulada | G79: =G77 ->  | H79: =G79+H77 ->  | I79: =H79+I77 -> 
F80: Custo Acumulado | G80: =G78 -> 1090.312 | H80: =H78+G80 -> 3270.936 | I80: =I78+H80 -> 6541.872 | J80: =IF(J78+I80=ORC!M368,J78+I80,"ERRO") -> ERRO
F84: RESPONSÁVEL TÉCNICO | G84: =DADOS!D16 -> FLÁVIA CRISTINA BARBOSA
G85: =DADOS!D18 -> CREA - MG 187.842/D

Sheet CRO 5 meses
A2: CRONOGRAMA FÍSICO-FINANCEIRO | L2: Revisão: | M2: =DADOS!D6 -> R01
L3: Data: | M3: =DADOS!D2 -> 2023-05-05
A4: Projeto: | D4: Responsável: | I4: Cliente: | L4: Bancos:
A5: =DADOS!D8 -> REFORMA DA COBERTURA DO CEIM RECANTO FELIZ | L5: =DADOS!D14 -> SINAPI: 03/2023 Minas Gerais SETOP: 01/2023 Minas Gerais SICRO : 01/2023 Minas Gerais SUDECAP: 02/2023 Minas Gerais
L8: BDI 1: | M8: =DADOS!D10 -> 0.2652
L9: BDI 2: | M9: =DADOS!D12 -> 0.2025
A11: =A2&" DE "&DADOS!D20&" - "&A5 -> CRONOGRAMA FÍSICO-FINANCEIRO DE PROJETO EXECUTIVO - REFORMA DA COBERTURA DO CEIM RECANTO FELIZ
A13: ITEM | B13: DESCRIÇÃO | F13: Unid. | G13: 30 DIAS | H13: 60 DIAS | I13: 90 DIAS | J13: 120 DIAS | K13: 150 DIAS | L13: Total por Etapa
A15: 1 | B15: =VLOOKUP(A15,ORC!$D:$N,2,0) -> CANTEIRO DE OBRA | F15: % | G15: 0.2 | H15: 0.2 | I15: 0.2 | J15: 0.2 | K15: 0.2 | L15: =SUM(G15:K15) -> 1
A16: =IFERROR(IF(B15<>"",100,B15),"") -> 100 | F16: R$ | G16: =IF(G15="","",IFERROR(G15*$L16,"")) -> 2180.624 | H16: =IF(H15="","",IFERROR(H15*$L16,"")) -> 2180.624 | I16: 2180.624 | J16: 2180.624 | K16: 2180.624 | L16: =VLOOKUP(A15,ORC!$D:$N,11,0) -> 10903.12
A17: 2 | B17: =VLOOKUP(A17,ORC!$D:$N,2,0) -> SERVIÇOS PRELIMINARES | F17: % | G17: 1 | L17: =SUM(G17:K17) -> 1
A18: =IFERROR(IF(B17<>"",100,B17),"") -> 100 | F18: R$ | G18: =IF(G17="","",IFERROR(G17*$L18,"")) -> 4690.75 | H18: =IF(H17="","",IFERROR(H17*$L18,"")) ->  | I18: =IF(I17="","",IFERROR(I17*$L18,"")) ->  | J18: =IF(J17="","",IFERROR(J17*$L18,"")) ->  | K18: =IF(K17="","",IFERROR(K17*$L18,"")) ->  | L18: =VLOOKUP(A17,ORC!$D:$N,11,0) -> 4690.75
A19: 3 | B19: =VLOOKUP(A19,ORC!$D:$N,2,0) -> ADMINISTRAÇÃO DE OBRA | F19: % | G19: 0.2 | H19: 0.2 | I19: 0.2 | J19: 0.2 | K19: 0.2 | L19: =SUM(G19:K19) -> 1
A20: =IFERROR(IF(B19<>"",100,B19),"") -> 100 | F20: R$ | G20: =IF(G19="","",IFERROR(G19*$L20,"")) -> 29000.18 | H20: =IF(H19="","",IFERROR(H19*$L20,"")) -> 29000.18 | I20: =IF(I19="","",IFERROR(I19*$L20,"")) -> 29000.18 | J20: =IF(J19="","",IFERROR(J19*$L20,"")) -> 29000.18 | K20: =IF(K19="","",IFERROR(K19*$L20,"")) -> 29000.18 | L20: =VLOOKUP(A19,ORC!$D:$N,11,0) -> 145000.9
A21: 4 | B21: =VLOOKUP(A21,ORC!$D:$N,2,0) -> DEMOLIÇÕES E REMOÇÕES | F21: % | G21: 0.7 | H21: 0.3 | L21: =SUM(G21:K21) -> 1
A22: =IFERROR(IF(B21<>"",100,B21),"") -> 100 | F22: R$ | G22: =IF(G21="","",IFERROR(G21*$L22,"")) -> 15352.799 | H22: =IF(H21="","",IFERROR(H21*$L22,"")) -> 6579.771 | I22: =IF(I21="","",IFERROR(I21*$L22,"")) ->  | J22: =IF(J21="","",IFERROR(J21*$L22,"")) ->  | K22: =IF(K21="","",IFERROR(K21*$L22,"")) ->  | L22: =VLOOKUP(A21,ORC!$D:$N,11,0) -> 21932.57
A23: 5 | B23: =VLOOKUP(A23,ORC!$D:$N,2,0) -> SISTEMA DE COBERTURA | F23: % | G23: 0.1 | H23: 0.3 | I23: 0.4 | J23: 0.2 | L23: =SUM(G23:K23) -> 1
A24: =IFERROR(IF(B23<>"",100,B23),"") -> 100 | F24: R$ | G24: =IF(G23="","",IFERROR(G23*$L24,"")) -> 45680.441 | H24: =IF(H23="","",IFERROR(H23*$L24,"")) -> 137041.323 | I24: =IF(I23="","",IFERROR(I23*$L24,"")) -> 182721.764 | J24: =IF(J23="","",IFERROR(J23*$L24,"")) -> 91360.882 | K24: =IF(K23="","",IFERROR(K23*$L24,"")) ->  | L24: =VLOOKUP(A23,ORC!$D:$N,11,0) -> 456804.41
A25: 6 | B25: =VLOOKUP(A25,ORC!$D:$N,2,0) -> FECHAMENTO DA COBERTURA | F25: % | J25: 0.5 | K25: 0.5 | L25: =SUM(G25:K25) -> 1
A26: =IFERROR(IF(B25<>"",100,B25),"") -> 100 | F26: R$ | G26: =IF(G25="","",IFERROR(G25*$L26,"")) ->  | H26: =IF(H25="","",IFERROR(H25*$L26,"")) ->  | I26: =IF(I25="","",IFERROR(I25*$L26,"")) ->  | J26: =IF(J25="","",IFERROR(J25*$L26,"")) -> 33561.05 | K26: =IF(K25="","",IFERROR(K25*$L26,"")) -> 33561.05 | L26: =VLOOKUP(A25,ORC!$D:$N,11,0) -> 67122.1
A27: 7 | B27: =VLOOKUP(A27,ORC!$D:$N,2,0) -> DRENAGEM PLUVIAL | F27: % | I27: 0.2 | J27: 0.5 | K27: 0.3 | L27: =SUM(G27:K27) -> 1
A28: =IFERROR(IF(B27<>"",100,B27),"") -> 100 | F28: R$ | G28: =IF(G27="","",IFERROR(G27*$L28,"")) ->  | H28: =IF(H27="","",IFERROR(H27*$L28,"")) ->  | I28: =IF(I27="","",IFERROR(I27*$L28,"")) -> 11466.552 | J28: =IF(J27="","",IFERROR(J27*$L28,"")) -> 28666.38 | K28: =IF(K27="","",IFERROR(K27*$L28,"")) -> 17199.828 | L28: =VLOOKUP(A27,ORC!$D:$N,11,0) -> 57332.76
A29: 8 | B29: =VLOOKUP(A29,ORC!$D:$N,2,0) -> SERVIÇOS FINAIS | F29: % | K29: 1 | L29: =SUM(G29:K29) -> 1
A30: =IFERROR(IF(B29<>"",100,B29),"") -> 100 | F30: R$ | G30: =IF(G29="","",IFERROR(G29*$L30,"")) ->  | H30: =IF(H29="","",IFERROR(H29*$L30,"")) ->  | I30: =IF(I29="","",IFERROR(I29*$L30,"")) ->  | J30: =IF(J29="","",IFERROR(J29*$L30,"")) ->  | K30: =IF(K29="","",IFERROR(K29*$L30,"")) -> 5885.83 | L30: =VLOOKUP(A29,ORC!$D:$N,11,0) -> 5885.83
A32: 9 | B32: =VLOOKUP(A32,ORC!$D:$N,2,0) ->  | F32: % | L32: =SUM(G32:K32) -> 0
A33: =IFERROR(IF(B32<>"",100,B32),"") ->  | F33: R$ | G33: =IF(G32="","",IFERROR(G32*$L33,"")) ->  | H33: =IF(H32="","",IFERROR(H32*$L33,"")) ->  | I33: =IF(I32="","",IFERROR(I32*$L33,"")) ->  | J33: =IF(J32="","",IFERROR(J32*$L33,"")) ->  | K33: =IF(K32="","",IFERROR(K32*$L33,"")) ->  | L33: =VLOOKUP(A32,ORC!$D:$N,11,0) -> 
A34: 10 | B34: =VLOOKUP(A34,ORC!$D:$N,2,0) ->  | F34: % | L34: =SUM(G34:K34) -> 0
A35: =IFERROR(IF(B34<>"",100,B34),"") ->  | F35: R$ | G35: =IF(G34="","",IFERROR(G34*$L35,"")) ->  | H35: =IF(H34="","",IFERROR(H34*$L35,"")) ->  | I35: =IF(I34="","",IFERROR(I34*$L35,"")) ->  | J35: =IF(J34="","",IFERROR(J34*$L35,"")) ->  | K35: =IF(K34="","",IFERROR(K34*$L35,"")) ->  | L35: =VLOOKUP(A34,ORC!$D:$N,11,0) -> 
A36: 11 | B36: =VLOOKUP(A36,ORC!$D:$N,2,0) ->  | F36: % | L36: =SUM(G36:K36) -> 0
A37: =IFERROR(IF(B36<>"",100,B36),"") ->  | F37: R$ | G37: =IF(G36="","",IFERROR(G36*$L37,"")) ->  | H37: =IF(H36="","",IFERROR(H36*$L37,"")) ->  | I37: =IF(I36="","",IFERROR(I36*$L37,"")) ->  | J37: =IF(J36="","",IFERROR(J36*$L37,"")) ->  | K37: =IF(K36="","",IFERROR(K36*$L37,"")) ->  | L37: =VLOOKUP(A36,ORC!$D:$N,11,0) -> 
A38: 12 | B38: =VLOOKUP(A38,ORC!$D:$N,2,0) ->  | F38: % | L38: =SUM(G38:K38) -> 0
A39: =IFERROR(IF(B38<>"",100,B38),"") ->  | F39: R$ | G39: =IF(G38="","",IFERROR(G38*$L39,"")) ->  | H39: =IF(H38="","",IFERROR(H38*$L39,"")) ->  | I39: =IF(I38="","",IFERROR(I38*$L39,"")) ->  | J39: =IF(J38="","",IFERROR(J38*$L39,"")) ->  | K39: =IF(K38="","",IFERROR(K38*$L39,"")) ->  | L39: =VLOOKUP(A38,ORC!$D:$N,11,0) -> 
A40: 13 | B40: =VLOOKUP(A40,ORC!$D:$N,2,0) ->  | F40: % | L40: =SUM(G40:K40) -> 0
A41: =IFERROR(IF(B40<>"",100,B40),"") ->  | F41: R$ | G41: =IF(G40="","",IFERROR(G40*$L41,"")) ->  | H41: =IF(H40="","",IFERROR(H40*$L41,"")) ->  | I41: =IF(I40="","",IFERROR(I40*$L41,"")) ->  | J41: =IF(J40="","",IFERROR(J40*$L41,"")) ->  | K41: =IF(K40="","",IFERROR(K40*$L41,"")) ->  | L41: =VLOOKUP(A40,ORC!$D:$N,11,0) -> 
A42: 14 | B42: =VLOOKUP(A42,ORC!$D:$N,2,0) ->  | F42: % | L42: =SUM(G42:K42) -> 0
A43: =IFERROR(IF(B42<>"",100,B42),"") ->  | F43: R$ | G43: =IF(G42="","",IFERROR(G42*$L43,"")) ->  | H43: =IF(H42="","",IFERROR(H42*$L43,"")) ->  | I43: =IF(I42="","",IFERROR(I42*$L43,"")) ->  | J43: =IF(J42="","",IFERROR(J42*$L43,"")) ->  | K43: =IF(K42="","",IFERROR(K42*$L43,"")) ->  | L43: =VLOOKUP(A42,ORC!$D:$N,11,0) -> 
A44: 15 | B44: =VLOOKUP(A44,ORC!$D:$N,2,0) ->  | F44: % | L44: =SUM(G44:K44) -> 0
A45: =IFERROR(IF(B44<>"",100,B44),"") ->  | F45: R$ | G45: =IF(G44="","",IFERROR(G44*$L45,"")) ->  | H45: =IF(H44="","",IFERROR(H44*$L45,"")) ->  | I45: =IF(I44="","",IFERROR(I44*$L45,"")) ->  | J45: =IF(J44="","",IFERROR(J44*$L45,"")) ->  | K45: =IF(K44="","",IFERROR(K44*$L45,"")) ->  | L45: =VLOOKUP(A44,ORC!$D:$N,11,0) -> 
A46: 16 | B46: =VLOOKUP(A46,ORC!$D:$N,2,0) ->  | F46: % | L46: =SUM(G46:K46) -> 0
A47: =IFERROR(IF(B46<>"",100,B46),"") ->  | F47: R$ | G47: =IF(G46="","",IFERROR(G46*$L47,"")) ->  | H47: =IF(H46="","",IFERROR(H46*$L47,"")) ->  | I47: =IF(I46="","",IFERROR(I46*$L47,"")) ->  | J47: =IF(J46="","",IFERROR(J46*$L47,"")) ->  | K47: =IF(K46="","",IFERROR(K46*$L47,"")) ->  | L47: =VLOOKUP(A46,ORC!$D:$N,11,0) -> 
A48: 17 | B48: =VLOOKUP(A48,ORC!$D:$N,2,0) ->  | F48: % | L48: =SUM(G48:K48) -> 0
A49: =IFERROR(IF(B48<>"",100,B48),"") ->  | F49: R$ | G49: =IF(G48="","",IFERROR(G48*$L49,"")) ->  | H49: =IF(H48="","",IFERROR(H48*$L49,"")) ->  | I49: =IF(I48="","",IFERROR(I48*$L49,"")) ->  | J49: =IF(J48="","",IFERROR(J48*$L49,"")) ->  | K49: =IF(K48="","",IFERROR(K48*$L49,"")) ->  | L49: =VLOOKUP(A48,ORC!$D:$N,11,0) -> 
A50: 18 | B50: =VLOOKUP(A50,ORC!$D:$N,2,0) ->  | F50: % | L50: =SUM(G50:K50) -> 0
A51: =IFERROR(IF(B50<>"",100,B50),"") ->  | F51: R$ | G51: =IF(G50="","",IFERROR(G50*$L51,"")) ->  | H51: =IF(H50="","",IFERROR(H50*$L51,"")) ->  | I51: =IF(I50="","",IFERROR(I50*$L51,"")) ->  | J51: =IF(J50="","",IFERROR(J50*$L51,"")) ->  | K51: =IF(K50="","",IFERROR(K50*$L51,"")) ->  | L51: =VLOOKUP(A50,ORC!$D:$N,11,0) -> 
A52: 19 | B52: =VLOOKUP(A52,ORC!$D:$N,2,0) ->  | F52: % | L52: =SUM(G52:K52) -> 0
A53: =IFERROR(IF(B52<>"",100,B52),"") ->  | F53: R$ | G53: =IF(G52="","",IFERROR(G52*$L53,"")) ->  | H53: =IF(H52="","",IFERROR(H52*$L53,"")) ->  | I53: =IF(I52="","",IFERROR(I52*$L53,"")) ->  | J53: =IF(J52="","",IFERROR(J52*$L53,"")) ->  | K53: =IF(K52="","",IFERROR(K52*$L53,"")) ->  | L53: =VLOOKUP(A52,ORC!$D:$N,11,0) -> 
A55: 20 | B55: =VLOOKUP(A55,ORC!$D:$N,2,0) ->  | F55: % | L55: =SUM(G55:K55) -> 0
A56: =IFERROR(IF(B55<>"",100,B55),"") ->  | F56: R$ | G56: =IF(G55="","",IFERROR(G55*$L56,"")) ->  | H56: =IF(H55="","",IFERROR(H55*$L56,"")) ->  | I56: =IF(I55="","",IFERROR(I55*$L56,"")) ->  | J56: =IF(J55="","",IFERROR(J55*$L56,"")) ->  | K56: =IF(K55="","",IFERROR(K55*$L56,"")) ->  | L56: =VLOOKUP(A55,ORC!$D:$N,11,0) -> 
A57: 21 | B57: =VLOOKUP(A57,ORC!$D:$N,2,0) ->  | F57: % | L57: =SUM(G57:K57) -> 0
A58: =IFERROR(IF(B57<>"",100,B57),"") ->  | F58: R$ | G58: =IF(G57="","",IFERROR(G57*$L58,"")) ->  | H58: =IF(H57="","",IFERROR(H57*$L58,"")) ->  | I58: =IF(I57="","",IFERROR(I57*$L58,"")) ->  | J58: =IF(J57="","",IFERROR(J57*$L58,"")) ->  | K58: =IF(K57="","",IFERROR(K57*$L58,"")) ->  | L58: =VLOOKUP(A57,ORC!$D:$N,11,0) -> 
A59: 22 | B59: =VLOOKUP(A59,ORC!$D:$N,2,0) ->  | F59: % | L59: =SUM(G59:K59) -> 0
A60: =IFERROR(IF(B59<>"",100,B59),"") ->  | F60: R$ | G60: =IF(G59="","",IFERROR(G59*$L60,"")) ->  | H60: =IF(H59="","",IFERROR(H59*$L60,"")) ->  | I60: =IF(I59="","",IFERROR(I59*$L60,"")) ->  | J60: =IF(J59="","",IFERROR(J59*$L60,"")) ->  | K60: =IF(K59="","",IFERROR(K59*$L60,"")) ->  | L60: =VLOOKUP(A59,ORC!$D:$N,11,0) -> 
A61: 23 | B61: =VLOOKUP(A61,ORC!$D:$N,2,0) ->  | F61: % | L61: =SUM(G61:K61) -> 0
A62: =IFERROR(IF(B61<>"",100,B61),"") ->  | F62: R$ | G62: =IF(G61="","",IFERROR(G61*$L62,"")) ->  | H62: =IF(H61="","",IFERROR(H61*$L62,"")) ->  | I62: =IF(I61="","",IFERROR(I61*$L62,"")) ->  | J62: =IF(J61="","",IFERROR(J61*$L62,"")) ->  | K62: =IF(K61="","",IFERROR(K61*$L62,"")) ->  | L62: =VLOOKUP(A61,ORC!$D:$N,11,0) -> 
A63: 24 | B63: =VLOOKUP(A63,ORC!$D:$N,2,0) ->  | F63: % | L63: =SUM(G63:K63) -> 0
A64: =IFERROR(IF(B63<>"",100,B63),"") ->  | F64: R$ | G64: =IF(G63="","",IFERROR(G63*$L64,"")) ->  | H64: =IF(H63="","",IFERROR(H63*$L64,"")) ->  | L64: =VLOOKUP(A63,ORC!$D:$N,11,0) -> 
A65: 25 | B65: =VLOOKUP(A65,ORC!$D:$N,2,0) ->  | F65: % | L65: =SUM(G65:K65) -> 0
A66: =IFERROR(IF(B65<>"",100,B65),"") ->  | F66: R$ | G66: =IF(G65="","",IFERROR(G65*$L66,"")) ->  | H66: =IF(H65="","",IFERROR(H65*$L66,"")) ->  | L66: =VLOOKUP(A65,ORC!$D:$N,11,0) -> 
A67: 26 | B67: =VLOOKUP(A67,ORC!$D:$N,2,0) ->  | F67: % | L67: =SUM(G67:K67) -> 0
A68: =IFERROR(IF(B67<>"",100,B67),"") ->  | F68: R$ | G68: =IF(G67="","",IFERROR(G67*$L68,"")) ->  | H68: =IF(H67="","",IFERROR(H67*$L68,"")) ->  | L68: =VLOOKUP(A67,ORC!$D:$N,11,0) -> 
A69: 27 | B69: =VLOOKUP(A69,ORC!$D:$N,2,0) ->  | F69: % | L69: =SUM(G69:K69) -> 0
A70: =IFERROR(IF(B69<>"",100,B69),"") ->  | F70: R$ | G70: =IF(G69="","",IFERROR(G69*$L70,"")) ->  | H70: =IF(H69="","",IFERROR(H69*$L70,"")) ->  | L70: =VLOOKUP(A69,ORC!$D:$N,11,0) -> 
A71: 28 | B71: =VLOOKUP(A71,ORC!$D:$N,2,0) ->  | F71: % | L71: =SUM(G71:K71) -> 0
A72: =IFERROR(IF(B71<>"",100,B71),"") ->  | F72: R$ | G72: =IF(G71="","",IFERROR(G71*$L72,"")) ->  | H72: =IF(H71="","",IFERROR(H71*$L72,"")) ->  | L72: =VLOOKUP(A71,ORC!$D:$N,11,0) -> 
A73: 29 | B73: =VLOOKUP(A73,ORC!$D:$N,2,0) ->  | F73: % | L73: =SUM(G73:K73) -> 0
A74: =IFERROR(IF(B73<>"",100,B73),"") ->  | F74: R$ | G74: =IF(G73="","",IFERROR(G73*$L74,"")) ->  | H74: =IF(H73="","",IFERROR(H73*$L74,"")) ->  | L74: =VLOOKUP(A73,ORC!$D:$N,11,0) -> 
A75: 30 | B75: =VLOOKUP(A75,ORC!$D:$N,2,0) ->  | F75: % | L75: =SUM(G75:K75) -> 0
A76: =IFERROR(IF(B75<>"",100,B75),"") ->  | F76: R$ | G76: =IF(G75="","",IFERROR(G75*$L76,"")) ->  | H76: =IF(H75="","",IFERROR(H75*$L76,"")) ->  | L76: =VLOOKUP(A75,ORC!$D:$N,11,0) -> 
F78: Porcentagem | G78: =G79/$K$81 -> 0.1259039417 | H78: 0.227112066 | I78: 0.2928117317 | J78: 0.2400620139 | K78: =K79/$K$81 -> 0.1141102467
F79: Custo | G79: =SUMIF($A:$A,100,G:G) -> 96904.794 | H79: =SUMIF($A:$A,100,H:H) -> 174801.898 | I79: =SUMIF($A:$A,100,I:I) -> 225369.12 | J79: =SUMIF($A:$A,100,J:J) -> 184769.116 | K79: =SUMIF($A:$A,100,K:K) -> 87827.512
F80: Porcentagem Acumulada | G80: =G78 -> 0.1259039417 | H80: =G80+H78 -> 0.3530160077 | I80: =H80+I78 -> 0.6458277394 | J80: 0.8858897533 | K80: 1
F81: Custo Acumulado | G81: =G79 -> 96904.794 | H81: =H79+G81 -> 271706.692 | I81: =I79+H81 -> 497075.812 | J81: 681844.928 | K81: =IF(K79+J81=ORC!M368,K79+J81,"ERRO") -> 769672.44
F85: RESPONSÁVEL TÉCNICO | G85: =DADOS!D16 -> FLÁVIA CRISTINA BARBOSA
G86: =DADOS!D18 -> CREA - MG 187.842/D
